Workbook

Sheet ACS_Notes (hidden)
A1: NOTES:
A4: Data are based on a sample and are subject to sampling variability. The degree of uncertainty for an estimate arising from sampling variability is represented through the use of a margin of error. The value shown here is the 90 percent margin of error. The margin of error can be interpreted roughly as providing a 90 percent probability that the interval defined by the estimate minus the margin of error and the estimate plus the margin of error (the lower and upper confidence bounds) contains the true value. In addition to sampling variability, the ACS estimates are subject to nonsampling error (for a discussion of nonsampling variability, see Accuracy of the Data). The effect of nonsampling error is not represented in these tables.
A8: In addition to sampling variability, the ACS estimates are subject to nonsampling error (for a discussion of nonsampling variability, see Accuracy of the Data. The link is located at the end of this worksheet.). The effect of nonsampling error is not represented in these tables.
A11: While the 2005-2009 American Community Survey (ACS) data generally reflect the November 2008 Office of Management and Budget (OMB) definitions of metropolitan and micropolitan statistical areas; in certain instances the names, codes, and boundaries of the principal cities shown in ACS tables may differ from the OMB definitions due to differences in the effective dates of the geographic entities.
A15: Estimates of urban and rural population, housing units, and characteristics reflect boundaries of urban areas defined based on Census 2000 data. Boundaries for urban areas have not been updated since Census 2000. As a result, data for urban and rural areas from the ACS do not necessarily reflect the results of ongoing urbanization.
A17: Explanation of Symbols:
A19: 1. An '**' entry in the margin of error column indicates that either no sample observations or too few sample observations were available to compute a standard error and thus the margin of error. A statistical test is not appropriate.
A21: 2. An '-' entry in the estimate column indicates that either no sample observations or too few sample observations were available to compute an estimate, or a ratio of medians cannot be calculated because one or both of the median estimates falls in the lowest interval or upper interval of an open-ended distribution.
A23: 3. An '-' following a median estimate means the median falls in the lowest interval of an open-ended distribution.
A24: 4. An '+' following a median estimate means the median falls in the upper interval of an open-ended distribution.
A25: 5. An '***' entry in the margin of error column indicates that the median falls in the lowest interval or upper interval of an open-ended distribution. A statistical test is not appropriate.
A26: 6. An '*****' entry in the margin of error column indicates that the estimate is controlled. A statistical test for sampling variability is not appropriate.

Sheet StartInstruction
A1: Demographic Profiles for New Hampshire and its Counties
A3: To view or print a Demographic Profile follow the steps below
A6: Step 1. | C6: Select the municipality you wish to
C7: Profile from the drop down box below.
A12: Step 2. | C12: Click one of the profile topic buttons below to review or print
C13: the information for the selected geography.
C14: Don't forget to adjust the axis on charts as necessary.
O29: Updated: | Q29: 2021-02-23
O31: Next Update: | Q31: Spring 2021 - 2020 Labor Force and Unemployment Data

Sheet PopulationCharacteristics (hidden)
B2: =CntyDataLink!$A35 -> New Hampshire
H3: Land Area: | I3: =((CntyDataLink!F35*10.764)/43560)/640 -> 8968.172079 | K3: Water Area: | L3: =((CntyDataLink!G35*10.764)/43560)/640 -> 381.846649
B4: POPULATION CHARACTERISTICS
B19: Population | C19: ="Source: US Census; New Hampshire Office of Strategic Initiatives; "& L20&", "&P20&", and "&S20&" American Community Survey Table B01001" -> Source: US Census; New Hampshire Office of Strategic Initiatives; 2005-2009, 2010-2014, and 2015-2019 American Community Survey Table B01001 | N19: Population by Age | P19: ="Source: "& L20&", "&P20&", and "&S20&" American Community Survey Tables B01001 and B01002" -> Source: 2005-2009, 2010-2014, and 2015-2019 American Community Survey Tables B01001 and B01002
L20: 2005-2009 | P20: 2010-2014 | S20: 2015-2019 | V20: Percent Change
C21: 1980 | D21: 1990 | E21: 2000 | F21: 2010 | G21: 2015-2019 | H21: 2025 | I21: 2030 | L21: Estimate | N21: Margin of Error | O21: Percent Change | P21: Estimate | Q21: Margin of Error | R21: Percent Change | S21: Estimate | T21: Margin of Error | V21: 2009-2019 | W21: 2014-2019 | X21: Statistically Significant Change
C22: =CntyDataLink!$E$20 -> 920475 | D22: =CntyDataLink!$F$20 -> 1109252 | E22: =CntyDataLink!$G$20 -> 1235786 | F22: =CntyDataLink!$H$20 -> 1316470 | G22: =CntyDataLink!$B$132 -> 1348124 | H22: =CntyDataLink!$I$20 -> 1388884 | I22: =CntyDataLink!$K$20 -> 1427098 | K22: Under 15 yrs. | L22: =CntyDataLinkPrior10YearEstimate!$D$132 -> 241369 | N22: =CntyDataLinkPrior10YearEstimate!$E$132 -> 1864.475261 | O22: =L22/SUM($L$22:$L$29) -> 0.183492104 | P22: =CntyDataLinkPrior5YearEstimates!$D$132 -> 222903 | Q22: =CntyDataLinkPrior5YearEstimates!$E$132 -> 1846.158715 | R22: =P22/SUM($P$22:$P$29) -> 0.168729264 | S22: =CntyDataLink!$D$132 -> 210770 | T22: =CntyDataLink!$E$132 -> 1893.326966 | U22: =S22/SUM($S$22:$S$29) -> 0.156343185 | V22: =(S22-L22)/L22 -> -0.1267727007 | W22: =(S22-P22)/P22 -> -0.05443174834 | X22: =StatisticallySignificantCalcs!$A3 -> Y
K23: 15 to 24 yrs. | L23: =CntyDataLinkPrior10YearEstimate!$F$132 -> 184593 | N23: =CntyDataLinkPrior10YearEstimate!$G$132 -> 1991.080611 | O23: 0.1403301914 | P23: =CntyDataLinkPrior5YearEstimates!$F$132 -> 179133 | Q23: =CntyDataLinkPrior5YearEstimates!$G$132 -> 1886.984102 | R23: 0.1355970052 | S23: =CntyDataLink!$F$132 -> 177017 | T23: =CntyDataLink!$G$132 -> 1826.244781 | U23: 0.1313061706 | V23: =(S23-L23)/L23 -> -0.04104164297 | W23: -0.0118124522 | X23: =StatisticallySignificantCalcs!$A4 -> Y
B24: Percent Change | K24: 25 to 34 yrs. | L24: =CntyDataLinkPrior10YearEstimate!$H$132 -> 148323 | N24: =CntyDataLinkPrior10YearEstimate!$I$132 -> 450.6295596 | O24: 0.1127572279 | P24: =CntyDataLinkPrior5YearEstimates!$H$132 -> 149321 | Q24: =CntyDataLinkPrior5YearEstimates!$I$132 -> 494.6210671 | R24: 0.1130304322 | S24: =CntyDataLink!$H$132 -> 165193 | T24: =CntyDataLink!$I$132 -> 582.25424 | U24: 0.1225354641 | V24: 0.1137382604 | W24: 0.1062944931 | X24: =StatisticallySignificantCalcs!$A5 -> Y
D25: =C21&"-"&(D21-1900) -> 1980-90 | E25: 1990-2000 | F25: 2000-2010 | G25: =F21&"-19" -> 2010-19 | H25: =2019&"-"&(H21) -> 2019-2025 | I25: =H21&"-"&(I21) -> 2025-2030 | K25: 35 to 44 yrs. | L25: =CntyDataLinkPrior10YearEstimate!$J$132 -> 197151 | N25: =CntyDataLinkPrior10YearEstimate!$K$132 -> 1938.215416 | O25: 0.1498769594 | P25: =CntyDataLinkPrior5YearEstimates!$J$132 -> 167647 | Q25: =CntyDataLinkPrior5YearEstimates!$K$132 -> 1909.453849 | R25: 0.1269025312 | S25: =CntyDataLink!$J$132 -> 154702 | T25: =CntyDataLink!$K$132 -> 1938.499678 | U25: 0.114753539 | V25: -0.2153121212 | W25: -0.07721581657 | X25: =StatisticallySignificantCalcs!$A6 -> Y
D26: =(D22-C22)/C22 -> 0.2050865043 | E26: 0.1140714644 | F26: 0.06528962134 | G26: 0.02404460413 | H26: 0.0302346075 | I26: 0.02751417685 | K26: 45 to 54 yrs. | L26: =CntyDataLinkPrior10YearEstimate!$L$132 -> 217309 | N26: =CntyDataLinkPrior10YearEstimate!$M$132 -> 352.8895011 | O26: 0.1652013541 | P26: =CntyDataLinkPrior5YearEstimates!$L$132 -> 218547 | Q26: =CntyDataLinkPrior5YearEstimates!$M$132 -> 469.6637095 | R26: 0.1654319343 | S26: =CntyDataLink!$L$132 -> 195642 | T26: =CntyDataLink!$M$132 -> 488.8956944 | U26: 0.1451216654 | V26: -0.09970594867 | W26: -0.1048058312 | X26: =StatisticallySignificantCalcs!$A7 -> Y
K27: 55 to 64 yrs. | L27: =CntyDataLinkPrior10YearEstimate!$N$132 -> 157715 | N27: =CntyDataLinkPrior10YearEstimate!$O$132 -> 1839.638823 | O27: 0.1198971582 | P27: =CntyDataLinkPrior5YearEstimates!$N$132 -> 189634 | Q27: =CntyDataLinkPrior5YearEstimates!$O$132 -> 1942.751914 | R27: 0.1435458708 | S27: =CntyDataLink!$N$132 -> 209005 | T27: =CntyDataLink!$O$132 -> 2215.297271 | U27: 0.1550339583 | V27: 0.3252068605 | W27: 0.1021494036 | X27: =StatisticallySignificantCalcs!$A8 -> Y
K28: 65 to 74 yrs. | L28: =CntyDataLinkPrior10YearEstimate!$P$132 -> 88042 | N28: =CntyDataLinkPrior10YearEstimate!$Q$132 -> 1464.731375 | O28: 0.06693076503 | P28: =CntyDataLinkPrior5YearEstimates!$P$132 -> 109886 | Q28: =CntyDataLinkPrior5YearEstimates!$Q$132 -> 1682.524294 | R28: 0.08317960682 | S28: =CntyDataLink!$P$132 -> 141456 | T28: =CntyDataLink!$Q$132 -> 1804.594691 | U28: 0.1049280333 | V28: 0.6066877172 | W28: 0.2872977449 | X28: =StatisticallySignificantCalcs!$A9 -> Y
K29: Over 74 yrs. | L29: =CntyDataLinkPrior10YearEstimate!$R$132 -> 80917 | N29: =CntyDataLinkPrior10YearEstimate!$S$132 -> 1481.28154 | O29: 0.06151423995 | P29: =CntyDataLinkPrior5YearEstimates!$R$132 -> 83998 | Q29: =CntyDataLinkPrior5YearEstimates!$S$132 -> 1302.458061 | R29: 0.0635833556 | S29: =CntyDataLink!$R$132 -> 94339 | T29: =CntyDataLink!$S$132 -> 1551.010316 | U29: 0.06997798422 | V29: 0.165873673 | W29: 0.123110074 | X29: =StatisticallySignificantCalcs!$A10 -> Y
K30: Median Age (years) | L30: =CntyDataLinkPrior10YearEstimate!$AX$132 -> 39.6 | N30: =CntyDataLinkPrior10YearEstimate!$AY$132 -> 0.1 | P30: =CntyDataLinkPrior5YearEstimates!$AX132 -> 41.8 | Q30: =CntyDataLinkPrior5YearEstimates!$AY$132 -> 0.2 | S30: =CntyDataLink!$AX$132 -> 42.9 | T30: =CntyDataLink!$AY$132 -> 0.2
B32: Population By Race | M32: Statistically Significant Change
C34: 2005-2009 | F34: 2010-2014 | I34: 2015-2019 | L34: Statistically Significant Change
C35: Estimate | D35: Margin of Error | F35: Estimate | G35: Margin of Error | I35: Estimate | J35: Margin of Error | L35: 2009-2019 | M35: 2014-2019
B36: White | C36: =CntyDataLinkPrior10YearEstimate!$AL$132 -> 1224282 | D36: =CntyDataLinkPrior10YearEstimate!$AM$132 -> 463 | E36: =IF(C$36="-","-",VALUE(C36/$C$41)) -> 0.9307163725 | F36: =CntyDataLinkPrior5YearEstimates!$AL$132 -> 1212922 | G36: =CntyDataLinkPrior5YearEstimates!$AM$132 -> 553 | H36: =IF(F$36="-","-",VALUE(F36/$F$41)) -> 0.9181367514 | I36: =CntyDataLink!$AL$132 -> 1214927 | J36: =CntyDataLink!$AM$132 -> 441 | K36: =IF(I$36="-","-",VALUE(I36/$I$41)) -> 0.9011982577 | L36: =StatisticallySignificantCalcs!A20 -> Y | M36: =StatisticallySignificantCalcs!J20 -> Y
B37: Black | C37: =CntyDataLinkPrior10YearEstimate!$AN132 -> 13580 | D37: =CntyDataLinkPrior10YearEstimate!$AO$132 -> 493 | E37: =IF(C$37="-","-",VALUE(C37/$C$41)) -> 0.01032370674 | F37: =CntyDataLinkPrior5YearEstimates!$AN132 -> 14534 | G37: =CntyDataLinkPrior5YearEstimates!$AO$132 -> 617 | H37: =IF(F$37="-","-",VALUE(F37/$F$41)) -> 0.01100169635 | I37: =CntyDataLink!$AN$132 -> 18335 | J37: =CntyDataLink!$AO$132 -> 770 | K37: =IF(I$37="-","-",VALUE(I37/$I$41)) -> 0.01360038097 | L37: =StatisticallySignificantCalcs!A21 -> Y | M37: =StatisticallySignificantCalcs!J21 -> Y
B38: American Indian | C38: =CntyDataLinkPrior10YearEstimate!$AP$132 -> 2697 | D38: =CntyDataLinkPrior10YearEstimate!$AQ$132 -> 314 | E38: =IF(C$38="-","-",VALUE(C38/$C$41)) -> 0.002050297282 | F38: =CntyDataLinkPrior5YearEstimates!$AP$132 -> 2200 | G38: =CntyDataLinkPrior5YearEstimates!$AQ$132 -> 342 | H38: =IF(F$38="-","-",VALUE(F38/$F$41)) -> 0.001665318011 | I38: =CntyDataLink!$AP$132 -> 1816 | J38: =CntyDataLink!$AQ$132 -> 336 | K38: =IF(I$38="-","-",VALUE(I38/$I$41)) -> 0.001347057096 | L38: =StatisticallySignificantCalcs!A22 -> Y | M38: =StatisticallySignificantCalcs!J22 -> N
B39: Asian &Pacific Is. | C39: =CntyDataLinkPrior10YearEstimate!$AR$132 -> 25193 | D39: =CntyDataLinkPrior10YearEstimate!$AS$132 -> 529.7593793 | E39: =IF(C$39="-","-",VALUE(C39/$C$41)) -> 0.01915207246 | F39: =CntyDataLinkPrior5YearEstimates!$AR$132 -> 29433 | G39: =CntyDataLinkPrior5YearEstimates!$AS$132 -> 659.4490124 | H39: =IF(F$39="-","-",VALUE(F39/$F$41)) -> 0.0222796841 | I39: =CntyDataLink!$AR$132 -> 36319 | J39: =CntyDataLink!$AS$132 -> 776.9697549 | K39: =IF(I$39="-","-",VALUE(I39/$I$41)) -> 0.02694040014 | L39: =StatisticallySignificantCalcs!A23 -> Y | M39: =StatisticallySignificantCalcs!J23 -> Y
B40: Other* | C40: =CntyDataLinkPrior10YearEstimate!$AT$132 -> 15889 | D40: =CntyDataLinkPrior10YearEstimate!$AU$132 -> 902.1047611 | E40: =IF(C$40="-","-",VALUE(C40/$C$41)) -> 0.01207904097 | F40: =CntyDataLinkPrior5YearEstimates!$AT$132 -> 21265 | G40: =CntyDataLinkPrior5YearEstimates!$AU$132 -> 1118.860134 | H40: =IF(F$40="-","-",VALUE(F40/$F$41)) -> 0.01609681251 | I40: =CntyDataLink!$AT$132 -> 26234 | J40: =CntyDataLink!$AU$132 -> 1061.435349 | K40: =IF(I$40="-","-",VALUE(I40/$I$41)) -> 0.01945963428 | L40: =StatisticallySignificantCalcs!A24 -> Y | M40: =StatisticallySignificantCalcs!J24 -> Y
B41: Total Population | C41: =CntyDataLinkPrior10YearEstimate!$B$132 -> 1315419 | D41: =CntyDataLinkPrior10YearEstimate!$C$132 -> ***** | F41: =CntyDataLinkPrior5YearEstimates!$B$132 -> 1321069 | G41: =CntyDataLinkPrior5YearEstimates!$C$132 -> ***** | I41: =CntyDataLink!$B$132 -> 1348124 | J41: =CntyDataLink!$C$132 -> *****
B42: Hispanic | C42: =CntyDataLinkPrior10YearEstimate!$AV132 -> 33778 | D42: =CntyDataLinkPrior10YearEstimate!$AW$132 -> ***** | E42: =IF(C$42="-","-",VALUE(C42/$C$41)) -> 0.02567851004 | F42: =CntyDataLinkPrior5YearEstimates!$AV132 -> 38817 | G42: =CntyDataLinkPrior5YearEstimates!$AW$132 -> ***** | H42: =IF(F$42="-","-",VALUE(F42/$F$41)) -> 0.02938302239 | I42: =CntyDataLink!$AV$132 -> 50493 | J42: =CntyDataLink!$AW$132 -> 230 | K42: =IF(I$42="-","-",VALUE(I42/$I$41)) -> 0.03745426979 | L42: =StatisticallySignificantCalcs!$A$26 -> Y | M42: =StatisticallySignificantCalcs!$J$26 -> Y
B44: * | C44: Other includes population of 2 or more races
B46: ="Source: "& L20&", "&P20&", and "&S20&" American Community Survey Table B03002" -> Source: 2005-2009, 2010-2014, and 2015-2019 American Community Survey Table B03002
C48: Households and Families
D49: 2005-2009 | G49: 2010-2014 | J49: 2015-2019 | N49: Percent Change 2009-2019 | P49: Percent Change 2010-2019
D50: Estimate | E50: Margin of Error | G50: Estimate | H50: Margin of Error | J50: Estimate | K50: Margin of Error
C51: Total Households | D51: =CntyDataLinkPrior10YearEstimate!$T$132 -> 502201 | E51: =CntyDataLinkPrior10YearEstimate!$U$132 -> 1807 | G51: =CntyDataLinkPrior5YearEstimates!$T$132 -> 519580 | H51: =CntyDataLinkPrior5YearEstimates!$U$132 -> 2032 | J51: =CntyDataLink!$T$132 -> 532037 | K51: =CntyDataLink!$U$132 -> 2311 | N51: =(J51-D51)/D51 -> 0.05941047509 | P51: =(J51-G51)/G51 -> 0.02397513376
C52: Persons per Household | D52: =CntyDataLinkPrior10YearEstimate!$BD$132 -> 2.480411361 | E52: =CntyDataLinkPrior10YearEstimate!$BE$132 -> 0.14 | G52: =CntyDataLinkPrior5YearEstimates!$BD$132 -> 2.464738828 | H52: =CntyDataLinkPrior5YearEstimates!$BE$132 -> 0.02 | J52: =CntyDataLink!$BD$132 -> 2.45504354 | K52: =CntyDataLink!$BE$132 -> 0.03 | N52: =(J52-D52)/D52 -> -0.01022726375 | P52: =(J52-G52)/G52 -> -0.00393359621
C53: Family Households | D53: =CntyDataLinkPrior10YearEstimate!$V$132 -> 339894 | E53: =CntyDataLinkPrior10YearEstimate!$U$132 -> 1807 | G53: =CntyDataLinkPrior5YearEstimates!$V$132 -> 347228 | H53: =CntyDataLinkPrior5YearEstimates!$U$132 -> 2032 | J53: =CntyDataLink!$V$132 -> 349667 | K53: =CntyDataLink!$U$132 -> 2311 | N53: 0.02875308184 | P53: 0.007024203117
C54: Persons per Family Household | D54: =CntyDataLinkPrior10YearEstimate!$BF$132 -> 2.968708389 | E54: =CntyDataLinkPrior10YearEstimate!$BG$132 -> 0.2395543245 | G54: =CntyDataLinkPrior5YearEstimates!$BF$132 -> 3.045206608 | H54: =CntyDataLinkPrior5YearEstimates!$BG$132 -> 0.02282102003 | J54: =CntyDataLink!$BF$132 -> 3.056573826 | K54: =CntyDataLink!$BG$132 -> 0.02282102003 | N54: 0.02959719367 | P54: 0.003732823304
C55: Married-Couple Family Hh | D55: =CntyDataLinkPrior10YearEstimate!$X$132 -> 273768 | E55: =CntyDataLinkPrior10YearEstimate!$Y$132 -> 2388 | G55: =CntyDataLinkPrior5YearEstimates!$X$132 -> 275111 | H55: =CntyDataLinkPrior5YearEstimates!$Y$132 -> 2430 | J55: =CntyDataLink!$X$132 -> 278381 | K55: =CntyDataLink!$Y$132 -> 2641 | N55: 0.01685003361 | P55: 0.01188611142
C56: Single-Parent Family Hh | D56: =CntyDataLinkPrior10YearEstimate!$Z$132 -> 66126 | E56: =CntyDataLinkPrior10YearEstimate!$AA$132 -> 1858 | G56: =CntyDataLinkPrior5YearEstimates!$Z$132 -> 72117 | H56: =CntyDataLinkPrior5YearEstimates!$AA$132 -> 2024 | J56: =CntyDataLink!$Z$132 -> 71286 | K56: =CntyDataLink!$AA$132 -> 1791 | N56: 0.07803284638 | P56: -0.01152294189
C57: Non-Family Households | D57: =CntyDataLinkPrior10YearEstimate!$AF$132 -> 162307 | E57: =CntyDataLinkPrior10YearEstimate!$AG$132 -> 2053 | G57: =CntyDataLinkPrior5YearEstimates!$AF$132 -> 172352 | H57: =CntyDataLinkPrior5YearEstimates!$AG$132 -> 2023 | J57: =CntyDataLink!$AF$132 -> 182370 | K57: =CntyDataLink!$AG$132 -> 2273 | N57: 0.1236114277 | P57: 0.05812523208
C58: Persons per Non-Family Hh | D58: =CntyDataLinkPrior10YearEstimate!$BH$132 -> 1.122222222 | E58: =CntyDataLinkPrior10YearEstimate!$BI$132 -> 0.4332462795 | G58: =CntyDataLinkPrior5YearEstimates!$BH$132 -> 1.295302636 | H58: =CntyDataLinkPrior5YearEstimates!$BI$132 -> 0.02476391984 | J58: =CntyDataLink!$BH$132 -> 1.301699841 | K58: =CntyDataLink!$BI$132 -> 0.02476391984 | N58: 0.1599305514 | P58: 0.004938772097
B61: As a result of changes in the American Community Survey, direct comparisons between the data should be made with caution.
B63: Source: 2005-2009, 2010-2014, and 2015-2019 American Community Survey Table B11001
B64: POPULATION CHARACTERISTICS

Sheet SchoolEnrolEduAttain (hidden)
C2: =CntyDataLink!A50 -> New Hampshire
C3: SOCIAL CHARACTERISTICS
C21: School Enrollment | F21: 2005-2009 | I21: 2010-2014 | L21: 2015-2019 | P21: Statistically Significant Change
F22: Estimate | G22: Margin of Error | H22: Percent of Population | I22: Estimate | J22: Margin of Error | K22: Percent of Population | L22: Estimate | M22: Margin of Error | N22: Percent of Population | P22: 2009-2019 | Q22: 2014-2019
C23: Population 3 years and over | F23: =CntyDataLinkPrior10YearEstimate!$B$140 -> 1271960 | G23: =CntyDataLinkPrior10YearEstimate!$C$140 -> 782 | I23: =CntyDataLinkPrior5YearEstimates!$B$140 -> 1283177 | J23: =CntyDataLinkPrior5YearEstimates!$C$140 -> 894 | L23: =CntyDataLink!$B$140 -> 1310859 | M23: =CntyDataLink!$C$140 -> 1000 | P23: =StatisticallySignificantCalcs!$A$45 -> Y | Q23: =StatisticallySignificantCalcs!$J$45 -> Y
C24: Population 3 years & over enrolled in school | F24: =CntyDataLinkPrior10YearEstimate!$D$140 -> 336580 | G24: =CntyDataLinkPrior10YearEstimate!$E$140 -> 2237 | H24: =F24/$F$23 -> 0.2646152395 | I24: =CntyDataLinkPrior5YearEstimates!$D$140 -> 323195 | J24: =CntyDataLinkPrior5YearEstimates!$E$140 -> 1643 | K24: =I24/$I$23 -> 0.2518709422 | L24: =CntyDataLink!$D$140 -> 306551 | M24: =CntyDataLink!$E$140 -> 1860 | N24: =L24/$L$23 -> 0.2338550523 | P24: =StatisticallySignificantCalcs!$A$46 -> Y | Q24: =StatisticallySignificantCalcs!$J$46 -> Y
C25: Preprimary (Nursery, Preschool, Kindergarten) | F25: =CntyDataLinkPrior10YearEstimate!$F$140 -> 35623 | G25: =CntyDataLinkPrior10YearEstimate!$G$140 -> 1207.077877 | H25: =F25/$F$23 -> 0.02800638385 | I25: =CntyDataLinkPrior5YearEstimates!$F$140 -> 33719 | J25: =CntyDataLinkPrior5YearEstimates!$G$140 -> 1137.901577 | K25: =I25/$I$23 -> 0.02627774656 | L25: =CntyDataLink!$F$140 -> 31672 | M25: =CntyDataLink!$G$140 -> 1136.980211 | N25: =L25/$L$23 -> 0.02416125609 | P25: =StatisticallySignificantCalcs!$A$47 -> Y | Q25: =StatisticallySignificantCalcs!$J$47 -> Y
C26: Nursery school and Preschool | F26: =CntyDataLinkPrior10YearEstimate!$H$140 -> 20347 | G26: =CntyDataLinkPrior10YearEstimate!$I$140 -> 846 | H26: 0.01599657222 | I26: =CntyDataLinkPrior5YearEstimates!$H$140 -> 18448 | J26: =CntyDataLinkPrior5YearEstimates!$I$140 -> 854 | K26: 0.01437681629 | L26: =CntyDataLink!$H$140 -> 18218 | M26: =CntyDataLink!$I$140 -> 870 | N26: 0.01389775712 | P26: =StatisticallySignificantCalcs!$A$48 -> Y | Q26: =StatisticallySignificantCalcs!$J$48 -> N
C27: Kindergarten | F27: =CntyDataLinkPrior10YearEstimate!$J$140 -> 15276 | G27: =CntyDataLinkPrior10YearEstimate!$K$140 -> 861 | H27: 0.01200981163 | I27: =CntyDataLinkPrior5YearEstimates!$J$140 -> 15271 | J27: =CntyDataLinkPrior5YearEstimates!$K$140 -> 752 | K27: 0.01190093027 | L27: =CntyDataLink!$J$140 -> 13454 | M27: =CntyDataLink!$K$140 -> 732 | N27: 0.01026349897 | P27: =StatisticallySignificantCalcs!$A$49 -> Y | Q27: =StatisticallySignificantCalcs!$J$49 -> Y
C28: Elementary through High school | F28: =CntyDataLinkPrior10YearEstimate!$P$140 -> 209475 | G28: =CntyDataLinkPrior10YearEstimate!$Q$140 -> 2107.892075 | H28: 0.1646867826 | I28: =CntyDataLinkPrior5YearEstimates!$P$140 -> 195360 | J28: =CntyDataLinkPrior5YearEstimates!$Q$140 -> 2118.943605 | K28: 0.1522471179 | L28: =CntyDataLink!$P$140 -> 183246 | M28: =CntyDataLink!$Q$140 -> 1965.749984 | N28: 0.1397907784 | P28: =StatisticallySignificantCalcs!$A$50 -> Y | Q28: =StatisticallySignificantCalcs!$J$50 -> Y
C29: Elementary school (grades 1-8) | F29: =CntyDataLinkPrior10YearEstimate!$L$140 -> 133875 | G29: =CntyDataLinkPrior10YearEstimate!$M$140 -> 1874.543411 | H29: 0.1052509513 | I29: =CntyDataLinkPrior5YearEstimates!$L$140 -> 124900 | J29: =CntyDataLinkPrior5YearEstimates!$M$140 -> 1880.783347 | K29: 0.09733653268 | L29: =CntyDataLink!$L$140 -> 118257 | M29: =CntyDataLink!$M$140 -> 1692.386776 | N29: 0.09021336391 | P29: =StatisticallySignificantCalcs!$A$51 -> Y | Q29: =StatisticallySignificantCalcs!$J$51 -> Y
C30: High school (grades 9-12) | F30: =CntyDataLinkPrior10YearEstimate!$N$140 -> 75600 | G30: =CntyDataLinkPrior10YearEstimate!$O$140 -> 964 | H30: 0.05943583132 | I30: =CntyDataLinkPrior5YearEstimates!$N$140 -> 70460 | J30: =CntyDataLinkPrior5YearEstimates!$O$140 -> 976 | K30: 0.05491058521 | L30: =CntyDataLink!$N$140 -> 64989 | M30: =CntyDataLink!$O$140 -> 1000 | N30: 0.0495774145 | P30: =StatisticallySignificantCalcs!$A$52 -> Y | Q30: =StatisticallySignificantCalcs!$J$52 -> Y
C31: College or Graduate School | F31: =CntyDataLinkPrior10YearEstimate!$R$140 -> 91482 | G31: =CntyDataLinkPrior10YearEstimate!$S$140 -> 2021.564988 | H31: 0.07192207302 | I31: =CntyDataLinkPrior5YearEstimates!$R$140 -> 94116 | J31: =CntyDataLinkPrior5YearEstimates!$S$140 -> 1622.754448 | K31: =I31/$I$23 -> 0.07334607774 | L31: =CntyDataLink!$R$140 -> 91633 | M31: =CntyDataLink!$S$140 -> 1806.342437 | N31: 0.06990301779 | P31: =StatisticallySignificantCalcs!$A$53 -> N | Q31: =StatisticallySignificantCalcs!$J$53 -> Y
C33: ="Source: "&F21&", "& I21&" and "&L21&" American Community Survey Table B14001" -> Source: 2005-2009, 2010-2014 and 2015-2019 American Community Survey Table B14001
C50: Educational Attainment | F50: 2005-2009 | I50: 2010-2014 | L50: 2015.-2019 | P50: Statistically Significant Change
F51: Estimate | G51: Margin of Error | H51: Percent of Population | I51: Estimate | J51: Margin of Error | K51: Percent of Population | L51: Estimate | M51: Margin of Error | N51: Percent of Population | P51: 2009-2019 | Q51: 2014-2019
C52: Population 25 years and over | F52: =CntyDataLinkPrior10YearEstimate!$V$140 -> 889457 | G52: =CntyDataLinkPrior10YearEstimate!$W$140 -> 467 | I52: =CntyDataLinkPrior5YearEstimates!$V$140 -> 919033 | J52: =CntyDataLinkPrior5YearEstimates!$W$140 -> 494 | L52: =CntyDataLink!$V$140 -> 960337 | M52: =CntyDataLink!$W$140 -> 473 | P52: =StatisticallySignificantCalcs!A54 -> Y | Q52: =StatisticallySignificantCalcs!$J$54 -> Y
C53: Less than 9th Grade | F53: =CntyDataLinkPrior10YearEstimate!$X$140 -> 22998 | G53: =CntyDataLinkPrior10YearEstimate!$Y$140 -> 1031.616208 | H53: =F53/$F$52 -> 0.02585622464 | I53: =CntyDataLinkPrior5YearEstimates!$X$140 -> 18596 | J53: =CntyDataLinkPrior5YearEstimates!$Y$140 -> 959.5306144 | K53: =I53/$I$52 -> 0.0202343115 | L53: =CntyDataLink!$X$140 -> 14536 | M53: =CntyDataLink!$Y$140 -> 923.0400858 | N53: =L53/$L$52 -> 0.01513635318 | P53: =StatisticallySignificantCalcs!A55 -> Y | Q53: =StatisticallySignificantCalcs!$J$55 -> Y
C54: 9th to 12th Grade, no Diploma | F54: =CntyDataLinkPrior10YearEstimate!$Z$140 -> 57459 | G54: =CntyDataLinkPrior10YearEstimate!$AA$140 -> 1675.345338 | H54: =F54/$F$52 -> 0.06460008747 | I54: =CntyDataLinkPrior5YearEstimates!$Z$140 -> 49369 | J54: =CntyDataLinkPrior5YearEstimates!$AA$140 -> 1558.460137 | K54: =I54/$I$52 -> 0.05371841925 | L54: =CntyDataLink!$Z$140 -> 45796 | M54: =CntyDataLink!$AA$140 -> 1545.877421 | N54: =L54/$L$52 -> 0.04768742639 | P54: =StatisticallySignificantCalcs!A56 -> Y | Q54: =StatisticallySignificantCalcs!$J$56 -> Y
C55: High School Graduate | F55: =CntyDataLinkPrior10YearEstimate!$AB$140 -> 268197 | G55: =CntyDataLinkPrior10YearEstimate!$AC$140 -> 3371.84534 | H55: 0.3015289103 | I55: =CntyDataLinkPrior5YearEstimates!$AB$140 -> 267359 | J55: =CntyDataLinkPrior5YearEstimates!$AC$140 -> 2943.747442 | K55: 0.290913384 | L55: =CntyDataLink!$AB$140 -> 263321 | M55: =CntyDataLink!$AC$140 -> 2983.307728 | N55: 0.274196454 | P55: =StatisticallySignificantCalcs!A57 -> N | Q55: =StatisticallySignificantCalcs!$J$57 -> N
C56: Some College, No Degree | F56: =CntyDataLinkPrior10YearEstimate!$AD$140 -> 165892 | G56: =CntyDataLinkPrior10YearEstimate!$AE$140 -> 2625.026857 | H56: 0.1865092972 | I56: =CntyDataLinkPrior5YearEstimates!$AD$140 -> 173926 | J56: =CntyDataLinkPrior5YearEstimates!$AE$140 -> 2725.051559 | K56: 0.1892489171 | L56: =CntyDataLink!$AD$140 -> 177410 | M56: =CntyDataLink!$AE$140 -> 2759.930072 | N56: 0.1847372329 | P56: =StatisticallySignificantCalcs!A58 -> N | Q56: =StatisticallySignificantCalcs!$J$58 -> N
C57: Associate Degree | F57: =CntyDataLinkPrior10YearEstimate!$AF$140 -> 82244 | G57: =CntyDataLinkPrior10YearEstimate!$AG$140 -> 1717.368336 | H57: 0.09246540305 | I57: =CntyDataLinkPrior5YearEstimates!$AF$140 -> 88466 | J57: =CntyDataLinkPrior5YearEstimates!$AG$140 -> 1705.774897 | K57: 0.09625987315 | L57: =CntyDataLink!$AF$140 -> 97663 | M57: =CntyDataLink!$AG$140 -> 2341.547565 | N57: 0.1016965919 | P57: =StatisticallySignificantCalcs!A59 -> Y | Q57: =StatisticallySignificantCalcs!$J$59 -> Y
C58: Bachelor's Degree | F58: =CntyDataLinkPrior10YearEstimate!$AH$140 -> 185548 | G58: =CntyDataLinkPrior10YearEstimate!$AI$140 -> 2535.127807 | H58: 0.2086081733 | I58: =CntyDataLinkPrior5YearEstimates!$AH$140 -> 197937 | J58: =CntyDataLinkPrior5YearEstimates!$AI$140 -> 2799.433157 | K58: 0.2153752912 | L58: =CntyDataLink!$AH$140 -> 218013 | M58: =CntyDataLink!$AI$140 -> 2681.035807 | N58: 0.2270171825 | P58: =StatisticallySignificantCalcs!A60 -> Y | Q58: =StatisticallySignificantCalcs!$J$60 -> Y
C59: Graduate or Professional Degree | F59: =CntyDataLinkPrior10YearEstimate!$AJ$140 -> 56253 | G59: =CntyDataLinkPrior10YearEstimate!$AK$140 -> 1370.63416 | H59: 0.06324420405 | I59: =CntyDataLinkPrior5YearEstimates!$AJ$140 -> 117855 | J59: =CntyDataLinkPrior5YearEstimates!$AK$140 -> 2060.058494 | K59: 0.1282380502 | L59: =CntyDataLink!$AJ$140 -> 137724 | M59: =CntyDataLink!$AK$140 -> 2340.715489 | N59: 0.1434121564 | P59: =StatisticallySignificantCalcs!A61 -> Y | Q59: =StatisticallySignificantCalcs!$J$61 -> Y
C61: Percent of High School Graduate or Higher | H61: =SUM(F55:F59)/F52 -> 0.852355988 | K61: =SUM(I55:I59)/I52 -> 0.9200355156 | N61: =SUM(L55:L59)/L52 -> 0.9310596176
C62: Percent of Bachelor's Degree or Higher | H62: =SUM(F58:F59)/F52 -> 0.2718523773 | K62: =SUM(I58:I59)/I52 -> 0.3436133414 | N62: =SUM(L58:L59)/L52 -> 0.3704293389
C64: ="Source: "&F21&", "&I21&" and "&L21&" American Community Survey Table B15002" -> Source: 2005-2009, 2010-2014 and 2015-2019 American Community Survey Table B15002 | H64: Data from the American Community Survey are estimates
C66: As a result of changes in the American Community Survey, direct comparisons between the data should be made with caution.
C67: be made with caution.

Sheet HousingCharacteristics (hidden)
B2: =CntyDataLink!$A35 -> New Hampshire
B4: HOUSING CHARACTERISTICS
D27: ="Source: "& " "&D69&", "&G69&" and "&J69& " American Community Survey Table B25024; B25032" -> Source: 2005-2009, 2010-2014 and 2015-2019 American Community Survey Table B25024; B25032
B28: Units by Tenure & Vacancy
C30: 2005-2009 | F30: 2010-2014 | I30: 2015-2019 | L30: Percent Change | O30: Statistically Significant Change
C31: Estimate | D31: Margin of Error | E31: % | F31: Estimate | G31: Margin of Error | H31: % | I31: Estimate | J31: Margin of Error | K31: % | L31: 2009-2019 | M31: 2014-2019 | O31: 2009-2019 | P31: 2014-2019
B32: Total Units | C32: =CntyDataLinkPrior10YearEstimate!$B$108 -> 592898 | D32: =CntyDataLinkPrior5YearEstimates!$C$108 -> 307 | F32: =CntyDataLinkPrior5YearEstimates!$B$108 -> 617286 | G32: =CntyDataLinkPrior5YearEstimates!$C$108 -> 307 | I32: =CntyDataLink!$B$108 -> 634726 | J32: =CntyDataLink!$C$108 -> 301 | L32: =IF(I32="-","-",(I32-C32)/C32) -> 0.07054839112 | M32: =IF(I32="-","-",(I32-F32)/F32) -> 0.0282527062 | O32: =StatisticallySignificantCalcs!$A62 -> Y | P32: =StatisticallySignificantCalcs!$J62 -> Y
B33: Occupied Units | C33: =CntyDataLinkPrior10YearEstimate!$D$108 -> 502201 | D33: =CntyDataLinkPrior5YearEstimates!$E$108 -> 2032 | E33: =ROUND(C33/C32,2)*100&"% of Total" -> 85% of Total | F33: =CntyDataLinkPrior5YearEstimates!$D$108 -> 519580 | G33: =CntyDataLinkPrior5YearEstimates!$E$108 -> 2032 | H33: =ROUND(F33/F32,2)*100&"% of Total" -> 84% of Total | I33: =CntyDataLink!$D$108 -> 532037 | J33: =CntyDataLink!$E$108 -> 2311 | K33: =ROUND(I33/I32,2)*100&"% of Total" -> 84% of Total | L33: =IF(I33="-","-",(I33-C33)/C33) -> 0.05941047509 | M33: 0.02397513376 | O33: =StatisticallySignificantCalcs!$A63 -> Y | P33: =StatisticallySignificantCalcs!$J63 -> Y
B34: Owner Occupied | C34: =CntyDataLinkPrior10YearEstimate!$F$108 -> 366660 | D34: =CntyDataLinkPrior5YearEstimates!$G$108 -> 2439 | E34: =ROUND(C34/C33,2)*100&"% of Occ." -> 73% of Occ. | F34: =CntyDataLinkPrior5YearEstimates!$F$108 -> 369160 | G34: =CntyDataLinkPrior5YearEstimates!$G$108 -> 2439 | H34: =ROUND(F34/F33,2)*100&"% of Occ." -> 71% of Occ. | I34: =CntyDataLink!$F$108 -> 378178 | J34: =CntyDataLink!$G$108 -> 2687 | K34: =ROUND(I34/I33,2)*100&"% of Occ." -> 71% of Occ. | L34: =IF(I34="-","-",(I34-C34)/C34) -> 0.03141329842 | M34: 0.02442843212 | O34: =StatisticallySignificantCalcs!$A64 -> Y | P34: =StatisticallySignificantCalcs!$J64 -> Y
B35: Renter Occupied | C35: =CntyDataLinkPrior10YearEstimate!$H$108 -> 135541 | D35: =CntyDataLinkPrior5YearEstimates!$I$108 -> 2048 | E35: =ROUND(C35/C33,2)*100&"% of Occ." -> 27% of Occ. | F35: =CntyDataLinkPrior5YearEstimates!$H$108 -> 150420 | G35: =CntyDataLinkPrior5YearEstimates!$I$108 -> 2048 | H35: =ROUND(F35/F33,2)*100&"% of Occ." -> 29% of Occ. | I35: =CntyDataLink!$H$108 -> 153859 | J35: =CntyDataLink!$I$108 -> 2373 | K35: =ROUND(I35/I33,2)*100&"% of Occ." -> 29% of Occ. | L35: =IF(I35="-","-",(I35-C35)/C35) -> 0.1351472986 | M35: 0.02286265124 | O35: =StatisticallySignificantCalcs!$A65 -> Y | P35: =StatisticallySignificantCalcs!$J65 -> Y
B36: Vacant Units | C36: =CntyDataLinkPrior10YearEstimate!$J$108 -> 90697 | D36: =CntyDataLinkPrior5YearEstimates!$K$108 -> 2008 | E36: =ROUND(C36/C32,2)*100&"% of Total" -> 15% of Total | F36: =CntyDataLinkPrior5YearEstimates!$J$108 -> 97706 | G36: =CntyDataLinkPrior5YearEstimates!$K$108 -> 2008 | H36: =ROUND(F36/F32,2)*100&"% of Total" -> 16% of Total | I36: =CntyDataLink!$J$108 -> 102689 | J36: =CntyDataLink!$K$108 -> 2395 | K36: =ROUND(I36/I32,2)*100&"% of Total" -> 16% of Total | L36: =IF(I36="-",I36,VALUE((I36-C36)/C36)) -> 0.1322204704 | M36: 0.05099993859 | O36: =StatisticallySignificantCalcs!$A66 -> Y | P36: =StatisticallySignificantCalcs!$J66 -> Y
B37: Vacant For Sale | C37: =CntyDataLinkPrior10YearEstimate!$P$108 -> 6462 | D37: =CntyDataLinkPrior5YearEstimates!$Q$108 -> 622 | E37: =ROUND(C37/(C34+C37),3)*100&"% Vac." -> 1.7% Vac. | F37: =CntyDataLinkPrior5YearEstimates!$P$108 -> 5354 | G37: =CntyDataLinkPrior5YearEstimates!$Q$108 -> 622 | H37: =ROUND(F37/(F34+F37),3)*100&"% Vac." -> 1.4% Vac. | I37: =CntyDataLink!$P$108 -> 4598 | J37: =CntyDataLink!$Q$108 -> 537 | K37: =ROUND(I37/(I34+I37),3)*100&"% Vac." -> 1.2% Vac. | L37: =IF(I37="-",I37,VALUE((I37-C37)/C37)) -> -0.2884555865 | M37: -0.141202839 | O37: =StatisticallySignificantCalcs!$A67 -> Y | P37: =StatisticallySignificantCalcs!$J67 -> N
B38: Vacant For Rent | C38: =CntyDataLinkPrior10YearEstimate!$L$108 -> 8610 | D38: =CntyDataLinkPrior5YearEstimates!$M$108 -> 628 | E38: =ROUND(C38/(C35+C38),3)*100&"% Vac." -> 6% Vac. | F38: =CntyDataLinkPrior5YearEstimates!$L$108 -> 7942 | G38: =CntyDataLinkPrior5YearEstimates!$M$108 -> 628 | H38: =ROUND(F38/(F35+F38),3)*100&"% Vac." -> 5% Vac. | I38: =CntyDataLink!$L$108 -> 6389 | J38: =CntyDataLink!$M$108 -> 701 | K38: =ROUND(I38/(I35+I38),3)*100&"% Vac." -> 4% Vac. | L38: =IF(I38="-",I38,VALUE((I38-C38)/C38)) -> -0.2579558653 | M38: -0.1955426845 | O38: =StatisticallySignificantCalcs!$A68 -> Y | P38: =StatisticallySignificantCalcs!$J68 -> Y
B39: Vacant Seasonal | C39: =CntyDataLinkPrior10YearEstimate!$T$108 -> 59966 | D39: =CntyDataLinkPrior5YearEstimates!$U$108 -> 1567 | E39: =ROUND(C39/C32,2)*100&"% of Total" -> 10% of Total | F39: =CntyDataLinkPrior5YearEstimates!$T$108 -> 64965 | G39: =CntyDataLinkPrior5YearEstimates!$U$108 -> 1567 | H39: =ROUND(F39/F32,2)*100&"% of Total" -> 11% of Total | I39: =CntyDataLink!$T$108 -> 71600 | J39: =CntyDataLink!$U$108 -> 1576 | K39: =ROUND(I39/I32,2)*100&"% of Total" -> 11% of Total | L39: =IF(I39="-",I39,VALUE((I39-C39)/C39)) -> 0.194009939 | M39: 0.1021319172 | O39: =StatisticallySignificantCalcs!$A69 -> Y | P39: =StatisticallySignificantCalcs!$J69 -> Y
B41: Data from the American Community Survey are estimates
B44: HOUSING CHARACTERISTICS
D65: ="Source: "& " "&D69&", "&G69&" and "&J69& " American Community Survey Table B25024; B25032" -> Source: 2005-2009, 2010-2014 and 2015-2019 American Community Survey Table B25024; B25032
C67: Units by Type
D69: 2005-2009 | G69: 2010-2014 | J69: 2015-2019 | M69: Percent Change | O69: Statistically Significant Change
D70: Estimate | E70: Margin of Error | F70: % of Total | G70: Estimate | H70: Margin of Error | I70: % of Total | J70: Estimate | K70: Margin of Error | L70: % of Total | M70: 2009-2019 | N70: 2014-2019 | O70: 2009-2019 | P70: 2014-2019
C71: Total Units | D71: =CntyDataLinkPrior10YearEstimate!$B$108 -> 592898 | E71: =CntyDataLinkPrior10YearEstimate!$C$108 -> 226 | G71: =CntyDataLinkPrior5YearEstimates!$B$108 -> 617286 | H71: =CntyDataLinkPrior5YearEstimates!$C$108 -> 307 | J71: =CntyDataLink!$B$108 -> 634726 | K71: =CntyDataLink!$C$108 -> 301 | O71: =StatisticallySignificantCalcs!$A70 -> Y | P71: =StatisticallySignificantCalcs!$J70 -> Y
C72: Single Family Units | D72: =CntyDataLinkPrior10YearEstimate!$AT$108 -> 375680 | E72: =CntyDataLinkPrior10YearEstimate!$AU$108 -> 1921 | F72: =IF(D72="-","-",($D$72/$D$71)) -> 0.6336334412 | G72: =CntyDataLinkPrior5YearEstimates!$AT$108 -> 391463 | H72: =CntyDataLinkPrior5YearEstimates!$AU$108 -> 2044 | I72: =IF(G72="-","-",($G$72/$G$71)) -> 0.6341679546 | J72: =CntyDataLink!$AT$108 -> 404402 | K72: =CntyDataLink!$AU$108 -> 2129 | L72: =IF(J72="-","-",($J$72/$J$71)) -> 0.6371284617 | M72: =IF(J72="-","-",($J72-$D72)/$D72) -> 0.07645336457 | N72: =IF(J72="-","-",($J72-$G72)/$G72) -> 0.03305293221 | O72: =StatisticallySignificantCalcs!$A71 -> Y | P72: =StatisticallySignificantCalcs!$J71 -> Y
C73: SF Owner Occ. | D73: =CntyDataLinkPrior10YearEstimate!$AF$108 -> 297718 | E73: =CntyDataLinkPrior10YearEstimate!$AG$108 -> 1962 | G73: =CntyDataLinkPrior5YearEstimates!$AF$108 -> 302572 | H73: =CntyDataLinkPrior5YearEstimates!$AG$108 -> 2241 | J73: =CntyDataLink!$AF$108 -> 312467 | K73: =CntyDataLink!$AG$108 -> 2417 | O73: =StatisticallySignificantCalcs!$A72 -> Y | P73: =StatisticallySignificantCalcs!$J72 -> Y
C74: SF Renter Occ. | D74: =CntyDataLinkPrior10YearEstimate!$AN$108 -> 20677 | E74: =CntyDataLinkPrior10YearEstimate!$AO$108 -> 1160 | G74: =CntyDataLinkPrior5YearEstimates!$AN$108 -> 27508 | H74: =CntyDataLinkPrior5YearEstimates!$AO$108 -> 1224 | J74: =CntyDataLink!$AN$108 -> 24563 | K74: =CntyDataLink!$AO$108 -> 1111 | O74: =StatisticallySignificantCalcs!$A73 -> Y | P74: =StatisticallySignificantCalcs!$J73 -> Y
C75: Multi-family Units | D75: =CntyDataLinkPrior10YearEstimate!$AV$108 -> 181377 | E75: =CntyDataLinkPrior10YearEstimate!$AW$108 -> 3047.417595 | F75: =IF(D75="-","-",$D$75/$D$71) -> 0.305916026 | G75: =CntyDataLinkPrior5YearEstimates!$AV$108 -> 189529 | H75: =CntyDataLinkPrior5YearEstimates!$AW$108 -> 2819.844677 | I75: =IF(G75="-","-",$G$75/$G$71) -> 0.3070359606 | J75: =CntyDataLink!$AV$108 -> 195019 | K75: =CntyDataLink!$AW$108 -> 2909.913916 | L75: =IF(J75="-","-",$J$75/$J$71) -> 0.3072491122 | M75: =IF(J75="-","-",($J75-$D75)/$D75) -> 0.07521350557 | N75: =IF(J75="-","-",($J75-$G75)/$G75) -> 0.02896654338 | O75: =StatisticallySignificantCalcs!$A74 -> Y | P75: =StatisticallySignificantCalcs!$J74 -> Y
C76: MF Owner Occ. | D76: =CntyDataLinkPrior10YearEstimate!$AH$108 -> 42971 | E76: =CntyDataLinkPrior10YearEstimate!$AI$108 -> 1253.6399 | G76: =CntyDataLinkPrior5YearEstimates!$AH$108 -> 42084 | H76: =CntyDataLinkPrior5YearEstimates!$AI$108 -> 1291.077457 | J76: =CntyDataLink!$AH$108 -> 41714 | K76: =CntyDataLink!$AI$108 -> 1337.560092 | O76: =StatisticallySignificantCalcs!$A75 -> N | P76: =StatisticallySignificantCalcs!$J75 -> N
C77: MF Renter Occ. | D77: =CntyDataLinkPrior10YearEstimate!$AP$108 -> 110512 | E77: =CntyDataLinkPrior10YearEstimate!$AQ$108 -> 2375.656541 | G77: =CntyDataLinkPrior5YearEstimates!$AP$108 -> 118167 | H77: =CntyDataLinkPrior5YearEstimates!$AQ$108 -> 2336.829476 | J77: =CntyDataLink!$AP$108 -> 125035 | K77: =CntyDataLink!$AQ$108 -> 2431.170911 | O77: =StatisticallySignificantCalcs!$A76 -> Y | P77: =StatisticallySignificantCalcs!$J76 -> Y
C78: Mobile Home & Other | D78: =CntyDataLinkPrior10YearEstimate!$AX$108 -> 35841 | E78: =CntyDataLinkPrior10YearEstimate!$AY$108 -> 1000.104994 | F78: =IF(D78="-","-",($D$78/$D$71)) -> 0.06045053281 | G78: =CntyDataLinkPrior5YearEstimates!$AX$108 -> 36294 | H78: =CntyDataLinkPrior5YearEstimates!$AY$108 -> 1020.325928 | I78: =IF(G78="-","-",($G$78/$G$71)) -> 0.0587960848 | J78: =CntyDataLink!$AX$108 -> 35305 | K78: =CntyDataLink!$AY$108 -> 1125.415923 | L78: =IF(J78="-","-",($J$78/$J$71)) -> 0.05562242605 | M78: =IF(J78="-","-",($J78-$D78)/$D78) -> -0.01495493987 | N78: =IF(J78="-","-",($J78-$G78)/$G78) -> -0.02724968314 | O78: =StatisticallySignificantCalcs!$A77 -> N | P78: =StatisticallySignificantCalcs!$J77 -> N
B80: Data from the American Community Survey are estimates
B83: Units by Number of Bedrooms
D84: ="Source: "& " "&D69&", "&G69&" and "&J69& " American Community Survey Table B25041" -> Source: 2005-2009, 2010-2014 and 2015-2019 American Community Survey Table B25041
C86: 2005-2009 | G86: 2010-2014 | K86: 2015-2019 | O86: Statistically Significant Change
B87: Bedrooms | C87: Estimate | D87: Margin of Error | E87: % of Total | G87: Estimate | H87: Margin of Error | I87: % of Total | K87: Estimate | L87: Margin of Error | M87: % of Total | O87: 2009-2019 | P87: 2014-2019
B88: No Bedrooms | C88: =CntyDataLinkPrior10YearEstimate!$BR$108 -> 7577 | D88: =CntyDataLinkPrior10YearEstimate!$BS$108 -> 665 | E88: =C88/SUM($C$88:$C$92) -> 0.01277960121 | G88: =CntyDataLinkPrior5YearEstimates!$BR$108 -> 11980 | H88: =CntyDataLinkPrior5YearEstimates!$BS$108 -> 690 | I88: =G88/SUM($G$88:$G$92) -> 0.01940753557 | K88: =CntyDataLink!$BT$108 -> 13161 | L88: =CntyDataLink!$BU$108 -> 801 | M88: =K88/SUM($K$88:$K$92) -> 0.02073493129 | O88: =StatisticallySignificantCalcs!$A78 -> Y | P88: =StatisticallySignificantCalcs!$J78 -> Y
B89: 1 Bedroom | C89: =CntyDataLinkPrior10YearEstimate!$BT$108 -> 66327 | D89: =CntyDataLinkPrior10YearEstimate!$BU$108 -> 1609 | E89: =C89/SUM($C$88:$C$92) -> 0.1118691579 | G89: =CntyDataLinkPrior5YearEstimates!$BT$108 -> 66745 | H89: =CntyDataLinkPrior5YearEstimates!$BU$108 -> 1709 | I89: =G89/SUM($G$88:$G$92) -> 0.108126541 | K89: =CntyDataLink!$BV$108 -> 67859 | L89: =CntyDataLink!$BW$108 -> 1733 | M89: =K89/SUM($K$88:$K$92) -> 0.1069106985 | O89: =StatisticallySignificantCalcs!$A79 -> Y | P89: =StatisticallySignificantCalcs!$J79 -> N
B90: 2 Bedrooms | C90: =CntyDataLinkPrior10YearEstimate!$BV$108 -> 179909 | D90: =CntyDataLinkPrior10YearEstimate!$BW$108 -> 2303 | E90: =C90/SUM($C$88:$C$92) -> 0.3034400521 | G90: =CntyDataLinkPrior5YearEstimates!$BV$108 -> 189403 | H90: =CntyDataLinkPrior5YearEstimates!$BW$108 -> 2536 | I90: =G90/SUM($G$88:$G$92) -> 0.3068318413 | K90: =CntyDataLink!$BX$108 -> 191042 | L90: =CntyDataLink!$BY$108 -> 2326 | M90: =K90/SUM($K$88:$K$92) -> 0.3009834165 | O90: =StatisticallySignificantCalcs!$A80 -> Y | P90: =StatisticallySignificantCalcs!$J80 -> N
B91: 3 Bedrooms | C91: =CntyDataLinkPrior10YearEstimate!$BX$108 -> 227804 | D91: =CntyDataLinkPrior10YearEstimate!$BY$108 -> 2359 | E91: =C91/SUM($C$88:$C$92) -> 0.384221232 | G91: =CntyDataLinkPrior5YearEstimates!$BX$108 -> 236382 | H91: =CntyDataLinkPrior5YearEstimates!$BY$108 -> 2259 | I91: =G91/SUM($G$88:$G$92) -> 0.3829375686 | K91: =CntyDataLink!$BZ$108 -> 240514 | L91: =CntyDataLink!$CA$108 -> 2467 | M91: =K91/SUM($K$88:$K$92) -> 0.3789257097 | O91: =StatisticallySignificantCalcs!$A81 -> Y | P91: =StatisticallySignificantCalcs!$J81 -> Y
B92: 4+ Bedrooms | C92: =CntyDataLinkPrior10YearEstimate!$BZ$108 -> 111281 | D92: =CntyDataLinkPrior10YearEstimate!$CA$108 -> 1895.253281 | E92: =C92/SUM($C$88:$C$92) -> 0.1876899568 | G92: =CntyDataLinkPrior5YearEstimates!$BZ$108 -> 112776 | H92: =CntyDataLinkPrior5YearEstimates!$CA$108 -> 1738.725108 | I92: =G92/SUM($G$88:$G$92) -> 0.1826965134 | K92: =CntyDataLink!$CB$108 -> 122150 | L92: =CntyDataLink!$CC$108 -> 1984.863219 | M92: =K92/SUM($K$88:$K$92) -> 0.1924452441 | O92: =StatisticallySignificantCalcs!$A82 -> Y | P92: =StatisticallySignificantCalcs!$J82 -> Y
B94: As a result of changes in the American Community Survey, direct comparisons between the 2009-2013 and 2015-2019 data should be made with caution.
B95: Data from the American Community Survey are estimates
B97: Units by Year Built
B98: ="Source: "&K86& " American Community Survey Table B25034" -> Source: 2015-2019 American Community Survey Table B25034
D100: Year Built | G100: Units | I100: % of Total | K100: Margin of Error
F101: 2014 or later | G101: =CntyDataLink!$AZ$108 -> 10027 | I101: =G101/SUM($G$101:$G$110) -> 0.01579736768 | K101: =CntyDataLink!$BA$108 -> 641
F102: 2010 through 2013 | G102: =CntyDataLink!$BB$108 -> 12341 | I102: 0.01944303526 | K102: =CntyDataLink!$BC$108 -> 809
F103: 2000 through 2009 | G103: =CntyDataLink!$BD$108 -> 76190 | I103: 0.1200360471 | K103: =CntyDataLink!$BE$108 -> 1666
F104: 1990 through 1999 | G104: =CntyDataLink!$BF$108 -> 65986 | I104: 0.1039598189 | K104: =CntyDataLink!$BG$108 -> 1666
F105: 1980 through 1989 | G105: =CntyDataLink!$BH$108 -> 125359 | I105: 0.1975009689 | K105: =CntyDataLink!$BI$108 -> 2027
F106: 1970 through 1979 | G106: =CntyDataLink!$BJ$108 -> 94095 | I106: 0.1482450695 | K106: =CntyDataLink!$BK$108 -> 2185
F107: 1960 through 1969 | G107: =CntyDataLink!$BL$108 -> 54442 | I107: 0.08577244354 | K107: =CntyDataLink!$BM$108 -> 1682
F108: 1950 through 1959 | G108: =CntyDataLink!$BN$108 -> 44916 | I108: 0.07076439282 | K108: =CntyDataLink!$BO$108 -> 1351
F109: 1940 through 1949 | G109: =CntyDataLink!$BP$108 -> 23015 | I109: 0.03625974042 | K109: =CntyDataLink!$BQ$108 -> 1172
F110: 1939 and earlier | G110: =CntyDataLink!$BR$108 -> 128355 | I110: 0.2022211159 | K110: =CntyDataLink!$BS$108 -> 2302
B112: Data from the American Community Survey are estimates

Sheet BuildingPermitsSince2000 (hidden)
B2: =CntyDataLink!A35 -> New Hampshire
B4: HOUSING CHARACTERISTICS
B35: Housing Units Authorized by Permit | F35: Source: New Hampshire Office of Strategic Initiatives
B37: Year | C37: 2000 | D37: =C37+1 -> 2001 | E37: =D37+1 -> 2002 | F37: 2003 | G37: 2004 | H37: 2005 | I37: 2006 | J37: 2007 | K37: 2008 | L37: 2009 | M37: 2010 | N37: 2011 | O37: 2012 | P37: 2013 | Q37: 2014 | R37: 2015 | S37: 2016 | T37: 2017 | U37: 2018 | V37: 2019 | W37: Total
B38: Single Family | C38: =CntyDataLink!$BT$20 -> 5903 | D38: =CntyDataLink!$BW$20 -> 5710 | E38: =CntyDataLink!$BZ$20 -> 6440 | F38: =CntyDataLink!$CC$20 -> 6099 | G38: =CntyDataLink!$CF$20 -> 6529 | H38: =CntyDataLink!$CI$20 -> 5289 | I38: =CntyDataLink!$CL$20 -> 3849 | J38: =CntyDataLink!$CO$20 -> 3038 | K38: =CntyDataLink!$CR$20 -> 1817 | L38: =CntyDataLink!$CU$20 -> 1385 | M38: =CntyDataLink!$CX$20 -> 1546 | N38: =CntyDataLink!$DA$20 -> 1307 | O38: =CntyDataLink!$DD$20 -> 1368 | P38: =CntyDataLink!$DG$20 -> 1579 | Q38: =CntyDataLink!$DJ$20 -> 1828 | R38: =CntyDataLink!$DM$20 -> 1862 | S38: =CntyDataLink!$DP$20 -> 2070 | T38: =CntyDataLink!$DS$20 -> 2234 | U38: =CntyDataLink!$DV$20 -> 2219 | V38: =CntyDataLink!$DY$20 -> 2259 | W38: =SUM(C38:V38) -> 64331
B39: Multi-family | C39: =CntyDataLink!$BU$20 -> 940 | D39: =CntyDataLink!$BX$20 -> 811 | E39: =CntyDataLink!$CA$20 -> 1927 | F39: =CntyDataLink!$CD$20 -> 2779 | G39: =CntyDataLink!$CG$20 -> 2044 | H39: =CntyDataLink!$CJ$20 -> 2003 | I39: =CntyDataLink!$CM$20 -> 1626 | J39: =CntyDataLink!$CP$20 -> 1138 | K39: =CntyDataLink!$CS$20 -> 1082 | L39: =CntyDataLink!$CV$20 -> 719 | M39: =CntyDataLink!$CY$20 -> 740 | N39: =CntyDataLink!$DB$20 -> 765 | O39: =CntyDataLink!$DE$20 -> 1174 | P39: =CntyDataLink!$DH$20 -> 794 | Q39: =CntyDataLink!$DK$20 -> 1457 | R39: =CntyDataLink!$DN$20 -> 1565 | S39: =CntyDataLink!$DQ$20 -> 1298 | T39: =CntyDataLink!$DT$20 -> 1476 | U39: =CntyDataLink!$DW$20 -> 1901 | V39: =CntyDataLink!$DZ$20 -> 2121 | W39: =SUM(C39:V39) -> 28360
B40: Mobile Home | C40: =CntyDataLink!$BV$20 -> 701 | D40: =CntyDataLink!$BY$20 -> 558 | E40: =CntyDataLink!$CB$20 -> 531 | F40: =CntyDataLink!$CE$20 -> 385 | G40: =CntyDataLink!$CH$20 -> 497 | H40: =CntyDataLink!$CK$20 -> 410 | I40: =CntyDataLink!$CN$20 -> 253 | J40: =CntyDataLink!$CQ$20 -> 207 | K40: =CntyDataLink!$CT$20 -> 89 | L40: =CntyDataLink!$CW$20 -> 56 | M40: =CntyDataLink!$CZ$20 -> 42 | N40: =CntyDataLink!$DC$20 -> 29 | O40: =CntyDataLink!$DF$20 -> 85 | P40: =CntyDataLink!$DI$20 -> 121 | Q40: =CntyDataLink!$DL$20 -> 46 | R40: =CntyDataLink!$DO$20 -> 112 | S40: =CntyDataLink!$DR$20 -> 229 | T40: =CntyDataLink!$DU$20 -> 183 | U40: =CntyDataLink!$DX$20 -> 137 | V40: =CntyDataLink!$EA$20 -> 103 | W40: =SUM(C40:V40) -> 4774
B41: Total | C41: =SUM(C38:C40) -> 7544 | D41: =SUM(D38:D40) -> 7079 | E41: 8898 | F41: 9263 | G41: 9070 | H41: 7702 | I41: 5728 | J41: 4383 | K41: 2988 | L41: 2160 | M41: 2328 | N41: 2101 | O41: 2627 | P41: 2494 | Q41: 3331 | R41: 3539 | S41: 3597 | T41: 3893 | U41: =SUM(U38:U40) -> 4257 | V41: =SUM(V38:V40) -> 4483 | W41: =SUM(W38:W40) -> 97465

Sheet EmploymentAndWages (hidden)
B2: =CntyDataLink!A35 -> New Hampshire
B4: EMPLOYMENT CHARACTERISTICS
B29: Annual Average Covered Private Employment
C30: Source: NH Department of Employment Security, Covered Private Employment by location of employment
C31: 2009 | D31: =C31+1 -> 2010 | E31: =D31+1 -> 2011 | F31: 2012 | G31: 2013 | H31: 2014 | I31: 2015 | J31: 2016 | K31: 2017 | L31: 2018 | M31: 2019 | N31: Total Change
B32: Goods Producing | C32: =IF((CntyDataLink!$BQ$25)="n",NA(),IF(VALUE(CntyDataLink!$BQ$25)="",NA(),VALUE(CntyDataLink!$BQ$25))) -> 92952 | D32: =IF((CntyDataLink!$BY$25)="n",NA(),IF(VALUE(CntyDataLink!$BY$25)="",NA(),VALUE(CntyDataLink!$BY$25))) -> 89428 | E32: =IF((CntyDataLink!$CG$25)="n",NA(),IF(VALUE(CntyDataLink!$CG$25)="",NA(),VALUE(CntyDataLink!$CG$25))) -> 90996 | F32: =IF((CntyDataLink!$CO$25)="n",NA(),IF(VALUE(CntyDataLink!$CO$25)="",NA(),VALUE(CntyDataLink!$CO$25))) -> 90404 | G32: =IF((CntyDataLink!$CW$25)="n",NA(),IF(VALUE(CntyDataLink!$CW$25)="",NA(),VALUE(CntyDataLink!$CW$25))) -> 90890 | H32: =IF((CntyDataLink!$DE$25)="n",NA(),IF(VALUE(CntyDataLink!$DE$25)="",NA(),VALUE(CntyDataLink!$DE$25))) -> 92176 | I32: =IF((CntyDataLink!$DM$25)="n",NA(),IF(VALUE(CntyDataLink!$DM$25)="",NA(),VALUE(CntyDataLink!$DM$25))) -> 93968 | J32: =IF((CntyDataLink!$DU$25)="n",NA(),IF(VALUE(CntyDataLink!$DU$25)="",NA(),VALUE(CntyDataLink!$DU$25))) -> 96138 | K32: =IF((CntyDataLink!$EC$25)="n",NA(),IF(VALUE(CntyDataLink!$EC$25)="",NA(),VALUE(CntyDataLink!$EC$25))) -> 97995 | L32: =IF((CntyDataLink!$EK$25)="n",NA(),IF(VALUE(CntyDataLink!$EK$25)="",NA(),VALUE(CntyDataLink!$EK$25))) -> 100089 | M32: =IF((CntyDataLink!$ET$25)="n",NA(),IF(VALUE(CntyDataLink!$ET$25)="",NA(),VALUE(CntyDataLink!$ET$25))) -> 101907 | N32: =$M32-C32 -> 8955
B33: Service Providing | C33: =IF((CntyDataLink!$BR$25)="n",NA(),IF(VALUE(CntyDataLink!$BR$25)="",NA(),VALUE(CntyDataLink!$BR$25))) -> 424706 | D33: =IF((CntyDataLink!$BZ$25)="n",NA(),IF(VALUE(CntyDataLink!$BZ$25)="",NA(),VALUE(CntyDataLink!$BZ$25))) -> 423957 | E33: =IF((CntyDataLink!$CH$25)="n",NA(),IF(VALUE(CntyDataLink!$CH$25)="",NA(),VALUE(CntyDataLink!$CH$25))) -> 429342 | F33: =IF((CntyDataLink!$CP$25)="n",NA(),IF(VALUE(CntyDataLink!$CP$25)="",NA(),VALUE(CntyDataLink!$CP$25))) -> 436858 | G33: =IF((CntyDataLink!$CX$25)="n",NA(),IF(VALUE(CntyDataLink!$CX$25)="",NA(),VALUE(CntyDataLink!$CX$25))) -> 443216 | H33: =IF((CntyDataLink!$DF$25)="n",NA(),IF(VALUE(CntyDataLink!$DF$25)="",NA(),VALUE(CntyDataLink!$DF$25))) -> 449265 | I33: =IF((CntyDataLink!$DN$25)="n",NA(),IF(VALUE(CntyDataLink!$DN$25)="",NA(),VALUE(CntyDataLink!$DN$25))) -> 458308 | J33: =IF((CntyDataLink!$DV$25)="n",NA(),IF(VALUE(CntyDataLink!$DV$25)="",NA(),VALUE(CntyDataLink!$DV$25))) -> 466699 | K33: =IF((CntyDataLink!$ED$25)="n",NA(),IF(VALUE(CntyDataLink!$ED$25)="",NA(),VALUE(CntyDataLink!$ED$25))) -> 471029 | L33: =IF((CntyDataLink!$EL$25)="n",NA(),IF(VALUE(CntyDataLink!$EL$25)="",NA(),VALUE(CntyDataLink!$EL$25))) -> 473955 | M33: =IF((CntyDataLink!$EU$25)="n",NA(),IF(VALUE(CntyDataLink!$EU$25)="",NA(),VALUE(CntyDataLink!$EU$25))) -> 478487 | N33: =$M33-C33 -> 53781
B34: Total Private Emp | C34: =IF((CntyDataLink!$BP$25)="n",NA(),IF(VALUE(CntyDataLink!$BP$25)="",NA(),VALUE(CntyDataLink!$BP$25))) -> 517658 | D34: =IF((CntyDataLink!$BX$25)="n",NA(),IF(VALUE(CntyDataLink!$BX$25)="",NA(),VALUE(CntyDataLink!$BX$25))) -> 513386 | E34: =IF((CntyDataLink!$CF$25)="n",NA(),IF(VALUE(CntyDataLink!$CF$25)="",NA(),VALUE(CntyDataLink!$CF$25))) -> 520338 | F34: =IF((CntyDataLink!$CN$25)="n",NA(),IF(VALUE(CntyDataLink!$CN$25)="",NA(),VALUE(CntyDataLink!$CN$25))) -> 527263 | G34: =IF((CntyDataLink!$CV$25)="n",NA(),IF(VALUE(CntyDataLink!$CV$25)="",NA(),VALUE(CntyDataLink!$CV$25))) -> 534106 | H34: =IF((CntyDataLink!$DD$25)="n",NA(),IF(VALUE(CntyDataLink!$DD$25)="",NA(),VALUE(CntyDataLink!$DD$25))) -> 541441 | I34: =IF((CntyDataLink!$DL$25)="n",NA(),IF(VALUE(CntyDataLink!$DL$25)="",NA(),VALUE(CntyDataLink!$DL$25))) -> 552276 | J34: =IF((CntyDataLink!$DT$25)="n",NA(),IF(VALUE(CntyDataLink!$DT$25)="",NA(),VALUE(CntyDataLink!$DT$25))) -> 562836 | K34: =IF((CntyDataLink!$EB$25)="n",NA(),IF(VALUE(CntyDataLink!$EB$25)="",NA(),VALUE(CntyDataLink!$EB$25))) -> 569023 | L34: =IF((CntyDataLink!$EJ$25)="n",NA(),IF(VALUE(CntyDataLink!$EJ$25)="",NA(),VALUE(CntyDataLink!$EJ$25))) -> 574044 | M34: =IF((CntyDataLink!$ER$25)="n",NA(),IF(VALUE(CntyDataLink!$ER$25)="",NA(),VALUE(CntyDataLink!$ER$25))) -> 580394 | N34: =$M34-C34 -> 62736
B36: % Change from prior Year | D36: 09-10 | E36: 10-11 | F36: 11-12 | G36: 12-13 | H36: 13-14 | I36: 14-15 | J36: 15-16 | K36: 16-17 | L36: 17-18 | M36: 18-19 | N36: Total % Change
B37: Goods Producing | D37: =(D32-C32)/C32 -> -0.03791204062 | E37: 0.01753365836 | F37: -0.006505780474 | G37: 0.005375868324 | H37: 0.01414897128 | I37: =(I32-H32)/H32 -> 0.01944106926 | J37: 0.02309296782 | K37: 0.01931598327 | L37: 0.02136843717 | M37: 0.01816383419 | N37: =N32/C32 -> 0.09634004648
B38: Service Providing | D38: -0.001763572919 | E38: 0.01270175985 | F38: 0.0175058578 | G38: =(G33-F33)/F33 -> 0.01455392828 | H38: 0.013647973 | I38: 0.02012843199 | J38: 0.01830864833 | K38: 0.009277928601 | L38: 0.006211931749 | M38: 0.009562089228 | N38: =N33/C33 -> 0.1266311284
B39: Total Private Emp | D39: -0.008252552844 | E39: 0.01354146782 | F39: 0.01330865707 | G39: 0.01297834288 | H39: 0.01373322898 | I39: 0.02001141399 | J39: 0.01912087435 | K39: 0.0109925449 | L39: 0.008823896398 | M39: 0.01106186982 | N39: =N34/C34 -> 0.1211919839
B42: EMPLOYMENT CHARACTERISTICS
B67: Covered Private Employment Average Wages | G67: Source: NH Department of Employment Security, Covered Private Employment
C69: 2009 | D69: =C69+1 -> 2010 | E69: =D69+1 -> 2011 | F69: =E69+1 -> 2012 | G69: 2013 | H69: 2014 | I69: 2015 | J69: 2016 | K69: 2017 | L69: 2018 | M69: 2019 | N69: Total $ Change
B70: Goods Producing | C70: =IF((CntyDataLink!$BU$25)="n",NA(),IF(VALUE(CntyDataLink!$BU$25)="",NA(),VALUE(CntyDataLink!$BU$25))) -> 1066.42 | D70: =IF((CntyDataLink!$CC$25)="n",NA(),IF(VALUE(CntyDataLink!$CC$25)="",NA(),VALUE(CntyDataLink!$CC$25))) -> 1119.47 | E70: =IF((CntyDataLink!$CK$25)="n",NA(),IF(VALUE(CntyDataLink!$CK$25)="",NA(),VALUE(CntyDataLink!$CK$25))) -> 1140.95 | F70: =IF((CntyDataLink!$CS$25)="n",NA(),IF(VALUE(CntyDataLink!$CS$25)="",NA(),VALUE(CntyDataLink!$CS$25))) -> 1152.07 | G70: =IF((CntyDataLink!$DA$25)="n",NA(),IF(VALUE(CntyDataLink!$DA$25)="",NA(),VALUE(CntyDataLink!$DA$25))) -> 1173.11 | H70: =IF((CntyDataLink!$DI$25)="n",NA(),IF(VALUE(CntyDataLink!$DI$25)="",NA(),VALUE(CntyDataLink!$DI$25))) -> 1200.71 | I70: =IF((CntyDataLink!$DQ$25)="n",NA(),IF(VALUE(CntyDataLink!$DQ$25)="",NA(),VALUE(CntyDataLink!$DQ$25))) -> 1224.55 | J70: =IF((CntyDataLink!$DY$25)="n",NA(),IF(VALUE(CntyDataLink!$DY$25)="",NA(),VALUE(CntyDataLink!$DY$25))) -> 1251.03 | K70: =IF((CntyDataLink!$EG$25)="n",NA(),IF(VALUE(CntyDataLink!$EG$25)="",NA(),VALUE(CntyDataLink!$EG$25))) -> 1294.46 | L70: =IF((CntyDataLink!$EO$25)="n",NA(),IF(VALUE(CntyDataLink!$EO$25)="",NA(),VALUE(CntyDataLink!$EO$25))) -> 1317.59 | M70: =IF((CntyDataLink!$EY$25)="n",NA(),IF(VALUE(CntyDataLink!$EY$25)="",NA(),VALUE(CntyDataLink!$EY$25))) -> 1346.98 | N70: =M70-C70 -> 280.56
B71: Service Providing | C71: =IF((CntyDataLink!$BV$25)="n",NA(),IF(VALUE(CntyDataLink!$BV$25)="",NA(),VALUE(CntyDataLink!$BV$25))) -> 823.81 | D71: =IF((CntyDataLink!$CD$25)="n",NA(),IF(VALUE(CntyDataLink!$CD$25)="",NA(),VALUE(CntyDataLink!$CD$25))) -> 841.75 | E71: =IF((CntyDataLink!$CL$25)="n",NA(),IF(VALUE(CntyDataLink!$CL$25)="",NA(),VALUE(CntyDataLink!$CL$25))) -> 868.65 | F71: =IF((CntyDataLink!$CT$25)="n",NA(),IF(VALUE(CntyDataLink!$CT$25)="",NA(),VALUE(CntyDataLink!$CT$25))) -> 893.72 | G71: =IF((CntyDataLink!$DB$25)="n",NA(),IF(VALUE(CntyDataLink!$DB$25)="",NA(),VALUE(CntyDataLink!$DB$25))) -> 905.2 | H71: =IF((CntyDataLink!$DJ$25)="n",NA(),IF(VALUE(CntyDataLink!$DJ$25)="",NA(),VALUE(CntyDataLink!$DJ$25))) -> 954.42 | I71: =IF((CntyDataLink!$DR$25)="n",NA(),IF(VALUE(CntyDataLink!$DR$25)="",NA(),VALUE(CntyDataLink!$DR$25))) -> 980.34 | J71: =IF((CntyDataLink!$DZ$25)="n",NA(),IF(VALUE(CntyDataLink!$DZ$25)="",NA(),VALUE(CntyDataLink!$DZ$25))) -> 999.7 | K71: =IF((CntyDataLink!EG$25)="n",NA(),IF(VALUE(CntyDataLink!$EH$25)="",NA(),VALUE(CntyDataLink!$EH$25))) -> 1028.12 | L71: =IF((CntyDataLink!EO$25)="n",NA(),IF(VALUE(CntyDataLink!$EP$25)="",NA(),VALUE(CntyDataLink!$EP$25))) -> 1061.85 | M71: =IF((CntyDataLink!EZ$25)="n",NA(),IF(VALUE(CntyDataLink!$EZ$25)="",NA(),VALUE(CntyDataLink!$EZ$25))) -> 1102.03 | N71: =M71-C71 -> 278.22
B72: Total Private Emp | C72: =IF((CntyDataLink!$BT$25)="n",NA(),IF(VALUE(CntyDataLink!$BT$25)="",NA(),VALUE(CntyDataLink!$BT$25))) -> 867.37 | D72: =IF((CntyDataLink!$CB$25)="n",NA(),IF(VALUE(CntyDataLink!$CB$25)="",NA(),VALUE(CntyDataLink!$CB$25))) -> 890.13 | E72: =IF((CntyDataLink!$CJ$25)="n",NA(),IF(VALUE(CntyDataLink!$CJ$25)="",NA(),VALUE(CntyDataLink!$CJ$25))) -> 916.27 | F72: =IF((CntyDataLink!$CR$25)="n",NA(),IF(VALUE(CntyDataLink!$CR$25)="",NA(),VALUE(CntyDataLink!$CR$25))) -> 938.02 | G72: =IF((CntyDataLink!$CZ$25)="n",NA(),IF(VALUE(CntyDataLink!$CZ$25)="",NA(),VALUE(CntyDataLink!$CZ$25))) -> 950.79 | H72: =IF((CntyDataLink!$DH$25)="n",NA(),IF(VALUE(CntyDataLink!$DH$25)="",NA(),VALUE(CntyDataLink!$DH$25))) -> 996.35 | I72: =IF((CntyDataLink!$DP$25)="n",NA(),IF(VALUE(CntyDataLink!$DP$25)="",NA(),VALUE(CntyDataLink!$DP$25))) -> 1021.89 | J72: =IF((CntyDataLink!$DX$25)="n",NA(),IF(VALUE(CntyDataLink!$DX$25)="",NA(),VALUE(CntyDataLink!$DX$25))) -> 1042.63 | K72: =IF((CntyDataLink!$EF$25)="n",NA(),IF(VALUE(CntyDataLink!$EF$25)="",NA(),VALUE(CntyDataLink!$EF$25))) -> 1073.99 | L72: =IF((CntyDataLink!$EN$25)="n",NA(),IF(VALUE(CntyDataLink!$EN$25)="",NA(),VALUE(CntyDataLink!$EN$25))) -> 1106.44 | M72: =IF((CntyDataLink!$EW$25)="n",NA(),IF(VALUE(CntyDataLink!$EW$25)="",NA(),VALUE(CntyDataLink!$EW$25))) -> 1145.04 | N72: =M72-C72 -> 277.67
B74: % Change from prior Year | D74: =D36 -> 09-10 | E74: 10-11 | F74: 11-12 | G74: 12-13 | H74: 13-14 | I74: 14-15 | J74: 15-16 | K74: 16-17 | L74: 17-18 | M74: 18-19 | N74: Total % Change
B75: Goods Producing | D75: =(D70-C70)/C70 -> 0.04974587873 | E75: 0.0191876513 | F75: 0.009746264078 | G75: 0.01826277917 | H75: 0.02352720546 | I75: 0.01985491917 | J75: 0.02162427014 | K75: 0.03471539451 | L75: 0.0178684548 | M75: 0.02230587664 | N75: =N70/C70 -> 0.2630858386
B76: Service Providing | D76: 0.02177686602 | E76: 0.03195723196 | F76: 0.02886087607 | G76: 0.01284518641 | H76: 0.05437472382 | I76: 0.02715785503 | J76: 0.01974825061 | K76: 0.02842852856 | L76: 0.03280745438 | M76: 0.03783961953 | N76: =N71/C71 -> 0.3377235042
B77: Total Private Emp | D77: 0.02624024349 | E77: 0.02936649703 | F77: 0.02373754461 | G77: 0.01361378222 | H77: 0.0479180471 | I77: 0.0256335625 | J77: 0.02029572655 | K77: 0.03007778407 | L77: 0.03021443403 | M77: 0.03488666353 | N77: =N72/C72 -> 0.3201286648
B80: LABOR FORCE AND UNEMPLOYMENT CHARACTERISTICS
B110: Annual Average Labor Force and Unemployment
C111: 2009 | D111: =C111+1 -> 2010 | E111: =D111+1 -> 2011 | F111: 2012 | G111: 2013 | H111: 2014 | I111: 2015 | J111: 2016 | K111: 2017 | L111: 2018 | M111: 2019 | N111: Total Change
B112: Civilian Labor Force | C112: =CntyDataLink!$BZ$30 -> 744230 | D112: =CntyDataLink!$CD$30 -> 738260 | E112: =CntyDataLink!$CH$30 -> 736300 | F112: =CntyDataLink!$CL$30 -> 741100 | G112: =CntyDataLink!$CP$30 -> 741280 | H112: =CntyDataLink!$CT$30 -> 743320 | I112: =CntyDataLink!$CX$30 -> 745700 | J112: =CntyDataLink!$DB$30 -> 751500 | K112: =CntyDataLink!$DF$30 -> 754690 | L112: =CntyDataLink!$DJ$30 -> 762760 | M112: =CntyDataLink!$DN$30 -> 773740 | N112: =$M112-$C112 -> 29510
B113: Employed Labor Force | C113: =CntyDataLink!$CA$30 -> 697800 | D113: =CntyDataLink!$CE$30 -> 695140 | E113: =CntyDataLink!$CI$30 -> 696530 | F113: =CntyDataLink!$CM$30 -> 700370 | G113: =CntyDataLink!$CQ$30 -> 703530 | H113: =CntyDataLink!$CU$30 -> 711550 | I113: =CntyDataLink!$CY$30 -> 720580 | J113: =CntyDataLink!$DC$30 -> 730070 | K113: =CntyDataLink!$DG$30 -> 734210 | L113: =CntyDataLink!$DK$30 -> 743180 | M113: =CntyDataLink!$DO$30 -> 754050 | N113: =$M113-C113 -> 56250
B114: Unemployed Labor Force | C114: =CntyDataLink!$CB$30 -> 46430 | D114: =CntyDataLink!$CF$30 -> 43120 | E114: =CntyDataLink!$CJ$30 -> 39770 | F114: =CntyDataLink!$CN$30 -> 40730 | G114: =CntyDataLink!$CR$30 -> 37750 | H114: =CntyDataLink!$CV$30 -> 31770 | I114: =CntyDataLink!$CZ$30 -> 25120 | J114: =CntyDataLink!$DD$30 -> 21430 | K114: =CntyDataLink!$DH$30 -> 20480 | L114: =CntyDataLink!$DL$30 -> 19580 | M114: =CntyDataLink!$DP$30 -> 19690 | N114: =$M114-C114 -> -26740
B115: Unemployment Rate | C115: =CntyDataLink!$CC$30 -> 6.2 | D115: =CntyDataLink!$CG$30 -> 5.8 | E115: =CntyDataLink!$CK$30 -> 5.4 | F115: =CntyDataLink!$CO$30 -> 5.5 | G115: =CntyDataLink!$CS$30 -> 5.1 | H115: =CntyDataLink!$CW$30 -> 4.3 | I115: =CntyDataLink!$DA$30 -> 3.4 | J115: =CntyDataLink!$DE$30 -> 2.9 | K115: =CntyDataLink!$DI$30 -> 2.7 | L115: =CntyDataLink!$DM$30 -> 2.6 | M115: =CntyDataLink!$DQ$30 -> 2.6
B117: Source: NH Department of Employment Security, Local Area Unemployment Statistics

Sheet EmpVsHUxCounty (hidden)
A2: =A45 -> NEW HAMPSHIRE
A44: Housing Units
A45: =CntyDataLink!A20 -> NEW HAMPSHIRE
D46: Source: New Hampshire Office of Strategic Initiatives
A47: Units Authorized By Permit | B47: 2008 | C47: =B47+1 -> 2009 | D47: =C47+1 -> 2010 | E47: 2011 | F47: 2012 | G47: 2013 | H47: 2014 | I47: 2015 | J47: 2016 | K47: 2017 | L47: 2018 | M47: 2019
A48: Single Family | B48: =CntyDataLink!$CR$20 -> 1817 | C48: =CntyDataLink!$CU$20 -> 1385 | D48: =CntyDataLink!$CX$20 -> 1546 | E48: =CntyDataLink!$DA$20 -> 1307 | F48: =CntyDataLink!$DD$20 -> 1368 | G48: =CntyDataLink!$DG$20 -> 1579 | H48: =CntyDataLink!$DJ$20 -> 1828 | I48: =CntyDataLink!$DM$20 -> 1862 | J48: =CntyDataLink!$DP$20 -> 2070 | K48: =CntyDataLink!$DS$20 -> 2234 | L48: =CntyDataLink!$DV$20 -> 2219 | M48: =CntyDataLink!$DY$20 -> 2259
A49: Multi-family | B49: =CntyDataLink!$CS$20 -> 1082 | C49: =CntyDataLink!$CV$20 -> 719 | D49: =CntyDataLink!$CY$20 -> 740 | E49: =CntyDataLink!$DB$20 -> 765 | F49: =CntyDataLink!$DE$20 -> 1174 | G49: =CntyDataLink!$DH$20 -> 794 | H49: =CntyDataLink!$DK$20 -> 1457 | I49: =CntyDataLink!$DN$20 -> 1565 | J49: =CntyDataLink!$DQ$20 -> 1298 | K49: =CntyDataLink!$DT$20 -> 1476 | L49: =CntyDataLink!$DW$20 -> 1901 | M49: =CntyDataLink!$DZ$20 -> 2121
A50: Mobile Home | B50: =CntyDataLink!$CT$20 -> 89 | C50: =CntyDataLink!$CW$20 -> 56 | D50: =CntyDataLink!$CZ$20 -> 42 | E50: =CntyDataLink!$DC$20 -> 29 | F50: =CntyDataLink!$DF$20 -> 85 | G50: =CntyDataLink!$DI$20 -> 121 | H50: =CntyDataLink!$DL$20 -> 46 | I50: =CntyDataLink!$DO$20 -> 112 | J50: =CntyDataLink!$DR$20 -> 229 | K50: =CntyDataLink!$DU$20 -> 183 | L50: =CntyDataLink!$DX$20 -> 137 | M50: =CntyDataLink!$EA$20 -> 103
A51: Total | B51: =SUM(B48:B50) -> 2988 | C51: 2160 | D51: 2328 | E51: 2101 | F51: 2627 | G51: 2494 | H51: 3331 | I51: 3539 | J51: 3597 | K51: 3893 | L51: =SUM(L48:L50) -> 4257 | M51: =SUM(M48:M50) -> 4483
A53: Total Housing Units | B53: 2008 | C53: =B53+1 -> 2009 | D53: 2010 | E53: 2010 Census | F53: 2011 | G53: =F53+1 -> 2012 | H53: 2013 | I53: 2014 | J53: 2015 | K53: 2016 | L53: 2017 | M53: 2018 | N53: 2019 | O53: 2020
A54: Single Family | B54: =CntyDataLink!CF65+CntyDataLink!$BT$20+CntyDataLink!$BW$20+CntyDataLink!$BZ$20+CntyDataLink!$CC$20+CntyDataLink!$CF$20+CntyDataLink!$CI$20+CntyDataLink!$CO$20+CntyDataLink!$CR$20 -> 382124 | C54: =B54+B48 -> 383941 | D54: =C54+C48 -> 385326 | E54: =CntyDataLink!$BA$167 -> 385973 | F54: =D48+E54 -> 387519 | G54: =F54+E48 -> 388826 | H54: 390194 | I54: 391773 | J54: 393601 | K54: 395463 | L54: 397533 | M54: 399767 | N54: 401986 | O54: 404245
A55: Multi Family | B55: =SUM(CntyDataLink!CG65:CM65)+CntyDataLink!$BU$20+CntyDataLink!$BX$20+CntyDataLink!$CA$20+CntyDataLink!$CD$20+CntyDataLink!$CG$20+CntyDataLink!$CJ$20+CntyDataLink!$CP$20+CntyDataLink!$CS$20 -> 182120 | C55: =B55+B49 -> 183202 | D55: =C55+C49 -> 183921 | E55: =CntyDataLink!$BB$167 -> 183746 | F55: =D49+E55 -> 184486 | G55: =F55+E49 -> 185251 | H55: 186425 | I55: 187219 | J55: 188676 | K55: 190241 | L55: 191539 | M55: 193015 | N55: 194916 | O55: 197037
A56: Mobile Home | B56: =SUM(CntyDataLink!CN65:CO65)+CntyDataLink!$BV$20+CntyDataLink!$BY$20+CntyDataLink!$CB$20+CntyDataLink!$CE$20+CntyDataLink!$CH$20+CntyDataLink!$CK$20+CntyDataLink!$CQ$20+CntyDataLink!$CT$20 -> 39707 | C56: 39796 | D56: =C56+C50 -> 39852 | E56: =CntyDataLink!$BC$167 -> 39960 | F56: =D50+E56 -> 40002 | G56: 40031 | H56: 40116 | I56: 40237 | J56: 40283 | K56: 40395 | L56: 40624 | M56: 40807 | N56: 40944 | O56: 41047
A57: Total | B57: =SUM(B54:B56) -> 603951 | C57: =SUM(C54:C56) -> 606939 | D57: =C57+C51 -> 609099 | E57: =SUM(E54:E56) -> 609679 | F57: =SUM(F54:F56) -> 612007 | G57: 614108 | H57: 616735 | I57: 619229 | J57: 622560 | K57: 626099 | L57: 629696 | M57: 633589 | N57: 637846 | O57: =SUM(O54:O56) -> 642329
A59: Percent Change | C59: 08-09 | D59: 09-10 | E59: 2000-2010 Census | F59: 10-11 | G59: 11-12 | H59: 12-13 | I59: 13-14 | J59: 14-15 | K59: 15-16 | L59: 16-17 | M59: 17-18 | N59: 18-19 | O59: 19-20
A60: Single Family | C60: =(C54-B54)/B54 -> 0.004755000994 | D60: =(D54-C54)/C54 -> 0.003607325084 | E60: =(E54-CntyDataLink!CF$65)/CntyDataLink!CF$65 -> 0.1308940255 | F60: =(F54-E54)/E54 -> 0.004005461522 | G60: 0.003372737853 | H60: 0.003518283242 | I60: 0.004046704972 | J60: 0.004665967282 | K60: 0.004730679038 | L60: 0.005234370851 | M60: 0.005619659248 | N60: 0.005550733302 | O60: 0.005619598692
A61: Multi Family | C61: =(C55-B55)/B55 -> 0.005941137711 | D61: 0.003924629644 | E61: =(E55-SUM(CntyDataLink!CG65:CM65))/SUM(CntyDataLink!CG65:CM65) -> 0.0847127441 | F61: =(F55-E55)/E55 -> 0.004027298553 | G61: 0.004146656115 | H61: 0.006337347707 | I61: 0.004259085423 | J61: 0.007782329785 | K61: 0.008294642668 | L61: 0.006822924606 | M61: 0.007706002433 | N61: 0.009848975468 | O61: 0.01088161054
A62: Mobile Home | C62: 0.00224141839 | D62: 0.001407176601 | E62: =(E56-SUM(CntyDataLink!CM65:CN65))/SUM(CntyDataLink!CM65:CN65) -> -0.1014166854 | F62: =(F56-E56)/E56 -> 0.001051051051 | G62: 0.0007249637518 | H62: 0.0021233544 | I62: 0.003016252867 | J62: 0.001143226384 | K62: 0.002780329171 | L62: 0.005669018443 | M62: 0.00450472627 | N62: 0.003357267136 | O62: 0.002515631106
A63: Total | C63: 0.004947421231 | D63: 0.003558841992 | E63: =(E57-CntyDataLink!$CE65)/CntyDataLink!$CE65 -> 0.1145379362 | F63: =(F57-E57)/E57 -> 0.003818402799 | G63: 0.00343296727 | H63: 0.004277749191 | I63: 0.004043876219 | J63: 0.005379270028 | K63: 0.00568459265 | L63: 0.00574509782 | M63: 0.006182348308 | N63: 0.006718866647 | O63: 0.007028342264
A68: Private Employment
A69: =CntyDataLink!A25 -> New Hampshire
C70: 2008 | D70: =C70+1 -> 2009 | E70: 2010 | F70: 2011 | G70: 2012 | H70: 2013 | I70: 2014 | J70: 2015 | K70: 2016 | L70: 2017 | M70: 2018 | N70: 2019
A71: Goods Producing | C71: =IF((CntyDataLink!$BI$25)="n",NA(),IF(VALUE(CntyDataLink!$BI$25)="",NA(),VALUE(CntyDataLink!$BI$25))) -> 104441 | D71: =IF((CntyDataLink!$BQ$25)="n",NA(),IF(VALUE(CntyDataLink!$BQ$25)="",NA(),VALUE(CntyDataLink!$BQ$25))) -> 92952 | E71: =IF((CntyDataLink!$BY$25)="n",NA(),IF(VALUE(CntyDataLink!$BY$25)="",NA(),VALUE(CntyDataLink!$BY$25))) -> 89428 | F71: =IF((CntyDataLink!$CG$25)="n",NA(),IF(VALUE(CntyDataLink!$CG$25)="",NA(),VALUE(CntyDataLink!$CG$25))) -> 90996 | G71: =IF((CntyDataLink!$CO$25)="n",NA(),IF(VALUE(CntyDataLink!$CO$25)="",NA(),VALUE(CntyDataLink!$CO$25))) -> 90404 | H71: =IF((CntyDataLink!$CW$25)="n",NA(),IF(VALUE(CntyDataLink!$CW$25)="",NA(),VALUE(CntyDataLink!$CW$25))) -> 90890 | I71: =IF((CntyDataLink!$DE$25)="n",NA(),IF(VALUE(CntyDataLink!$DE$25)="",NA(),VALUE(CntyDataLink!$DE$25))) -> 92176 | J71: =IF((CntyDataLink!$DM$25)="n",NA(),IF(VALUE(CntyDataLink!$DM$25)="",NA(),VALUE(CntyDataLink!$DM$25))) -> 93968 | K71: =IF((CntyDataLink!$DU$25)="n",NA(),IF(VALUE(CntyDataLink!$DU$25)="",NA(),VALUE(CntyDataLink!$DU$25))) -> 96138 | L71: =IF((CntyDataLink!$EC$25)="n",NA(),IF(VALUE(CntyDataLink!$EC$25)="",NA(),VALUE(CntyDataLink!$EC$25))) -> 97995 | M71: =IF((CntyDataLink!$EK$25)="n",NA(),IF(VALUE(CntyDataLink!$EK$25)="",NA(),VALUE(CntyDataLink!$EK$25))) -> 100089 | N71: =IF((CntyDataLink!$ET$25)="n",NA(),IF(VALUE(CntyDataLink!$ET$25)="",NA(),VALUE(CntyDataLink!$ET$25))) -> 101907
A72: Service Providing | C72: =IF((CntyDataLink!$BJ$25)="n",NA(),IF(VALUE(CntyDataLink!$BJ$25)="",NA(),VALUE(CntyDataLink!$BJ$25))) -> 437326 | D72: =IF((CntyDataLink!$BR$25)="n",NA(),IF(VALUE(CntyDataLink!$BR$25)="",NA(),VALUE(CntyDataLink!$BR$25))) -> 424706 | E72: =IF((CntyDataLink!$BZ$25)="n",NA(),IF(VALUE(CntyDataLink!$BZ$25)="",NA(),VALUE(CntyDataLink!$BZ$25))) -> 423957 | F72: =IF((CntyDataLink!$CH$25)="n",NA(),IF(VALUE(CntyDataLink!$CH$25)="",NA(),VALUE(CntyDataLink!$CH$25))) -> 429342 | G72: =IF((CntyDataLink!$CP$25)="n",NA(),IF(VALUE(CntyDataLink!$CP$25)="",NA(),VALUE(CntyDataLink!$CP$25))) -> 436858 | H72: =IF((CntyDataLink!$CX$25)="n",NA(),IF(VALUE(CntyDataLink!$CX$25)="",NA(),VALUE(CntyDataLink!$CX$25))) -> 443216 | I72: =IF((CntyDataLink!$DF$25)="n",NA(),IF(VALUE(CntyDataLink!$DF$25)="",NA(),VALUE(CntyDataLink!$DF$25))) -> 449265 | J72: =IF((CntyDataLink!$DN$25)="n",NA(),IF(VALUE(CntyDataLink!$DN$25)="",NA(),VALUE(CntyDataLink!$DN$25))) -> 458308 | K72: =IF((CntyDataLink!$DV$25)="n",NA(),IF(VALUE(CntyDataLink!$DV$25)="",NA(),VALUE(CntyDataLink!$DV$25))) -> 466699 | L72: =IF((CntyDataLink!$ED$25)="n",NA(),IF(VALUE(CntyDataLink!$ED$25)="",NA(),VALUE(CntyDataLink!$ED$25))) -> 471029 | M72: =IF((CntyDataLink!$EL$25)="n",NA(),IF(VALUE(CntyDataLink!$EL$25)="",NA(),VALUE(CntyDataLink!$EL$25))) -> 473955 | N72: =IF((CntyDataLink!$EU$25)="n",NA(),IF(VALUE(CntyDataLink!$EU$25)="",NA(),VALUE(CntyDataLink!$EU$25))) -> 478487
A73: Total Private Emp | C73: =IF((CntyDataLink!$BH$25)="n",NA(),IF(VALUE(CntyDataLink!$BH$25)="",NA(),VALUE(CntyDataLink!$BH$25))) -> 541768 | D73: =IF((CntyDataLink!$BP$25)="n",NA(),IF(VALUE(CntyDataLink!$BP$25)="",NA(),VALUE(CntyDataLink!$BP$25))) -> 517658 | E73: =IF((CntyDataLink!$BX$25)="n",NA(),IF(VALUE(CntyDataLink!$BX$25)="",NA(),VALUE(CntyDataLink!$BX$25))) -> 513386 | F73: =IF((CntyDataLink!$CF$25)="n",NA(),IF(VALUE(CntyDataLink!$CF$25)="",NA(),VALUE(CntyDataLink!$CF$25))) -> 520338 | G73: =IF((CntyDataLink!$CN$25)="n",NA(),IF(VALUE(CntyDataLink!$CN$25)="",NA(),VALUE(CntyDataLink!$CN$25))) -> 527263 | H73: =IF((CntyDataLink!$CV$25)="n",NA(),IF(VALUE(CntyDataLink!$CV$25)="",NA(),VALUE(CntyDataLink!$CV$25))) -> 534106 | I73: =IF((CntyDataLink!$DD$25)="n",NA(),IF(VALUE(CntyDataLink!$DD$25)="",NA(),VALUE(CntyDataLink!$DD$25))) -> 541441 | J73: =IF((CntyDataLink!$DL$25)="n",NA(),IF(VALUE(CntyDataLink!$DL$25)="",NA(),VALUE(CntyDataLink!$DL$25))) -> 552276 | K73: =IF((CntyDataLink!$DT$25)="n",NA(),IF(VALUE(CntyDataLink!$DT$25)="",NA(),VALUE(CntyDataLink!$DT$25))) -> 562836 | L73: =IF((CntyDataLink!$EB$25)="n",NA(),IF(VALUE(CntyDataLink!$EB$25)="",NA(),VALUE(CntyDataLink!$EB$25))) -> 569023 | M73: =IF((CntyDataLink!$EJ$25)="n",NA(),IF(VALUE(CntyDataLink!$EJ$25)="",NA(),VALUE(CntyDataLink!$EJ$25))) -> 574044 | N73: =IF((CntyDataLink!$ER$25)="n",NA(),IF(VALUE(CntyDataLink!$ER$25)="",NA(),VALUE(CntyDataLink!$ER$25))) -> 580394
A75: Percent Change | D75: 08-09 | E75: 09-10 | F75: 10-11 | G75: 11-12 | H75: 12-13 | I75: 13-14 | J75: 14-15 | K75: 15-16 | L75: 16-17 | M75: 17-18 | N75: 18-19
A76: Goods Producing | D76: =(D71-C71)/C71 -> -0.1100046916 | E76: -0.03791204062 | F76: 0.01753365836 | G76: -0.006505780474 | H76: 0.005375868324 | I76: 0.01414897128 | J76: 0.01944106926 | K76: 0.02309296782 | L76: 0.01931598327 | M76: 0.02136843717 | N76: =(N71-M71)/M71 -> 0.01816383419
A77: Service Providing | D77: -0.0288571912 | E77: -0.001763572919 | F77: 0.01270175985 | G77: 0.0175058578 | H77: 0.01455392828 | I77: 0.013647973 | J77: 0.02012843199 | K77: 0.01830864833 | L77: 0.009277928601 | M77: 0.006211931749 | N77: 0.009562089228
A78: Total Private Emp | D78: -0.04450244385 | E78: =(E73-D73)/D73 -> -0.008252552844 | F78: 0.01354146782 | G78: 0.01330865707 | H78: 0.01297834288 | I78: 0.01373322898 | J78: 0.02001141399 | K78: 0.01912087435 | L78: 0.0109925449 | M78: 0.008823896398 | N78: =(N73-M73)/M73 -> 0.01106186982
A82: Source: New Hampshire Department of Employment Security
A84: =A2 -> NEW HAMPSHIRE
C120: 2008 | D120: =C120+1 -> 2009 | E120: 2010 | F120: 2011 | G120: 2012 | H120: 2013 | I120: 2014 | J120: 2015 | K120: 2016 | L120: 2017 | M120: 2018 | N120: 2019
A121: Total Housing Units | C121: =B$57 -> 603951 | D121: 606939 | E121: =$E$57 -> 609679 | F121: =F57 -> 612007 | G121: 614108 | H121: 616735 | I121: 619229 | J121: 622560 | K121: 626099 | L121: 629696 | M121: 633589 | N121: 637846
A122: Private & Government Emp. | C122: =VALUE(CntyDataLink!$BG$25) -> 628819 | D122: =VALUE(CntyDataLink!$BO$25) -> 604915 | E122: =VALUE(CntyDataLink!$BW$25) -> 600540 | F122: =VALUE(CntyDataLink!$CE$25) -> 605864 | G122: =VALUE(CntyDataLink!$CM$25) -> 612432 | H122: =VALUE(CntyDataLink!$CU$25) -> 618756 | I122: =VALUE(CntyDataLink!$DC$25) -> 626567 | J122: =VALUE(CntyDataLink!$DK$25) -> 636798 | K122: =VALUE(CntyDataLink!$DS$25) -> 647375 | L122: =VALUE(CntyDataLink!$EA$25) -> 653496 | M122: =VALUE(CntyDataLink!$EI$25) -> 658816 | N122: =VALUE(CntyDataLink!$EQ$25) -> 665374
A124: Source: New Hampshire Department of Employment Security; New Hampshire Office Strategic Initiatives

Sheet HHIncome-10YearComparison (hidden)
B2: =CntyDataLink!A35 -> New Hampshire
B4: INCOME CHARACTERISTICS
B27: Households By Household Income
E28: 2005-2009 | I28: 2010-2014 | L28: 2015-2019 | P28: Statistically Significant Change
B29: Household Income | E29: Estimate | F29: Margin of Error | I29: Estimate | J29: Margin of Error | L29: Estimate | M29: Margin of Error | P29: 2009-2019 | Q29: 2014-2019
B30: Less than $10,000 | E30: =CntyDataLinkPrior10YearEstimate!$B$120 -> 23627 | F30: =CntyDataLinkPrior10YearEstimate!$C$120 -> 1036 | G30: =E30/SUM($E$30:$E$39) -> 0.09907828304 | I30: =CntyDataLinkPrior5YearEstimates!$B$120 -> 23090 | J30: =CntyDataLinkPrior5YearEstimates!$C$120 -> 1033 | K30: =I30/SUM($I$30:$I$39) -> 0.04455421663 | L30: =CntyDataLink!$B$120 -> 20057 | M30: =CntyDataLink!$C$120 -> 1139 | N30: =L30/SUM($L$30:$L$39) -> 0.03769850593 | P30: =StatisticallySignificantCalcs!$A$83 -> Y | Q30: =StatisticallySignificantCalcs!$J$83 -> N
B31: $10,000 to $14,999 | E31: =CntyDataLinkPrior10YearEstimate!$D$120 -> 20208 | F31: =CntyDataLinkPrior10YearEstimate!$E$120 -> 1078 | G31: =E31/SUM($E$30:$E$39) -> 0.0847409296 | I31: =CntyDataLinkPrior5YearEstimates!$D$120 -> 20804 | J31: =CntyDataLinkPrior5YearEstimates!$E$120 -> 976 | K31: 0.04014317553 | L31: =CntyDataLink!$D$120 -> 15842 | M31: =CntyDataLink!$E$120 -> 889 | N31: 0.02977612459 | P31: =StatisticallySignificantCalcs!$A$84 -> Y | Q31: =StatisticallySignificantCalcs!$J$84 -> N
B32: $15,000 to $24,999 | E32: =CntyDataLinkPrior10YearEstimate!$F$120 -> 19189 | F32: =CntyDataLinkPrior10YearEstimate!$G$120 -> 895 | G32: 0.08046781958 | I32: =CntyDataLinkPrior5YearEstimates!$F$120 -> 43651 | J32: =CntyDataLinkPrior5YearEstimates!$G$120 -> 1409.453795 | K32: 0.08422850196 | L32: =CntyDataLink!$F$120 -> 37456 | M32: =CntyDataLink!$G$120 -> 1297.94684 | N32: 0.07040111872 | P32: =StatisticallySignificantCalcs!$A$85 -> Y | Q32: =StatisticallySignificantCalcs!$J$85 -> Y
B33: $25,000 to $34,999 | E33: =CntyDataLinkPrior10YearEstimate!$H$120 -> 22385 | F33: =CntyDataLinkPrior10YearEstimate!$I$120 -> 929 | G33: 0.09387003707 | I33: =CntyDataLinkPrior5YearEstimates!$H$120 -> 45422 | J33: =CntyDataLinkPrior5YearEstimates!$I$120 -> 1389.560002 | K33: 0.08764580459 | L33: =CntyDataLink!$H$120 -> 40061 | M33: =CntyDataLink!$I$120 -> 1260.050793 | N33: 0.07529739473 | P33: =StatisticallySignificantCalcs!$A$86 -> Y | Q33: =StatisticallySignificantCalcs!$J$86 -> Y
B34: $35,000 to $49,999 | E34: =CntyDataLinkPrior10YearEstimate!$J$120 -> 21502 | F34: =CntyDataLinkPrior10YearEstimate!$K$120 -> 904 | G34: 0.09016723418 | I34: =CntyDataLinkPrior5YearEstimates!$J$120 -> 66299 | J34: =CntyDataLinkPrior5YearEstimates!$K$120 -> 1792.630748 | K34: 0.1279298401 | L34: =CntyDataLink!$J$120 -> 56076 | M34: =CntyDataLink!$K$120 -> 1547.609124 | N34: 0.1053986847 | P34: =StatisticallySignificantCalcs!$A$87 -> Y | Q34: =StatisticallySignificantCalcs!$J$87 -> Y
B35: $50,000 to $74,999 | E35: =CntyDataLinkPrior10YearEstimate!$L$120 -> 22658 | F35: =CntyDataLinkPrior10YearEstimate!$M$120 -> 1033 | G35: 0.09501484476 | I35: =CntyDataLinkPrior5YearEstimates!$L$120 -> 95826 | J35: =CntyDataLinkPrior5YearEstimates!$M$120 -> 1920.548099 | K35: 0.184904823 | L35: =CntyDataLink!$L$120 -> 90666 | M35: =CntyDataLink!$M$120 -> 1745.049283 | N35: 0.17041296 | P35: =StatisticallySignificantCalcs!$A$88 -> Y | Q35: =StatisticallySignificantCalcs!$J$88 -> Y
B36: $75,000 to $99,999 | E36: =CntyDataLinkPrior10YearEstimate!$N$120 -> 22663 | F36: =CntyDataLinkPrior10YearEstimate!$O$120 -> 954 | G36: 0.09503581193 | I36: =CntyDataLinkPrior5YearEstimates!$N$120 -> 75345 | J36: =CntyDataLinkPrior5YearEstimates!$O$120 -> 1690 | K36: 0.1453849048 | L36: =CntyDataLink!$N$120 -> 74918 | M36: =CntyDataLink!$O$120 -> 1723 | N36: 0.1408135148 | P36: =StatisticallySignificantCalcs!$A$89 -> Y | Q36: =StatisticallySignificantCalcs!$J$89 -> Y
B37: $100,000 to $149,999 | E37: =CntyDataLinkPrior10YearEstimate!$P$120 -> 23062 | F37: =CntyDataLinkPrior10YearEstimate!$Q$120 -> 943 | G37: 0.0967089924 | I37: =CntyDataLinkPrior5YearEstimates!$P$120 -> 86267 | J37: =CntyDataLinkPrior5YearEstimates!$Q$120 -> 1783.090015 | K37: 0.166459879 | L37: =CntyDataLink!$P$120 -> 99386 | M37: =CntyDataLink!$Q$120 -> 1863.755885 | N37: 0.1868027975 | P37: =StatisticallySignificantCalcs!$A$90 -> Y | Q37: =StatisticallySignificantCalcs!$J$90 -> Y
B38: $150,000 to $199,999 | E38: =CntyDataLinkPrior10YearEstimate!$R$120 -> 21622 | F38: =CntyDataLinkPrior10YearEstimate!$S$120 -> 832 | G38: 0.09067044635 | I38: =CntyDataLinkPrior5YearEstimates!$R$120 -> 33964 | J38: =CntyDataLinkPrior5YearEstimates!$S$120 -> 1163 | K38: 0.06553657054 | L38: =CntyDataLink!$R$120 -> 48523 | M38: =CntyDataLink!$S$120 -> 1355 | N38: 0.0912023036 | P38: =StatisticallySignificantCalcs!$A$91 -> Y | Q38: =StatisticallySignificantCalcs!$J$91 -> Y
B39: Greater than $200,000 | E39: =CntyDataLinkPrior10YearEstimate!$T$120 -> 41552 | F39: =CntyDataLinkPrior10YearEstimate!$U$120 -> 1483 | G39: 0.1742456011 | I39: =CntyDataLinkPrior5YearEstimates!$T$120 -> 27577 | J39: =CntyDataLinkPrior5YearEstimates!$U$120 -> 860 | K39: 0.05321228377 | L39: =CntyDataLink!$T$120 -> 49052 | M39: =CntyDataLink!$U$120 -> 1355 | N39: 0.09219659535 | P39: =StatisticallySignificantCalcs!$A$92 -> Y | Q39: =StatisticallySignificantCalcs!$J$92 -> Y
E40: 491895 | I40: 491895
C41: Median HH Income | E41: =CntyDataLinkPrior10YearEstimate!$BV$128 -> 63033 | F41: =CntyDataLinkPrior10YearEstimate!$BW$128 -> 443 | I41: =CntyDataLinkPrior5YearEstimates!$BV$128 -> 65986 | J41: =CntyDataLinkPrior5YearEstimates!$BW$128 -> 546 | L41: =CntyDataLink!$BV$128 -> 76768 | M41: =CntyDataLink!$BW$128 -> 728
C42: HH Income in 2019 Dollars | E42: =($E$50)*E41 -> 74378.94 | I42: =($E$49)*I41 -> 70605.02
B44: ="Source: "& " "&E28&", "&I28&" and "&L28& " American Community Survey; Tables B25119; B19001" -> Source: 2005-2009, 2010-2014 and 2015-2019 American Community Survey; Tables B25119; B19001
B46: Data from the American Community Survey are estimates.
B48: CPI Adjustment Factor
B49: 2010-2014 | E49: 1.07
B50: 2005-2009 | E50: 1.18

Sheet HHIncomeByAge (hidden)
C2: =CntyDataLink!A55 -> New Hampshire
C3: INCOME CHARACTERISTICS
C21: =HHIncomeByAge!C2 -> New Hampshire | D21: Household Income in 2019
G22: Households by Age of Householder
D23: Households | E23: Margin of Error Households | G23: Under 25 | H23: Margin of Error Under 25 | J23: 25 to 44 | K23: Margin of Error 25 to 44 | M23: 45 to 64 | N23: Margin of Error 45 to 64 | P23: 65 & Over | Q23: Margin of Error 65 & Over | S23: Family Households | T23: Margin of Error Family HH | U23: Non-Family HH | V23: Margin of Error Non-Family HH
C24: Less Than $10,000 | D24: =CntyDataLink!$D$116 -> 20057 | E24: =CntyDataLink!$E$116 -> 1139 | G24: =CntyDataLink!$AN$116 -> 1834 | H24: =CntyDataLink!$AO$116 -> 376 | J24: =CntyDataLink!$BV$116 -> 4884 | K24: =CntyDataLink!$BW$116 -> 618 | M24: =CntyDataLink!$DD$116 -> 7573 | N24: =CntyDataLink!$DE$116 -> 680 | P24: =CntyDataLink!$EL$116 -> 5766 | Q24: =CntyDataLink!$EM$116 -> 517 | S24: =CntyDataLink!$D$160 -> 6794 | T24: =CntyDataLink!$E$160 -> 690 | U24: =CntyDataLink!$AN$160 -> 14856 | V24: =CntyDataLink!$AO$160 -> 899
C25: $10,000 to $14,999 | D25: =CntyDataLink!$F$116 -> 15842 | E25: =CntyDataLink!$G$116 -> 889 | G25: =CntyDataLink!$AP$116 -> 667 | H25: =CntyDataLink!$AQ$116 -> 179 | J25: =CntyDataLink!$BX$116 -> 2962 | K25: =CntyDataLink!$BY$116 -> 382 | M25: =CntyDataLink!$DF$116 -> 5078 | N25: =CntyDataLink!$DG$116 -> 561 | P25: =CntyDataLink!$EN$116 -> 7135 | Q25: =CntyDataLink!$EO$116 -> 520 | S25: =CntyDataLink!$F$160 -> 4203 | T25: =CntyDataLink!$G$160 -> 476 | U25: =CntyDataLink!$AP$160 -> 12295 | V25: =CntyDataLink!$AQ$160 -> 795
C26: $15,000 to $19,999 | D26: =CntyDataLink!$H$116 -> 18218 | E26: =CntyDataLink!$I$116 -> 879 | G26: =CntyDataLink!$AR$116 -> 705 | H26: =CntyDataLink!$AS$116 -> 226 | J26: =CntyDataLink!$BZ$116 -> 2715 | K26: =CntyDataLink!$CA$116 -> 395 | M26: =CntyDataLink!$DH$116 -> 5890 | N26: =CntyDataLink!$DI$116 -> 508 | P26: =CntyDataLink!$EP$116 -> 8908 | Q26: =CntyDataLink!$EQ$116 -> 589 | S26: =CntyDataLink!$H$160 -> 5733 | T26: =CntyDataLink!$I$160 -> 571 | U26: =CntyDataLink!$AR$160 -> 13044 | V26: =CntyDataLink!$AS$160 -> 701
C27: $20,000 to $24,999 | D27: =CntyDataLink!$J$116 -> 19238 | E27: =CntyDataLink!$K$116 -> 955 | G27: =CntyDataLink!$AT$116 -> 800 | H27: =CntyDataLink!$AU$116 -> 200 | J27: =CntyDataLink!$CB$116 -> 3684 | K27: =CntyDataLink!$CC$116 -> 446 | M27: =CntyDataLink!$DJ$116 -> 5509 | N27: =CntyDataLink!$DK$116 -> 497 | P27: =CntyDataLink!$ER$116 -> 9245 | Q27: =CntyDataLink!$ES$116 -> 600 | S27: =CntyDataLink!$J$160 -> 7213 | T27: =CntyDataLink!$K$160 -> 472 | U27: =CntyDataLink!$AT$160 -> 12992 | V27: =CntyDataLink!$AU$160 -> 845
C28: $25,000 to $29,999 | D28: =CntyDataLink!$L$116 -> 18967 | E28: =CntyDataLink!$M$116 -> 848 | G28: =CntyDataLink!$AV$116 -> 1223 | H28: =CntyDataLink!$AW$116 -> 291 | J28: =CntyDataLink!$CD$116 -> 3444 | K28: =CntyDataLink!$CE$116 -> 477 | M28: =CntyDataLink!$DL$116 -> 5259 | N28: =CntyDataLink!$DM$116 -> 448 | P28: =CntyDataLink!$ET$116 -> 9041 | Q28: =CntyDataLink!$EU$116 -> 586 | S28: =CntyDataLink!$L$160 -> 8048 | T28: =CntyDataLink!$M$160 -> 682 | U28: =CntyDataLink!$AV$160 -> 11453 | V28: =CntyDataLink!$AW$160 -> 634
C29: $30,000 to $34,999 | D29: =CntyDataLink!$N$116 -> 21094 | E29: =CntyDataLink!$O$116 -> 932 | G29: =CntyDataLink!$AX$116 -> 1295 | H29: =CntyDataLink!$AY$116 -> 317 | J29: =CntyDataLink!$CF$116 -> 5096 | K29: =CntyDataLink!$CG$116 -> 631 | M29: =CntyDataLink!$DN$116 -> 7387 | N29: =CntyDataLink!$DO$116 -> 525 | P29: =CntyDataLink!$EV$116 -> 7316 | Q29: =CntyDataLink!$EW$116 -> 552 | S29: =CntyDataLink!$N$160 -> 10006 | T29: =CntyDataLink!$O$160 -> 638 | U29: =CntyDataLink!$AX$160 -> 11793 | V29: =CntyDataLink!$AY$160 -> 716
C30: $35,000 to $39,999 | D30: =CntyDataLink!$P$116 -> 18255 | E30: =CntyDataLink!$Q$116 -> 847 | G30: =CntyDataLink!$AZ$116 -> 811 | H30: =CntyDataLink!$BA$116 -> 250 | J30: =CntyDataLink!$CH$116 -> 4568 | K30: =CntyDataLink!$CI$116 -> 487 | M30: =CntyDataLink!$DP$116 -> 5762 | N30: =CntyDataLink!$DQ$116 -> 525 | P30: =CntyDataLink!$EX$116 -> 7114 | Q30: =CntyDataLink!$EY$116 -> 447 | S30: =CntyDataLink!$P$160 -> 9066 | T30: =CntyDataLink!$Q$160 -> 531 | U30: =CntyDataLink!$AZ$160 -> 9734 | V30: =CntyDataLink!$BA$160 -> 632
C31: $40,000 to $44,999 | D31: =CntyDataLink!$R$116 -> 19242 | E31: =CntyDataLink!$S$116 -> 822 | G31: =CntyDataLink!$BB$116 -> 901 | H31: =CntyDataLink!$BC$116 -> 193 | J31: =CntyDataLink!$CJ$116 -> 4928 | K31: =CntyDataLink!$CK$116 -> 551 | M31: =CntyDataLink!$DR$116 -> 7015 | N31: =CntyDataLink!$DS$116 -> 560 | P31: =CntyDataLink!$EZ$116 -> 6398 | Q31: =CntyDataLink!$FA$116 -> 384 | S31: =CntyDataLink!$R$160 -> 10543 | T31: =CntyDataLink!$S$160 -> 580 | U31: =CntyDataLink!$BB$160 -> 9207 | V31: =CntyDataLink!$BC$160 -> 601
C32: $45,000 to $49,999 | D32: =CntyDataLink!$T$116 -> 18579 | E32: =CntyDataLink!$U$116 -> 1001 | G32: =CntyDataLink!$BD$116 -> 1080 | H32: =CntyDataLink!$BE$116 -> 291 | J32: =CntyDataLink!$CL$116 -> 4866 | K32: =CntyDataLink!$CM$116 -> 507 | M32: =CntyDataLink!$DT$116 -> 5990 | N32: =CntyDataLink!$DU$116 -> 501 | P32: =CntyDataLink!$FB$116 -> 6643 | Q32: =CntyDataLink!$FC$116 -> 477 | S32: =CntyDataLink!$T$160 -> 10782 | T32: =CntyDataLink!$U$160 -> 692 | U32: =CntyDataLink!$BD$160 -> 7750 | V32: =CntyDataLink!$BE$160 -> 706
C33: $50,000 to $59,999 | D33: =CntyDataLink!$V$116 -> 37813 | E33: =CntyDataLink!$W$116 -> 1154 | G33: =CntyDataLink!$BF$116 -> 1271 | H33: =CntyDataLink!$BG$116 -> 248 | J33: =CntyDataLink!$CN$116 -> 10458 | K33: =CntyDataLink!$CO$116 -> 685 | M33: =CntyDataLink!$DV$116 -> 13791 | N33: =CntyDataLink!$DW$116 -> 889 | P33: =CntyDataLink!$FD$116 -> 12293 | Q33: =CntyDataLink!$FE$116 -> 553 | S33: =CntyDataLink!$V$160 -> 22821 | T33: =CntyDataLink!$W$160 -> 923 | U33: =CntyDataLink!$BF$160 -> 15396 | V33: =CntyDataLink!$BG$160 -> 812
C34: $60,000 to $74,999 | D34: =CntyDataLink!$X$116 -> 52853 | E34: =CntyDataLink!$Y$116 -> 1309 | G34: =CntyDataLink!$BH$116 -> 1946 | H34: =CntyDataLink!$BI$116 -> 351 | J34: =CntyDataLink!$CP$116 -> 16376 | K34: =CntyDataLink!$CQ$116 -> 899 | M34: =CntyDataLink!$DX$116 -> 19982 | N34: =CntyDataLink!$DY$116 -> 913 | P34: =CntyDataLink!$FF$116 -> 14549 | Q34: =CntyDataLink!$FG$116 -> 647 | S34: =CntyDataLink!$X$160 -> 34622 | T34: =CntyDataLink!$Y$160 -> 1106 | U34: =CntyDataLink!$BH$160 -> 17877 | V34: =CntyDataLink!$BI$160 -> 804
C35: $75,000 to $99,999 | D35: =CntyDataLink!$Z$116 -> 74918 | E35: =CntyDataLink!$AA$116 -> 1723 | G35: =CntyDataLink!$BJ$116 -> 1980 | H35: =CntyDataLink!$BK$116 -> 303 | J35: =CntyDataLink!$CR$116 -> 24700 | K35: =CntyDataLink!$CS$116 -> 1140 | M35: =CntyDataLink!$DZ$116 -> 31708 | N35: =CntyDataLink!$EA$116 -> 1154 | P35: =CntyDataLink!$FH$116 -> 16530 | Q35: =CntyDataLink!$FI$116 -> 665 | S35: =CntyDataLink!$Z$160 -> 54815 | T35: =CntyDataLink!$AA$160 -> 1477 | U35: =CntyDataLink!$BJ$160 -> 18939 | V35: =CntyDataLink!$BK$160 -> 921
C36: $100,000 to $124,999 | D36: =CntyDataLink!$AB$116 -> 59506 | E36: =CntyDataLink!$AC$116 -> 1365 | G36: =CntyDataLink!$BL$116 -> 842 | H36: =CntyDataLink!$BM$116 -> 266 | J36: =CntyDataLink!$CT$116 -> 20291 | K36: =CntyDataLink!$CU$116 -> 937 | M36: =CntyDataLink!$EB$116 -> 27968 | N36: =CntyDataLink!$EC$116 -> 956 | P36: =CntyDataLink!$FJ$116 -> 10405 | Q36: =CntyDataLink!$FK$116 -> 490 | S36: =CntyDataLink!$AB$160 -> 47334 | T36: =CntyDataLink!$AC$160 -> 1267 | U36: =CntyDataLink!$BL$160 -> 11254 | V36: =CntyDataLink!$BM$160 -> 646
C37: $125,000 to $149,999 | D37: =CntyDataLink!$AD$116 -> 39880 | E37: =CntyDataLink!$AE$116 -> 1269 | G37: =CntyDataLink!$BN$116 -> 379 | H37: =CntyDataLink!$BO$116 -> 131 | J37: =CntyDataLink!$CV$116 -> 12365 | K37: =CntyDataLink!$CW$116 -> 668 | M37: =CntyDataLink!$ED$116 -> 20782 | N37: =CntyDataLink!$EE$116 -> 945 | P37: =CntyDataLink!$FL$116 -> 6354 | Q37: =CntyDataLink!$FM$116 -> 558 | S37: =CntyDataLink!$AD$160 -> 33539 | T37: =CntyDataLink!$AE$160 -> 1205 | U37: =CntyDataLink!$BN$160 -> 5497 | V37: =CntyDataLink!$BO$160 -> 546
C38: $150,000 to $199,999 | D38: =CntyDataLink!$AF$116 -> 48523 | E38: =CntyDataLink!$AG$116 -> 1355 | G38: =CntyDataLink!$BP$116 -> 170 | H38: =CntyDataLink!$BQ$116 -> 81 | J38: =CntyDataLink!$CX$116 -> 14656 | K38: =CntyDataLink!$CY$116 -> 886 | M38: =CntyDataLink!$EF$116 -> 26860 | N38: =CntyDataLink!$EG$116 -> 969 | P38: =CntyDataLink!$FN$116 -> 6837 | Q38: =CntyDataLink!$FO$116 -> 559 | S38: =CntyDataLink!$AF$160 -> 41559 | T38: =CntyDataLink!$AG$160 -> 1186 | U38: =CntyDataLink!$BP$160 -> 5393 | V38: =CntyDataLink!$BQ$160 -> 446
C39: $200,000 or More | D39: =CntyDataLink!$AH$116 -> 49052 | E39: =CntyDataLink!$AI$116 -> 1355 | G39: =CntyDataLink!$BR$116 -> 169 | H39: =CntyDataLink!$BS$116 -> 121 | J39: =CntyDataLink!$CZ$116 -> 11474 | K39: =CntyDataLink!$DA$116 -> 712 | M39: =CntyDataLink!$EH$116 -> 30315 | N39: =CntyDataLink!$EI$116 -> 1057 | P39: =CntyDataLink!$FP$116 -> 7094 | Q39: =CntyDataLink!$FQ$116 -> 523 | S39: =CntyDataLink!$AH$160 -> 42589 | T39: =CntyDataLink!$AI$160 -> 1294 | U39: =CntyDataLink!$BR$160 -> 4890 | V39: =CntyDataLink!$BS$160 -> 401
C41: Total Households | D41: =CntyDataLink!$B$116 -> 532037 | E41: =CntyDataLink!$C$116 -> 2311 | G41: =CntyDataLink!$AL$116 -> 16073 | H41: =CntyDataLink!$AM$116 -> 833 | J41: =CntyDataLink!$BT$116 -> 147467 | K41: =CntyDataLink!$BU$116 -> 1489 | M41: =CntyDataLink!$DB$116 -> 226869 | N41: =CntyDataLink!$DC$116 -> 1460 | P41: =CntyDataLink!$EJ$116 -> 141628 | Q41: =CntyDataLink!$EK$116 -> 1351 | S41: =CntyDataLink!$B$160 -> 349667 | T41: =CntyDataLink!$C$160 -> 2360 | U41: =CntyDataLink!$AL$160 -> 182370 | V41: =CntyDataLink!$AM$160 -> 2273
C42: Median Household Inc | D42: =CntyDataLink!$FR$116 -> 76768 | E42: =CntyDataLink!$FS$116 -> 728 | G42: =CntyDataLink!$FT$116 -> 43587 | H42: =CntyDataLink!$FU$116 -> 3422 | J42: =CntyDataLink!$FV$116 -> 84505 | K42: =CntyDataLink!$FW$116 -> 1696 | M42: =CntyDataLink!$FX$116 -> 93534 | N42: =CntyDataLink!$FY$116 -> 1328 | P42: =CntyDataLink!$FZ$116 -> 52271 | Q42: =CntyDataLink!$GA$116 -> 759 | S42: =CntyDataLink!$AJ$160 -> 95244 | T42: =CntyDataLink!$AK$160 -> 684 | U42: =CntyDataLink!BT$160 -> 39721 | V42: =CntyDataLink!$BU$160 -> 808
C44: Source: 2015-2019 American Community Survey Table B19001; B19037; B19101; B19102; B19112; B19113; B19049
C45: Data from the American Community Survey are estimates
C47: =C2 -> New Hampshire
C48: INCOME CHARACTERISTICS
C80: Source: 2015-2019 American Community Survey Table B19001; Table B19102 | P80: Data from the American Community Survey are estimates

Sheet HHIncomeByTenure (hidden)
D2: =CntyDataLink!A80 -> New Hampshire
D3: INCOME CHARACTERISTICS
D28: =D2 -> New Hampshire
D29: Household Income By Tenure
F30: 2018 Household Income 1 | H30: Occupied Housing Units | I30: Margin of Error Occupied Housing Units | J30: Owner Occupied Housing Units | K30: Margin of Error Owner Occupied Housing Units | L30: Renter Occupied Housing Units | M30: Margin of Error Renter Occupied Housing Units
F32: Total | H32: =CntyDataLink!$B$128 -> 532037 | I32: =CntyDataLink!$C$128 -> 2311 | J32: =CntyDataLink!$D$128 -> 378178 | K32: =CntyDataLink!$E$128 -> 2687 | L32: =CntyDataLink!$AB$128 -> 153859 | M32: =CntyDataLink!$AC$128 -> 2373
D33: 4999 | E33: =VALUE(RIGHT(F33,7)) -> 5000 | F33: Less Than $5,000 | H33: =CntyDataLink!$AZ$128 -> 10079 | I33: =CntyDataLink!$BA$128 -> 651.4483863 | J33: =CntyDataLink!$F$128 -> 4235 | K33: =CntyDataLink!$G$128 -> 449 | L33: =CntyDataLink!$AD$128 -> 5844 | M33: =CntyDataLink!$AE$128 -> 472
C34: =VALUE(RIGHT($F33,7)) -> 5000 | D34: 4999 | E34: 10000 | F34: $5,000 to $10,000 | H34: =CntyDataLink!$BB$128 -> 9978 | I34: =CntyDataLink!$BC$128 -> 739.1914502 | J34: =CntyDataLink!$H$128 -> 2953 | K34: =CntyDataLink!$I$128 -> 352 | L34: =CntyDataLink!$AF$128 -> 7025 | M34: =CntyDataLink!$AG$128 -> 650
C35: 10000 | D35: 4999 | E35: 15000 | F35: $10,000 to $15,000 | H35: =CntyDataLink!$BD$128 -> 15842 | I35: =CntyDataLink!$BE$128 -> 887.373653 | J35: =CntyDataLink!$J$128 -> 5660 | K35: =CntyDataLink!$K$128 -> 434 | L35: =CntyDataLink!$AH$128 -> 10182 | M35: =CntyDataLink!$AI$128 -> 774
C36: 15000 | D36: 4999 | E36: 20000 | F36: $15,000 to $20,000 | H36: =CntyDataLink!$BF$128 -> 18218 | I36: =CntyDataLink!$BG$128 -> 937.3073135 | J36: =CntyDataLink!$L$128 -> 7823 | K36: =CntyDataLink!$M$128 -> 543 | L36: =CntyDataLink!$AJ$128 -> 10395 | M36: =CntyDataLink!$AK$128 -> 764
C37: 20000 | D37: 4999 | E37: 25000 | F37: $20,000 to $25,000 | H37: =CntyDataLink!$BH$128 -> 19238 | I37: =CntyDataLink!$BI$128 -> 970.3221115 | J37: =CntyDataLink!$N$128 -> 9218 | K37: =CntyDataLink!$O$128 -> 602 | L37: =CntyDataLink!$AL$128 -> 10020 | M37: =CntyDataLink!$AM$128 -> 761
C38: 25000 | D38: 9999 | E38: 35000 | F38: $25,000 to $35,000 | H38: =CntyDataLink!$BJ$128 -> 40061 | I38: =CntyDataLink!$BK$128 -> 1272.286917 | J38: =CntyDataLink!$P$128 -> 20804 | K38: =CntyDataLink!$Q$128 -> 865 | L38: =CntyDataLink!$AN$128 -> 19257 | M38: =CntyDataLink!$AO$128 -> 933
C39: 35000 | D39: 14999 | E39: 50000 | F39: $35,000 to $50,000 | H39: =CntyDataLink!$BL$128 -> 56076 | I39: =CntyDataLink!$BM$128 -> 1571.719122 | J39: =CntyDataLink!$R$128 -> 32984 | K39: =CntyDataLink!$S$128 -> 1174 | L39: =CntyDataLink!$AP$128 -> 23092 | M39: =CntyDataLink!$AQ$128 -> 1045
C40: 50000 | D40: 24999 | E40: 75000 | F40: $50,000 to $75,000 | H40: =CntyDataLink!$BN$128 -> 90666 | I40: =CntyDataLink!$BO$128 -> 1766.361798 | J40: =CntyDataLink!$T$128 -> 60786 | K40: =CntyDataLink!$U$128 -> 1245 | L40: =CntyDataLink!$AR$128 -> 29880 | M40: =CntyDataLink!$AS$128 -> 1253
C41: 75000 | D41: 24999 | E41: 100000 | F41: $75,000 to $100,000 | H41: =CntyDataLink!$BP$128 -> 74918 | I41: =CntyDataLink!$BQ$128 -> 1743.501075 | J41: =CntyDataLink!$V$128 -> 56886 | K41: =CntyDataLink!$W$128 -> 1414 | L41: =CntyDataLink!$AT$128 -> 18032 | M41: =CntyDataLink!$AU$128 -> 1020
C42: 100000 | D42: 49999 | E42: 150000 | F42: $100,000 to $150,000 | H42: =CntyDataLink!$BR$128 -> 99386 | I42: =CntyDataLink!$BS$128 -> 1899.885523 | J42: =CntyDataLink!$X$128 -> 85772 | K42: =CntyDataLink!$Y$128 -> 1678 | L42: =CntyDataLink!$AV$128 -> 13614 | M42: =CntyDataLink!$AW$128 -> 891
C43: 150000 | F43: $150,000 and More | H43: =CntyDataLink!$BT$128 -> 97575 | I43: =CntyDataLink!$BU$128 -> 1544.694468 | J43: =CntyDataLink!$Z$128 -> 91057 | K43: =CntyDataLink!$AA$128 -> 1440 | L43: =CntyDataLink!$AX$128 -> 6518 | M43: =CntyDataLink!$AY$128 -> 559
F46: Median Household Income 2 | H46: =CntyDataLink!$BV$128 -> 76768 | I46: =CntyDataLink!$BW$128 -> 728 | J46: =CntyDataLink!$BX$128 -> 94343 | K46: =CntyDataLink!$BY$128 -> 897 | L46: =CntyDataLink!$BZ$128 -> 44060 | M46: =CntyDataLink!$CA$128 -> 1134
F49: Data from the American Community Survey are estimates
D51: Source: | E51: 1 | F51: 2015-2019 American Community Survey Table B25119; 2019 Inflation Adjusted dollars
E52: 2 | F52: 2015-2019 American Community Survey Table B25119; 2019 Inflation Adjusted dollars
D56: HOUSEHOLD INCOME IN THE PAST 12 MONTHS BY PERCENT OF MEDIAN THRESHOLD
D59: All Occupied Housing Units | I59: Owner Occupied Households | N59: Renter Occupied Households
D61: HOUSEHOLD INCOME | F61: Estimate | G61: Margin Of Error | I61: HOUSEHOLD INCOME | K61: Estimate | L61: Margin Of Error | N61: HOUSEHOLD INCOME | P61: Estimate | Q61: Margin Of Error
C62: =$H$46*0.3 -> 23030.4 | D62: 30% of Median Household Income | F62: =IF($C$62<$C$36,((($C$62-$C$35)/$D$35)*$H$35)+SUM($H$33:$H$34),IF($C$62<$C$37,((($C$62-$C$36)/$D$36)*$H$36)+SUM($H$33:$H$35),IF($C$62<$C$38,((($C$62-$C$37)/$D$37)*$H$37)+SUM($H$33:$H$36),IF($C$62<$C$39,((($C$62-$C$38)/$D$38)*$H$38)+SUM($H$33:$H$37),IF($C$62<$C$40,((($C$62-$C$39)/$D$39)*$H$39)+SUM($H$33:$H$38),IF($C$62<$C$41,((($C$62-$C$40)/$D$40)*$H$40)+SUM($H$33:$H$39),IF($C$62<$C$42,((($C$62-$C$41)/$D$41)*$H$41)+SUM($H$33:$H$40),"False"))))))) -> 65779.09946 | G62: =IF($C$62<$C$36,((($C$62-$C$35)/$D$35)*$I$35)+SQRT(SUM(($I$33^2),($I$34^2))),IF($C$62<$C$37,((($C$62-$C$36)/$D$36)*$I$36)+SQRT(SUM(($I$33^2),($I$34^2),($I$35^2))),IF($C$62<$C$38,((($C$62-$C$37)/$D$37)*$I$37)+SQRT(SUM(($I$33^2),($I$34^2),($I$35^2),($I$36^2))),IF($C$62<$C$39,((($C$62-$C$38)/$D$38)*$I$38)+SQRT(SUM(($I$33^2),($I$34^2),($I$35^2),($I$36^2),($I$37^2))),IF($C$62<$C$40,((($C$62-$C$39)/$D$39)*$I$39)+SQRT(SUM(($I$33^2),($I$34^2),($I$35^2),($I$36^2),($I$37^2),($I$38^2))),IF($C$62<$C$41,((($C$62-$C$40)/$D$40)*$I$40)+SQRT(SUM(($I$33^2),($I$34^2),($I$35^2),($I$36^2),($I$37^2),($I$38^2),($I$39^2))),IF($C$62<$C$42,((($C$62-$C$41)/$D$41)*$I$41)+SQRT((($I$33^2)+($I$34^2)+($I$35^2)+($I$36^2)+($I$37^2)+($I$38^2)+($I$39^2)+($I$40^2))),"False"))))))) -> 2212.022649 | H62: =$J$46*0.3 -> 28302.9 | I62: 30% of Median Household Income | K62: =IF($H$62<$C$36,((($H$62-$C$35)/$D$35)*$J$35)+SUM($J$33:$J$34),IF($H$62<$C$37,((($H$62-$C$36)/$D$36)*$J$36)+SUM($J$33:$J$35),IF($H$62<$C$38,((($H$62-$C$37)/$D$37)*$J$37)+SUM($J$33:$J$36),IF($H$62<$C$39,((($H$62-$C$38)/$D$38)*$J$38)+SUM($J$33:$J$37),IF($H$62<$C$40,((($H$62-$C$39)/$D$39)*$J$39)+SUM($J$33:$J$38),IF($H$62<$C$41,((($H$62-$C$40)/$D$40)*$J$40)+SUM($J$33:$J$39),IF($H$62<$C$42,((($H$62-$C$41)/$D$41)*$J$41)+SUM($J$33:$J$40),"False"))))))) -> 36761.04036 | L62: =IF($H$62<$C$36,((($H$62-$C$35)/$D$35)*$K$35)+SQRT(SUM(($K$33^2),($K$34^2))),IF($H$62<$C$37,((($H$62-$C$36)/$D$36)*$K$36)+SQRT(SUM(($K$33^2),($K$34^2),($K$35^2))),IF($H$62<$C$38,((($H$62-$C$37)/$D$37)*$K$37)+SQRT(SUM(($K$33^2),($K$34^2),($K$35^2),($K$36^2))),IF($H$62<$C$39,((($H$62-$C$38)/$D$38)*$K$38)+SQRT(SUM(($K$33^2),($K$34^2),($K$35^2),($K$36^2),($K$37^2))),IF($H$62<$C$40,((($H$62-$C$39)/$D$39)*$K$39)+SQRT(SUM(($K$33^2),($K$34^2),($K$35^2),($K$36^2),($K$37^2),($K$38^2))),IF($H$62<$C$41,((($H$62-$C$40)/$D$40)*$K$40)+SQRT(SUM(($K$33^2),($K$34^2),($K$35^2),($K$36^2),($K$37^2),($K$38^2),($K$39^2))),IF($H$62<$C$42,((($H$62-$C$41)/$D$41)*$K$41)+SQRT((($K$33^2)+($K$34^2)+($K$35^2)+($K$36^2)+($K$37^2)+($K$38^2)+($K$39^2)+($K$40^2))),"False"))))))) -> 1367.90963 | M62: =$L$46*0.3 -> 13218 | N62: 30% of Median Household Income | P62: =IF($M$62<$C$36,((($M$62-$C$35)/$D$35)*$L$35)+SUM($L$33:$L$34),IF($M$62<$C$37,((($M$62-$C$36)/$D$36)*$L$36)+SUM($L$33:$L$35),IF($M$62<$C$38,((($M$62-$C$37)/$D$37)*$L$37)+SUM($L$33:$L$36),IF($M$62<$C$39,((($M$62-$C$38)/$D$38)*$L$38)+SUM($L$33:$L$37),IF($M$62<$C$40,((($M$62-$C$39)/$D$39)*$L$39)+SUM($L$33:$L$38),IF($M$62<$C$41,((($M$62-$C$40)/$D$40)*$L$40)+SUM($L$33:$L$39),IF($M$62<$C$42,((($M$62-$C$41)/$D$41)*$L$41)+SUM($L$33:$L$40),"False"))))))) -> 19423.44609 | Q62: =IF($M$62<$C$36,((($M$62-$C$35)/$D$35)*$M$35)+SQRT(SUM(($M$33^2),($M$34^2))),IF($M$62<$C$37,((($M$62-$C$36)/$D$36)*$M$36)+SQRT(SUM(($M$33^2),($M$34^2),($M$35^2))),IF($M$62<$C$38,((($M$62-$C$37)/$D$37)*$M$37)+SQRT(SUM(($M$33^2),($M$34^2),($M$35^2),($M$36^2))),IF($M$62<$C$39,((($M$62-$C$38)/$D$38)*$M$38)+SQRT(SUM(($M$33^2),($M$34^2),($M$35^2),($M$36^2),($M$37^2))),IF($M$62<$C$40,((($M$62-$C$39)/$D$39)*$M$39)+SQRT(SUM(($M$33^2),($M$34^2),($M$35^2),($M$36^2),($M$37^2),($M$38^2))),IF($M$62<$C$41,((($M$62-$C$40)/$D$40)*$M$40)+SQRT(SUM(($M$33^2),($M$34^2),($M$35^2),($M$36^2),($M$37^2),($M$38^2),($M$39^2))),IF($M$62<$C$42,((($M$62-$C$41)/$D$41)*$M$41)+SQRT((($M$33^2)+($M$34^2)+($M$35^2)+($M$36^2)+($M$37^2)+($M$38^2)+($M$39^2)+($M$40^2))),"False"))))))) -> 1301.541761
A63: 490 | C63: =$H$46*0.5 -> 38384 | D63: 50% of Median Household Income | F63: =IF($C$63<$C$36,((($C$63-$C$35)/$D$35)*$H$35)+SUM($H$33:$H$34),IF($C$63<$C$37,((($C$63-$C$36)/$D$36)*$H$36)+SUM($H$33:$H$35),IF($C$63<$C$38,((($C$63-$C$37)/$D$37)*$H$37)+SUM($H$33:$H$36),IF($C$63<$C$39,((($C$63-$C$38)/$D$38)*$H$38)+SUM($H$33:$H$37),IF($C$63<$C$40,((($C$63-$C$39)/$D$39)*$H$39)+SUM($H$33:$H$38),IF($C$63<$C$41,((($C$63-$C$40)/$D$40)*$H$40)+SUM($H$33:$H$39),IF($C$63<$C$42,((($C$63-$C$41)/$D$41)*$H$41)+SUM($H$33:$H$40),"False"))))))) -> 126067.589 | G63: =IF($C$63<$C$36,((($C$63-$C$35)/$D$35)*$I$35)+SQRT(SUM(($I$33^2),($I$34^2))),IF($C$63<$C$37,((($C$63-$C$36)/$D$36)*$I$36)+SQRT(SUM(($I$33^2),($I$34^2),($I$35^2))),IF($C$63<$C$38,((($C$63-$C$37)/$D$37)*$I$37)+SQRT(SUM(($I$33^2),($I$34^2),($I$35^2),($I$36^2))),IF($C$63<$C$39,((($C$63-$C$38)/$D$38)*$I$38)+SQRT(SUM(($I$33^2),($I$34^2),($I$35^2),($I$36^2),($I$37^2))),IF($C$63<$C$40,((($C$63-$C$39)/$D$39)*$I$39)+SQRT(SUM(($I$33^2),($I$34^2),($I$35^2),($I$36^2),($I$37^2),($I$38^2))),IF($C$63<$C$41,((($C$63-$C$40)/$D$40)*$I$40)+SQRT(SUM(($I$33^2),($I$34^2),($I$35^2),($I$36^2),($I$37^2),($I$38^2),($I$39^2))),IF($C$63<$C$42,((($C$63-$C$41)/$D$41)*$I$41)+SQRT((($I$33^2)+($I$34^2)+($I$35^2)+($I$36^2)+($I$37^2)+($I$38^2)+($I$39^2)+($I$40^2))),"False"))))))) -> 2634.297533 | H63: =$J$46*0.5 -> 47171.5 | I63: 50% of Median Household Income | K63: =IF($H$63<$C$36,((($H$63-$C$35)/$D$35)*$J$35)+SUM($J$33:$J$34),IF($H$63<$C$37,((($H$63-$C$36)/$D$36)*$J$36)+SUM($J$33:$J$35),IF($H$63<$C$38,((($H$63-$C$37)/$D$37)*$J$37)+SUM($J$33:$J$36),IF($H$63<$C$39,((($H$63-$C$38)/$D$38)*$J$38)+SUM($J$33:$J$37),IF($H$63<$C$40,((($H$63-$C$39)/$D$39)*$J$39)+SUM($J$33:$J$38),IF($H$63<$C$41,((($H$63-$C$40)/$D$40)*$J$40)+SUM($J$33:$J$39),IF($H$63<$C$42,((($H$63-$C$41)/$D$41)*$J$41)+SUM($J$33:$J$40),"False"))))))) -> 77459.10147 | L63: =IF($H$63<$C$36,((($H$63-$C$35)/$D$35)*$K$35)+SQRT(SUM(($K$33^2),($K$34^2))),IF($H$63<$C$37,((($H$63-$C$36)/$D$36)*$K$36)+SQRT(SUM(($K$33^2),($K$34^2),($K$35^2))),IF($H$63<$C$38,((($H$63-$C$37)/$D$37)*$K$37)+SQRT(SUM(($K$33^2),($K$34^2),($K$35^2),($K$36^2))),IF($H$63<$C$39,((($H$63-$C$38)/$D$38)*$K$38)+SQRT(SUM(($K$33^2),($K$34^2),($K$35^2),($K$36^2),($K$37^2))),IF($H$63<$C$40,((($H$63-$C$39)/$D$39)*$K$39)+SQRT(SUM(($K$33^2),($K$34^2),($K$35^2),($K$36^2),($K$37^2),($K$38^2))),IF($H$63<$C$41,((($H$63-$C$40)/$D$40)*$K$40)+SQRT(SUM(($K$33^2),($K$34^2),($K$35^2),($K$36^2),($K$37^2),($K$38^2),($K$39^2))),IF($H$63<$C$42,((($H$63-$C$41)/$D$41)*$K$41)+SQRT((($K$33^2)+($K$34^2)+($K$35^2)+($K$36^2)+($K$37^2)+($K$38^2)+($K$39^2)+($K$40^2))),"False"))))))) -> 2338.088353 | M63: =$L$46*0.5 -> 22030 | N63: 50% of Median Household Income | P63: =IF($M$63<$C$36,((($M$63-$C$35)/$D$35)*$L$35)+SUM($L$33:$L$34),IF($M$63<$C$37,((($M$63-$C$36)/$D$36)*$L$36)+SUM($L$33:$L$35),IF($M$63<$C$38,((($M$63-$C$37)/$D$37)*$L$37)+SUM($L$33:$L$36),IF($M$63<$C$39,((($M$63-$C$38)/$D$38)*$L$38)+SUM($L$33:$L$37),IF($M$63<$C$40,((($M$63-$C$39)/$D$39)*$L$39)+SUM($L$33:$L$38),IF($M$63<$C$41,((($M$63-$C$40)/$D$40)*$L$40)+SUM($L$33:$L$39),IF($M$63<$C$42,((($M$63-$C$41)/$D$41)*$L$41)+SUM($L$33:$L$40),"False"))))))) -> 37514.93379 | Q63: =IF($M$63<$C$36,((($M$63-$C$35)/$D$35)*$M$35)+SQRT(SUM(($M$33^2),($M$34^2))),IF($M$63<$C$37,((($M$63-$C$36)/$D$36)*$M$36)+SQRT(SUM(($M$33^2),($M$34^2),($M$35^2))),IF($M$63<$C$38,((($M$63-$C$37)/$D$37)*$M$37)+SQRT(SUM(($M$33^2),($M$34^2),($M$35^2),($M$36^2))),IF($M$63<$C$39,((($M$63-$C$38)/$D$38)*$M$38)+SQRT(SUM(($M$33^2),($M$34^2),($M$35^2),($M$36^2),($M$37^2))),IF($M$63<$C$40,((($M$63-$C$39)/$D$39)*$M$39)+SQRT(SUM(($M$33^2),($M$34^2),($M$35^2),($M$36^2),($M$37^2),($M$38^2))),IF($M$63<$C$41,((($M$63-$C$40)/$D$40)*$M$40)+SQRT(SUM(($M$33^2),($M$34^2),($M$35^2),($M$36^2),($M$37^2),($M$38^2),($M$39^2))),IF($M$63<$C$42,((($M$63-$C$41)/$D$41)*$M$41)+SQRT((($M$33^2)+($M$34^2)+($M$35^2)+($M$36^2)+($M$37^2)+($M$38^2)+($M$39^2)+($M$40^2))),"False"))))))) -> 1661.084017
C64: =$H$46*0.8 -> 61414.4 | D64: 80% of Median Household Income | F64: =IF($C$64<$C$36,((($C$64-$C$35)/$D$35)*$H$35)+SUM($H$33:$H$34),IF($C$64<$C$37,((($C$64-$C$36)/$D$36)*$H$36)+SUM($H$33:$H$35),IF($C$64<$C$38,((($C$64-$C$37)/$D$37)*$H$37)+SUM($H$33:$H$36),IF($C$64<$C$39,((($C$64-$C$38)/$D$38)*$H$38)+SUM($H$33:$H$37),IF($C$64<$C$40,((($C$64-$C$39)/$D$39)*$H$39)+SUM($H$33:$H$38),IF($C$64<$C$41,((($C$64-$C$40)/$D$40)*$H$40)+SUM($H$33:$H$39),IF($C$64<$C$42,((($C$64-$C$41)/$D$41)*$H$41)+SUM($H$33:$H$40),"False"))))))) -> 210889.5755 | G64: =IF($C$64<$C$36,((($C$64-$C$35)/$D$35)*$I$35)+SQRT(SUM(($I$33^2),($I$34^2))),IF($C$64<$C$37,((($C$64-$C$36)/$D$36)*$I$36)+SQRT(SUM(($I$33^2),($I$34^2),($I$35^2))),IF($C$64<$C$38,((($C$64-$C$37)/$D$37)*$I$37)+SQRT(SUM(($I$33^2),($I$34^2),($I$35^2),($I$36^2))),IF($C$64<$C$39,((($C$64-$C$38)/$D$38)*$I$38)+SQRT(SUM(($I$33^2),($I$34^2),($I$35^2),($I$36^2),($I$37^2))),IF($C$64<$C$40,((($C$64-$C$39)/$D$39)*$I$39)+SQRT(SUM(($I$33^2),($I$34^2),($I$35^2),($I$36^2),($I$37^2),($I$38^2))),IF($C$64<$C$41,((($C$64-$C$40)/$D$40)*$I$40)+SQRT(SUM(($I$33^2),($I$34^2),($I$35^2),($I$36^2),($I$37^2),($I$38^2),($I$39^2))),IF($C$64<$C$42,((($C$64-$C$41)/$D$41)*$I$41)+SQRT((($I$33^2)+($I$34^2)+($I$35^2)+($I$36^2)+($I$37^2)+($I$38^2)+($I$39^2)+($I$40^2))),"False"))))))) -> 3575.500733 | H64: =$J$46*0.8 -> 75474.4 | I64: 80% of Median Household Income | K64: =IF($H$64<$C$36,((($H$64-$C$35)/$D$35)*$J$35)+SUM($J$33:$J$34),IF($H$64<$C$37,((($H$64-$C$36)/$D$36)*$J$36)+SUM($J$33:$J$35),IF($H$64<$C$38,((($H$64-$C$37)/$D$37)*$J$37)+SUM($J$33:$J$36),IF($H$64<$C$39,((($H$64-$C$38)/$D$38)*$J$38)+SUM($J$33:$J$37),IF($H$64<$C$40,((($H$64-$C$39)/$D$39)*$J$39)+SUM($J$33:$J$38),IF($H$64<$C$41,((($H$64-$C$40)/$D$40)*$J$40)+SUM($J$33:$J$39),IF($H$64<$C$42,((($H$64-$C$41)/$D$41)*$J$41)+SUM($J$33:$J$40),"False"))))))) -> 145542.5119 | L64: =IF($H$64<$C$36,((($H$64-$C$35)/$D$35)*$K$35)+SQRT(SUM(($K$33^2),($K$34^2))),IF($H$64<$C$37,((($H$64-$C$36)/$D$36)*$K$36)+SQRT(SUM(($K$33^2),($K$34^2),($K$35^2))),IF($H$64<$C$38,((($H$64-$C$37)/$D$37)*$K$37)+SQRT(SUM(($K$33^2),($K$34^2),($K$35^2),($K$36^2))),IF($H$64<$C$39,((($H$64-$C$38)/$D$38)*$K$38)+SQRT(SUM(($K$33^2),($K$34^2),($K$35^2),($K$36^2),($K$37^2))),IF($H$64<$C$40,((($H$64-$C$39)/$D$39)*$K$39)+SQRT(SUM(($K$33^2),($K$34^2),($K$35^2),($K$36^2),($K$37^2),($K$38^2))),IF($H$64<$C$41,((($H$64-$C$40)/$D$40)*$K$40)+SQRT(SUM(($K$33^2),($K$34^2),($K$35^2),($K$36^2),($K$37^2),($K$38^2),($K$39^2))),IF($H$64<$C$42,((($H$64-$C$41)/$D$41)*$K$41)+SQRT((($K$33^2)+($K$34^2)+($K$35^2)+($K$36^2)+($K$37^2)+($K$38^2)+($K$39^2)+($K$40^2))),"False"))))))) -> 2228.568816 | M64: =$L$46*0.8 -> 35248 | N64: 80% of Median Household Income | P64: =IF($M$64<$C$36,((($M$64-$C$35)/$D$35)*$L$35)+SUM($L$33:$L$34),IF($M$64<$C$37,((($M$64-$C$36)/$D$36)*$L$36)+SUM($L$33:$L$35),IF($M$64<$C$38,((($M$64-$C$37)/$D$37)*$L$37)+SUM($L$33:$L$36),IF($M$64<$C$39,((($M$64-$C$38)/$D$38)*$L$38)+SUM($L$33:$L$37),IF($M$64<$C$40,((($M$64-$C$39)/$D$39)*$L$39)+SUM($L$33:$L$38),IF($M$64<$C$41,((($M$64-$C$40)/$D$40)*$L$40)+SUM($L$33:$L$39),IF($M$64<$C$42,((($M$64-$C$41)/$D$41)*$L$41)+SUM($L$33:$L$40),"False"))))))) -> 63104.81319 | Q64: =IF($M$64<$C$36,((($M$64-$C$35)/$D$35)*$M$35)+SQRT(SUM(($M$33^2),($M$34^2))),IF($M$64<$C$37,((($M$64-$C$36)/$D$36)*$M$36)+SQRT(SUM(($M$33^2),($M$34^2),($M$35^2))),IF($M$64<$C$38,((($M$64-$C$37)/$D$37)*$M$37)+SQRT(SUM(($M$33^2),($M$34^2),($M$35^2),($M$36^2))),IF($M$64<$C$39,((($M$64-$C$38)/$D$38)*$M$38)+SQRT(SUM(($M$33^2),($M$34^2),($M$35^2),($M$36^2),($M$37^2))),IF($M$64<$C$40,((($M$64-$C$39)/$D$39)*$M$39)+SQRT(SUM(($M$33^2),($M$34^2),($M$35^2),($M$36^2),($M$37^2),($M$38^2))),IF($M$64<$C$41,((($M$64-$C$40)/$D$40)*$M$40)+SQRT(SUM(($M$33^2),($M$34^2),($M$35^2),($M$36^2),($M$37^2),($M$38^2),($M$39^2))),IF($M$64<$C$42,((($M$64-$C$41)/$D$41)*$M$41)+SQRT((($M$33^2)+($M$34^2)+($M$35^2)+($M$36^2)+($M$37^2)+($M$38^2)+($M$39^2)+($M$40^2))),"False"))))))) -> 1827.71103

Sheet ACS_Source_Table_List (hidden)
A2: ACS Table B01001 | B2: x
A3: ACS Table B01002 | B3: x
A4: ACS Table B03002 | B4: x
A5: ACS Table B05002 | B5: x
A6: ACS Table B07003 | B6: x | C6: Replaces C07001
A7: ACS Table B11001 | B7: x
A8: ACS Table B11002 | B8: x
A9: ACS Table B14001 & B15002 | B9: x | C9: Replaces C15002
A10: ACS Table B17001 | B10: x
A11: ACS Table B17010 | B11: x | C11: Replaces C17010 | D11: Poverty Status by family type
A12: ACS Table B17017 | B12: x | C12: Replaces C17017 | D12: Poverty Status by HH type
A13: ACS Table B18001 | C13: Removed Disability Tables
A14: ACS Table C18001 | C14: Removed Disability Tables
A15: ACS Table B18003 | C15: Removed Disability Tables
A16: ACS Table B18004 | C16: Removed Disability Tables
A17: ACS Table B18005 | C17: Removed Disability Tables
A18: ACS Table B18006 | C18: Removed Disability Tables
A19: ACS Table B18007 | C19: Removed Disability Tables
A20: ACS Table B18008 | C20: Removed Disability Tables
A21: ACS Table B19001 | B21: x
A22: ACS Table B19037 | B22: x
A23: ACS Table B19049 | B23: x
A24: ACS Table B19101& B19113 | B24: s
A25: ACS Table B19201 & B19202 | B25: s
A26: ACS Table B25001, B25003 & B25004 | B26: x
A27: ACS Table B25008 | B27: x
A28: ACS Table B25010 | B28: x
A29: ACS Table B25024 | B29: x
A30: ACS Table B25032 | B30: x
A31: ACS Table B25034 & B25041 | B31: x
A32: ACS Table B25063 & B25064 | B32: x
A33: ACS Table B25070 & B25074 | B33: x
A34: ACS Table B25075 & B25077 | B34: x
A35: ACS Table B25088 | B35: x
A36: ACS Table B25091 | B36: x
A37: ACS Table B25118 & B25119 | B37: x
A44: Tables Removed from 5 Year Estimates
A45: ACS Table C19001 | B45: x | C45: May have to consolidate this table from Table B19001. This has already been done. For 5 year estimates remove worksheet.
A46: ACS Table B25094 | B46: x | C46: No Comparison Table for B25094 Removed
A47: ACS Table B25101 | C47: No Comparison Table for B25101 Removed
A48: ACS Table B25104 & B25105 | C48: No Comparison Table for B25104 & B25105 Removed
A49: ACS Table B25106 | B49: x | C49: No Comparison Table for B25106 Removed

Sheet CntyQuery (hidden)
A2: Census 1990 Data - Query Name: DPCnty90Census
A4: CountyName | B4: Cnty_Code | C4: Census_Cnty_Code | D4: LandAcres | E4: WaterAcres | F4: HousingUnits90Cen | G4: Persons90Cen | H4: Families90Cen | I4: Households90cen | J4: MalePop90cen | K4: FemalePop90cen | L4: WhitePop | M4: BlackPop | N4: AmerIndianPop | O4: AsianPIPop | P4: OtherRacePop | Q4: HispanicOrPop | R4: AgeUnder15_90cen | S4: Age15to24_90cen | T4: Age25to34_90cen | U4: Age35to44_90cen | V4: Age45to54_90cen | W4: Age55to64_90cen | X4: Age65to74_90cen | Y4: Age75andOver_90cen | Z4: PersonsInHH90cen | AA4: PersonsInFamHH90cen | AB4: PersonsInGC | AC4: PersonsPerHH90cen | AD4: PersonsPerFam90Cen | AE4: SinglePersonHH90cen | AF4: MarriedCoupleHH90cen | AG4: SingleParentHH90cen | AH4: NonFamilyHH90cen | AI4: TotalHousingUnits | AJ4: OccupiedHousingUnits | AK4: VacantHousingUnits | AL4: OwnerOccHU | AM4: RenterOccHU | AN4: VacantForRent90 | AO4: VacantForSale90 | AP4: VacantSeasonalRec | AQ4: SingFamHU90cen | AR4: MultiFamHU90cen | AS4: MobileHom90cen | AT4: SingFamOwnHU90cen | AU4: MultiFamOwnHU90cen | AV4: MobileHomOwnHU90cen | AW4: SingFamRntrHU90cen | AX4: MultiFamRntrHU90cen | AY4: MobileHomRntrHU90cen | AZ4: HU<5yrs90cen | BA4: HU5to20yrs90cen | BB4: HU20to50yrs90cen | BC4: HU>50yrs90cen | BD4: Units0Bedroom90cen | BE4: Units1Bedroom90cen | BF4: Units2Bedroom90cen | BG4: Units3Bedroom90cen | BH4: Units4+Bedroom90cen | BI4: HI<5K | BJ4: HI5Kto10K | BK4: HI10Kto15K | BL4: HI15Kto25K | BM4: HI25Kto35K | BN4: HI35Kto50K | BO4: HI50Kto75K | BP4: HI75Kto100K | BQ4: HI>100K | BR4: MedHI | BS4: HH<25HI<5K | BT4: HH<25HI5Kto10K | BU4: HH<25HI10Kto15K | BV4: HH<25HI15Kto25K | BW4: HH<25HI25Kto35K | BX4: HH<25HI35Kto50K | BY4: HH<25HI50Kto75K | BZ4: HH<25HI75Kto100K | CA4: HH<25HI>100K | CB4: HH25to34HI<5K | CC4: HH25to34HI5Kto10K | CD4: HH25to34HI10Kto15K | CE4: HH25to34HI15Kto25K | CF4: HH25to34HI25Kto35K | CG4: HH25to34HI35Kto50K | CH4: HH25to34HI50Kto75K | CI4: HH25to34HI75Kto100K | CJ4: HH25to34HI>100K | CK4: HH35to44HI<5K | CL4: HH35to44HI5Kto10K | CM4: HH35to44HI10Kto15K | CN4: HH35to44HI15Kto25K | CO4: HH35to44HI25Kto35K | CP4: HH35to44HI35Kto50K | CQ4: HH35to44HI50Kto75K | CR4: HH35to44HI75Kto100K | CS4: HH35to44HI>100K | CT4: HH45to54HI<5K | CU4: HH45to54HI5Kto10K | CV4: HH45to54HI10Kto15K | CW4: HH45to54HI15Kto25K | CX4: HH45to54HI25Kto35K | CY4: HH45to54HI35Kto50K | CZ4: HH45to54HI50Kto75K | DA4: HH45to54HI75Kto100K | DB4: HH45to54HI>100K | DC4: HH55to64HI<5K | DD4: HH55to64HI5Kto10K | DE4: HH55to64HI10Kto15K | DF4: HH55to64HI15Kto25K | DG4: HH55to64HI25Kto35K | DH4: HH55to64HI35Kto50K | DI4: HH55to64HI50Kto75K | DJ4: HH55to64HI75Kto100K | DK4: HH55to64HI>100K | DL4: HH65to74HI<5K | DM4: HH65to74HI5Kto10K | DN4: HH65to74HI10Kto15K | DO4: HH65to74HI15Kto25K | DP4: HH65to74HI25Kto35K | DQ4: HH65to74HI35Kto50K | DR4: HH65to74HI50Kto75K | DS4: HH65to74HI75Kto100K | DT4: HH65to74HI>100K | DU4: HH>75HI<5K | DV4: HH>75HI5Kto10K | DW4: HH>75HI10Kto15K | DX4: HH>75HI15Kto25K | DY4: HH>75HI25Kto35K | DZ4: HH>75HI35Kto50K | EA4: HH>75HI50Kto75K | EB4: HH>75HI75Kto100K | EC4: HH>75HI>100K | ED4: SchoolEnrollment1thru12 | EE4: Pop25andOver | EF4: HSGradorHigher | EG4: CollGradorHigher | EH4: NativePop | EI4: ForeignBornPop | EJ4: BornStateOfRes | EK4: NativePop2 | EL4: ForeignBornPop2 | EM4: DroveAlone | EN4: CarPooled | EO4: PublicTranspt | EP4: Walked | EQ4: OtherMeans | ER4: WorkedAtHome | ES4: HHInc<10K | ET4: HHInc10to15K | EU4: HHInc15to25K | EV4: HHInc25to35K | EW4: HHInc35to50K | EX4: HHInc50to75K | EY4: HHInc75to100K | EZ4: HHInc100to150K | FA4: HHInc>150K
A5: Belknap County | B5: 1 | C5: 001 | D5: 257726.29 | E5: 43059.57 | F5: 30306 | G5: 49216 | H5: 13334 | I5: 18839 | J5: 24049 | K5: 25167 | L5: 48788 | M5: 67 | N5: 108 | O5: 216 | P5: 37 | Q5: 245 | R5: 10646 | S5: 5850 | T5: 8129 | U5: 8172 | V5: 5171 | W5: 4505 | X5: 3998 | Y5: 2745 | Z5: 48516 | AA5: 41511 | AB5: 700 | AC5: 2.575295929 | AD5: 3.113169342 | AE5: 4290 | AF5: 11146 | AG5: 2188 | AH5: 1215 | AI5: 30306 | AJ5: 18839 | AK5: 11467 | AL5: 13475 | AM5: 5364 | AN5: 926 | AO5: 509 | AP5: 9319 | AQ5: 20663 | AR5: 6611 | AS5: 3032 | AT5: 10929 | AU5: 908 | AV5: 3032 | AW5: 1320 | AX5: 3673 | AY5: 371 | AZ5: 5753 | BA5: 9987 | BB5: 6299 | BC5: 8267 | BD5: 260 | BE5: 3171 | BF5: 10370 | BG5: 12116 | BH5: 4389 | BI5: 612 | BJ5: 1464 | BK5: 1495 | BL5: 3626 | BM5: 3287 | BN5: 4037 | BO5: 3131 | BP5: 625 | BQ5: 613 | BR5: 31474 | BS5: 56 | BT5: 92 | BU5: 100 | BV5: 210 | BW5: 143 | BX5: 153 | BY5: 44 | BZ5: 9 | CA5: 2 | CB5: 98 | CC5: 171 | CD5: 189 | CE5: 739 | CF5: 932 | CG5: 1025 | CH5: 607 | CI5: 78 | CJ5: 50 | CK5: 38 | CL5: 88 | CM5: 192 | CN5: 729 | CO5: 893 | CP5: 1256 | CQ5: 1051 | CR5: 217 | CS5: 179 | CT5: 44 | CU5: 69 | CV5: 120 | CW5: 432 | CX5: 442 | CY5: 650 | CZ5: 733 | DA5: 149 | DB5: 211 | DC5: 108 | DD5: 168 | DE5: 207 | DF5: 499 | DG5: 404 | DH5: 530 | DI5: 429 | DJ5: 119 | DK5: 100 | DL5: 94 | DM5: 388 | DN5: 314 | DO5: 634 | DP5: 358 | DQ5: 353 | DR5: 199 | DS5: 47 | DT5: 46 | DU5: 174 | DV5: 488 | DW5: 373 | DX5: 383 | DY5: 115 | DZ5: 70 | EA5: 68 | EB5: 6 | EC5: 25 | ED5: 8363 | EE5: 32809 | EF5: 26372 | EG5: 6716 | EH5: 48051 | EI5: 1165 | EJ5: 27389 | EK5: 48051 | EL5: 1165 | EM5: 18623 | EN5: 2995 | EO5: 71 | EP5: 814 | EQ5: 161 | ER5: 1125 | ES5: 2076 | ET5: 1495 | EU5: 3626 | EV5: 3287 | EW5: 4037 | EX5: 3131 | EY5: 625 | EZ5: 403 | FA5: 210
A6: Carroll County | B6: 2 | C6: 003 | D6: 598386.76 | E6: 37431.3 | F6: 32146 | G6: 35410 | H6: 9866 | I6: 14253 | J6: 17242 | K6: 18168 | L6: 35150 | M6: 66 | N6: 60 | O6: 106 | P6: 28 | Q6: 132 | R6: 7252 | S6: 3601 | T6: 5663 | U6: 5935 | V6: 3649 | W6: 3611 | X6: 3367 | Y6: 2332 | Z6: 34971 | AA6: 29480 | AB6: 439 | AC6: 2.453588718 | AD6: 2.988039732 | AE6: 3465 | AF6: 8422 | AG6: 1444 | AH6: 922 | AI6: 32146 | AJ6: 14253 | AK6: 17893 | AL6: 10739 | AM6: 3514 | AN6: 979 | AO6: 526 | AP6: 15310 | AQ6: 23628 | AR6: 5225 | AS6: 3293 | AT6: 8998 | AU6: 461 | AV6: 3293 | AW6: 1357 | AX6: 1738 | AY6: 419 | AZ6: 7085 | BA6: 10093 | BB6: 6703 | BC6: 8265 | BD6: 424 | BE6: 2726 | BF6: 10993 | BG6: 12646 | BH6: 5357 | BI6: 601 | BJ6: 1105 | BK6: 1529 | BL6: 2996 | BM6: 2688 | BN6: 2503 | BO6: 1922 | BP6: 537 | BQ6: 402 | BR6: 28145 | BS6: 23 | BT6: 34 | BU6: 52 | BV6: 139 | BW6: 155 | BX6: 46 | BY6: 32 | BZ6: 0 | CA6: 2 | CB6: 52 | CC6: 149 | CD6: 241 | CE6: 714 | CF6: 704 | CG6: 566 | CH6: 263 | CI6: 41 | CJ6: 75 | CK6: 84 | CL6: 92 | CM6: 300 | CN6: 640 | CO6: 605 | CP6: 765 | CQ6: 596 | CR6: 192 | CS6: 86 | CT6: 100 | CU6: 54 | CV6: 111 | CW6: 345 | CX6: 348 | CY6: 425 | CZ6: 447 | DA6: 98 | DB6: 92 | DC6: 87 | DD6: 147 | DE6: 164 | DF6: 406 | DG6: 378 | DH6: 340 | DI6: 273 | DJ6: 127 | DK6: 93 | DL6: 108 | DM6: 316 | DN6: 421 | DO6: 483 | DP6: 340 | DQ6: 275 | DR6: 194 | DS6: 61 | DT6: 38 | DU6: 147 | DV6: 313 | DW6: 240 | DX6: 269 | DY6: 158 | DZ6: 86 | EA6: 117 | EB6: 18 | EC6: 16 | ED6: 5555 | EE6: 24618 | EF6: 20566 | EG6: 5754 | EH6: 34591 | EI6: 819 | EJ6: 14271 | EK6: 34591 | EL6: 819 | EM6: 12691 | EN6: 1790 | EO6: 64 | EP6: 744 | EQ6: 150 | ER6: 1160 | ES6: 1706 | ET6: 1529 | EU6: 2996 | EV6: 2688 | EW6: 2503 | EX6: 1922 | EY6: 537 | EZ6: 249 | FA6: 153
A7: Cheshire County | B7: 3 | C7: 005 | D7: 452910.77 | E7: 13603.12 | F7: 30350 | G7: 70121 | H7: 18155 | I7: 25856 | J7: 33874 | K7: 36247 | L7: 69404 | M7: 207 | N7: 147 | O7: 300 | P7: 63 | Q7: 334 | R7: 14499 | S7: 11465 | T7: 10959 | U7: 10899 | V7: 7127 | W7: 5984 | X7: 5166 | Y7: 4022 | Z7: 66435 | AA7: 56360 | AB7: 3686 | AC7: 2.569422958 | AD7: 3.104378959 | AE7: 5908 | AF7: 15104 | AG7: 3051 | AH7: 1793 | AI7: 30350 | AJ7: 25856 | AK7: 4494 | AL7: 18215 | AM7: 7641 | AN7: 496 | AO7: 409 | AP7: 2832 | AQ7: 20069 | AR7: 7535 | AS7: 2746 | AT7: 15087 | AU7: 1209 | AV7: 2746 | AW7: 1597 | AX7: 5601 | AY7: 443 | AZ7: 4054 | BA7: 7995 | BB7: 7270 | BC7: 11031 | BD7: 419 | BE7: 3799 | BF7: 9203 | BG7: 11711 | BH7: 5218 | BI7: 875 | BJ7: 2137 | BK7: 2201 | BL7: 4441 | BM7: 4752 | BN7: 5215 | BO7: 4493 | BP7: 1025 | BQ7: 740 | BR7: 31648 | BS7: 91 | BT7: 99 | BU7: 215 | BV7: 339 | BW7: 359 | BX7: 236 | BY7: 84 | BZ7: 8 | CA7: 0 | CB7: 96 | CC7: 254 | CD7: 280 | CE7: 905 | CF7: 1232 | CG7: 1384 | CH7: 834 | CI7: 88 | CJ7: 52 | CK7: 114 | CL7: 130 | CM7: 243 | CN7: 782 | CO7: 1108 | CP7: 1612 | CQ7: 1562 | CR7: 238 | CS7: 241 | CT7: 114 | CU7: 106 | CV7: 124 | CW7: 520 | CX7: 617 | CY7: 871 | CZ7: 1087 | DA7: 364 | DB7: 164 | DC7: 97 | DD7: 164 | DE7: 268 | DF7: 687 | DG7: 655 | DH7: 591 | DI7: 603 | DJ7: 210 | DK7: 191 | DL7: 163 | DM7: 565 | DN7: 567 | DO7: 708 | DP7: 466 | DQ7: 336 | DR7: 230 | DS7: 96 | DT7: 86 | DU7: 200 | DV7: 819 | DW7: 504 | DX7: 500 | DY7: 315 | DZ7: 185 | EA7: 93 | EB7: 21 | EC7: 6 | ED7: 11397 | EE7: 44193 | EF7: 35699 | EG7: 10557 | EH7: 68501 | EI7: 1620 | EJ7: 31002 | EK7: 68501 | EL7: 1620 | EM7: 27144 | EN7: 4004 | EO7: 107 | EP7: 2092 | EQ7: 480 | ER7: 1401 | ES7: 3012 | ET7: 2201 | EU7: 4441 | EV7: 4752 | EW7: 5215 | EX7: 4493 | EY7: 1025 | EZ7: 543 | FA7: 197
A8: Coos County | B8: 4 | C8: 007 | D8: 1152946.79 | E8: 19021.89 | F8: 18712 | G8: 34828 | H8: 9608 | I8: 13799 | J8: 16884 | K8: 17944 | L8: 34563 | M8: 37 | N8: 62 | O8: 130 | P8: 36 | Q8: 150 | R8: 7054 | S8: 4368 | T8: 5285 | U8: 5107 | V8: 3599 | W8: 3663 | X8: 3269 | Y8: 2483 | Z8: 34266 | AA8: 29251 | AB8: 562 | AC8: 2.483223422 | AD8: 3.044442132 | AE8: 3539 | AF8: 8070 | AG8: 1538 | AH8: 652 | AI8: 18712 | AJ8: 13799 | AK8: 4913 | AL8: 9698 | AM8: 4101 | AN8: 480 | AO8: 214 | AP8: 3613 | AQ8: 11208 | AR8: 5115 | AS8: 2389 | AT8: 7496 | AU8: 968 | AV8: 2389 | AW8: 614 | AX8: 3219 | AY8: 268 | AZ8: 2140 | BA8: 4173 | BB8: 4180 | BC8: 8219 | BD8: 424 | BE8: 2516 | BF8: 6270 | BG8: 6773 | BH8: 2729 | BI8: 888 | BJ8: 1605 | BK8: 1572 | BL8: 2616 | BM8: 2335 | BN8: 2768 | BO8: 1539 | BP8: 292 | BQ8: 205 | BR8: 25897 | BS8: 90 | BT8: 88 | BU8: 140 | BV8: 177 | BW8: 176 | BX8: 78 | BY8: 11 | BZ8: 2 | CA8: 7 | CB8: 81 | CC8: 132 | CD8: 155 | CE8: 621 | CF8: 569 | CG8: 719 | CH8: 217 | CI8: 24 | CJ8: 27 | CK8: 80 | CL8: 74 | CM8: 190 | CN8: 453 | CO8: 472 | CP8: 814 | CQ8: 601 | CR8: 87 | CS8: 78 | CT8: 85 | CU8: 147 | CV8: 127 | CW8: 253 | CX8: 371 | CY8: 478 | CZ8: 382 | DA8: 82 | DB8: 46 | DC8: 118 | DD8: 148 | DE8: 183 | DF8: 380 | DG8: 376 | DH8: 484 | DI8: 240 | DJ8: 83 | DK8: 34 | DL8: 180 | DM8: 454 | DN8: 429 | DO8: 521 | DP8: 265 | DQ8: 150 | DR8: 78 | DS8: 12 | DT8: 13 | DU8: 254 | DV8: 562 | DW8: 348 | DX8: 211 | DY8: 106 | DZ8: 45 | EA8: 10 | EB8: 2 | EC8: 0 | ED8: 5875 | EE8: 23406 | EF8: 16378 | EG8: 2567 | EH8: 33046 | EI8: 1782 | EJ8: 23627 | EK8: 33046 | EL8: 1782 | EM8: 10869 | EN8: 2039 | EO8: 55 | EP8: 1307 | EQ8: 247 | ER8: 540 | ES8: 2493 | ET8: 1572 | EU8: 2616 | EV8: 2335 | EW8: 2768 | EX8: 1539 | EY8: 292 | EZ8: 150 | FA8: 55
A9: Grafton County | B9: 5 | C9: 009 | D9: 1096323.55 | E9: 23419.8 | F9: 42206 | G9: 74929 | H9: 18544 | I9: 27542 | J9: 36966 | K9: 37963 | L9: 73395 | M9: 404 | N9: 186 | O9: 831 | P9: 113 | Q9: 599 | R9: 14599 | S9: 14423 | T9: 11835 | U9: 11550 | V9: 7115 | W9: 6121 | X9: 5200 | Y9: 4086 | Z9: 69187 | AA9: 56838 | AB9: 5742 | AC9: 2.512054317 | AD9: 3.065034513 | AE9: 6717 | AF9: 15430 | AG9: 3114 | AH9: 2281 | AI9: 42206 | AJ9: 27542 | AK9: 14664 | AL9: 18500 | AM9: 9042 | AN9: 1388 | AO9: 899 | AP9: 10558 | AQ9: 24402 | AR9: 13249 | AS9: 4555 | AT9: 14707 | AU9: 1271 | AV9: 4555 | AW9: 2033 | AX9: 6411 | AY9: 598 | AZ9: 8171 | BA9: 12597 | BB9: 7599 | BC9: 13839 | BD9: 754 | BE9: 5861 | BF9: 13240 | BG9: 15103 | BH9: 7248 | BI9: 1244 | BJ9: 2515 | BK9: 2684 | BL9: 4912 | BM9: 4722 | BN9: 5427 | BO9: 4109 | BP9: 911 | BQ9: 1003 | BR9: 30065 | BS9: 189 | BT9: 236 | BU9: 294 | BV9: 572 | BW9: 342 | BX9: 238 | BY9: 81 | BZ9: 13 | CA9: 0 | CB9: 125 | CC9: 224 | CD9: 423 | CE9: 1209 | CF9: 1174 | CG9: 1395 | CH9: 810 | CI9: 141 | CJ9: 130 | CK9: 121 | CL9: 184 | CM9: 364 | CN9: 975 | CO9: 1214 | CP9: 1690 | CQ9: 1259 | CR9: 245 | CS9: 319 | CT9: 101 | CU9: 116 | CV9: 236 | CW9: 461 | CX9: 710 | CY9: 927 | CZ9: 894 | DA9: 259 | DB9: 269 | DC9: 164 | DD9: 235 | DE9: 289 | DF9: 678 | DG9: 625 | DH9: 555 | DI9: 604 | DJ9: 173 | DK9: 184 | DL9: 233 | DM9: 596 | DN9: 642 | DO9: 614 | DP9: 418 | DQ9: 474 | DR9: 337 | DS9: 55 | DT9: 78 | DU9: 311 | DV9: 924 | DW9: 436 | DX9: 403 | DY9: 239 | DZ9: 148 | EA9: 124 | EB9: 25 | EC9: 23 | ED9: 11188 | EE9: 45960 | EF9: 37390 | EG9: 12123 | EH9: 72572 | EI9: 2357 | EJ9: 35079 | EK9: 72572 | EL9: 2357 | EM9: 25347 | EN9: 4602 | EO9: 218 | EP9: 3704 | EQ9: 593 | ER9: 1671 | ES9: 3759 | ET9: 2684 | EU9: 4912 | EV9: 4722 | EW9: 5427 | EX9: 4109 | EY9: 911 | EZ9: 737 | FA9: 266
A10: Hillsborough County | B10: 6 | C10: 011 | D10: 561351.44 | E10: 9800.68 | F10: 135622 | G10: 336073 | H10: 88473 | I10: 124567 | J10: 164450 | K10: 171623 | L10: 326821 | M10: 3001 | N10: 612 | O10: 3816 | P10: 1823 | Q10: 5696 | R10: 73174 | S10: 47337 | T10: 66344 | U10: 55519 | V10: 33981 | W10: 25289 | X10: 19787 | Y10: 14642 | Z10: 329270 | AA10: 282448 | AB10: 6803 | AC10: 2.643316448 | AD10: 3.192476801 | AE10: 27495 | AF10: 73455 | AG10: 15018 | AH10: 8599 | AI10: 135622 | AJ10: 124567 | AK10: 11055 | AL10: 79363 | AM10: 45204 | AN10: 5649 | AO10: 1807 | AP10: 1877 | AQ10: 71819 | AR10: 59104 | AS10: 4699 | AT10: 63858 | AU10: 12070 | AV10: 4699 | AW10: 4521 | AX10: 39938 | AY10: 745 | AZ10: 22533 | BA10: 42139 | BB10: 36390 | BC10: 34560 | BD10: 1638 | BE10: 17599 | BF10: 43790 | BG10: 48219 | BH10: 24376 | BI10: 3962 | BJ10: 7570 | BK10: 6375 | BL10: 15943 | BM10: 17547 | BN10: 28210 | BO10: 27845 | BP10: 10261 | BQ10: 6979 | BR10: 40404 | BS10: 352 | BT10: 483 | BU10: 578 | BV10: 1467 | BW10: 1298 | BX10: 1487 | BY10: 590 | BZ10: 106 | CA10: 62 | CB10: 697 | CC10: 919 | CD10: 1082 | CE10: 3881 | CF10: 5138 | CG10: 9609 | CH10: 8379 | CI10: 1976 | CJ10: 752 | CK10: 459 | CL10: 572 | CM10: 688 | CN10: 2873 | CO10: 3910 | CP10: 7385 | CQ10: 8668 | CR10: 3447 | CS10: 2083 | CT10: 370 | CU10: 346 | CV10: 403 | CW10: 1528 | CX10: 2219 | CY10: 3935 | CZ10: 5597 | DA10: 2808 | DB10: 2268 | DC10: 527 | DD10: 753 | DE10: 640 | DF10: 1881 | DG10: 2104 | DH10: 3302 | DI10: 3039 | DJ10: 1370 | DK10: 1276 | DL10: 719 | DM10: 1846 | DN10: 1609 | DO10: 2644 | DP10: 2024 | DQ10: 1774 | DR10: 1142 | DS10: 360 | DT10: 450 | DU10: 838 | DV10: 2651 | DW10: 1375 | DX10: 1669 | DY10: 854 | DZ10: 718 | EA10: 430 | EB10: 194 | EC10: 88 | ED10: 53454 | EE10: 215914 | EF10: 177465 | EG10: 56957 | EH10: 318272 | EI10: 17801 | EJ10: 152227 | EK10: 318272 | EL10: 17801 | EM10: 142026 | EN10: 21258 | EO10: 1634 | EP10: 5381 | EQ10: 1605 | ER10: 5151 | ES10: 11532 | ET10: 6375 | EU10: 15943 | EV10: 17547 | EW10: 28210 | EX10: 27845 | EY10: 10261 | EZ10: 5075 | FA10: 1904
A11: Merrimack County | B11: 7 | C11: 013 | D11: 597481.36 | E11: 13666.33 | F11: 50870 | G11: 120005 | H11: 31801 | I11: 44595 | J11: 58743 | K11: 61262 | L11: 118580 | M11: 451 | N11: 224 | O11: 595 | P11: 155 | Q11: 780 | R11: 25842 | S11: 15682 | T11: 22030 | U11: 20282 | V11: 11952 | W11: 9640 | X11: 7736 | Y11: 6841 | Z11: 115708 | AA11: 99494 | AB11: 4297 | AC11: 2.594640655 | AD11: 3.128643753 | AE11: 10049 | AF11: 26641 | AG11: 5160 | AH11: 2745 | AI11: 50870 | AJ11: 44595 | AK11: 6275 | AL11: 31088 | AM11: 13507 | AN11: 1927 | AO11: 764 | AP11: 2772 | AQ11: 30516 | AR11: 15704 | AS11: 4650 | AT11: 24807 | AU11: 2761 | AV11: 4650 | AW11: 2167 | AX11: 10731 | AY11: 609 | AZ11: 9625 | BA11: 15067 | BB11: 11317 | BC11: 14861 | BD11: 614 | BE11: 6442 | BF11: 16226 | BG11: 18775 | BH11: 8813 | BI11: 1371 | BJ11: 2754 | BK11: 2969 | BL11: 7067 | BM11: 7444 | BN11: 9996 | BO11: 8591 | BP11: 2400 | BQ11: 1879 | BR11: 35801 | BS11: 146 | BT11: 215 | BU11: 168 | BV11: 425 | BW11: 427 | BX11: 439 | BY11: 122 | BZ11: 9 | CA11: 0 | CB11: 204 | CC11: 336 | CD11: 358 | CE11: 1678 | CF11: 2188 | CG11: 2905 | CH11: 2001 | CI11: 404 | CJ11: 191 | CK11: 169 | CL11: 144 | CM11: 227 | CN11: 1220 | CO11: 1805 | CP11: 3124 | CQ11: 3019 | CR11: 744 | CS11: 658 | CT11: 134 | CU11: 162 | CV11: 271 | CW11: 841 | CX11: 879 | CY11: 1494 | CZ11: 1751 | DA11: 592 | DB11: 537 | DC11: 123 | DD11: 175 | DE11: 415 | DF11: 923 | DG11: 929 | DH11: 1066 | DI11: 1141 | DJ11: 417 | DK11: 285 | DL11: 214 | DM11: 717 | DN11: 787 | DO11: 1115 | DP11: 756 | DQ11: 649 | DR11: 376 | DS11: 162 | DT11: 168 | DU11: 381 | DV11: 1005 | DW11: 743 | DX11: 865 | DY11: 460 | DZ11: 319 | EA11: 181 | EB11: 72 | EC11: 40 | ED11: 19658 | EE11: 78633 | EF11: 65407 | EG11: 19952 | EH11: 116998 | EI11: 3007 | EJ11: 66971 | EK11: 116998 | EL11: 3007 | EM11: 47459 | EN11: 7473 | EO11: 355 | EP11: 2306 | EQ11: 475 | ER11: 2378 | ES11: 4125 | ET11: 2969 | EU11: 7067 | EV11: 7444 | EW11: 9996 | EX11: 8591 | EY11: 2400 | EZ11: 1266 | FA11: 613
A12: New Hampshire | B12: 0 | D12: 5742660.16 | E12: 197882.72 | F12: 503904 | G12: 1109252 | H12: 292601 | I12: 411186 | J12: 543544 | K12: 565708 | L12: 1087433 | M12: 7198 | N12: 2134 | O12: 9343 | P12: 3144 | Q12: 11333 | R12: 236931 | S12: 159426 | T12: 204823 | U12: 182632 | V12: 112215 | W12: 88196 | X12: 71471 | Y12: 53558 | Z12: 1077101 | AA12: 921929 | AB12: 32151 | AC12: 2.619498232 | AD12: 3.150806046 | AE12: 90364 | AF12: 245307 | AG12: 47294 | AH12: 28221 | AI12: 503904 | AJ12: 411186 | AK12: 92718 | AL12: 280372 | AM12: 130814 | AN12: 17435 | AO12: 7648 | AP12: 57135 | AQ12: 297777 | AR12: 164184 | AS12: 41943 | AT12: 222953 | AU12: 29421 | AV12: 41943 | AW12: 20252 | AX12: 105000 | AY12: 5562 | AZ12: 87665 | BA12: 155241 | BB12: 124270 | BC12: 136728 | BD12: 6901 | BE12: 60650 | BF12: 165943 | BG12: 184755 | BH12: 85655 | BI12: 13747 | BJ12: 27508 | BK12: 27574 | BL12: 61818 | BM12: 65472 | BN12: 89834 | BO12: 81270 | BP12: 25773 | BQ12: 18391 | BR12: 36329 | BS12: 1334 | BT12: 1942 | BU12: 2239 | BV12: 5147 | BW12: 4462 | BX12: 4024 | BY12: 1508 | BZ12: 227 | CA12: 102 | CB12: 1832 | CC12: 3134 | CD12: 3979 | CE12: 14701 | CF12: 19036 | CG12: 27603 | CH12: 21100 | CI12: 4452 | CJ12: 2234 | CK12: 1565 | CL12: 1872 | CM12: 3138 | CN12: 11339 | CO12: 15375 | CP12: 25993 | CQ12: 26832 | CR12: 8522 | CS12: 5642 | CT12: 1359 | CU12: 1484 | CV12: 2045 | CW12: 6458 | CX12: 8499 | CY12: 13465 | CZ12: 16969 | DA12: 7176 | DB12: 5668 | DC12: 1848 | DD12: 2699 | DE12: 3332 | DF12: 8013 | DG12: 8139 | DH12: 10326 | DI12: 9769 | DJ12: 3741 | DK12: 3188 | DL12: 2398 | DM12: 6862 | DN12: 7055 | DO12: 10120 | DP12: 6843 | DQ12: 5992 | DR12: 3641 | DS12: 1225 | DT12: 1217 | DU12: 3411 | DV12: 9515 | DW12: 5786 | DX12: 6040 | DY12: 3118 | DZ12: 2431 | EA12: 1451 | EB12: 430 | EC12: 340 | ED12: 177433 | EE12: 713894 | EF12: 586471 | EG12: 173941 | EH12: 1068059 | EI12: 41193 | EJ12: 488894 | EK12: 1068059 | EL12: 41193 | EM12: 443317 | EN12: 69904 | EO12: 4067 | EP12: 23137 | EQ12: 5989 | ER12: 20175 | ES12: 41255 | ET12: 27574 | EU12: 61818 | EV12: 65472 | EW12: 89834 | EX12: 81270 | EY12: 25773 | EZ12: 13118 | FA12: 5273
A13: Rockingham County | B13: 8 | C13: 015 | D13: 446221.18 | E13: 18969.44 | F13: 101773 | G13: 245845 | H13: 65939 | I13: 89118 | J13: 121947 | K13: 123898 | L13: 240203 | M13: 2326 | N13: 395 | O13: 2266 | P13: 655 | Q13: 2395 | R13: 54611 | S13: 31587 | T13: 49114 | U13: 44045 | V13: 26099 | W13: 17789 | X13: 13208 | Y13: 9392 | Z13: 242781 | AA13: 212093 | AB13: 3064 | AC13: 2.724264458 | AD13: 3.216503132 | AE13: 17236 | AF13: 56520 | AG13: 9419 | AH13: 5943 | AI13: 101773 | AJ13: 89118 | AK13: 12655 | AL13: 64324 | AM13: 24794 | AN13: 3420 | AO13: 1634 | AP13: 5830 | AQ13: 61147 | AR13: 31688 | AS13: 8938 | AT13: 50555 | AU13: 7034 | AV13: 8938 | AW13: 4106 | AX13: 19460 | AY13: 1228 | AZ13: 18842 | BA13: 35527 | BB13: 28056 | BC13: 19348 | BD13: 1508 | BE13: 10301 | BF13: 34410 | BG13: 37529 | BH13: 18025 | BI13: 2254 | BJ13: 4308 | BK13: 4345 | BL13: 11012 | BM13: 13016 | BN13: 19869 | BO13: 21555 | BP13: 7585 | BQ13: 5315 | BR13: 41881 | BS13: 135 | BT13: 225 | BU13: 244 | BV13: 789 | BW13: 906 | BX13: 746 | BY13: 443 | BZ13: 54 | CA13: 16 | CB13: 264 | CC13: 502 | CD13: 547 | CE13: 2617 | CF13: 4094 | CG13: 6472 | CH13: 6059 | CI13: 1411 | CJ13: 842 | CK13: 277 | CL13: 300 | CM13: 468 | CN13: 2080 | CO13: 3221 | CP13: 5872 | CQ13: 7478 | CR13: 2703 | CS13: 1697 | CT13: 216 | CU13: 245 | CV13: 327 | CW13: 1277 | CX13: 1725 | CY13: 2918 | CZ13: 4245 | DA13: 2202 | DB13: 1625 | DC13: 389 | DD13: 542 | DE13: 599 | DF13: 1289 | DG13: 1451 | DH13: 2097 | DI13: 2281 | DJ13: 849 | DK13: 796 | DL13: 365 | DM13: 1095 | DN13: 1145 | DO13: 1956 | DP13: 1069 | DQ13: 1257 | DR13: 721 | DS13: 304 | DT13: 233 | DU13: 608 | DV13: 1399 | DW13: 1015 | DX13: 1004 | DY13: 550 | DZ13: 507 | EA13: 328 | EB13: 62 | EC13: 106 | ED13: 40101 | EE13: 159886 | EF13: 137833 | EG13: 41457 | EH13: 237544 | EI13: 8301 | EJ13: 65120 | EK13: 237544 | EL13: 8301 | EM13: 106748 | EN13: 15194 | EO13: 855 | EP13: 2976 | EQ13: 1415 | ER13: 4388 | ES13: 6562 | ET13: 4345 | EU13: 11012 | EV13: 13016 | EW13: 19869 | EX13: 21555 | EY13: 7585 | EZ13: 3828 | FA13: 1487
A14: Strafford County | B14: 9 | C14: 017 | D14: 235092.87 | E14: 9767.73 | F14: 42387 | G14: 104233 | H14: 26231 | I14: 37744 | J14: 50468 | K14: 53765 | L14: 102308 | M14: 575 | N14: 212 | O14: 937 | P14: 201 | Q14: 837 | R14: 21004 | S14: 20283 | T14: 19439 | U14: 14907 | V14: 9520 | W14: 8001 | X14: 6417 | Y14: 4662 | Z14: 97839 | AA14: 81570 | AB14: 6394 | AC14: 2.592173591 | AD14: 3.109679387 | AE14: 8265 | AF14: 21659 | AG14: 4572 | AH14: 3248 | AI14: 42387 | AJ14: 37744 | AK14: 4643 | AL14: 24453 | AM14: 13291 | AN14: 1572 | AO14: 657 | AP14: 1794 | AQ14: 22073 | AR14: 14883 | AS14: 5431 | AT14: 18197 | AU14: 2062 | AV14: 5431 | AW14: 1721 | AX14: 10983 | AY14: 587 | AZ14: 6774 | BA14: 12110 | BB14: 11655 | BC14: 11848 | BD14: 612 | BE14: 5836 | BF14: 15131 | BG14: 14517 | BH14: 6291 | BI14: 1211 | BJ14: 2634 | BK14: 3031 | BL14: 6519 | BM14: 6780 | BN14: 8588 | BO14: 6174 | BP14: 1748 | BQ14: 1003 | BR14: 32812 | BS14: 181 | BT14: 413 | BU14: 344 | BV14: 868 | BW14: 475 | BX14: 501 | BY14: 89 | BZ14: 20 | CA14: 13 | CB14: 141 | CC14: 261 | CD14: 495 | CE14: 1730 | CF14: 2239 | CG14: 2788 | CH14: 1599 | CI14: 254 | CJ14: 99 | CK14: 109 | CL14: 197 | CM14: 309 | CN14: 1072 | CO14: 1469 | CP14: 2410 | CQ14: 1901 | CR14: 507 | CS14: 251 | CT14: 97 | CU14: 175 | CV14: 239 | CW14: 574 | CX14: 810 | CY14: 1218 | CZ14: 1460 | DA14: 501 | DB14: 358 | DC14: 167 | DD14: 210 | DE14: 406 | DF14: 814 | DG14: 743 | DH14: 937 | DI14: 855 | DJ14: 338 | DK14: 185 | DL14: 176 | DM14: 531 | DN14: 742 | DO14: 986 | DP14: 826 | DQ14: 446 | DR14: 202 | DS14: 113 | DT14: 66 | DU14: 340 | DV14: 847 | DW14: 496 | DX14: 475 | DY14: 218 | DZ14: 288 | EA14: 68 | EB14: 15 | EC14: 31 | ED14: 15228 | EE14: 62963 | EF14: 50233 | EG14: 13655 | EH14: 101053 | EI14: 3180 | EJ14: 52612 | EK14: 101053 | EL14: 3180 | EM14: 38678 | EN14: 8012 | EO14: 651 | EP14: 3098 | EQ14: 563 | ER14: 1533 | ES14: 3845 | ET14: 3031 | EU14: 6519 | EV14: 6780 | EW14: 8588 | EX14: 6174 | EY14: 1748 | EZ14: 686 | FA14: 317
A15: Sullivan County | B15: 10 | C15: 019 | D15: 344219.12 | E15: 9142.81 | F15: 19532 | G15: 38592 | H15: 10650 | I15: 14873 | J15: 18921 | K15: 19671 | L15: 38221 | M15: 64 | N15: 128 | O15: 146 | P15: 33 | Q15: 165 | R15: 8250 | S15: 4830 | T15: 6025 | U15: 6216 | V15: 4002 | W15: 3593 | X15: 3323 | Y15: 2353 | Z15: 38128 | AA15: 32884 | AB15: 464 | AC15: 2.563571573 | AD15: 3.087699531 | AE15: 3400 | AF15: 8860 | AG15: 1790 | AH15: 823 | AI15: 19532 | AJ15: 14873 | AK15: 4659 | AL15: 10517 | AM15: 4356 | AN15: 598 | AO15: 229 | AP15: 3230 | AQ15: 12252 | AR15: 5070 | AS15: 2210 | AT15: 8319 | AU15: 677 | AV15: 2210 | AW15: 816 | AX15: 3246 | AY15: 294 | AZ15: 2688 | BA15: 5553 | BB15: 4801 | BC15: 6490 | BD15: 248 | BE15: 2399 | BF15: 6310 | BG15: 7366 | BH15: 3209 | BI15: 729 | BJ15: 1416 | BK15: 1373 | BL15: 2686 | BM15: 2901 | BN15: 3221 | BO15: 1911 | BP15: 389 | BQ15: 252 | BR15: 29053 | BS15: 71 | BT15: 57 | BU15: 104 | BV15: 161 | BW15: 181 | BX15: 100 | BY15: 12 | BZ15: 6 | CA15: 0 | CB15: 74 | CC15: 186 | CD15: 209 | CE15: 607 | CF15: 766 | CG15: 740 | CH15: 331 | CI15: 35 | CJ15: 16 | CK15: 114 | CL15: 91 | CM15: 157 | CN15: 515 | CO15: 678 | CP15: 1065 | CQ15: 697 | CR15: 142 | CS15: 50 | CT15: 98 | CU15: 64 | CV15: 87 | CW15: 227 | CX15: 378 | CY15: 549 | CZ15: 373 | DA15: 121 | DB15: 98 | DC15: 68 | DD15: 157 | DE15: 161 | DF15: 456 | DG15: 474 | DH15: 424 | DI15: 304 | DJ15: 55 | DK15: 44 | DL15: 146 | DM15: 354 | DN15: 399 | DO15: 459 | DP15: 321 | DQ15: 278 | DR15: 162 | DS15: 15 | DT15: 39 | DU15: 158 | DV15: 507 | DW15: 256 | DX15: 261 | DY15: 103 | DZ15: 65 | EA15: 32 | EB15: 15 | EC15: 5 | ED15: 6614 | EE15: 25512 | EF15: 19128 | EG15: 4203 | EH15: 37431 | EI15: 1161 | EJ15: 20596 | EK15: 37431 | EL15: 1161 | EM15: 13732 | EN15: 2537 | EO15: 57 | EP15: 715 | EQ15: 300 | ER15: 828 | ES15: 2145 | ET15: 1373 | EU15: 2686 | EV15: 2901 | EW15: 3221 | EX15: 1911 | EY15: 389 | EZ15: 181 | FA15: 71
A18: Census 1990 Data - Query Name: CountySTF1Qry1
A19: NAME | B19: COUSUBFP | C19: Census_Cnty_Code | D19: FIPS | E19: LandAcres | F19: WaterAcres | G19: HousingUnits90Cen | H19: P01Persons90Cen | I19: P02Families90Cen | J19: P03Households90cen | K19: P05MalePop90cen | L19: P05FemalePop90cen | M19: P06WhitePop | N19: P06BlackPop | O19: P06AmerIndianPop | P19: P06AsianPIPop | Q19: P06OtherRacePop | R19: P08HispanicOrPop | S19: P11AgeUnder15_90cen | T19: P11Age15to24_90cen | U19: P11Age25to34_90cen | V19: P11Age35to44_90cen | W19: P11Age45to54_90cen | X19: P11Age55to64_90cen | Y19: P11Age65to74_90cen | Z19: P11Age75andOver_90cen | AA19: P15PersonsInHH90cen | AB19: P15PersonsInFamHH90cen | AC19: P15PersonsInGC | AD19: PersonsPerHH90cen | AE19: PersonsPerFam90Cen | AF19: P16SinglePersonHH90cen | AG19: P16MarriedCoupleHH90cen | AH19: P16SingleParentHH90cen | AI19: P16NonFamilyHH90cen | AJ19: H01TotalHousingUnits | AK19: H02OccupiedHousingUnits | AL19: H02VacantHousingUnits | AM19: H03OwnerOccHU | AN19: H03RenterOccHU | AO19: H05VacantForRent90 | AP19: H05VacantForSale90 | AQ19: H05VacantSeasonalRec | AR19: H23OOHUVal<15k | AS19: H23OOHUVal15to19k | AT19: H23OOHUVal20to24k | AU19: H23OOHUVal25to29k | AV19: H23OOHUVal30to34k | AW19: H23OOHUVal35to39k | AX19: H23OOHUVal40to44k | AY19: H23OOHUVal45to49k | AZ19: H23OOHUVal50to59k | BA19: H23OOHUVal60to74k | BB19: H23OOHUVal75to99k | BC19: H23OOHUVal100to124k | BD19: H23OOHUVal125to149k | BE19: H23OOHUVal150to174k | BF19: H23OOHUVal175to199k | BG19: H23OOHUVal200to249k | BH19: H23OOHUVal250to299k | BI19: H23OOHUVal300to399k | BJ19: H23OOHUVal400to499k | BK19: H23OOHUVal500kOrMore | BL19: H23BOOHUMedVal | BM19: H41SingFamHU90cen | BN19: H41MultiFamHU90cen | BO19: H41MobileHom90cen | BP19: H43SingFamOwnHU90cen | BQ19: H43MultiFamOwnHU90cen | BR19: H43MobileHomOwnHU90cen | BS19: H43SingFamRntrHU90cen | BT19: H43MultiFamRntrHU90cen | BU19: H43MobileHomRntrHU90cen | BV19: H41HU1UnitDet | BW19: H41HU1UnitAtt | BX19: H41HU2Unit | BY19: H41HU3to4Unit | BZ19: H41HU5to9Unit | CA19: H41HU10to19Unit | CB19: H41HU20to49Unit | CC19: H41HU50PlusUnit | CD19: H41HUMobilH | CE19: H41HUOther
A20: Belknap County | B20: 00001 | C20: 001 | D20: 1000 | E20: 257726.29 | F20: 43059.57 | G20: 30306 | H20: 49216 | I20: 13334 | J20: 18839 | K20: 24049 | L20: 25167 | M20: 48788 | N20: 67 | O20: 108 | P20: 216 | Q20: 37 | R20: 245 | S20: 10646 | T20: 5850 | U20: 8129 | V20: 8172 | W20: 5171 | X20: 4505 | Y20: 3998 | Z20: 2745 | AA20: 48516 | AB20: 41511 | AC20: 700 | AD20: 2.575295929 | AE20: 3.113169342 | AF20: 4290 | AG20: 11146 | AH20: 2188 | AI20: 1215 | AJ20: 30306 | AK20: 18839 | AL20: 11467 | AM20: 13475 | AN20: 5364 | AO20: 926 | AP20: 509 | AQ20: 9319 | AR20: 21 | AS20: 18 | AT20: 19 | AU20: 21 | AV20: 31 | AW20: 33 | AX20: 61 | AY20: 61 | AZ20: 217 | BA20: 600 | BB20: 2462 | BC20: 1945 | BD20: 1285 | BE20: 854 | BF20: 494 | BG20: 481 | BH20: 233 | BI20: 221 | BJ20: 92 | BK20: 113 | BL20: 114000 | BM20: 20663 | BN20: 6611 | BO20: 3032 | BP20: 10929 | BQ20: 908 | BR20: 1638 | BS20: 1320 | BT20: 3673 | BU20: 371 | BV20: 20663 | BW20: 1060 | BX20: 1594 | BY20: 1434 | BZ20: 1105 | CA20: 686 | CB20: 577 | CC20: 155 | CD20: 2680 | CE20: 352
A21: Carroll County | B21: 00002 | C21: 003 | D21: 3000 | E21: 598386.76 | F21: 37431.3 | G21: 32146 | H21: 35410 | I21: 9866 | J21: 14253 | K21: 17242 | L21: 18168 | M21: 35150 | N21: 66 | O21: 60 | P21: 106 | Q21: 28 | R21: 132 | S21: 7252 | T21: 3601 | U21: 5663 | V21: 5935 | W21: 3649 | X21: 3611 | Y21: 3367 | Z21: 2332 | AA21: 34971 | AB21: 29480 | AC21: 439 | AD21: 2.453588718 | AE21: 2.988039732 | AF21: 3465 | AG21: 8422 | AH21: 1444 | AI21: 922 | AJ21: 32146 | AK21: 14253 | AL21: 17893 | AM21: 10739 | AN21: 3514 | AO21: 979 | AP21: 526 | AQ21: 15310 | AR21: 39 | AS21: 7 | AT21: 38 | AU21: 23 | AV21: 32 | AW21: 46 | AX21: 65 | AY21: 81 | AZ21: 214 | BA21: 517 | BB21: 1576 | BC21: 1302 | BD21: 1067 | BE21: 712 | BF21: 438 | BG21: 465 | BH21: 257 | BI21: 176 | BJ21: 81 | BK21: 121 | BL21: 119000 | BM21: 23628 | BN21: 5225 | BO21: 3293 | BP21: 8998 | BQ21: 461 | BR21: 1280 | BS21: 1357 | BT21: 1738 | BU21: 419 | BV21: 23628 | BW21: 1680 | BX21: 808 | BY21: 1038 | BZ21: 1092 | CA21: 350 | CB21: 257 | CC21: 0 | CD21: 2570 | CE21: 723
A22: Cheshire County | B22: 00003 | C22: 005 | D22: 5000 | E22: 452910.77 | F22: 13603.12 | G22: 30350 | H22: 70121 | I22: 18155 | J22: 25856 | K22: 33874 | L22: 36247 | M22: 69404 | N22: 207 | O22: 147 | P22: 300 | Q22: 63 | R22: 334 | S22: 14499 | T22: 11465 | U22: 10959 | V22: 10899 | W22: 7127 | X22: 5984 | Y22: 5166 | Z22: 4022 | AA22: 66435 | AB22: 56360 | AC22: 3686 | AD22: 2.569422958 | AE22: 3.104378959 | AF22: 5908 | AG22: 15104 | AH22: 3051 | AI22: 1793 | AJ22: 30350 | AK22: 25856 | AL22: 4494 | AM22: 18215 | AN22: 7641 | AO22: 496 | AP22: 409 | AQ22: 2832 | AR22: 37 | AS22: 23 | AT22: 37 | AU22: 44 | AV22: 66 | AW22: 73 | AX22: 103 | AY22: 111 | AZ22: 359 | BA22: 890 | BB22: 3171 | BC22: 2979 | BD22: 1827 | BE22: 1081 | BF22: 541 | BG22: 564 | BH22: 236 | BI22: 128 | BJ22: 41 | BK22: 36 | BL22: 110600 | BM22: 20069 | BN22: 7535 | BO22: 2746 | BP22: 15087 | BQ22: 1209 | BR22: 1919 | BS22: 1597 | BT22: 5601 | BU22: 443 | BV22: 20069 | BW22: 556 | BX22: 2244 | BY22: 1675 | BZ22: 1455 | CA22: 937 | CB22: 513 | CC22: 155 | CD22: 2408 | CE22: 338
A23: Coos County | B23: 00004 | C23: 007 | D23: 7000 | E23: 1152946.79 | F23: 19021.89 | G23: 18712 | H23: 34828 | I23: 9608 | J23: 13799 | K23: 16884 | L23: 17944 | M23: 34563 | N23: 37 | O23: 62 | P23: 130 | Q23: 36 | R23: 150 | S23: 7054 | T23: 4368 | U23: 5285 | V23: 5107 | W23: 3599 | X23: 3663 | Y23: 3269 | Z23: 2483 | AA23: 34266 | AB23: 29251 | AC23: 562 | AD23: 2.483223422 | AE23: 3.044442132 | AF23: 3539 | AG23: 8070 | AH23: 1538 | AI23: 652 | AJ23: 18712 | AK23: 13799 | AL23: 4913 | AM23: 9698 | AN23: 4101 | AO23: 480 | AP23: 214 | AQ23: 3613 | AR23: 94 | AS23: 81 | AT23: 110 | AU23: 191 | AV23: 216 | AW23: 216 | AX23: 301 | AY23: 275 | AZ23: 667 | BA23: 1260 | BB23: 1636 | BC23: 561 | BD23: 282 | BE23: 185 | BF23: 82 | BG23: 68 | BH23: 15 | BI23: 4 | BJ23: 4 | BK23: 4 | BL23: 71600 | BM23: 11208 | BN23: 5115 | BO23: 2389 | BP23: 7496 | BQ23: 968 | BR23: 1234 | BS23: 614 | BT23: 3219 | BU23: 268 | BV23: 11208 | BW23: 351 | BX23: 1833 | BY23: 1467 | BZ23: 982 | CA23: 261 | CB23: 160 | CC23: 61 | CD23: 1989 | CE23: 400
A24: Grafton County | B24: 00005 | C24: 009 | D24: 9000 | E24: 1096323.55 | F24: 23419.8 | G24: 42206 | H24: 74929 | I24: 18544 | J24: 27542 | K24: 36966 | L24: 37963 | M24: 73395 | N24: 404 | O24: 186 | P24: 831 | Q24: 113 | R24: 599 | S24: 14599 | T24: 14423 | U24: 11835 | V24: 11550 | W24: 7115 | X24: 6121 | Y24: 5200 | Z24: 4086 | AA24: 69187 | AB24: 56838 | AC24: 5742 | AD24: 2.512054317 | AE24: 3.065034513 | AF24: 6717 | AG24: 15430 | AH24: 3114 | AI24: 2281 | AJ24: 42206 | AK24: 27542 | AL24: 14664 | AM24: 18500 | AN24: 9042 | AO24: 1388 | AP24: 899 | AQ24: 10558 | AR24: 58 | AS24: 50 | AT24: 58 | AU24: 87 | AV24: 112 | AW24: 119 | AX24: 197 | AY24: 177 | AZ24: 556 | BA24: 1166 | BB24: 2834 | BC24: 2020 | BD24: 1420 | BE24: 968 | BF24: 525 | BG24: 599 | BH24: 314 | BI24: 276 | BJ24: 113 | BK24: 96 | BL24: 105700 | BM24: 24402 | BN24: 13249 | BO24: 4555 | BP24: 14707 | BQ24: 1271 | BR24: 2522 | BS24: 2033 | BT24: 6411 | BU24: 598 | BV24: 24402 | BW24: 1797 | BX24: 2565 | BY24: 2633 | BZ24: 3120 | CA24: 1832 | CB24: 863 | CC24: 439 | CD24: 3732 | CE24: 823
A25: Hillsborough County | B25: 00006 | C25: 011 | D25: 11000 | E25: 561351.44 | F25: 9800.68 | G25: 135622 | H25: 336073 | I25: 88473 | J25: 124567 | K25: 164450 | L25: 171623 | M25: 326821 | N25: 3001 | O25: 612 | P25: 3816 | Q25: 1823 | R25: 5696 | S25: 73174 | T25: 47337 | U25: 66344 | V25: 55519 | W25: 33981 | X25: 25289 | Y25: 19787 | Z25: 14642 | AA25: 329270 | AB25: 282448 | AC25: 6803 | AD25: 2.643316448 | AE25: 3.192476801 | AF25: 27495 | AG25: 73455 | AH25: 15018 | AI25: 8599 | AJ25: 135622 | AK25: 124567 | AL25: 11055 | AM25: 79363 | AN25: 45204 | AO25: 5649 | AP25: 1807 | AQ25: 1877 | AR25: 100 | AS25: 65 | AT25: 65 | AU25: 76 | AV25: 80 | AW25: 85 | AX25: 120 | AY25: 151 | AZ25: 423 | BA25: 1237 | BB25: 6588 | BC25: 13971 | BD25: 15005 | BE25: 8933 | BF25: 5089 | BG25: 4976 | BH25: 2118 | BI25: 1266 | BJ25: 318 | BK25: 248 | BL25: 137500 | BM25: 71819 | BN25: 59104 | BO25: 4699 | BP25: 63858 | BQ25: 12070 | BR25: 3435 | BS25: 4521 | BT25: 39938 | BU25: 745 | BV25: 71819 | BW25: 6984 | BX25: 12826 | BY25: 11345 | BZ25: 8831 | CA25: 6559 | CB25: 10571 | CC25: 1988 | CD25: 3409 | CE25: 1290
A26: Merrimack County | B26: 00007 | C26: 013 | D26: 13000 | E26: 597481.36 | F26: 13666.33 | G26: 50870 | H26: 120005 | I26: 31801 | J26: 44595 | K26: 58743 | L26: 61262 | M26: 118580 | N26: 451 | O26: 224 | P26: 595 | Q26: 155 | R26: 780 | S26: 25842 | T26: 15682 | U26: 22030 | V26: 20282 | W26: 11952 | X26: 9640 | Y26: 7736 | Z26: 6841 | AA26: 115708 | AB26: 99494 | AC26: 4297 | AD26: 2.594640655 | AE26: 3.128643753 | AF26: 10049 | AG26: 26641 | AH26: 5160 | AI26: 2745 | AJ26: 50870 | AK26: 44595 | AL26: 6275 | AM26: 31088 | AN26: 13507 | AO26: 1927 | AP26: 764 | AQ26: 2772 | AR26: 58 | AS26: 33 | AT26: 50 | AU26: 59 | AV26: 73 | AW26: 78 | AX26: 108 | AY26: 124 | AZ26: 421 | BA26: 1151 | BB26: 4642 | BC26: 5301 | BD26: 3523 | BE26: 2079 | BF26: 1240 | BG26: 1169 | BH26: 511 | BI26: 344 | BJ26: 76 | BK26: 96 | BL26: 117800 | BM26: 30516 | BN26: 15704 | BO26: 4650 | BP26: 24807 | BQ26: 2761 | BR26: 3520 | BS26: 2167 | BT26: 10731 | BU26: 609 | BV26: 30516 | BW26: 1650 | BX26: 3692 | BY26: 3052 | BZ26: 2420 | CA26: 1918 | CB26: 2529 | CC26: 443 | CD26: 4072 | CE26: 578
A27: New Hampshire | B27: 00000 | D27: 0 | E27: 5742660.16 | F27: 197882.72 | G27: 503904 | H27: 1109252 | I27: 292601 | J27: 411186 | K27: 543544 | L27: 565708 | M27: 1087433 | N27: 7198 | O27: 2134 | P27: 9343 | Q27: 3144 | R27: 11333 | S27: 236931 | T27: 159426 | U27: 204823 | V27: 182632 | W27: 112215 | X27: 88196 | Y27: 71471 | Z27: 53558 | AA27: 1077101 | AB27: 921929 | AC27: 32151 | AD27: 2.619498232 | AE27: 3.150806046 | AF27: 90364 | AG27: 245307 | AH27: 47294 | AI27: 28221 | AJ27: 503904 | AK27: 411186 | AL27: 92718 | AM27: 280372 | AN27: 130814 | AO27: 17435 | AP27: 7648 | AQ27: 57135 | AR27: 575 | AS27: 353 | AT27: 489 | AU27: 623 | AV27: 782 | AW27: 861 | AX27: 1269 | AY27: 1310 | AZ27: 3848 | BA27: 9375 | BB27: 32371 | BC27: 41022 | BD27: 38883 | BE27: 25281 | BF27: 14656 | BG27: 14723 | BH27: 6365 | BI27: 4028 | BJ27: 1254 | BK27: 1290 | BL27: 129400 | BM27: 297777 | BN27: 164184 | BO27: 41943 | BP27: 222953 | BQ27: 29421 | BR27: 27998 | BS27: 20252 | BT27: 105000 | BU27: 5562 | BV27: 297777 | BW27: 23072 | BX27: 35672 | BY27: 32433 | BZ27: 26985 | CA27: 18595 | CB27: 22036 | CC27: 5391 | CD27: 35334 | CE27: 6609
A28: Rockingham County | B28: 00008 | C28: 015 | D28: 15000 | E28: 446221.18 | F28: 18969.44 | G28: 101773 | H28: 245845 | I28: 65939 | J28: 89118 | K28: 121947 | L28: 123898 | M28: 240203 | N28: 2326 | O28: 395 | P28: 2266 | Q28: 655 | R28: 2395 | S28: 54611 | T28: 31587 | U28: 49114 | V28: 44045 | W28: 26099 | X28: 17789 | Y28: 13208 | Z28: 9392 | AA28: 242781 | AB28: 212093 | AC28: 3064 | AD28: 2.724264458 | AE28: 3.216503132 | AF28: 17236 | AG28: 56520 | AH28: 9419 | AI28: 5943 | AJ28: 101773 | AK28: 89118 | AL28: 12655 | AM28: 64324 | AN28: 24794 | AO28: 3420 | AP28: 1634 | AQ28: 5830 | AR28: 77 | AS28: 29 | AT28: 31 | AU28: 37 | AV28: 48 | AW28: 48 | AX28: 87 | AY28: 79 | AZ28: 303 | BA28: 725 | BB28: 3636 | BC28: 7717 | BD28: 11085 | BE28: 8479 | BF28: 5187 | BG28: 5399 | BH28: 2254 | BI28: 1421 | BJ28: 450 | BK28: 491 | BL28: 149800 | BM28: 61147 | BN28: 31688 | BO28: 8938 | BP28: 50555 | BQ28: 7034 | BR28: 6735 | BS28: 4106 | BT28: 19460 | BU28: 1228 | BV28: 61147 | BW28: 7105 | BX28: 5445 | BY28: 4615 | BZ28: 4437 | CA28: 4336 | CB28: 4732 | CC28: 1018 | CD28: 7722 | CE28: 1216
A29: Strafford County | B29: 00009 | C29: 017 | D29: 17000 | E29: 235092.87 | F29: 9767.73 | G29: 42387 | H29: 104233 | I29: 26231 | J29: 37744 | K29: 50468 | L29: 53765 | M29: 102308 | N29: 575 | O29: 212 | P29: 937 | Q29: 201 | R29: 837 | S29: 21004 | T29: 20283 | U29: 19439 | V29: 14907 | W29: 9520 | X29: 8001 | Y29: 6417 | Z29: 4662 | AA29: 97839 | AB29: 81570 | AC29: 6394 | AD29: 2.592173591 | AE29: 3.109679387 | AF29: 8265 | AG29: 21659 | AH29: 4572 | AI29: 3248 | AJ29: 42387 | AK29: 37744 | AL29: 4643 | AM29: 24453 | AN29: 13291 | AO29: 1572 | AP29: 657 | AQ29: 1794 | AR29: 55 | AS29: 23 | AT29: 47 | AU29: 43 | AV29: 52 | AW29: 91 | AX29: 98 | AY29: 129 | AZ29: 273 | BA29: 817 | BB29: 3766 | BC29: 4219 | BD29: 2808 | BE29: 1642 | BF29: 846 | BG29: 821 | BH29: 350 | BI29: 150 | BJ29: 42 | BK29: 48 | BL29: 116400 | BM29: 22073 | BN29: 14883 | BO29: 5431 | BP29: 18197 | BQ29: 2062 | BR29: 4194 | BS29: 1721 | BT29: 10983 | BU29: 587 | BV29: 22073 | BW29: 1229 | BX29: 3418 | BY29: 3861 | BZ29: 2679 | CA29: 1407 | CB29: 1434 | CC29: 855 | CD29: 4843 | CE29: 588
A30: Sullivan County | B30: 00010 | C30: 019 | D30: 19000 | E30: 344219.12 | F30: 9142.81 | G30: 19532 | H30: 38592 | I30: 10650 | J30: 14873 | K30: 18921 | L30: 19671 | M30: 38221 | N30: 64 | O30: 128 | P30: 146 | Q30: 33 | R30: 165 | S30: 8250 | T30: 4830 | U30: 6025 | V30: 6216 | W30: 4002 | X30: 3593 | Y30: 3323 | Z30: 2353 | AA30: 38128 | AB30: 32884 | AC30: 464 | AD30: 2.563571573 | AE30: 3.087699531 | AF30: 3400 | AG30: 8860 | AH30: 1790 | AI30: 823 | AJ30: 19532 | AK30: 14873 | AL30: 4659 | AM30: 10517 | AN30: 4356 | AO30: 598 | AP30: 229 | AQ30: 3230 | AR30: 36 | AS30: 24 | AT30: 34 | AU30: 42 | AV30: 72 | AW30: 72 | AX30: 129 | AY30: 122 | AZ30: 415 | BA30: 1012 | BB30: 2060 | BC30: 1007 | BD30: 581 | BE30: 348 | BF30: 214 | BG30: 181 | BH30: 77 | BI30: 42 | BJ30: 37 | BK30: 37 | BL30: 90900 | BM30: 12252 | BN30: 5070 | BO30: 2210 | BP30: 8319 | BQ30: 677 | BR30: 1521 | BS30: 816 | BT30: 3246 | BU30: 294 | BV30: 12252 | BW30: 660 | BX30: 1247 | BY30: 1313 | BZ30: 864 | CA30: 309 | CB30: 400 | CC30: 277 | CD30: 1909 | CE30: 301
M32: 5281
L33: 16926 | M33: 17095
A34: Census 1990 Data - Query Name: CountySTF3Qry1
A36: NAME | B36: FIPS | C36: COUSUBFP | D36: LandAcres | E36: WaterAcres | F36: HousingUnits90Cen | G36: P01Persons90Cen | H36: P02Families90Cen | I36: P03Households90cen | J36: H25HU<5yrs90cen | K36: H25HU5to20yrs90cen | L36: H25HU20to50yrs90cen | M36: H25HU>50yrs90cen | N36: H31Units0Bedroom90cen | O36: H31Units1Bedroom90cen | P36: H31Units2Bedroom90cen | Q36: H31Units3Bedroom90cen | R36: H31Units4Bedroom90cen | S36: H31Units5+Bedroom90cen | T36: P80HI<5K | U36: P80HI5Kto10K | V36: P80HI10Kto15K | W36: P80HI15Kto25K | X36: P80HI25Kto35K | Y36: P80HI35Kto50K | Z36: P80HI50Kto75K | AA36: P80HI75Kto100K | AB36: P80HI>100K | AC36: P80AMedHI | AD36: P86HH<25HI<5K | AE36: P86HH<25HI5Kto10K | AF36: P86HH<25HI10Kto15K | AG36: P86HH<25HI15Kto25K | AH36: P86HH<25HI25Kto35K | AI36: P86HH<25HI35Kto50K | AJ36: P86HH<25HI50Kto75K | AK36: P86HH<25HI75Kto100K | AL36: P86HH<25HI>100K | AM36: P86HH25to34HI<5K | AN36: P86HH25to34HI5Kto10K | AO36: P86HH25to34HI10Kto15K | AP36: P86HH25to34HI15Kto25K | AQ36: P86HH25to34HI25Kto35K | AR36: P86HH25to34HI35Kto50K | AS36: P86HH25to34HI50Kto75K | AT36: P86HH25to34HI75Kto100K | AU36: P86HH25to34HI>100K | AV36: P86HH35to44HI<5K | AW36: P86HH35to44HI5Kto10K | AX36: P86HH35to44HI10Kto15K | AY36: P86HH35to44HI15Kto25K | AZ36: P86HH35to44HI25Kto35K | BA36: P86HH35to44HI35Kto50K | BB36: P86HH35to44HI50Kto75K | BC36: P86HH35to44HI75Kto100K | BD36: P86HH35to44HI>100K | BE36: P86HH45to54HI<5K | BF36: P86HH45to54HI5Kto10K | BG36: P86HH45to54HI10Kto15K | BH36: P86HH45to54HI15Kto25K | BI36: P86HH45to54HI25Kto35K | BJ36: P86HH45to54HI35Kto50K | BK36: P86HH45to54HI50Kto75K | BL36: P86HH45to54HI75Kto100K | BM36: P86HH45to54HI>100K | BN36: P86HH55to64HI<5K | BO36: P86HH55to64HI5Kto10K | BP36: P86HH55to64HI10Kto15K | BQ36: P86HH55to64HI15Kto25K | BR36: P86HH55to64HI25Kto35K | BS36: P86HH55to64HI35Kto50K | BT36: P86HH55to64HI50Kto75K | BU36: P86HH55to64HI75Kto100K | BV36: P86HH55to64HI>100K | BW36: P86HH65to74HI<5K | BX36: P86HH65to74HI5Kto10K | BY36: P86HH65to74HI10Kto15K | BZ36: P86HH65to74HI15Kto25K | CA36: P86HH65to74HI25Kto35K | CB36: P86HH65to74HI35Kto50K | CC36: P86HH65to74HI50Kto75K | CD36: P86HH65to74HI75Kto100K | CE36: P86HH65to74HI>100K | CF36: P86HH>75HI<5K | CG36: P86HH>75HI5Kto10K | CH36: P86HH>75HI10Kto15K | CI36: P86HH>75HI15Kto25K | CJ36: P86HH>75HI25Kto35K | CK36: P86HH>75HI35Kto50K | CL36: P86HH>75HI50Kto75K | CM36: P86HH>75HI75Kto100K | CN36: P86HH>75HI>100K | CO36: P54SchlEnrlPrePrim | CP36: P54SchlEnrlElemThrHS | CQ36: P54SchlEnrlCollege | CR36: P54NotEnrlInSch | CS36: P57Pop25andOver | CT36: P57LessThan9thGrade | CU36: P579thto12thNoDip | CV36: P57HSGrad | CW36: P57SomeCollege | CX36: P57AssocDeg | CY36: P57BachelDeg | CZ36: P57GradorProfDeg | DA36: P57HSGradorHigher | DB36: P57CollGradorHigher | DC36: P42NativePop | DD36: P42ForeignBornPop | DE36: P42BornStateOfRes | DF36: P37NativePop2 | DG36: P37ForeignBornPop2 | DH36: P49DroveAlone | DI36: P49CarPooled | DJ36: P49PublicTranspt | DK36: P49Walked | DL36: P49OtherMeans | DM36: P49WorkedAtHome | DN36: P80HHInc<10K | DO36: P80HHInc10to15K | DP36: P80HHInc15to25K | DQ36: P80HHInc25to35K | DR36: P80HHInc35to50K | DS36: P80HHInc50to75K | DT36: P80HHInc75to100K | DU36: P80HHInc100to150K | DV36: P80HHInc>150K | DW36: H25YearStBlt89to90 | DX36: H25YearStBlt85to88 | DY36: H25YearStBlt80to84 | DZ36: H25YearStBlt70to79 | EA36: H25YearStBlt60to69 | EB36: H25YearStBlt50to59 | EC36: H25YearStBlt40to49 | ED36: H25YearStBlt39earlier | EE36: P107FamInc<10K | EF36: P107FamInc10to15K | EG36: P107FamInc15to25K | EH36: P107FamInc25to35K | EI36: P107FamInc35to50K | EJ36: P107FamInc50to75K | EK36: P107FamInc75to100K | EL36: P107FamInc100to150K | EM36: P107FamInc>150K | EN36: P107AMedFamInc | EO36: P110NonFamInc<10K | EP36: P110NonFamInc10to15K | EQ36: P110NonFamInc15to25K | ER36: P110NonFamInc25to35K | ES36: P110NonFamInc35to50K | ET36: P110NonFamInc50to75K | EU36: P110NonFamInc75to100K | EV36: P110NonFamInc100to150K | EW36: P110NonFamInc>150K | EX36: P110AMedNonFamInc | EY36: H16HU1Room | EZ36: H16HU2Room | FA36: H16HU3Room | FB36: H16HU4Room | FC36: H16HU5Room | FD36: H16HU6Room | FE36: H16HU7Room | FF36: H16HU8Room | FG36: H16HU9+Room | FH36: H43GrossRnt<100 | FI36: H43GrossRnt100to149 | FJ36: H43GrossRnt150to199 | FK36: H43GrossRnt200to249 | FL36: H43GrossRnt250to299 | FM36: H43GrossRnt300to349 | FN36: H43GrossRnt350to399 | FO36: H43GrossRnt400to449 | FP36: H43GrossRnt450to499 | FQ36: H43GrossRnt500to549 | FR36: H43GrossRnt550to599 | FS36: H43GrossRnt600to649 | FT36: H43GrossRnt650to699 | FU36: H43GrossRnt700to749 | FV36: H43GrossRnt750to999 | FW36: H43GrossRnt1000Plus | FX36: H43NoCashRent | FY36: H43MedGrossRent | FZ36: H51GrossRnt<20PctHHInc | GA36: H51GrossRnt20to24PctHHInc | GB36: H51GrossRnt25to29PctHHInc | GC36: H51GrossRnt30to34PctHHInc | GD36: H51GrossRnt35PctOrMoreHHInc | GE36: H51GrossRntAsPctHHIncNotComp | GF36: H52HUwMtgMoOwnCst<200 | GG36: H52HUwMtgMoOwnCst200to299 | GH36: H52HUwMtgMoOwnCst300to399 | GI36: H52HUwMtgMoOwnCst400to499 | GJ36: H52HUwMtgMoOwnCst500to599 | GK36: H52HUwMtgMoOwnCst600to699 | GL36: H52HUwMtgMoOwnCst700to799 | GM36: H52HUwMtgMoOwnCst800to899 | GN36: H52HUwMtgMoOwnCst900to999 | GO36: H52HUwMtgMoOwnCst1000to1249 | GP36: H52HUwMtgMoOwnCst1250to1499 | GQ36: H52HUwMtgMoOwnCst1500to1999 | GR36: H52HUwMtgMoOwnCst2000More | GS36: H52HUwNoMtgMoOwnCst<100 | GT36: H52HUwNoMtgMoOwnCst100to149 | GU36: H52HUwNoMtgMoOwnCst150to199 | GV36: H52HUwNoMtgMoOwnCst200to249 | GW36: H52HUwNoMtgMoOwnCst250to299 | GX36: H52HUwNoMtgMoOwnCst300to349 | GY36: H52HUwNoMtgMoOwnCst350to399 | GZ36: H52HUwNoMtgMoOwnCst400More | HA36: H52AMedMoOwnCstWMortg | HB36: H52AMedMoOwnCstWNoMortg | HC36: H58HUwMtgMOC<20pHHInc | HD36: H58HUwMtgMOC20to24pHHInc | HE36: H58HUwMtgMOC25to29pHHInc | HF36: H58HUwMtgMOC30to34pHHInc | HG36: H58wMtgMOC>35pHHInc | HH36: H58HUwMtgMOCNotComp | HI36: H58HUwNoMtgMOC<20pHHInc | HJ36: H58HUwNoMtgMOC20to24pHHInc | HK36: H58HUwNoMtgMOC25to29pHHInc | HL36: H58HUwNoMtgMOC30to34pHHInc | HM36: H58wNoMtgMOC>35pHHInc | HN36: H58HUwNoMtgMOCNotComp | HO36: H61OOHUVal<15k | HP36: H61OOHUVal15to19k | HQ36: H61OOHUVal20to24k | HR36: H61OOHUVal25to29k | HS36: H61OOHUVal30to34k | HT36: H61OOHUVal35to39k | HU36: H61OOHUVal40to44k | HV36: H61OOHUVal45to49k | HW36: H61OOHUVal50to59k | HX36: H61OOHUVal60to74k | HY36: H61OOHUVal75to99k | HZ36: H61OOHUVal100to124k | IA36: H61OOHUVal125to149k | IB36: H61OOHUVal150to174k | IC36: H61OOHUVal175to199k | ID36: H61OOHUVal200to249k | IE36: H61OOHUVal250to299k | IF36: H61OOHUVal300to399k | IG36: H61OOHUVal400to499k | IH36: H61OOHUVal500kOrMore | II36: H61aOOHUMedVal
A37: Belknap County | B37: 1000 | C37: 00001 | D37: 257726.29 | E37: 43059.57 | F37: 30306 | G37: 49216 | H37: 13334 | I37: 18839 | J37: 5753 | K37: 9987 | L37: 6299 | M37: 8267 | N37: 260 | O37: 3171 | P37: 10370 | Q37: 12116 | R37: 3388 | S37: 1001 | T37: 612 | U37: 1464 | V37: 1495 | W37: 3626 | X37: 3287 | Y37: 4037 | Z37: 3131 | AA37: 625 | AB37: 613 | AC37: 31474 | AD37: 56 | AE37: 92 | AF37: 100 | AG37: 210 | AH37: 143 | AI37: 153 | AJ37: 44 | AK37: 9 | AL37: 2 | AM37: 98 | AN37: 171 | AO37: 189 | AP37: 739 | AQ37: 932 | AR37: 1025 | AS37: 607 | AT37: 78 | AU37: 50 | AV37: 38 | AW37: 88 | AX37: 192 | AY37: 729 | AZ37: 893 | BA37: 1256 | BB37: 1051 | BC37: 217 | BD37: 179 | BE37: 44 | BF37: 69 | BG37: 120 | BH37: 432 | BI37: 442 | BJ37: 650 | BK37: 733 | BL37: 149 | BM37: 211 | BN37: 108 | BO37: 168 | BP37: 207 | BQ37: 499 | BR37: 404 | BS37: 530 | BT37: 429 | BU37: 119 | BV37: 100 | BW37: 94 | BX37: 388 | BY37: 314 | BZ37: 634 | CA37: 358 | CB37: 353 | CC37: 199 | CD37: 47 | CE37: 46 | CF37: 174 | CG37: 488 | CH37: 373 | CI37: 383 | CJ37: 115 | CK37: 70 | CL37: 68 | CM37: 6 | CN37: 25 | CO37: 997 | CP37: 8363 | CQ37: 2048 | CR37: 35692 | CS37: 32809 | CT37: 2181 | CU37: 4256 | CV37: 11253 | CW37: 5739 | CX37: 2664 | CY37: 4700 | CZ37: 2016 | DA37: 26372 | DB37: 6716 | DC37: 48051 | DD37: 1165 | DE37: 27389 | DF37: 48051 | DG37: 1165 | DH37: 18623 | DI37: 2995 | DJ37: 71 | DK37: 814 | DL37: 161 | DM37: 1125 | DN37: 2076 | DO37: 1495 | DP37: 3626 | DQ37: 3287 | DR37: 4037 | DS37: 3131 | DT37: 625 | DU37: 403 | DV37: 210 | DW37: 680 | DX37: 5073 | DY37: 3845 | DZ37: 6142 | EA37: 2839 | EB37: 1970 | EC37: 1490 | ED37: 8267 | EE37: 633 | EF37: 802 | EG37: 2328 | EH37: 2582 | EI37: 3350 | EJ37: 2693 | EK37: 530 | EL37: 341 | EM37: 189 | EN37: 36260 | EO37: 1483 | EP37: 729 | EQ37: 1434 | ER37: 727 | ES37: 574 | ET37: 345 | EU37: 67 | EV37: 64 | EW37: 19 | EX37: 18421 | EY37: 217 | EZ37: 853 | FA37: 2656 | FB37: 6089 | FC37: 6969 | FD37: 5768 | FE37: 3521 | FF37: 2103 | FG37: 2130 | FH37: 40 | FI37: 180 | FJ37: 126 | FK37: 194 | FL37: 117 | FM37: 241 | FN37: 444 | FO37: 456 | FP37: 530 | FQ37: 543 | FR37: 465 | FS37: 357 | FT37: 329 | FU37: 245 | FV37: 448 | FW37: 149 | FX37: 364 | FY37: 510 | FZ37: 1329 | GA37: 715 | GB37: 756 | GC37: 508 | GD37: 1511 | GE37: 409 | GF37: 10 | GG37: 95 | GH37: 283 | GI37: 450 | GJ37: 524 | GK37: 724 | GL37: 763 | GM37: 665 | GN37: 566 | GO37: 1086 | GP37: 528 | GQ37: 294 | GR37: 217 | GS37: 35 | GT37: 118 | GU37: 336 | GV37: 623 | GW37: 718 | GX37: 427 | GY37: 297 | GZ37: 596 | HA37: 838 | HB37: 282 | HC37: 2134 | HD37: 1211 | HE37: 954 | HF37: 562 | HG37: 1339 | HH37: 5 | HI37: 2143 | HJ37: 271 | HK37: 189 | HL37: 131 | HM37: 364 | HN37: 52 | HO37: 12 | HP37: 39 | HQ37: 15 | HR37: 26 | HS37: 28 | HT37: 58 | HU37: 86 | HV37: 31 | HW37: 236 | HX37: 573 | HY37: 2547 | HZ37: 1910 | IA37: 1308 | IB37: 910 | IC37: 476 | ID37: 493 | IE37: 190 | IF37: 195 | IG37: 130 | IH37: 92 | II37: 113400
A38: Carroll County | B38: 3000 | C38: 00002 | D38: 598386.76 | E38: 37431.3 | F38: 32146 | G38: 35410 | H38: 9866 | I38: 14253 | J38: 7085 | K38: 10093 | L38: 6703 | M38: 8265 | N38: 424 | O38: 2726 | P38: 10993 | Q38: 12646 | R38: 3915 | S38: 1442 | T38: 601 | U38: 1105 | V38: 1529 | W38: 2996 | X38: 2688 | Y38: 2503 | Z38: 1922 | AA38: 537 | AB38: 402 | AC38: 28145 | AD38: 23 | AE38: 34 | AF38: 52 | AG38: 139 | AH38: 155 | AI38: 46 | AJ38: 32 | AK38: 0 | AL38: 2 | AM38: 52 | AN38: 149 | AO38: 241 | AP38: 714 | AQ38: 704 | AR38: 566 | AS38: 263 | AT38: 41 | AU38: 75 | AV38: 84 | AW38: 92 | AX38: 300 | AY38: 640 | AZ38: 605 | BA38: 765 | BB38: 596 | BC38: 192 | BD38: 86 | BE38: 100 | BF38: 54 | BG38: 111 | BH38: 345 | BI38: 348 | BJ38: 425 | BK38: 447 | BL38: 98 | BM38: 92 | BN38: 87 | BO38: 147 | BP38: 164 | BQ38: 406 | BR38: 378 | BS38: 340 | BT38: 273 | BU38: 127 | BV38: 93 | BW38: 108 | BX38: 316 | BY38: 421 | BZ38: 483 | CA38: 340 | CB38: 275 | CC38: 194 | CD38: 61 | CE38: 38 | CF38: 147 | CG38: 313 | CH38: 240 | CI38: 269 | CJ38: 158 | CK38: 86 | CL38: 117 | CM38: 18 | CN38: 16 | CO38: 729 | CP38: 5555 | CQ38: 1139 | CR38: 26622 | CS38: 24618 | CT38: 1348 | CU38: 2704 | CV38: 8077 | CW38: 4555 | CX38: 2180 | CY38: 4135 | CZ38: 1619 | DA38: 20566 | DB38: 5754 | DC38: 34591 | DD38: 819 | DE38: 14271 | DF38: 34591 | DG38: 819 | DH38: 12691 | DI38: 1790 | DJ38: 64 | DK38: 744 | DL38: 150 | DM38: 1160 | DN38: 1706 | DO38: 1529 | DP38: 2996 | DQ38: 2688 | DR38: 2503 | DS38: 1922 | DT38: 537 | DU38: 249 | DV38: 153 | DW38: 972 | DX38: 6113 | DY38: 3193 | DZ38: 6900 | EA38: 3442 | EB38: 1637 | EC38: 1624 | ED38: 8265 | EE38: 608 | EF38: 892 | EG38: 1944 | EH38: 1997 | EI38: 1995 | EJ38: 1646 | EK38: 448 | EL38: 227 | EM38: 132 | EN38: 32308 | EO38: 1163 | EP38: 656 | EQ38: 1070 | ER38: 680 | ES38: 488 | ET38: 238 | EU38: 56 | EV38: 24 | EW38: 19 | EX38: 17423 | EY38: 358 | EZ38: 969 | FA38: 2392 | FB38: 6443 | FC38: 7404 | FD38: 5733 | FE38: 3993 | FF38: 2245 | FG38: 2609 | FH38: 12 | FI38: 71 | FJ38: 59 | FK38: 132 | FL38: 124 | FM38: 170 | FN38: 216 | FO38: 248 | FP38: 270 | FQ38: 390 | FR38: 328 | FS38: 190 | FT38: 183 | FU38: 197 | FV38: 285 | FW38: 59 | FX38: 377 | FY38: 521 | FZ38: 734 | GA38: 454 | GB38: 475 | GC38: 291 | GD38: 966 | GE38: 391 | GF38: 11 | GG38: 70 | GH38: 295 | GI38: 385 | GJ38: 628 | GK38: 560 | GL38: 485 | GM38: 391 | GN38: 269 | GO38: 571 | GP38: 241 | GQ38: 185 | GR38: 161 | GS38: 54 | GT38: 195 | GU38: 459 | GV38: 622 | GW38: 550 | GX38: 415 | GY38: 296 | GZ38: 410 | HA38: 736 | HB38: 265 | HC38: 1334 | HD38: 689 | HE38: 655 | HF38: 417 | HG38: 1124 | HH38: 33 | HI38: 2029 | HJ38: 302 | HK38: 153 | HL38: 64 | HM38: 431 | HN38: 22 | HO38: 20 | HP38: 3 | HQ38: 35 | HR38: 16 | HS38: 32 | HT38: 30 | HU38: 50 | HV38: 87 | HW38: 229 | HX38: 546 | HY38: 1609 | HZ38: 1296 | IA38: 1069 | IB38: 595 | IC38: 463 | ID38: 563 | IE38: 241 | IF38: 206 | IG38: 62 | IH38: 101 | II38: 118700
A39: Cheshire County | B39: 5000 | C39: 00003 | D39: 452910.77 | E39: 13603.12 | F39: 30350 | G39: 70121 | H39: 18155 | I39: 25856 | J39: 4054 | K39: 7995 | L39: 7270 | M39: 11031 | N39: 419 | O39: 3799 | P39: 9203 | Q39: 11711 | R39: 3903 | S39: 1315 | T39: 875 | U39: 2137 | V39: 2201 | W39: 4441 | X39: 4752 | Y39: 5215 | Z39: 4493 | AA39: 1025 | AB39: 740 | AC39: 31648 | AD39: 91 | AE39: 99 | AF39: 215 | AG39: 339 | AH39: 359 | AI39: 236 | AJ39: 84 | AK39: 8 | AL39: 0 | AM39: 96 | AN39: 254 | AO39: 280 | AP39: 905 | AQ39: 1232 | AR39: 1384 | AS39: 834 | AT39: 88 | AU39: 52 | AV39: 114 | AW39: 130 | AX39: 243 | AY39: 782 | AZ39: 1108 | BA39: 1612 | BB39: 1562 | BC39: 238 | BD39: 241 | BE39: 114 | BF39: 106 | BG39: 124 | BH39: 520 | BI39: 617 | BJ39: 871 | BK39: 1087 | BL39: 364 | BM39: 164 | BN39: 97 | BO39: 164 | BP39: 268 | BQ39: 687 | BR39: 655 | BS39: 591 | BT39: 603 | BU39: 210 | BV39: 191 | BW39: 163 | BX39: 565 | BY39: 567 | BZ39: 708 | CA39: 466 | CB39: 336 | CC39: 230 | CD39: 96 | CE39: 86 | CF39: 200 | CG39: 819 | CH39: 504 | CI39: 500 | CJ39: 315 | CK39: 185 | CL39: 93 | CM39: 21 | CN39: 6 | CO39: 1360 | CP39: 11397 | CQ39: 6219 | CR39: 48204 | CS39: 44193 | CT39: 3095 | CU39: 5399 | CV39: 15090 | CW39: 7037 | CX39: 3015 | CY39: 6972 | CZ39: 3585 | DA39: 35699 | DB39: 10557 | DC39: 68501 | DD39: 1620 | DE39: 31002 | DF39: 68501 | DG39: 1620 | DH39: 27144 | DI39: 4004 | DJ39: 107 | DK39: 2092 | DL39: 480 | DM39: 1401 | DN39: 3012 | DO39: 2201 | DP39: 4441 | DQ39: 4752 | DR39: 5215 | DS39: 4493 | DT39: 1025 | DU39: 543 | DV39: 197 | DW39: 1006 | DX39: 3048 | DY39: 2600 | DZ39: 5395 | EA39: 3569 | EB39: 2265 | EC39: 1436 | ED39: 11031 | EE39: 1044 | EF39: 1083 | EG39: 2855 | EH39: 3592 | EI39: 4339 | EJ39: 3839 | EK39: 886 | EL39: 486 | EM39: 158 | EN39: 36556 | EO39: 2083 | EP39: 1151 | EQ39: 1645 | ER39: 1220 | ES39: 797 | ET39: 518 | EU39: 114 | EV39: 49 | EW39: 20 | EX39: 18272 | EY39: 354 | EZ39: 1015 | FA39: 2720 | FB39: 5574 | FC39: 6573 | FD39: 5682 | FE39: 3792 | FF39: 2181 | FG39: 2459 | FH39: 74 | FI39: 253 | FJ39: 272 | FK39: 236 | FL39: 260 | FM39: 369 | FN39: 420 | FO39: 654 | FP39: 638 | FQ39: 881 | FR39: 741 | FS39: 600 | FT39: 612 | FU39: 283 | FV39: 395 | FW39: 242 | FX39: 356 | FY39: 516 | FZ39: 1762 | GA39: 1070 | GB39: 1011 | GC39: 789 | GD39: 2241 | GE39: 413 | GF39: 21 | GG39: 83 | GH39: 351 | GI39: 618 | GJ39: 907 | GK39: 884 | GL39: 977 | GM39: 844 | GN39: 746 | GO39: 1397 | GP39: 780 | GQ39: 427 | GR39: 142 | GS39: 32 | GT39: 130 | GU39: 329 | GV39: 551 | GW39: 863 | GX39: 820 | GY39: 528 | GZ39: 907 | HA39: 829 | HB39: 311 | HC39: 2988 | HD39: 1380 | HE39: 1270 | HF39: 757 | HG39: 1756 | HH39: 26 | HI39: 2679 | HJ39: 343 | HK39: 283 | HL39: 164 | HM39: 648 | HN39: 43 | HO39: 46 | HP39: 12 | HQ39: 35 | HR39: 48 | HS39: 89 | HT39: 62 | HU39: 92 | HV39: 131 | HW39: 299 | HX39: 880 | HY39: 3171 | HZ39: 2965 | IA39: 1888 | IB39: 1078 | IC39: 493 | ID39: 602 | IE39: 233 | IF39: 139 | IG39: 29 | IH39: 45 | II39: 111000
A40: Coos County | B40: 7000 | C40: 00004 | D40: 1152946.79 | E40: 19021.89 | F40: 18712 | G40: 34828 | H40: 9608 | I40: 13799 | J40: 2140 | K40: 4173 | L40: 4180 | M40: 8219 | N40: 424 | O40: 2516 | P40: 6270 | Q40: 6773 | R40: 1947 | S40: 782 | T40: 888 | U40: 1605 | V40: 1572 | W40: 2616 | X40: 2335 | Y40: 2768 | Z40: 1539 | AA40: 292 | AB40: 205 | AC40: 25897 | AD40: 90 | AE40: 88 | AF40: 140 | AG40: 177 | AH40: 176 | AI40: 78 | AJ40: 11 | AK40: 2 | AL40: 7 | AM40: 81 | AN40: 132 | AO40: 155 | AP40: 621 | AQ40: 569 | AR40: 719 | AS40: 217 | AT40: 24 | AU40: 27 | AV40: 80 | AW40: 74 | AX40: 190 | AY40: 453 | AZ40: 472 | BA40: 814 | BB40: 601 | BC40: 87 | BD40: 78 | BE40: 85 | BF40: 147 | BG40: 127 | BH40: 253 | BI40: 371 | BJ40: 478 | BK40: 382 | BL40: 82 | BM40: 46 | BN40: 118 | BO40: 148 | BP40: 183 | BQ40: 380 | BR40: 376 | BS40: 484 | BT40: 240 | BU40: 83 | BV40: 34 | BW40: 180 | BX40: 454 | BY40: 429 | BZ40: 521 | CA40: 265 | CB40: 150 | CC40: 78 | CD40: 12 | CE40: 13 | CF40: 254 | CG40: 562 | CH40: 348 | CI40: 211 | CJ40: 106 | CK40: 45 | CL40: 10 | CM40: 2 | CN40: 0 | CO40: 610 | CP40: 5875 | CQ40: 1175 | CR40: 25893 | CS40: 23406 | CT40: 3191 | CU40: 3837 | CV40: 9699 | CW40: 2603 | CX40: 1509 | CY40: 1722 | CZ40: 845 | DA40: 16378 | DB40: 2567 | DC40: 33046 | DD40: 1782 | DE40: 23627 | DF40: 33046 | DG40: 1782 | DH40: 10869 | DI40: 2039 | DJ40: 55 | DK40: 1307 | DL40: 247 | DM40: 540 | DN40: 2493 | DO40: 1572 | DP40: 2616 | DQ40: 2335 | DR40: 2768 | DS40: 1539 | DT40: 292 | DU40: 150 | DV40: 55 | DW40: 464 | DX40: 1676 | DY40: 1048 | DZ40: 3125 | EA40: 1540 | EB40: 1631 | EC40: 1009 | ED40: 8219 | EE40: 783 | EF40: 982 | EG40: 1842 | EH40: 1854 | EI40: 2418 | EJ40: 1357 | EK40: 290 | EL40: 120 | EM40: 47 | EN40: 31593 | EO40: 1777 | EP40: 661 | EQ40: 761 | ER40: 449 | ES40: 328 | ET40: 123 | EU40: 3 | EV40: 23 | EW40: 2 | EX40: 11952 | EY40: 388 | EZ40: 692 | FA40: 2213 | FB40: 4088 | FC40: 4380 | FD40: 3112 | FE40: 1611 | FF40: 1082 | FG40: 1146 | FH40: 100 | FI40: 215 | FJ40: 220 | FK40: 325 | FL40: 479 | FM40: 653 | FN40: 692 | FO40: 340 | FP40: 352 | FQ40: 107 | FR40: 120 | FS40: 33 | FT40: 10 | FU40: 17 | FV40: 43 | FW40: 10 | FX40: 260 | FY40: 340 | FZ40: 1127 | GA40: 512 | GB40: 506 | GC40: 336 | GD40: 1214 | GE40: 281 | GF40: 13 | GG40: 100 | GH40: 320 | GI40: 664 | GJ40: 602 | GK40: 690 | GL40: 413 | GM40: 284 | GN40: 139 | GO40: 188 | GP40: 65 | GQ40: 36 | GR40: 19 | GS40: 26 | GT40: 148 | GU40: 386 | GV40: 605 | GW40: 669 | GX40: 464 | GY40: 253 | GZ40: 232 | HA40: 610 | HB40: 267 | HC40: 1703 | HD40: 601 | HE40: 419 | HF40: 219 | HG40: 573 | HH40: 18 | HI40: 1890 | HJ40: 291 | HK40: 143 | HL40: 88 | HM40: 345 | HN40: 26 | HO40: 81 | HP40: 87 | HQ40: 90 | HR40: 215 | HS40: 222 | HT40: 234 | HU40: 305 | HV40: 275 | HW40: 674 | HX40: 1234 | HY40: 1663 | HZ40: 582 | IA40: 296 | IB40: 164 | IC40: 85 | ID40: 81 | IE40: 13 | IF40: 13 | IG40: 0 | IH40: 2 | II40: 71900
A41: Grafton County | B41: 9000 | C41: 00005 | D41: 1096323.55 | E41: 23419.8 | F41: 42206 | G41: 74929 | H41: 18544 | I41: 27542 | J41: 8171 | K41: 12597 | L41: 7599 | M41: 13839 | N41: 754 | O41: 5861 | P41: 13240 | Q41: 15103 | R41: 5396 | S41: 1852 | T41: 1244 | U41: 2515 | V41: 2684 | W41: 4912 | X41: 4722 | Y41: 5427 | Z41: 4109 | AA41: 911 | AB41: 1003 | AC41: 30065 | AD41: 189 | AE41: 236 | AF41: 294 | AG41: 572 | AH41: 342 | AI41: 238 | AJ41: 81 | AK41: 13 | AL41: 0 | AM41: 125 | AN41: 224 | AO41: 423 | AP41: 1209 | AQ41: 1174 | AR41: 1395 | AS41: 810 | AT41: 141 | AU41: 130 | AV41: 121 | AW41: 184 | AX41: 364 | AY41: 975 | AZ41: 1214 | BA41: 1690 | BB41: 1259 | BC41: 245 | BD41: 319 | BE41: 101 | BF41: 116 | BG41: 236 | BH41: 461 | BI41: 710 | BJ41: 927 | BK41: 894 | BL41: 259 | BM41: 269 | BN41: 164 | BO41: 235 | BP41: 289 | BQ41: 678 | BR41: 625 | BS41: 555 | BT41: 604 | BU41: 173 | BV41: 184 | BW41: 233 | BX41: 596 | BY41: 642 | BZ41: 614 | CA41: 418 | CB41: 474 | CC41: 337 | CD41: 55 | CE41: 78 | CF41: 311 | CG41: 924 | CH41: 436 | CI41: 403 | CJ41: 239 | CK41: 148 | CL41: 124 | CM41: 25 | CN41: 23 | CO41: 1078 | CP41: 11188 | CQ41: 9325 | CR41: 50419 | CS41: 45960 | CT41: 3263 | CU41: 5307 | CV41: 15177 | CW41: 6932 | CX41: 3158 | CY41: 7347 | CZ41: 4776 | DA41: 37390 | DB41: 12123 | DC41: 72572 | DD41: 2357 | DE41: 35079 | DF41: 72572 | DG41: 2357 | DH41: 25347 | DI41: 4602 | DJ41: 218 | DK41: 3704 | DL41: 593 | DM41: 1671 | DN41: 3759 | DO41: 2684 | DP41: 4912 | DQ41: 4722 | DR41: 5427 | DS41: 4109 | DT41: 911 | DU41: 737 | DV41: 266 | DW41: 1918 | DX41: 6253 | DY41: 3767 | DZ41: 8830 | EA41: 3262 | EB41: 2447 | EC41: 1890 | ED41: 13839 | EE41: 1173 | EF41: 1392 | EG41: 3073 | EH41: 3473 | EI41: 4398 | EJ41: 3403 | EK41: 793 | EL41: 667 | EM41: 228 | EN41: 35489 | EO41: 2701 | EP41: 1396 | EQ41: 1904 | ER41: 1184 | ES41: 978 | ET41: 576 | EU41: 84 | EV41: 67 | EW41: 37 | EX41: 16535 | EY41: 617 | EZ41: 2028 | FA41: 4135 | FB41: 8029 | FC41: 8602 | FD41: 7386 | FE41: 5055 | FF41: 3084 | FG41: 3270 | FH41: 94 | FI41: 277 | FJ41: 217 | FK41: 229 | FL41: 413 | FM41: 571 | FN41: 806 | FO41: 961 | FP41: 935 | FQ41: 753 | FR41: 616 | FS41: 622 | FT41: 438 | FU41: 336 | FV41: 605 | FW41: 346 | FX41: 450 | FY41: 479 | FZ41: 2277 | GA41: 1273 | GB41: 1181 | GC41: 767 | GD41: 2609 | GE41: 562 | GF41: 9 | GG41: 87 | GH41: 356 | GI41: 686 | GJ41: 848 | GK41: 951 | GL41: 721 | GM41: 815 | GN41: 600 | GO41: 1002 | GP41: 569 | GQ41: 484 | GR41: 250 | GS41: 86 | GT41: 167 | GU41: 538 | GV41: 775 | GW41: 952 | GX41: 733 | GY41: 434 | GZ41: 779 | HA41: 804 | HB41: 285 | HC41: 2724 | HD41: 1424 | HE41: 1055 | HF41: 666 | HG41: 1491 | HH41: 18 | HI41: 2912 | HJ41: 329 | HK41: 293 | HL41: 194 | HM41: 709 | HN41: 27 | HO41: 65 | HP41: 41 | HQ41: 51 | HR41: 75 | HS41: 116 | HT41: 136 | HU41: 168 | HV41: 169 | HW41: 571 | HX41: 1173 | HY41: 2886 | HZ41: 2018 | IA41: 1489 | IB41: 947 | IC41: 554 | ID41: 639 | IE41: 307 | IF41: 250 | IG41: 94 | IH41: 93 | II41: 105800
A42: Hillsborough County | B42: 11000 | C42: 00006 | D42: 561351.44 | E42: 9800.68 | F42: 135622 | G42: 336073 | H42: 88473 | I42: 124567 | J42: 22533 | K42: 42139 | L42: 36390 | M42: 34560 | N42: 1638 | O42: 17599 | P42: 43790 | Q42: 48219 | R42: 20299 | S42: 4077 | T42: 3962 | U42: 7570 | V42: 6375 | W42: 15943 | X42: 17547 | Y42: 28210 | Z42: 27845 | AA42: 10261 | AB42: 6979 | AC42: 40404 | AD42: 352 | AE42: 483 | AF42: 578 | AG42: 1467 | AH42: 1298 | AI42: 1487 | AJ42: 590 | AK42: 106 | AL42: 62 | AM42: 697 | AN42: 919 | AO42: 1082 | AP42: 3881 | AQ42: 5138 | AR42: 9609 | AS42: 8379 | AT42: 1976 | AU42: 752 | AV42: 459 | AW42: 572 | AX42: 688 | AY42: 2873 | AZ42: 3910 | BA42: 7385 | BB42: 8668 | BC42: 3447 | BD42: 2083 | BE42: 370 | BF42: 346 | BG42: 403 | BH42: 1528 | BI42: 2219 | BJ42: 3935 | BK42: 5597 | BL42: 2808 | BM42: 2268 | BN42: 527 | BO42: 753 | BP42: 640 | BQ42: 1881 | BR42: 2104 | BS42: 3302 | BT42: 3039 | BU42: 1370 | BV42: 1276 | BW42: 719 | BX42: 1846 | BY42: 1609 | BZ42: 2644 | CA42: 2024 | CB42: 1774 | CC42: 1142 | CD42: 360 | CE42: 450 | CF42: 838 | CG42: 2651 | CH42: 1375 | CI42: 1669 | CJ42: 854 | CK42: 718 | CL42: 430 | CM42: 194 | CN42: 88 | CO42: 7084 | CP42: 53454 | CQ42: 22047 | CR42: 237188 | CS42: 215914 | CT42: 15387 | CU42: 23062 | CV42: 61722 | CW42: 40723 | CX42: 18063 | CY42: 39030 | CZ42: 17927 | DA42: 177465 | DB42: 56957 | DC42: 318272 | DD42: 17801 | DE42: 152227 | DF42: 318272 | DG42: 17801 | DH42: 142026 | DI42: 21258 | DJ42: 1634 | DK42: 5381 | DL42: 1605 | DM42: 5151 | DN42: 11532 | DO42: 6375 | DP42: 15943 | DQ42: 17547 | DR42: 28210 | DS42: 27845 | DT42: 10261 | DU42: 5075 | DV42: 1904 | DW42: 2673 | DX42: 19860 | DY42: 15386 | DZ42: 26753 | EA42: 17142 | EB42: 12188 | EC42: 7060 | ED42: 34560 | EE42: 3617 | EF42: 3127 | EG42: 9342 | EH42: 12020 | EI42: 21766 | EJ42: 24249 | EK42: 8896 | EL42: 4559 | EM42: 1705 | EN42: 46249 | EO42: 8235 | EP42: 3489 | EQ42: 6977 | ER42: 5716 | ES42: 6104 | ET42: 3289 | EU42: 1041 | EV42: 408 | EW42: 152 | EX42: 23404 | EY42: 1255 | EZ42: 3803 | FA42: 13195 | FB42: 26399 | FC42: 27897 | FD42: 23951 | FE42: 17505 | FF42: 11842 | FG42: 9775 | FH42: 304 | FI42: 1269 | FJ42: 841 | FK42: 1205 | FL42: 742 | FM42: 1318 | FN42: 1880 | FO42: 3182 | FP42: 3506 | FQ42: 4123 | FR42: 4689 | FS42: 4239 | FT42: 3771 | FU42: 3306 | FV42: 6636 | FW42: 2766 | FX42: 869 | FY42: 588 | FZ42: 12614 | GA42: 7789 | GB42: 6319 | GC42: 4148 | GD42: 12437 | GE42: 1339 | GF42: 36 | GG42: 130 | GH42: 706 | GI42: 1825 | GJ42: 2709 | GK42: 2936 | GL42: 3211 | GM42: 3637 | GN42: 3712 | GO42: 10516 | GP42: 8382 | GQ42: 6604 | GR42: 2649 | GS42: 65 | GT42: 281 | GU42: 522 | GV42: 1458 | GW42: 2558 | GX42: 2935 | GY42: 2588 | GZ42: 4146 | HA42: 1110 | HB42: 341 | HC42: 16197 | HD42: 8786 | HE42: 7565 | HF42: 5155 | HG42: 9291 | HH42: 59 | HI42: 9832 | HJ42: 1439 | HK42: 783 | HL42: 414 | HM42: 1931 | HN42: 154 | HO42: 122 | HP42: 100 | HQ42: 93 | HR42: 76 | HS42: 78 | HT42: 84 | HU42: 152 | HV42: 174 | HW42: 369 | HX42: 1307 | HY42: 6808 | HZ42: 14152 | IA42: 15070 | IB42: 8992 | IC42: 5274 | ID42: 4870 | IE42: 2085 | IF42: 1257 | IG42: 281 | IH42: 262 | II42: 137100
A43: Merrimack County | B43: 13000 | C43: 00007 | D43: 597481.36 | E43: 13666.33 | F43: 50870 | G43: 120005 | H43: 31801 | I43: 44595 | J43: 9625 | K43: 15067 | L43: 11317 | M43: 14861 | N43: 614 | O43: 6442 | P43: 16226 | Q43: 18775 | R43: 7157 | S43: 1656 | T43: 1371 | U43: 2754 | V43: 2969 | W43: 7067 | X43: 7444 | Y43: 9996 | Z43: 8591 | AA43: 2400 | AB43: 1879 | AC43: 35801 | AD43: 146 | AE43: 215 | AF43: 168 | AG43: 425 | AH43: 427 | AI43: 439 | AJ43: 122 | AK43: 9 | AL43: 0 | AM43: 204 | AN43: 336 | AO43: 358 | AP43: 1678 | AQ43: 2188 | AR43: 2905 | AS43: 2001 | AT43: 404 | AU43: 191 | AV43: 169 | AW43: 144 | AX43: 227 | AY43: 1220 | AZ43: 1805 | BA43: 3124 | BB43: 3019 | BC43: 744 | BD43: 658 | BE43: 134 | BF43: 162 | BG43: 271 | BH43: 841 | BI43: 879 | BJ43: 1494 | BK43: 1751 | BL43: 592 | BM43: 537 | BN43: 123 | BO43: 175 | BP43: 415 | BQ43: 923 | BR43: 929 | BS43: 1066 | BT43: 1141 | BU43: 417 | BV43: 285 | BW43: 214 | BX43: 717 | BY43: 787 | BZ43: 1115 | CA43: 756 | CB43: 649 | CC43: 376 | CD43: 162 | CE43: 168 | CF43: 381 | CG43: 1005 | CH43: 743 | CI43: 865 | CJ43: 460 | CK43: 319 | CL43: 181 | CM43: 72 | CN43: 40 | CO43: 2571 | CP43: 19658 | CQ43: 7206 | CR43: 85404 | CS43: 78633 | CT43: 4836 | CU43: 8390 | CV43: 25210 | CW43: 13906 | CX43: 6339 | CY43: 13118 | CZ43: 6834 | DA43: 65407 | DB43: 19952 | DC43: 116998 | DD43: 3007 | DE43: 66971 | DF43: 116998 | DG43: 3007 | DH43: 47459 | DI43: 7473 | DJ43: 355 | DK43: 2306 | DL43: 475 | DM43: 2378 | DN43: 4125 | DO43: 2969 | DP43: 7067 | DQ43: 7444 | DR43: 9996 | DS43: 8591 | DT43: 2400 | DU43: 1266 | DV43: 613 | DW43: 923 | DX43: 8702 | DY43: 4968 | DZ43: 10099 | EA43: 5712 | EB43: 3315 | EC43: 2290 | ED43: 14861 | EE43: 1303 | EF43: 1351 | EG43: 4371 | EH43: 5436 | EI43: 8168 | EJ43: 7500 | EK43: 2159 | EL43: 1136 | EM43: 527 | EN43: 41018 | EO43: 2960 | EP43: 1678 | EQ43: 2942 | ER43: 2073 | ES43: 1590 | ET43: 922 | EU43: 163 | EV43: 108 | EW43: 84 | EX43: 20011 | EY43: 508 | EZ43: 1394 | FA43: 5039 | FB43: 9916 | FC43: 9659 | FD43: 9457 | FE43: 6771 | FF43: 4036 | FG43: 4090 | FH43: 74 | FI43: 335 | FJ43: 358 | FK43: 355 | FL43: 313 | FM43: 555 | FN43: 736 | FO43: 1079 | FP43: 1528 | FQ43: 1494 | FR43: 1407 | FS43: 1250 | FT43: 941 | FU43: 622 | FV43: 1296 | FW43: 354 | FX43: 391 | FY43: 534 | FZ43: 3499 | GA43: 2310 | GB43: 1991 | GC43: 1247 | GD43: 3559 | GE43: 482 | GF43: 24 | GG43: 51 | GH43: 384 | GI43: 931 | GJ43: 1117 | GK43: 1114 | GL43: 1496 | GM43: 1860 | GN43: 1413 | GO43: 3191 | GP43: 1672 | GQ43: 1146 | GR43: 595 | GS43: 18 | GT43: 147 | GU43: 316 | GV43: 718 | GW43: 1011 | GX43: 1150 | GY43: 1024 | GZ43: 1596 | HA43: 937 | HB43: 334 | HC43: 4943 | HD43: 2893 | HE43: 2345 | HF43: 1660 | HG43: 3113 | HH43: 40 | HI43: 3974 | HJ43: 579 | HK43: 387 | HL43: 264 | HM43: 735 | HN43: 41 | HO43: 40 | HP43: 43 | HQ43: 32 | HR43: 41 | HS43: 86 | HT43: 83 | HU43: 127 | HV43: 106 | HW43: 360 | HX43: 1150 | HY43: 4707 | HZ43: 5312 | IA43: 3384 | IB43: 2147 | IC43: 1145 | ID43: 1208 | IE43: 521 | IF43: 341 | IG43: 57 | IH43: 84 | II43: 117500
A44: New Hampshire | B44: 0 | C44: 00000 | D44: 5742660.16 | E44: 197882.72 | F44: 503904 | G44: 1109252 | H44: 292601 | I44: 411186 | J44: 87665 | K44: 155241 | L44: 124270 | M44: 136728 | N44: 6901 | O44: 60650 | P44: 165943 | Q44: 184755 | R44: 68226 | S44: 17429 | T44: 13747 | U44: 27508 | V44: 27574 | W44: 61818 | X44: 65472 | Y44: 89834 | Z44: 81270 | AA44: 25773 | AB44: 18391 | AC44: 36329 | AD44: 1334 | AE44: 1942 | AF44: 2239 | AG44: 5147 | AH44: 4462 | AI44: 4024 | AJ44: 1508 | AK44: 227 | AL44: 102 | AM44: 1832 | AN44: 3134 | AO44: 3979 | AP44: 14701 | AQ44: 19036 | AR44: 27603 | AS44: 21100 | AT44: 4452 | AU44: 2234 | AV44: 1565 | AW44: 1872 | AX44: 3138 | AY44: 11339 | AZ44: 15375 | BA44: 25993 | BB44: 26832 | BC44: 8522 | BD44: 5642 | BE44: 1359 | BF44: 1484 | BG44: 2045 | BH44: 6458 | BI44: 8499 | BJ44: 13465 | BK44: 16969 | BL44: 7176 | BM44: 5668 | BN44: 1848 | BO44: 2699 | BP44: 3332 | BQ44: 8013 | BR44: 8139 | BS44: 10326 | BT44: 9769 | BU44: 3741 | BV44: 3188 | BW44: 2398 | BX44: 6862 | BY44: 7055 | BZ44: 10120 | CA44: 6843 | CB44: 5992 | CC44: 3641 | CD44: 1225 | CE44: 1217 | CF44: 3411 | CG44: 9515 | CH44: 5786 | CI44: 6040 | CJ44: 3118 | CK44: 2431 | CL44: 1451 | CM44: 430 | CN44: 340 | CO44: 22212 | CP44: 177433 | CQ44: 77120 | CR44: 782047 | CS44: 713894 | CT44: 47691 | CU44: 79732 | CV44: 226267 | CW44: 128695 | CX44: 57568 | CY44: 117260 | CZ44: 56681 | DA44: 586471 | DB44: 173941 | DC44: 1068059 | DD44: 41193 | DE44: 488894 | DF44: 1068059 | DG44: 41193 | DH44: 443317 | DI44: 69904 | DJ44: 4067 | DK44: 23137 | DL44: 5989 | DM44: 20175 | DN44: 41255 | DO44: 27574 | DP44: 61818 | DQ44: 65472 | DR44: 89834 | DS44: 81270 | DT44: 25773 | DU44: 13118 | DV44: 5273 | DW44: 12471 | DX44: 75194 | DY44: 51765 | DZ44: 103476 | EA44: 57736 | EB44: 41061 | EC44: 25473 | ED44: 136728 | EE44: 13609 | EF44: 14067 | EG44: 38214 | EH44: 47195 | EI44: 72174 | EJ44: 70362 | EK44: 22711 | EL44: 11525 | EM44: 4681 | EN44: 41628 | EO44: 29020 | EP44: 14339 | EQ44: 24871 | ER44: 18624 | ES44: 16530 | ET44: 9362 | EU44: 2428 | EV44: 1194 | EW44: 481 | EX44: 20790 | EY44: 5655 | EZ44: 15628 | FA44: 46483 | FB44: 102341 | FC44: 104388 | FD44: 89328 | FE44: 62499 | FF44: 39722 | FG44: 37860 | FH44: 1032 | FI44: 3647 | FJ44: 3023 | FK44: 3655 | FL44: 3424 | FM44: 5202 | FN44: 7066 | FO44: 10211 | FP44: 11438 | FQ44: 12749 | FR44: 12157 | FS44: 10732 | FT44: 8927 | FU44: 7677 | FV44: 15023 | FW44: 6458 | FX44: 5361 | FY44: 549 | FZ44: 34494 | GA44: 21120 | GB44: 17970 | GC44: 11788 | GD44: 36014 | GE44: 6396 | GF44: 195 | GG44: 941 | GH44: 3646 | GI44: 7831 | GJ44: 10897 | GK44: 12054 | GL44: 12212 | GM44: 12582 | GN44: 11935 | GO44: 28856 | GP44: 20146 | GQ44: 16243 | GR44: 7016 | GS44: 386 | GT44: 1494 | GU44: 3764 | GV44: 7316 | GW44: 10474 | GX44: 10482 | GY44: 8474 | GZ44: 13275 | HA44: 1000 | HB44: 321 | HC44: 48556 | HD44: 26728 | HE44: 22630 | HF44: 15621 | HG44: 30661 | HH44: 358 | HI44: 37404 | HJ44: 5108 | HK44: 3189 | HL44: 1961 | HM44: 7503 | HN44: 500 | HO44: 570 | HP44: 455 | HQ44: 405 | HR44: 682 | HS44: 842 | HT44: 900 | HU44: 1224 | HV44: 1327 | HW44: 3715 | HX44: 9321 | HY44: 32832 | HZ44: 41114 | IA44: 39088 | IB44: 25696 | IC44: 14764 | ID44: 14784 | IE44: 6076 | IF44: 4008 | IG44: 1199 | IH44: 1217 | II44: 129300
A45: Rockingham County | B45: 15000 | C45: 00008 | D45: 446221.18 | E45: 18969.44 | F45: 101773 | G45: 245845 | H45: 65939 | I45: 89118 | J45: 18842 | K45: 35527 | L45: 28056 | M45: 19348 | N45: 1508 | O45: 10301 | P45: 34410 | Q45: 37529 | R45: 14836 | S45: 3189 | T45: 2254 | U45: 4308 | V45: 4345 | W45: 11012 | X45: 13016 | Y45: 19869 | Z45: 21555 | AA45: 7585 | AB45: 5315 | AC45: 41881 | AD45: 135 | AE45: 225 | AF45: 244 | AG45: 789 | AH45: 906 | AI45: 746 | AJ45: 443 | AK45: 54 | AL45: 16 | AM45: 264 | AN45: 502 | AO45: 547 | AP45: 2617 | AQ45: 4094 | AR45: 6472 | AS45: 6059 | AT45: 1411 | AU45: 842 | AV45: 277 | AW45: 300 | AX45: 468 | AY45: 2080 | AZ45: 3221 | BA45: 5872 | BB45: 7478 | BC45: 2703 | BD45: 1697 | BE45: 216 | BF45: 245 | BG45: 327 | BH45: 1277 | BI45: 1725 | BJ45: 2918 | BK45: 4245 | BL45: 2202 | BM45: 1625 | BN45: 389 | BO45: 542 | BP45: 599 | BQ45: 1289 | BR45: 1451 | BS45: 2097 | BT45: 2281 | BU45: 849 | BV45: 796 | BW45: 365 | BX45: 1095 | BY45: 1145 | BZ45: 1956 | CA45: 1069 | CB45: 1257 | CC45: 721 | CD45: 304 | CE45: 233 | CF45: 608 | CG45: 1399 | CH45: 1015 | CI45: 1004 | CJ45: 550 | CK45: 507 | CL45: 328 | CM45: 62 | CN45: 106 | CO45: 5404 | CP45: 40101 | CQ45: 14107 | CR45: 174323 | CS45: 159886 | CT45: 6836 | CU45: 15217 | CV45: 49824 | CW45: 32477 | CX45: 14075 | CY45: 28586 | CZ45: 12871 | DA45: 137833 | DB45: 41457 | DC45: 237544 | DD45: 8301 | DE45: 65120 | DF45: 237544 | DG45: 8301 | DH45: 106748 | DI45: 15194 | DJ45: 855 | DK45: 2976 | DL45: 1415 | DM45: 4388 | DN45: 6562 | DO45: 4345 | DP45: 11012 | DQ45: 13016 | DR45: 19869 | DS45: 21555 | DT45: 7585 | DU45: 3828 | DV45: 1487 | DW45: 2257 | DX45: 16585 | DY45: 12034 | DZ45: 23493 | EA45: 13138 | EB45: 9754 | EC45: 5164 | ED45: 19348 | EE45: 2347 | EF45: 2038 | EG45: 6797 | EH45: 9118 | EI45: 15955 | EJ45: 18666 | EK45: 6834 | EL45: 3294 | EM45: 1350 | EN45: 46942 | EO45: 4410 | EP45: 2471 | EQ45: 4398 | ER45: 4076 | ES45: 3823 | ET45: 2487 | EU45: 739 | EV45: 345 | EW45: 111 | EX45: 25302 | EY45: 1284 | EZ45: 2883 | FA45: 7654 | FB45: 21712 | FC45: 20114 | FD45: 17145 | FE45: 13382 | FF45: 8979 | FG45: 8620 | FH45: 126 | FI45: 468 | FJ45: 354 | FK45: 383 | FL45: 305 | FM45: 466 | FN45: 835 | FO45: 1545 | FP45: 1754 | FQ45: 2411 | FR45: 2038 | FS45: 2084 | FT45: 1786 | FU45: 1941 | FV45: 4052 | FW45: 1980 | FX45: 1796 | FY45: 614 | FZ45: 6773 | GA45: 4143 | GB45: 3270 | GC45: 2227 | GD45: 6001 | GE45: 1910 | GF45: 43 | GG45: 209 | GH45: 492 | GI45: 1190 | GJ45: 2033 | GK45: 2629 | GL45: 2517 | GM45: 2565 | GN45: 3015 | GO45: 7833 | GP45: 6435 | GQ45: 6132 | GR45: 2610 | GS45: 46 | GT45: 123 | GU45: 459 | GV45: 905 | GW45: 1570 | GX45: 2051 | GY45: 1885 | GZ45: 3020 | HA45: 1133 | HB45: 347 | HC45: 11507 | HD45: 6911 | HE45: 5960 | HF45: 4595 | HG45: 8626 | HH45: 104 | HI45: 6946 | HJ45: 905 | HK45: 472 | HL45: 316 | HM45: 1323 | HN45: 97 | HO45: 96 | HP45: 54 | HQ45: 10 | HR45: 54 | HS45: 46 | HT45: 45 | HU45: 96 | HV45: 83 | HW45: 238 | HX45: 735 | HY45: 3564 | HZ45: 7605 | IA45: 11336 | IB45: 8909 | IC45: 5146 | ID45: 5290 | IE45: 2133 | IF45: 1444 | IG45: 478 | IH45: 400 | II45: 149800
A46: Strafford County | B46: 17000 | C46: 00009 | D46: 235092.87 | E46: 9767.73 | F46: 42387 | G46: 104233 | H46: 26231 | I46: 37744 | J46: 6774 | K46: 12110 | L46: 11655 | M46: 11848 | N46: 612 | O46: 5836 | P46: 15131 | Q46: 14517 | R46: 4887 | S46: 1404 | T46: 1211 | U46: 2634 | V46: 3031 | W46: 6519 | X46: 6780 | Y46: 8588 | Z46: 6174 | AA46: 1748 | AB46: 1003 | AC46: 32812 | AD46: 181 | AE46: 413 | AF46: 344 | AG46: 868 | AH46: 475 | AI46: 501 | AJ46: 89 | AK46: 20 | AL46: 13 | AM46: 141 | AN46: 261 | AO46: 495 | AP46: 1730 | AQ46: 2239 | AR46: 2788 | AS46: 1599 | AT46: 254 | AU46: 99 | AV46: 109 | AW46: 197 | AX46: 309 | AY46: 1072 | AZ46: 1469 | BA46: 2410 | BB46: 1901 | BC46: 507 | BD46: 251 | BE46: 97 | BF46: 175 | BG46: 239 | BH46: 574 | BI46: 810 | BJ46: 1218 | BK46: 1460 | BL46: 501 | BM46: 358 | BN46: 167 | BO46: 210 | BP46: 406 | BQ46: 814 | BR46: 743 | BS46: 937 | BT46: 855 | BU46: 338 | BV46: 185 | BW46: 176 | BX46: 531 | BY46: 742 | BZ46: 986 | CA46: 826 | CB46: 446 | CC46: 202 | CD46: 113 | CE46: 66 | CF46: 340 | CG46: 847 | CH46: 496 | CI46: 475 | CJ46: 218 | CK46: 288 | CL46: 68 | CM46: 15 | CN46: 31 | CO46: 1845 | CP46: 15228 | CQ46: 12585 | CR46: 69855 | CS46: 62963 | CT46: 5056 | CU46: 7674 | CV46: 20649 | CW46: 11241 | CX46: 4688 | CY46: 8869 | CZ46: 4786 | DA46: 50233 | DB46: 13655 | DC46: 101053 | DD46: 3180 | DE46: 52612 | DF46: 101053 | DG46: 3180 | DH46: 38678 | DI46: 8012 | DJ46: 651 | DK46: 3098 | DL46: 563 | DM46: 1533 | DN46: 3845 | DO46: 3031 | DP46: 6519 | DQ46: 6780 | DR46: 8588 | DS46: 6174 | DT46: 1748 | DU46: 686 | DV46: 317 | DW46: 908 | DX46: 5866 | DY46: 3488 | DZ46: 8622 | EA46: 5254 | EB46: 4084 | EC46: 2317 | ED46: 11848 | EE46: 1302 | EF46: 1669 | EG46: 3759 | EH46: 4868 | EI46: 7017 | EJ46: 5335 | EK46: 1538 | EL46: 557 | EM46: 280 | EN46: 38148 | EO46: 2768 | EP46: 1452 | EQ46: 2919 | ER46: 1827 | ES46: 1434 | ET46: 721 | EU46: 125 | EV46: 84 | EW46: 33 | EX46: 20365 | EY46: 492 | EZ46: 1460 | FA46: 4551 | FB46: 10004 | FC46: 8685 | FD46: 7335 | FE46: 4520 | FF46: 2976 | FG46: 2364 | FH46: 107 | FI46: 398 | FJ46: 356 | FK46: 455 | FL46: 497 | FM46: 583 | FN46: 662 | FO46: 1117 | FP46: 1519 | FQ46: 1604 | FR46: 1393 | FS46: 1146 | FT46: 742 | FU46: 675 | FV46: 1048 | FW46: 502 | FX46: 297 | FY46: 522 | FZ46: 3393 | GA46: 2117 | GB46: 1891 | GC46: 1226 | GD46: 4104 | GE46: 370 | GF46: 15 | GG46: 55 | GH46: 258 | GI46: 695 | GJ46: 870 | GK46: 1016 | GL46: 1019 | GM46: 1089 | GN46: 1179 | GO46: 2559 | GP46: 1295 | GQ46: 849 | GR46: 323 | GS46: 10 | GT46: 115 | GU46: 254 | GV46: 599 | GW46: 1062 | GX46: 1091 | GY46: 731 | GZ46: 1134 | HA46: 950 | HB46: 321 | HC46: 3607 | HD46: 2063 | HE46: 1757 | HF46: 1190 | HG46: 2571 | HH46: 34 | HI46: 3425 | HJ46: 400 | HK46: 324 | HL46: 211 | HM46: 609 | HN46: 27 | HO46: 74 | HP46: 35 | HQ46: 23 | HR46: 79 | HS46: 25 | HT46: 94 | HU46: 51 | HV46: 130 | HW46: 306 | HX46: 760 | HY46: 3833 | HZ46: 4213 | IA46: 2689 | IB46: 1589 | IC46: 934 | ID46: 864 | IE46: 292 | IF46: 118 | IG46: 24 | IH46: 85 | II46: 116000
A47: Sullivan County | B47: 19000 | C47: 00010 | D47: 344219.12 | E47: 9142.81 | F47: 19532 | G47: 38592 | H47: 10650 | I47: 14873 | J47: 2688 | K47: 5553 | L47: 4801 | M47: 6490 | N47: 248 | O47: 2399 | P47: 6310 | Q47: 7366 | R47: 2498 | S47: 711 | T47: 729 | U47: 1416 | V47: 1373 | W47: 2686 | X47: 2901 | Y47: 3221 | Z47: 1911 | AA47: 389 | AB47: 252 | AC47: 29053 | AD47: 71 | AE47: 57 | AF47: 104 | AG47: 161 | AH47: 181 | AI47: 100 | AJ47: 12 | AK47: 6 | AL47: 0 | AM47: 74 | AN47: 186 | AO47: 209 | AP47: 607 | AQ47: 766 | AR47: 740 | AS47: 331 | AT47: 35 | AU47: 16 | AV47: 114 | AW47: 91 | AX47: 157 | AY47: 515 | AZ47: 678 | BA47: 1065 | BB47: 697 | BC47: 142 | BD47: 50 | BE47: 98 | BF47: 64 | BG47: 87 | BH47: 227 | BI47: 378 | BJ47: 549 | BK47: 373 | BL47: 121 | BM47: 98 | BN47: 68 | BO47: 157 | BP47: 161 | BQ47: 456 | BR47: 474 | BS47: 424 | BT47: 304 | BU47: 55 | BV47: 44 | BW47: 146 | BX47: 354 | BY47: 399 | BZ47: 459 | CA47: 321 | CB47: 278 | CC47: 162 | CD47: 15 | CE47: 39 | CF47: 158 | CG47: 507 | CH47: 256 | CI47: 261 | CJ47: 103 | CK47: 65 | CL47: 32 | CM47: 15 | CN47: 5 | CO47: 534 | CP47: 6614 | CQ47: 1269 | CR47: 28447 | CS47: 25512 | CT47: 2498 | CU47: 3886 | CV47: 9566 | CW47: 3482 | CX47: 1877 | CY47: 2781 | CZ47: 1422 | DA47: 19128 | DB47: 4203 | DC47: 37431 | DD47: 1161 | DE47: 20596 | DF47: 37431 | DG47: 1161 | DH47: 13732 | DI47: 2537 | DJ47: 57 | DK47: 715 | DL47: 300 | DM47: 828 | DN47: 2145 | DO47: 1373 | DP47: 2686 | DQ47: 2901 | DR47: 3221 | DS47: 1911 | DT47: 389 | DU47: 181 | DV47: 71 | DW47: 670 | DX47: 2018 | DY47: 1436 | DZ47: 4117 | EA47: 1838 | EB47: 1770 | EC47: 1193 | ED47: 6490 | EE47: 799 | EF47: 731 | EG47: 1903 | EH47: 2255 | EI47: 2768 | EJ47: 1674 | EK47: 337 | EL47: 138 | EM47: 65 | EN47: 33306 | EO47: 1440 | EP47: 656 | EQ47: 821 | ER47: 672 | ES47: 414 | ET47: 143 | EU47: 36 | EV47: 22 | EW47: 4 | EX47: 15071 | EY47: 182 | EZ47: 531 | FA47: 1928 | FB47: 4087 | FC47: 4105 | FD47: 3759 | FE47: 2349 | FF47: 1194 | FG47: 1397 | FH47: 101 | FI47: 181 | FJ47: 220 | FK47: 141 | FL47: 174 | FM47: 276 | FN47: 375 | FO47: 629 | FP47: 406 | FQ47: 443 | FR47: 360 | FS47: 211 | FT47: 115 | FU47: 55 | FV47: 215 | FW47: 50 | FX47: 201 | FY47: 440 | FZ47: 986 | GA47: 737 | GB47: 570 | GC47: 249 | GD47: 1372 | GE47: 239 | GF47: 13 | GG47: 61 | GH47: 201 | GI47: 387 | GJ47: 659 | GK47: 550 | GL47: 610 | GM47: 432 | GN47: 296 | GO47: 513 | GP47: 179 | GQ47: 86 | GR47: 50 | GS47: 14 | GT47: 70 | GU47: 165 | GV47: 460 | GW47: 521 | GX47: 396 | GY47: 438 | GZ47: 455 | HA47: 724 | HB47: 304 | HC47: 1419 | HD47: 770 | HE47: 650 | HF47: 400 | HG47: 777 | HH47: 21 | HI47: 1574 | HJ47: 249 | HK47: 162 | HL47: 115 | HM47: 408 | HN47: 11 | HO47: 14 | HP47: 41 | HQ47: 21 | HR47: 52 | HS47: 120 | HT47: 74 | HU47: 97 | HV47: 141 | HW47: 433 | HX47: 963 | HY47: 2044 | HZ47: 1061 | IA47: 559 | IB47: 365 | IC47: 194 | ID47: 174 | IE47: 61 | IF47: 45 | IG47: 44 | IH47: 53 | II47: 91200
A53: Other Demo Data.xlsm - Query Name: DPQryCountyAndState-ACSSheet | D53: 2020-12-18
A54: AREANAME | B54: FIPS | C54: Cnty_Code | D54: COUSUBFP | E54: POP80 | F54: POP90CDCEN | G54: POP2000CEN | H54: POP2010CEN | I54: POP2025-Proj | J54: POP2030-Proj | K54: POP2040-Proj | L54: SF80 | M54: MF80 | N54: MH80 | O54: SF81 | P54: MF81 | Q54: MH81 | R54: SF82 | S54: MF82 | T54: MH82 | U54: SF83 | V54: MF83 | W54: MH83 | X54: SF84_OSP | Y54: MF84_OSP | Z54: MH84_OSP | AA54: SF85_OSP | AB54: MF85_OSP | AC54: MH85_OSP | AD54: SF86_OSP | AE54: MF86_OSP | AF54: MH86_OSP | AG54: SF87_OSP | AH54: MF87_OSP | AI54: MH87_OSP | AJ54: SF88_OSP | AK54: MF88_OSP | AL54: MH88_OSP | AM54: SF89_OSP | AN54: MF89_OSP | AO54: MH89_OSP | AP54: SF90_OSP | AQ54: MF90_OSP | AR54: MH90_OSP | AS54: SF91_OSP | AT54: MF91_OSP | AU54: MH91_OSP | AV54: SF92_OSP | AW54: MF92_OSP | AX54: MH92_OSP | AY54: SF93_OSP | AZ54: MF93_OSP | BA54: MH93_OSP | BB54: SF94_OSP | BC54: MF94_OSP | BD54: MH94_OSP | BE54: SF95_OSP | BF54: MF95_OSP | BG54: MH95_OSP | BH54: SF96_OSP | BI54: MF96_OSP | BJ54: MH96_OSP | BK54: SF97_OSP | BL54: MF97_OSP | BM54: MH97_OSP | BN54: SF98_OSP | BO54: MF98_OSP | BP54: MH98_OSP | BQ54: SF99_OSP | BR54: MF99_OSP | BS54: MH99_OSP | BT54: SF00_OSP | BU54: MF00_OSP | BV54: MH00_OSP | BW54: SF01_OSP | BX54: MF01_OSP | BY54: MH01_OSP | BZ54: SF02_OSP | CA54: MF02_OSP | CB54: MH02_OSP | CC54: SF03_OSP | CD54: MF03_OSP | CE54: MH03_OSP | CF54: SF04_OSP | CG54: MF04_OSP | CH54: MH04_OSP | CI54: SF05_OSP | CJ54: MF05_OSP | CK54: MH05_OSP | CL54: SF06_OSP | CM54: MF06_OSP | CN54: MH06_OSP | CO54: SF07_OSP | CP54: MF07_OSP | CQ54: MH07_OSP | CR54: SF08_OSP | CS54: MF08_OSP | CT54: MH08_OSP | CU54: SF09_OSP | CV54: MF09_OSP | CW54: MH09_OSP | CX54: SF10_OSP | CY54: MF10_OSP | CZ54: MH10_OSP | DA54: SF11_OSP | DB54: MF11_OSP | DC54: MH11_OSP | DD54: SF12_OSP | DE54: MF12_OSP | DF54: MH12_OSP | DG54: SF13_OSP | DH54: MF13_OSP | DI54: MH13_OSP | DJ54: SF14_OSP | DK54: MF14_OSP | DL54: MH14_OSP | DM54: SF15_OSP | DN54: MF15_OSP | DO54: MH15_OSP | DP54: SF16_OSP | DQ54: MF16_OSP | DR54: MH16_OSP | DS54: SF17_OSP | DT54: MF17_OSP | DU54: MH17_OSP | DV54: SF18_OSP | DW54: MF18_OSP | DX54: MH18_OSP | DY54: SF19_OSP | DZ54: MF19_OSP | EA54: MH19_OSP | EB54: SF20_OSP | EC54: MF20_OSP | ED54: MH20_OSP | EE54: COMMENTS
A55: Belknap County | B55: 1000 | C55: 1 | D55: 00001 | E55: 42884 | F55: 49216 | G55: 56325 | H55: 60088 | I55: 64460 | J55: 65852 | K55: 67269 | L55: 279 | M55: 55 | N55: 60 | O55: 264 | P55: 173 | Q55: 67 | R55: 221 | S55: 237 | T55: 66 | U55: 249 | V55: 48 | W55: 65 | X55: 393 | Y55: 147 | Z55: 84 | AA55: 531 | AB55: 352 | AC55: 95 | AD55: 756 | AE55: 405 | AF55: 88 | AG55: 710 | AH55: 160 | AI55: 54 | AJ55: 595 | AK55: 186 | AL55: 27 | AM55: 297 | AN55: 60 | AO55: 24 | AP55: 186 | AQ55: 33 | AR55: 28 | AS55: 176 | AT55: -1 | AU55: 23 | AV55: 184 | AW55: 30 | AX55: 23 | AY55: 171 | AZ55: 55 | BA55: 59 | BB55: 203 | BC55: 15 | BD55: 71 | BE55: 150 | BF55: 10 | BG55: 68 | BH55: 195 | BI55: -2 | BJ55: 64 | BK55: 212 | BL55: 17 | BM55: 92 | BN55: 233 | BO55: -1 | BP55: 57 | BQ55: 289 | BR55: 9 | BS55: 76 | BT55: 408 | BU55: 33 | BV55: 77 | BW55: 453 | BX55: 8 | BY55: 40 | BZ55: 550 | CA55: 28 | CB55: 67 | CC55: 578 | CD55: 26 | CE55: 13 | CF55: 586 | CG55: 15 | CH55: 18 | CI55: 386 | CJ55: 140 | CK55: 19 | CL55: 322 | CM55: 146 | CN55: 16 | CO55: 265 | CP55: 45 | CQ55: 2 | CR55: 169 | CS55: 80 | CT55: 11 | CU55: 91 | CV55: 3 | CW55: 2 | CX55: 107 | CY55: 6 | CZ55: 3 | DA55: 80 | DB55: 15 | DC55: 4 | DD55: 74 | DE55: 22 | DF55: -7 | DG55: 54 | DH55: 55 | DI55: 24 | DJ55: 106 | DK55: 67 | DL55: 3 | DM55: 120 | DN55: 138 | DO55: 9 | DP55: 136 | DQ55: 15 | DR55: 21 | DS55: 130 | DT55: 21 | DU55: 31 | DV55: 130 | DW55: 19 | DX55: 3 | DY55: 114 | DZ55: 31 | EA55: 17
A56: Carroll County | B56: 3000 | C56: 2 | D56: 00002 | E56: 27929 | F56: 35410 | G56: 43666 | H56: 47818 | I56: 51945 | J56: 53484 | K56: 54997 | L56: 262 | M56: 26 | N56: 24 | O56: 151 | P56: 18 | Q56: 16 | R56: 166 | S56: 38 | T56: 26 | U56: 327 | V56: 33 | W56: 34 | X56: 449 | Y56: 70 | Z56: 15 | AA56: 553 | AB56: 51 | AC56: 132 | AD56: 880 | AE56: 80 | AF56: 118 | AG56: 974 | AH56: 74 | AI56: 32 | AJ56: 638 | AK56: 56 | AL56: 46 | AM56: 348 | AN56: 67 | AO56: 30 | AP56: 252 | AQ56: 23 | AR56: 31 | AS56: 213 | AT56: 31 | AU56: 28 | AV56: 285 | AW56: 101 | AX56: 25 | AY56: 244 | AZ56: 197 | BA56: 16 | BB56: 218 | BC56: 23 | BD56: 32 | BE56: 236 | BF56: 25 | BG56: 39 | BH56: 252 | BI56: 27 | BJ56: 49 | BK56: 219 | BL56: -2 | BM56: 46 | BN56: 328 | BO56: 26 | BP56: 36 | BQ56: 329 | BR56: 31 | BS56: 30 | BT56: 410 | BU56: 16 | BV56: 68 | BW56: 462 | BX56: 18 | BY56: 71 | BZ56: 572 | CA56: 24 | CB56: 65 | CC56: 630 | CD56: 23 | CE56: 49 | CF56: 646 | CG56: 18 | CH56: 54 | CI56: 575 | CJ56: 70 | CK56: 24 | CL56: 378 | CM56: 4 | CN56: 14 | CO56: 303 | CP56: 4 | CQ56: 10 | CR56: 198 | CS56: -1 | CT56: -15 | CU56: 103 | CV56: 3 | CW56: 0 | CX56: 109 | CY56: 1 | CZ56: -7 | DA56: 119 | DB56: 32 | DC56: 1 | DD56: 118 | DE56: 24 | DF56: -10 | DG56: 90 | DH56: 23 | DI56: 10 | DJ56: 154 | DK56: -6 | DL56: 5 | DM56: 127 | DN56: 7 | DO56: 2 | DP56: 153 | DQ56: 24 | DR56: 22 | DS56: 182 | DT56: 4 | DU56: 15 | DV56: 201 | DW56: 11 | DX56: 7 | DY56: 200 | DZ56: 54 | EA56: 7
A57: Cheshire County | B57: 5000 | C57: 3 | D57: 00003 | E57: 62116 | F57: 70121 | G57: 73825 | H57: 77117 | I57: 79085 | J57: 79861 | K57: 80471 | L57: 233 | M57: 46 | N57: 39 | O57: 198 | P57: 2 | Q57: 22 | R57: 166 | S57: 56 | T57: 41 | U57: 263 | V57: 162 | W57: 37 | X57: 295 | Y57: 175 | Z57: 39 | AA57: 396 | AB57: 200 | AC57: 73 | AD57: 602 | AE57: 76 | AF57: 44 | AG57: 514 | AH57: 75 | AI57: 60 | AJ57: 575 | AK57: 125 | AL57: 42 | AM57: 379 | AN57: 24 | AO57: 40 | AP57: 211 | AQ57: 114 | AR57: 24 | AS57: 155 | AT57: -1 | AU57: 11 | AV57: 155 | AW57: 39 | AX57: 36 | AY57: 133 | AZ57: 32 | BA57: 34 | BB57: 140 | BC57: 8 | BD57: 31 | BE57: 113 | BF57: 6 | BG57: 35 | BH57: 151 | BI57: 6 | BJ57: 44 | BK57: 138 | BL57: 85 | BM57: 30 | BN57: 180 | BO57: 33 | BP57: 18 | BQ57: 225 | BR57: 81 | BS57: 27 | BT57: 228 | BU57: 31 | BV57: 31 | BW57: 248 | BX57: 2 | BY57: 13 | BZ57: 311 | CA57: 31 | CB57: 16 | CC57: 250 | CD57: 91 | CE57: 36 | CF57: 303 | CG57: 167 | CH57: 49 | CI57: 266 | CJ57: 6 | CK57: 69 | CL57: 252 | CM57: 34 | CN57: 13 | CO57: 144 | CP57: 8 | CQ57: 13 | CR57: 103 | CS57: 10 | CT57: 6 | CU57: 70 | CV57: 68 | CW57: 3 | CX57: 71 | CY57: 69 | CZ57: 4 | DA57: 43 | DB57: 73 | DC57: 12 | DD57: 36 | DE57: 26 | DF57: 4 | DG57: 41 | DH57: 43 | DI57: 1 | DJ57: 40 | DK57: 85 | DL57: 0 | DM57: 40 | DN57: 17 | DO57: 29 | DP57: 61 | DQ57: 61 | DR57: 11 | DS57: 88 | DT57: 157 | DU57: 12 | DV57: 73 | DW57: 138 | DX57: 6 | DY57: 111 | DZ57: 9 | EA57: 5
A58: Coos County | B58: 7000 | C58: 4 | D58: 00004 | E58: 35014 | F58: 34828 | G58: 33111 | H58: 33055 | I58: 31233 | J58: 30442 | K58: 28209 | L58: 74 | M58: 47 | N58: 17 | O58: 46 | P58: -4 | Q58: 16 | R58: 35 | S58: -2 | T58: 39 | U58: 59 | V58: -12 | W58: 22 | X58: 54 | Y58: -18 | Z58: 47 | AA58: 98 | AB58: 23 | AC58: 31 | AD58: 211 | AE58: 24 | AF58: 42 | AG58: 161 | AH58: 6 | AI58: 90 | AJ58: 223 | AK58: 34 | AL58: 70 | AM58: 142 | AN58: 56 | AO58: 88 | AP58: 87 | AQ58: -7 | AR58: 35 | AS58: 39 | AT58: -4 | AU58: 24 | AV58: 54 | AW58: 24 | AX58: 39 | AY58: 47 | AZ58: 7 | BA58: 38 | BB58: 45 | BC58: 28 | BD58: 31 | BE58: 28 | BF58: -5 | BG58: 36 | BH58: 48 | BI58: 10 | BJ58: 27 | BK58: 38 | BL58: -3 | BM58: 30 | BN58: 56 | BO58: 9 | BP58: 25 | BQ58: 77 | BR58: 8 | BS58: 32 | BT58: 76 | BU58: -4 | BV58: 22 | BW58: 76 | BX58: 9 | BY58: 36 | BZ58: 150 | CA58: 12 | CB58: 26 | CC58: 133 | CD58: -6 | CE58: 39 | CF58: 167 | CG58: 11 | CH58: 38 | CI58: 150 | CJ58: 10 | CK58: 23 | CL58: 103 | CM58: 5 | CN58: 8 | CO58: 82 | CP58: -29 | CQ58: 11 | CR58: 62 | CS58: -12 | CT58: 7 | CU58: 28 | CV58: -15 | CW58: 0 | CX58: 50 | CY58: -31 | CZ58: 4 | DA58: 14 | DB58: -6 | DC58: 1 | DD58: 29 | DE58: -36 | DF58: -3 | DG58: 16 | DH58: -60 | DI58: 2 | DJ58: 49 | DK58: -19 | DL58: 1 | DM58: 38 | DN58: -3 | DO58: 9 | DP58: 43 | DQ58: -1 | DR58: 5 | DS58: 52 | DT58: 15 | DU58: 10 | DV58: 77 | DW58: 9 | DX58: 13 | DY58: 59 | DZ58: 11 | EA58: -4
A59: Grafton County | B59: 9000 | C59: 5 | D59: 00005 | E59: 65806 | F59: 74929 | G59: 81743 | H59: 89118 | I59: 93224 | J59: 94359 | K59: 95275 | L59: 256 | M59: 30 | N59: 61 | O59: 216 | P59: 42 | Q59: 51 | R59: 231 | S59: 95 | T59: 45 | U59: 273 | V59: 63 | W59: 50 | X59: 271 | Y59: 263 | Z59: 69 | AA59: 475 | AB59: 148 | AC59: 110 | AD59: 1096 | AE59: 286 | AF59: 116 | AG59: 985 | AH59: 115 | AI59: 120 | AJ59: 1157 | AK59: 76 | AL59: 98 | AM59: 413 | AN59: 378 | AO59: 87 | AP59: 202 | AQ59: 102 | AR59: 54 | AS59: 226 | AT59: 41 | AU59: 49 | AV59: 192 | AW59: 29 | AX59: 48 | AY59: 213 | AZ59: 12 | BA59: 43 | BB59: 172 | BC59: 41 | BD59: 77 | BE59: 233 | BF59: 38 | BG59: 60 | BH59: 189 | BI59: 85 | BJ59: 80 | BK59: 205 | BL59: 44 | BM59: 62 | BN59: 273 | BO59: 72 | BP59: 71 | BQ59: 268 | BR59: 26 | BS59: 66 | BT59: 331 | BU59: 110 | BV59: 80 | BW59: 407 | BX59: 81 | BY59: 65 | BZ59: 482 | CA59: 183 | CB59: 75 | CC59: 477 | CD59: 270 | CE59: 59 | CF59: 552 | CG59: 60 | CH59: 71 | CI59: 501 | CJ59: 200 | CK59: 80 | CL59: 385 | CM59: 222 | CN59: 28 | CO59: 272 | CP59: 240 | CQ59: 35 | CR59: 137 | CS59: 128 | CT59: 24 | CU59: 138 | CV59: 141 | CW59: 10 | CX59: 161 | CY59: 275 | CZ59: 3 | DA59: 128 | DB59: 53 | DC59: -1 | DD59: 70 | DE59: 61 | DF59: 4 | DG59: 113 | DH59: 42 | DI59: 12 | DJ59: 102 | DK59: 139 | DL59: 3 | DM59: 107 | DN59: 52 | DO59: 12 | DP59: 135 | DQ59: 37 | DR59: 17 | DS59: 140 | DT59: 130 | DU59: 18 | DV59: 140 | DW59: 180 | DX59: 17 | DY59: 160 | DZ59: 149 | EA59: 5
A60: Hillsborough County | B60: 11000 | C60: 6 | D60: 00006 | E60: 276608 | F60: 336073 | G60: 380841 | H60: 400721 | I60: 423117 | J60: 429776 | K60: 433381 | L60: 1172 | M60: 1010 | N60: 62 | O60: 955 | P60: 573 | Q60: 79 | R60: 982 | S60: 876 | T60: 146 | U60: 1835 | V60: 1214 | W60: 59 | X60: 2269 | Y60: 2088 | Z60: 242 | AA60: 3854 | AB60: 2857 | AC60: 49 | AD60: 4455 | AE60: 1747 | AF60: 29 | AG60: 2860 | AH60: 935 | AI60: 42 | AJ60: 1962 | AK60: 1137 | AL60: 98 | AM60: 1337 | AN60: 388 | AO60: 52 | AP60: 829 | AQ60: 509 | AR60: 11 | AS60: 942 | AT60: -40 | AU60: 21 | AV60: 1068 | AW60: -11 | AX60: 36 | AY60: 1054 | AZ60: -105 | BA60: 30 | BB60: 1196 | BC60: 111 | BD60: 31 | BE60: 1093 | BF60: 70 | BG60: 42 | BH60: 1197 | BI60: 373 | BJ60: 52 | BK60: 1244 | BL60: 655 | BM60: 41 | BN60: 1559 | BO60: 272 | BP60: 44 | BQ60: 1497 | BR60: 244 | BS60: 54 | BT60: 1486 | BU60: 320 | BV60: 62 | BW60: 1342 | BX60: 383 | BY60: 43 | BZ60: 1617 | CA60: 786 | CB60: 26 | CC60: 1523 | CD60: 655 | CE60: 28 | CF60: 1518 | CG60: 591 | CH60: 33 | CI60: 1176 | CJ60: 609 | CK60: 5 | CL60: 831 | CM60: 518 | CN60: 9 | CO60: 574 | CP60: 461 | CQ60: 13 | CR60: 307 | CS60: 373 | CT60: -8 | CU60: 309 | CV60: 184 | CW60: -7 | CX60: 292 | CY60: 150 | CZ60: -14 | DA60: 240 | DB60: 307 | DC60: -7 | DD60: 286 | DE60: 504 | DF60: 2 | DG60: 385 | DH60: 283 | DI60: 7 | DJ60: 379 | DK60: 477 | DL60: 11 | DM60: 463 | DN60: 653 | DO60: -2 | DP60: 578 | DQ60: 409 | DR60: 13 | DS60: 616 | DT60: 359 | DU60: 1 | DV60: 585 | DW60: 489 | DX60: 5 | DY60: 537 | DZ60: 765 | EA60: 1
A61: Merrimack County | B61: 13000 | C61: 7 | D61: 00007 | E61: 98302 | F61: 120005 | G61: 136225 | H61: 146445 | I61: 154354 | J61: 157495 | K61: 159845 | L61: 450 | M61: 107 | N61: 25 | O61: 301 | P61: 82 | Q61: 13 | R61: 269 | S61: 112 | T61: 18 | U61: 528 | V61: 164 | W61: 50 | X61: 537 | Y61: 632 | Z61: 68 | AA61: 1346 | AB61: 1658 | AC61: 46 | AD61: 2014 | AE61: 846 | AF61: 98 | AG61: 1326 | AH61: 533 | AI61: 73 | AJ61: 1024 | AK61: 170 | AL61: 73 | AM61: 502 | AN61: 262 | AO61: 72 | AP61: 335 | AQ61: 78 | AR61: 54 | AS61: 318 | AT61: 23 | AU61: 25 | AV61: 285 | AW61: 39 | AX61: 27 | AY61: 305 | AZ61: 43 | BA61: 15 | BB61: 352 | BC61: 12 | BD61: 47 | BE61: 372 | BF61: 27 | BG61: 82 | BH61: 411 | BI61: 93 | BJ61: 94 | BK61: 429 | BL61: 84 | BM61: 88 | BN61: 534 | BO61: 62 | BP61: 103 | BQ61: 600 | BR61: 238 | BS61: 129 | BT61: 665 | BU61: 64 | BV61: 74 | BW61: 786 | BX61: 23 | BY61: 60 | BZ61: 862 | CA61: 208 | CB61: 44 | CC61: 784 | CD61: 253 | CE61: 28 | CF61: 748 | CG61: 148 | CH61: 54 | CI61: 583 | CJ61: 148 | CK61: 30 | CL61: 426 | CM61: 144 | CN61: 53 | CO61: 368 | CP61: 138 | CQ61: 39 | CR61: 206 | CS61: 114 | CT61: 23 | CU61: 126 | CV61: 53 | CW61: 13 | CX61: 157 | CY61: 81 | CZ61: 12 | DA61: 96 | DB61: 44 | DC61: 3 | DD61: 107 | DE61: 191 | DF61: 13 | DG61: 162 | DH61: -22 | DI61: 12 | DJ61: 175 | DK61: 116 | DL61: -15 | DM61: 183 | DN61: 149 | DO61: 20 | DP61: 184 | DQ61: 146 | DR61: 53 | DS61: 228 | DT61: 34 | DU61: 22 | DV61: 194 | DW61: 46 | DX61: 6 | DY61: 290 | DZ61: 82 | EA61: 30
A62: NEW HAMPSHIRE | C62: 0 | D62: 00000 | E62: 920475 | F62: 1109252 | G62: 1235786 | H62: 1316470 | I62: 1388884 | J62: 1412041 | K62: 1427098 | L62: 4051 | M62: 1752 | N62: 537 | O62: 3254 | P62: 1293 | Q62: 475 | R62: 3163 | S62: 1948 | T62: 642 | U62: 5624 | V62: 2528 | W62: 700 | X62: 6836 | Y62: 4685 | Z62: 876 | AA62: 10751 | AB62: 7907 | AC62: 1121 | AD62: 14299 | AE62: 5132 | AF62: 1109 | AG62: 12295 | AH62: 2766 | AI62: 988 | AJ62: 9057 | AK62: 2491 | AL62: 820 | AM62: 5299 | AN62: 1682 | AO62: 649 | AP62: 3264 | AQ62: 1051 | AR62: 430 | AS62: 3118 | AT62: 297 | AU62: 302 | AV62: 3592 | AW62: 394 | AX62: 348 | AY62: 3612 | AZ62: 602 | BA62: 433 | BB62: 3848 | BC62: 363 | BD62: 520 | BE62: 3734 | BF62: 189 | BG62: 549 | BH62: 3933 | BI62: 629 | BJ62: 638 | BK62: 4229 | BL62: 1176 | BM62: 587 | BN62: 5261 | BO62: 741 | BP62: 651 | BQ62: 5639 | BR62: 948 | BS62: 699 | BT62: 5903 | BU62: 940 | BV62: 701 | BW62: 5710 | BX62: 811 | BY62: 558 | BZ62: 6440 | CA62: 1927 | CB62: 531 | CC62: 6099 | CD62: 2779 | CE62: 385 | CF62: 6529 | CG62: 2044 | CH62: 497 | CI62: 5289 | CJ62: 2003 | CK62: 410 | CL62: 3849 | CM62: 1626 | CN62: 253 | CO62: 3038 | CP62: 1138 | CQ62: 207 | CR62: 1817 | CS62: 1082 | CT62: 89 | CU62: 1385 | CV62: 719 | CW62: 56 | CX62: 1546 | CY62: 740 | CZ62: 42 | DA62: 1307 | DB62: 765 | DC62: 29 | DD62: 1368 | DE62: 1174 | DF62: 85 | DG62: 1579 | DH62: 794 | DI62: 121 | DJ62: 1828 | DK62: 1457 | DL62: 46 | DM62: 1862 | DN62: 1565 | DO62: 112 | DP62: 2070 | DQ62: 1298 | DR62: 229 | DS62: 2234 | DT62: 1476 | DU62: 183 | DV62: 2219 | DW62: 1901 | DX62: 137 | DY62: 2259 | DZ62: 2121 | EA62: 103
A63: Rockingham County | B63: 15000 | C63: 8 | D63: 00008 | E63: 190345 | F63: 245845 | G63: 277359 | H63: 295223 | I63: 313619 | J63: 319065 | K63: 321226 | L63: 922 | M63: 279 | N63: 141 | O63: 770 | P63: 326 | Q63: 114 | R63: 849 | S63: 430 | T63: 170 | U63: 1563 | V63: 696 | W63: 235 | X63: 2044 | Y63: 1106 | Z63: 162 | AA63: 2632 | AB63: 2091 | AC63: 266 | AD63: 2911 | AE63: 1191 | AF63: 173 | AG63: 3010 | AH63: 643 | AI63: 169 | AJ63: 1702 | AK63: 484 | AL63: 88 | AM63: 1141 | AN63: 341 | AO63: 50 | AP63: 811 | AQ63: 171 | AR63: 66 | AS63: 724 | AT63: 238 | AU63: 20 | AV63: 1077 | AW63: 135 | AX63: 22 | AY63: 1173 | AZ63: 279 | BA63: 43 | BB63: 1172 | BC63: 134 | BD63: 41 | BE63: 1167 | BF63: 24 | BG63: 48 | BH63: 1161 | BI63: 67 | BJ63: 58 | BK63: 1374 | BL63: 206 | BM63: 66 | BN63: 1633 | BO63: 143 | BP63: 97 | BQ63: 1763 | BR63: 196 | BS63: 102 | BT63: 1619 | BU63: 331 | BV63: 114 | BW63: 1310 | BX63: 211 | BY63: 55 | BZ63: 1182 | CA63: 365 | CB63: 32 | CC63: 1004 | CD63: 1030 | CE63: 37 | CF63: 1082 | CG63: 846 | CH63: 91 | CI63: 787 | CJ63: 724 | CK63: 72 | CL63: 591 | CM63: 297 | CN63: 56 | CO63: 573 | CP63: 134 | CQ63: 26 | CR63: 373 | CS63: 254 | CT63: 8 | CU63: 331 | CV63: 97 | CW63: 4 | CX63: 403 | CY63: 121 | CZ63: 16 | DA63: 395 | DB63: 112 | DC63: 13 | DD63: 470 | DE63: 335 | DF63: 29 | DG63: 569 | DH63: 239 | DI63: 39 | DJ63: 635 | DK63: 397 | DL63: 28 | DM63: 562 | DN63: 452 | DO63: 19 | DP63: 577 | DQ63: 497 | DR63: 46 | DS63: 540 | DT63: 523 | DU63: 20 | DV63: 559 | DW63: 534 | DX63: 17 | DY63: 579 | DZ63: 696 | EA63: 15
A64: Strafford County | B64: 17000 | C64: 9 | D64: 00009 | E64: 85408 | F64: 104233 | G64: 112233 | H64: 123143 | I64: 131197 | J64: 133867 | K64: 137176 | L64: 207 | M64: 90 | N64: 55 | O64: 162 | P64: 34 | Q64: 42 | R64: 159 | S64: 86 | T64: 46 | U64: 401 | V64: 172 | W64: 96 | X64: 386 | Y64: 251 | Z64: 110 | AA64: 733 | AB64: 499 | AC64: 253 | AD64: 1119 | AE64: 445 | AF64: 327 | AG64: 1466 | AH64: 201 | AI64: 236 | AJ64: 764 | AK64: 195 | AL64: 166 | AM64: 535 | AN64: 32 | AO64: 135 | AP64: 261 | AQ64: 29 | AR64: 83 | AS64: 219 | AT64: 0 | AU64: 60 | AV64: 220 | AW64: 5 | AX64: 54 | AY64: 193 | AZ64: 83 | BA64: 102 | BB64: 251 | BC64: 51 | BD64: 101 | BE64: 245 | BF64: 17 | BG64: 75 | BH64: 238 | BI64: 12 | BJ64: 125 | BK64: 269 | BL64: 81 | BM64: 104 | BN64: 358 | BO64: 118 | BP64: 157 | BQ64: 472 | BR64: 92 | BS64: 123 | BT64: 529 | BU64: 67 | BV64: 113 | BW64: 505 | BX64: 74 | BY64: 136 | BZ64: 514 | CA64: 294 | CB64: 151 | CC64: 497 | CD64: 437 | CE64: 64 | CF64: 667 | CG64: 165 | CH64: 61 | CI64: 650 | CJ64: 91 | CK64: 64 | CL64: 383 | CM64: 247 | CN64: 46 | CO64: 267 | CP64: 95 | CQ64: 21 | CR64: 184 | CS64: 132 | CT64: 21 | CU64: 141 | CV64: 170 | CW64: 7 | CX64: 159 | CY64: 63 | CZ64: 8 | DA64: 164 | DB64: 133 | DC64: -3 | DD64: 144 | DE64: 41 | DF64: 48 | DG64: 116 | DH64: 190 | DI64: 7 | DJ64: 151 | DK64: 200 | DL64: 7 | DM64: 174 | DN64: 99 | DO64: 3 | DP64: 169 | DQ64: 104 | DR64: 30 | DS64: 236 | DT64: 232 | DU64: 41 | DV64: 225 | DW64: 471 | DX64: 51 | DY64: 169 | DZ64: 313 | EA64: 20
A65: Sullivan County | B65: 19000 | C65: 10 | D65: 00010 | E65: 36063 | F65: 38592 | G65: 40458 | H65: 43742 | I65: 46650 | J65: 47840 | K65: 49249 | L65: 196 | M65: 62 | N65: 53 | O65: 191 | P65: 47 | Q65: 55 | R65: 85 | S65: 20 | T65: 45 | U65: 126 | V65: -12 | W65: 52 | X65: 138 | Y65: -29 | Z65: 40 | AA65: 133 | AB65: 28 | AC65: 66 | AD65: 255 | AE65: 32 | AF65: 74 | AG65: 289 | AH65: 24 | AI65: 112 | AJ65: 417 | AK65: 28 | AL65: 112 | AM65: 205 | AN65: 74 | AO65: 71 | AP65: 90 | AQ65: -1 | AR65: 44 | AS65: 106 | AT65: 10 | AU65: 41 | AV65: 72 | AW65: 3 | AX65: 38 | AY65: 79 | AZ65: -1 | BA65: 53 | BB65: 99 | BC65: -60 | BD65: 58 | BE65: 97 | BF65: -23 | BG65: 64 | BH65: 91 | BI65: -42 | BJ65: 45 | BK65: 101 | BL65: 9 | BM65: 28 | BN65: 107 | BO65: 7 | BP65: 43 | BQ65: 119 | BR65: 23 | BS65: 60 | BT65: 151 | BU65: -28 | BV65: 60 | BW65: 121 | BX65: 2 | BY65: 39 | BZ65: 200 | CA65: -4 | CB65: 29 | CC65: 223 | CD65: 0 | CE65: 32 | CF65: 260 | CG65: 23 | CH65: 28 | CI65: 215 | CJ65: 5 | CK65: 24 | CL65: 178 | CM65: 9 | CN65: 10 | CO65: 190 | CP65: 32 | CQ65: 37 | CR65: 80 | CS65: 4 | CT65: 12 | CU65: 48 | CV65: 15 | CW65: 24 | CX65: 37 | CY65: 5 | CZ65: 13 | DA65: 28 | DB65: 2 | DC65: 6 | DD65: 34 | DE65: 6 | DF65: 5 | DG65: 33 | DH65: 1 | DI65: 7 | DJ65: 37 | DK65: 1 | DL65: 3 | DM65: 48 | DN65: 1 | DO65: 11 | DP65: 34 | DQ65: 6 | DR65: 11 | DS65: 22 | DT65: 1 | DU65: 13 | DV65: 35 | DW65: 4 | DX65: 12 | DY65: 40 | DZ65: 11 | EA65: 7
A72: NH Employment Data | B72: Query Name: DPQryEmploymentByCnty-Good-Serv-Total | C72: Updated: | D72: 2020-09-30
A74: AreaName | B74: COUNTYCODE | C74: TOTP & G2001 | D74: TOT2001 | E74: GOODPRO2001 | F74: SERVICEPROMAN2001 | G74: WAGEP & G2001 | H74: WAGETOT2001 | I74: WAGEGOODPRO2001 | J74: WAGESERVICEPRO2001 | K74: TOTP & G2002 | L74: TOT2002 | M74: GOODPRO2002 | N74: SERVICEPROMAN2002 | O74: WAGEP & G2002 | P74: WAGETOT2002 | Q74: WAGEGOODPRO2002 | R74: WAGESERVICEPRO2002 | S74: TOTP & G2003 | T74: TOT2003 | U74: GOODPRO2003 | V74: SERVICEPROMAN2003 | W74: WAGEP & G2003 | X74: WAGETOT2003 | Y74: WAGEGOODPRO2003 | Z74: WAGESERVICEPRO2003 | AA74: TOTP & G2004 | AB74: TOT2004 | AC74: GOODPRO2004 | AD74: SERVICEPROMAN2004 | AE74: WAGEP & G2004 | AF74: WAGETOT2004 | AG74: WAGEGOODPRO2004 | AH74: WAGESERVICEPRO2004 | AI74: TOTP & G2005 | AJ74: TOT2005 | AK74: GOODPRO2005 | AL74: SERVICEPROMAN2005 | AM74: WAGEP & G2005 | AN74: WAGETOT2005 | AO74: WAGEGOODPRO2005 | AP74: WAGESERVICEPRO2005 | AQ74: TOTP & G2006 | AR74: TOT2006 | AS74: GOODPRO2006 | AT74: SERVICEPROMAN2006 | AU74: WAGEP & G2006 | AV74: WAGETOT2006 | AW74: WAGEGOODPRO2006 | AX74: WAGESERVICEPRO2006 | AY74: TOTP & G2007 | AZ74: TOT2007 | BA74: GOODPRO2007 | BB74: SERVICEPROMAN2007 | BC74: WAGEP & G2007 | BD74: WAGETOT2007 | BE74: WAGEGOODPRO2007 | BF74: WAGESERVICEPRO2007 | BG74: TOTP & G2008 | BH74: TOT2008 | BI74: GOODPRO2008 | BJ74: SERVICEPROMAN2008 | BK74: WAGEP & G2008 | BL74: WAGETOT2008 | BM74: WAGEGOODPRO2008 | BN74: WAGESERVICEPRO2008 | BO74: TOTP & G2009 | BP74: TOT2009 | BQ74: GOODPRO2009 | BR74: SERVICEPROMAN2009 | BS74: WAGEP & G2009 | BT74: WAGETOT2009 | BU74: WAGEGOODPRO2009 | BV74: WAGESERVICEPRO2009 | BW74: TOTP & G2010 | BX74: TOT2010 | BY74: GOODPRO2010 | BZ74: SERVICEPROMAN2010 | CA74: WAGEP & G2010 | CB74: WAGETOT2010 | CC74: WAGEGOODPRO2010 | CD74: WAGESERVICEPRO2010 | CE74: TOTP & G2011 | CF74: TOT2011 | CG74: GOODPRO2011 | CH74: SERVICEPROMAN2011 | CI74: WAGEP & G2011 | CJ74: WAGETOT2011 | CK74: WAGEGOODPRO2011 | CL74: WAGESERVICEPRO2011 | CM74: TOTP & G2012 | CN74: TOT2012 | CO74: GOODPRO2012 | CP74: SERVICEPROMAN2012 | CQ74: WAGEP & G2012 | CR74: WAGETOT2012 | CS74: WAGEGOODPRO2012 | CT74: WAGESERVICEPRO2012 | CU74: TOTP & G2013 | CV74: TOT2013 | CW74: GOODPRO2013 | CX74: SERVICEPROMAN2013 | CY74: WAGEP & G2013 | CZ74: WAGETOT2013 | DA74: WAGEGOODPRO2013 | DB74: WAGESERVICEPRO2013 | DC74: TOTP & G2014 | DD74: TOT2014 | DE74: GOODPRO2014 | DF74: SERVICEPROMAN2014 | DG74: WAGEP & G2014 | DH74: WAGETOT2014 | DI74: WAGEGOODPRO2014 | DJ74: WAGESERVICEPRO2014 | DK74: TOTP & G2015 | DL74: TOT2015 | DM74: GOODPRO2015 | DN74: SERVICEPROMAN2015 | DO74: WAGEP & G2015 | DP74: WAGETOT2015 | DQ74: WAGEGOODPRO2015 | DR74: WAGESERVICEPRO2015 | DS74: TOTP & G2016 | DT74: TOT2016 | DU74: GOODPRO2016 | DV74: SERVICEPROMAN2016 | DW74: WAGEP & G2016 | DX74: WAGETOT2016 | DY74: WAGEGOODPRO2016 | DZ74: WAGESERVICEPRO2016 | EA74: TOTP & G2017 | EB74: TOT2017 | EC74: GOODPRO2017 | ED74: SERVICEPROMAN2017 | EE74: WAGEP & G2017 | EF74: WAGETOT2017 | EG74: WAGEGOODPRO2017 | EH74: WAGESERVICEPRO2017 | EI74: TOTP & G2018 | EJ74: TOT2018 | EK74: GOODPRO2018 | EL74: SERVICEPROMAN2018 | EM74: WAGEP & G2018 | EN74: WAGETOT2018 | EO74: WAGEGOODPRO2018 | EP74: WAGESERVICEPRO2018 | EQ74: TOTP & G2019 | ER74: TOT2019 | ES74: TOTGov2019 | ET74: GOODPRO2019 | EU74: SERVICEPROMAN2019 | EV74: WAGEP & G2019 | EW74: WAGETOT2019 | EX74: WAGEGov2019 | EY74: WAGEGOODPRO2019 | EZ74: WAGESERVICEPRO2019 | FA74: PlaceTownIDNumber | FB74: COUNTYCODE | FC74: NH-EmploymentGoods-Service.COUNTYCODE
A75: Belknap County | B75: 1 | C75: 26173 | D75: 22708 | E75: 6138 | F75: 16570 | G75: 541.07 | H75: 538.34 | I75: 689.88 | J75: 482.21 | K75: 26052 | L75: 22334 | M75: 5408 | N75: 16926 | O75: 561.11 | P75: 555.84 | Q75: 731.15 | R75: 499.83 | S75: 26286 | T75: 22376 | U75: 5281 | V75: 17095 | W75: 579.91 | X75: 573.04 | Y75: 754.28 | Z75: 517.05 | AA75: 26931 | AB75: 23030 | AC75: 5431 | AD75: 17599 | AE75: 610.04 | AF75: 602.01 | AG75: 777.41 | AH75: 547.89 | AI75: 26940 | AJ75: 22891 | AK75: 5467 | AL75: 17424 | AM75: 636.42 | AN75: 634.14 | AO75: 819.42 | AP75: 576 | AQ75: 27237 | AR75: 23042 | AS75: 5133 | AT75: 17909 | AU75: 657.93 | AV75: 655.07 | AW75: 862.32 | AX75: 595.67 | AY75: 27266 | AZ75: 23032 | BA75: 4820 | BB75: 18212 | BC75: 674.29 | BD75: 668.31 | BE75: 921.91 | BF75: 601.18 | BG75: 26793 | BH75: 22507 | BI75: 4572 | BJ75: 17935 | BK75: 689.74 | BL75: 680.53 | BM75: 938.61 | BN75: 614.74 | BO75: 25570 | BP75: 21280 | BQ75: 3944 | BR75: 17337 | BS75: 692.98 | BT75: 680.87 | BU75: 934.72 | BV75: 623.12 | BW75: 24943 | BX75: 20713 | BY75: 3480 | BZ75: 17234 | CA75: 698.61 | CB75: 690.71 | CC75: 945.91 | CD75: 639.19 | CE75: 24953 | CF75: 20748 | CG75: 3411 | CH75: 17337 | CI75: 706.01 | CJ75: 697.17 | CK75: 959.24 | CL75: 645.61 | CM75: 25196 | CN75: 20972 | CO75: 3400 | CP75: 17572 | CQ75: 708.66 | CR75: 703.81 | CS75: 960.55 | CT75: 654.13 | CU75: 25517 | CV75: 21311 | CW75: 3517 | CX75: 17794 | CY75: 718.36 | CZ75: 714.81 | DA75: 997.67 | DB75: 658.89 | DC75: 25490 | DD75: 21315 | DE75: 3554 | DF75: 17761 | DG75: 748.41 | DH75: 745.98 | DI75: 1036.05 | DJ75: 687.93 | DK75: 25584 | DL75: 21457 | DM75: 3597 | DN75: 17859 | DO75: 776.57 | DP75: 774.35 | DQ75: 1066.24 | DR75: 715.55 | DS75: 25708 | DT75: 21577 | DU75: 3626 | DV75: 17951 | DW75: 797.95 | DX75: 796.89 | DY75: 1088.81 | DZ75: 737.93 | EA75: 25829 | EB75: 21725 | EC75: 3676 | ED75: 18049 | EE75: 823.13 | EF75: 823.31 | EG75: 1139.79 | EH75: 758.85 | EI75: 25898 | EJ75: 21803 | EK75: 3774 | EL75: 18029 | EM75: 851.06 | EN75: 851.82 | EO75: 1167.98 | EP75: 785.64 | EQ75: 26080 | ER75: 22008 | ES75: 4072 | ET75: 3799 | EU75: 18209 | EV75: 854.12 | EW75: 849.87 | EX75: 877.08 | EY75: 1177.3 | EZ75: 781.56 | FA75: 1016 | FC75: 1
A76: Carroll County | B76: 2 | C76: 19495 | D76: 16938 | E76: 2563 | F76: 14374 | G76: 467.52 | H76: 460.32 | I76: 627.98 | J76: 430.42 | K76: 19756 | L76: 17153 | M76: 2497 | N76: 14656 | O76: 481.01 | P76: 472.65 | Q76: 645.74 | R76: 443.16 | S76: 20167 | T76: 17534 | U76: 2567 | V76: 14967 | W76: 492.28 | X76: 481.72 | Y76: 647.56 | Z76: 453.27 | AA76: 20405 | AB76: 17701 | AC76: 2526 | AD76: 15175 | AE76: 519.72 | AF76: 511.1 | AG76: 687.06 | AH76: 481.81 | AI76: 20205 | AJ76: 17448 | AK76: 2541 | AL76: 14906 | AM76: 533.86 | AN76: 524.08 | AO76: 703.81 | AP76: 493.43 | AQ76: 20294 | AR76: 17504 | AS76: 2588 | AT76: 14916 | AU76: 575.59 | AV76: 568.1 | AW76: 737.84 | AX76: 538.66 | AY76: 20402 | AZ76: 17510 | BA76: 2544 | BB76: 14966 | BC76: 573.3 | BD76: 562.56 | BE76: 760.1 | BF76: 528.99 | BG76: 20584 | BH76: 17636 | BI76: 2552 | BJ76: 15084 | BK76: 584.18 | BL76: 570.32 | BM76: 770.38 | BN76: 536.47 | BO76: 19942 | BP76: 16904 | BQ76: 2265 | BR76: 14639 | BS76: 587.36 | BT76: 570.99 | BU76: 765.31 | BV76: 540.92 | BW76: 19810 | BX76: 16754 | BY76: 2124 | BZ76: 14630 | CA76: 600.19 | CB76: 586.5 | CC76: 775.97 | CD76: 558.99 | CE76: 19997 | CF76: 17005 | CG76: 2189 | CH76: 14816 | CI76: 617.28 | CJ76: 603.42 | CK76: 798.39 | CL76: 574.61 | CM76: 20082 | CN76: 17083 | CO76: 2162 | CP76: 14921 | CQ76: 627.17 | CR76: 615.41 | CS76: 800.29 | CT76: 588.62 | CU76: 19971 | CV76: 16958 | CW76: 2084 | CX76: 14874 | CY76: 645.67 | CZ76: 633.79 | DA76: 805.62 | DB76: 609.71 | DC76: 20015 | DD76: 16952 | DE76: 2024 | DF76: 14928 | DG76: 640.24 | DH76: 627.02 | DI76: 843.7 | DJ76: 597.64 | DK76: 19806 | DL76: 16828 | DM76: 1996 | DN76: 14832 | DO76: 667.3 | DP76: 653.87 | DQ76: 884.26 | DR76: 622.86 | DS76: 19997 | DT76: 17053 | DU76: 2030 | DV76: 15023 | DW76: 686.74 | DX76: 674.21 | DY76: 909.04 | DZ76: 642.48 | EA76: 20005 | EB76: 17047 | EC76: 2057 | ED76: 14991 | EE76: 692.33 | EF76: 677.15 | EG76: 941.62 | EH76: 640.87 | EI76: 20015 | EJ76: 17037 | EK76: 2078 | EL76: 14959 | EM76: 710.33 | EN76: 694.81 | EO76: 905.58 | EP76: 665.54 | EQ76: 20228 | ER76: 17268 | ES76: 2960 | ET76: 2128 | EU76: 15140 | EV76: 735.27 | EW76: 721.26 | EX76: 816.99 | EY76: 942.12 | EZ76: 690.22 | FA76: 1017 | FC76: 2
A77: Cheshire County | B77: 3 | C77: 32349 | D77: 27819 | E77: n | F77: n | G77: 571.93 | H77: 577.31 | I77: n | J77: n | K77: 32369 | L77: 27595 | M77: 7795 | N77: 19800 | O77: 584.33 | P77: 590.97 | Q77: 743.2 | R77: 531.04 | S77: 32548 | T77: 27626 | U77: 7754 | V77: 19873 | W77: 598.89 | X77: 603.04 | Y77: 763.11 | Z77: 540.59 | AA77: 33075 | AB77: 28132 | AC77: 7648 | AD77: 20484 | AE77: 631.09 | AF77: 634.68 | AG77: 807.42 | AH77: 570.18 | AI77: 33995 | AJ77: 28886 | AK77: 8110 | AL77: 20776 | AM77: 656.03 | AN77: 666.98 | AO77: 828.9 | AP77: 603.78 | AQ77: 34194 | AR77: 29151 | AS77: 7889 | AT77: 21262 | AU77: 723.95 | AV77: 741.43 | AW77: 987.42 | AX77: 650.15 | AY77: 33638 | AZ77: 28601 | BA77: 7473 | BB77: 21128 | BC77: 707.44 | BD77: 717.07 | BE77: 867.3 | BF77: 663.94 | BG77: 33220 | BH77: 28351 | BI77: 7351 | BJ77: 21000 | BK77: 746.75 | BL77: 752.8 | BM77: 902.94 | BN77: 700.24 | BO77: 32207 | BP77: 27212 | BQ77: 6761 | BR77: 20451 | BS77: 742.41 | BT77: 745.7 | BU77: 870.79 | BV77: 704.34 | BW77: 31527 | BX77: 26585 | BY77: 6300 | BZ77: 20286 | CA77: 754.45 | CB77: 756.21 | CC77: 900.6 | CD77: 711.38 | CE77: 31690 | CF77: 26854 | CG77: 6240 | CH77: 20614 | CI77: 768.13 | CJ77: 768.69 | CK77: 935.64 | CL77: 718.15 | CM77: 32021 | CN77: 27158 | CO77: 6245 | CP77: 20914 | CQ77: 790.24 | CR77: 793.9 | CS77: 933.87 | CT77: 752.11 | CU77: 31923 | CV77: 27008 | CW77: 6032 | CX77: 20975 | CY77: 796.52 | CZ77: 797.61 | DA77: 965.3 | DB77: 749.39 | DC77: 31904 | DD77: 26935 | DE77: 6025 | DF77: 20910 | DG77: 810.83 | DH77: 815.88 | DI77: 993.69 | DJ77: 764.64 | DK77: 32067 | DL77: 27097 | DM77: 6073 | DN77: 21024 | DO77: 830.63 | DP77: 834.25 | DQ77: 1010.79 | DR77: 783.25 | DS77: 32005 | DT77: 27109 | DU77: 6177 | DV77: 20932 | DW77: 838.96 | DX77: 843.47 | DY77: 1028.03 | DZ77: 789.01 | EA77: 31743 | EB77: 26953 | EC77: 6194 | ED77: 20759 | EE77: 867.06 | EF77: 873.07 | EG77: 1043.75 | EH77: 822.14 | EI77: 31642 | EJ77: 26825 | EK77: 6445 | EL77: 20380 | EM77: 895.81 | EN77: 907.01 | EO77: 1090.07 | EP77: 849.12 | EQ77: 31737 | ER77: 26923 | ES77: 4814 | ET77: 6652 | EU77: 20272 | EV77: 913.17 | EW77: 927.09 | EX77: 835.36 | EY77: 1100.44 | EZ77: 870.2 | FA77: 1018 | FC77: 3
A78: Coos County | B78: 4 | C78: 13872 | D78: 11234 | E78: n | F78: n | G78: 489.02 | H78: 487.7 | I78: n | J78: n | K78: 13737 | L78: 11021 | M78: 2332 | N78: 8689 | O78: 490.8 | P78: 484.33 | Q78: 650.88 | R78: 439.63 | S78: 13946 | T78: 11225 | U78: 2578 | V78: 8647 | W78: 525.08 | X78: 519.66 | Y78: 703.37 | Z78: 464.89 | AA78: 14103 | AB78: 11341 | AC78: 2590 | AD78: 8751 | AE78: 542.98 | AF78: 540.59 | AG78: 726.42 | AH78: 485.6 | AI78: 14026 | AJ78: 11222 | AK78: 2533 | AL78: 8689 | AM78: 556.04 | AN78: 552.64 | AO78: 754.89 | AP78: 493.68 | AQ78: 13898 | AR78: 10991 | AS78: 2334 | AT78: 8657 | AU78: 572.86 | AV78: 571.42 | AW78: 766.73 | AX78: 518.76 | AY78: 13876 | AZ78: 11050 | BA78: 2184 | BB78: 8866 | BC78: 583.63 | BD78: 572.31 | BE78: 758.88 | BF78: 526.34 | BG78: 13566 | BH78: 10747 | BI78: 1988 | BJ78: 8759 | BK78: 602.53 | BL78: 587.51 | BM78: 755.51 | BN78: 549.38 | BO78: 13002 | BP78: 10134 | BQ78: 1720 | BR78: 8414 | BS78: 609.68 | BT78: 592.77 | BU78: 751.35 | BV78: 560.36 | BW78: 12832 | BX78: 9977 | BY78: 1593 | BZ78: 8384 | CA78: 608.57 | CB78: 589.54 | CC78: 744.88 | CD78: 560.02 | CE78: 12555 | CF78: 9785 | CG78: 1473 | CH78: 8312 | CI78: 620.23 | CJ78: 600.46 | CK78: 757.95 | CL78: 572.54 | CM78: 12371 | CN78: 9564 | CO78: 1568 | CP78: 7995 | CQ78: 640.94 | CR78: 622.74 | CS78: 825.56 | CT78: 582.97 | CU78: 12515 | CV78: 9564 | CW78: 1649 | CX78: 7915 | CY78: 667.37 | CZ78: 647.75 | DA78: 855.89 | DB78: 604.39 | DC78: 12064 | DD78: 9083 | DE78: 1293 | DF78: 7789 | DG78: 675.59 | DH78: 651.58 | DI78: 777.89 | DJ78: 630.61 | DK78: 11974 | DL78: 9046 | DM78: 1222 | DN78: 7824 | DO78: 694.46 | DP78: 666.94 | DQ78: 788.97 | DR78: 647.89 | DS78: 11990 | DT78: 9038 | DU78: 1167 | DV78: 7870 | DW78: 706.62 | DX78: 682.98 | DY78: 853.55 | DZ78: 657.68 | EA78: 11999 | EB78: 9070 | EC78: 1223 | ED78: 7846 | EE78: 729.45 | EF78: 705.37 | EG78: 867.99 | EH78: 680.02 | EI78: 11970 | EJ78: 9060 | EK78: 1296 | EL78: 7764 | EM78: 749.69 | EN78: 723.06 | EO78: 852.68 | EP78: 701.43 | EQ78: 12083 | ER78: 9226 | ES78: 2857 | ET78: 1304 | EU78: 7921 | EV78: 766.79 | EW78: 735.31 | EX78: 868.44 | EY78: 914.39 | EZ78: 705.82 | FA78: 1019 | FC78: 4
A79: Grafton County | B79: 5 | C79: 49352 | D79: 43256 | E79: 8085 | F79: 35171 | G79: 617.73 | H79: 624.05 | I79: 672.45 | J79: 612.93 | K79: 49690 | L79: 43362 | M79: 7763 | N79: 35599 | O79: 658.93 | P79: 668.77 | Q79: 701.81 | R79: 661.56 | S79: 50615 | T79: 44009 | U79: 7790 | V79: 36220 | W79: 704.15 | X79: 717.01 | Y79: 753.77 | Z79: 709.11 | AA79: 51355 | AB79: 44704 | AC79: 7636 | AD79: 37069 | AE79: 728.96 | AF79: 740.6 | AG79: 770.78 | AH79: 734.38 | AI79: 51541 | AJ79: 44954 | AK79: 7698 | AL79: 37256 | AM79: 768.82 | AN79: 783.94 | AO79: 809.26 | AP79: 778.7 | AQ79: 52267 | AR79: 45531 | AS79: 7761 | AT79: 37770 | AU79: 803.4 | AV79: 820.96 | AW79: 855.22 | AX79: 813.92 | AY79: 52729 | AZ79: 45992 | BA79: 7672 | BB79: 38320 | BC79: 843.04 | BD79: 860.73 | BE79: 901.98 | BF79: 852.47 | BG79: 52901 | BH79: 46166 | BI79: 7347 | BJ79: 38819 | BK79: 867.61 | BL79: 884.82 | BM79: 928.14 | BN79: 876.62 | BO79: 51401 | BP79: 44646 | BQ79: 6446 | BR79: 38200 | BS79: 879.4 | BT79: 895.26 | BU79: 899.95 | BV79: 894.47 | BW79: 51256 | BX79: 44376 | BY79: 6289 | BZ79: 38086 | CA79: 905.77 | CB79: 925.54 | CC79: 949.83 | CD79: 921.53 | CE79: 51663 | CF79: 44867 | CG79: 6681 | CH79: 38186 | CI79: 926.58 | CJ79: 946.3 | CK79: 981.6 | CL79: 940.12 | CM79: 52026 | CN79: 45246 | CO79: 6818 | CP79: 38428 | CQ79: 950.95 | CR79: 973.52 | CS79: 996.15 | CT79: 969.5 | CU79: 52153 | CV79: 45454 | CW79: 6717 | CX79: 38736 | CY79: 965.05 | CZ79: 986.68 | DA79: 1028.75 | DB79: 979.39 | DC79: 52226 | DD79: 45565 | DE79: 6778 | DF79: 38787 | DG79: 1004.06 | DH79: 1029.15 | DI79: 1069.54 | DJ79: 1022.09 | DK79: 52654 | DL79: 46056 | DM79: 6882 | DN79: 39174 | DO79: 1037.55 | DP79: 1061.83 | DQ79: 1078.89 | DR79: 1058.83 | DS79: 53361 | DT79: 46686 | DU79: 6801 | DV79: 39885 | DW79: 1058.6 | DX79: 1086.92 | DY79: 1082.4 | DZ79: 1087.69 | EA79: 53790 | EB79: 47161 | EC79: 6781 | ED79: 40380 | EE79: 1079.63 | EF79: 1108.61 | EG79: 1125.3 | EH79: 1105.81 | EI79: 54119 | EJ79: 47417 | EK79: 6926 | EL79: 40491 | EM79: 1105.33 | EN79: 1135.81 | EO79: 1167.74 | EP79: 1130.34 | EQ79: 54388 | ER79: 47685 | ES79: 6703 | ET79: 6855 | EU79: 40830 | EV79: 1142.8 | EW79: 1174.8 | EX79: 915.17 | EY79: 1156.02 | EZ79: 1177.95 | FA79: 1020 | FC79: 5
A80: Hillsborough County | B80: 6 | C80: 192842 | D80: 173003 | E80: 47169 | F80: 125834 | G80: 756.14 | H80: 762.49 | I80: 941.37 | J80: 695.43 | K80: 188573 | L80: 168164 | M80: 42086 | N80: 126078 | O80: 768.52 | P80: 773.3 | Q80: 968.23 | R80: 708.23 | S80: 190864 | T80: 169969 | U80: 41006 | V80: 128962 | W80: 801.91 | X80: 806.79 | Y80: 1014.82 | Z80: 740.64 | AA80: 193543 | AB80: 172567 | AC80: 40910 | AD80: 131656 | AE80: 839.56 | AF80: 844.4 | AG80: 1064.01 | AH80: 776.16 | AI80: 196190 | AJ80: 174854 | AK80: 40181 | AL80: 134673 | AM80: 866.71 | AN80: 873.18 | AO80: 1101.58 | AP80: 805.03 | AQ80: 196502 | AR80: 175094 | AS80: 39123 | AT80: 135971 | AU80: 897.24 | AV80: 904 | AW80: 1171.16 | AX80: 827.13 | AY80: 197183 | AZ80: 175821 | BA80: 38588 | BB80: 137233 | BC80: 946.54 | BD80: 951.14 | BE80: 1248.82 | BF80: 867.44 | BG80: 195976 | BH80: 174253 | BI80: 36628 | BJ80: 137625 | BK80: 973.54 | BL80: 979.17 | BM80: 1267.17 | BN80: 902.52 | BO80: 187240 | BP80: 165260 | BQ80: 33003 | BR80: 132257 | BS80: 959.3 | BT80: 962.96 | BU80: 1236.24 | BV80: 894.76 | BW80: 184628 | BX80: 162829 | BY80: 32117 | BZ80: 130712 | CA80: 980.99 | CB80: 986.25 | CC80: 1287.91 | CD80: 912.12 | CE80: 186437 | CF80: 165030 | CG80: 32694 | CH80: 132336 | CI80: 1013.7 | CJ80: 1018.86 | CK80: 1329.81 | CL80: 942.03 | CM80: 188425 | CN80: 167133 | CO80: 31642 | CP80: 135492 | CQ80: 1029.82 | CR80: 1035.95 | CS80: 1325.69 | CT80: 968.28 | CU80: 190568 | CV80: 169383 | CW80: 30861 | CX80: 138522 | CY80: 1038.74 | CZ80: 1045.24 | DA80: 1365.43 | DB80: 973.9 | DC80: 193565 | DD80: 172574 | DE80: 31422 | DF80: 141152 | DG80: 1092.9 | DH80: 1101.22 | DI80: 1393.55 | DJ80: 1036.15 | DK80: 196842 | DL80: 175848 | DM80: 31842 | DN80: 144005 | DO80: 1099.51 | DP80: 1106.52 | DQ80: 1401.46 | DR80: 1041.3 | DS80: 199729 | DT80: 178867 | DU80: 32654 | DV80: 146213 | DW80: 1118.63 | DX80: 1126.21 | DY80: 1436.51 | DZ80: 1056.91 | EA80: 201740 | EB80: 180839 | EC80: 33513 | ED80: 147327 | EE80: 1147.78 | EF80: 1156.08 | EG80: 1490.14 | EH80: 1080.09 | EI80: 203961 | EJ80: 182874 | EK80: 34296 | EL80: 148577 | EM80: 1182 | EN80: 1189.98 | EO80: 1525.57 | EP80: 1112.51 | EQ80: 205989 | ER80: 184819 | ES80: 21170 | ET80: 35047 | EU80: 149772 | EV80: 1219.73 | EW80: 1229.84 | EX80: 1131.48 | EY80: 1558.29 | EZ80: 1152.98 | FA80: 1021 | FC80: 6
A81: Merrimack County | B81: 7 | C81: 71543 | D81: 56168 | E81: 12137 | F81: 44031 | G81: 631.86 | H81: 633.93 | I81: 772.48 | J81: 595.74 | K81: 71850 | L81: 56025 | M81: 11403 | N81: 44622 | O81: 653.27 | P81: 655.12 | Q81: 799.93 | R81: 618.12 | S81: 72840 | T81: 56631 | U81: 11036 | V81: 45595 | W81: 667.06 | X81: 666.91 | Y81: 826.68 | Z81: 628.24 | AA81: 72381 | AB81: 56515 | AC81: 10742 | AD81: 45773 | AE81: 690.51 | AF81: 689.4 | AG81: 845.49 | AH81: 652.77 | AI81: 72963 | AJ81: 56979 | AK81: 11012 | AL81: 45967 | AM81: 710.07 | AN81: 710.67 | AO81: 861.87 | AP81: 674.44 | AQ81: 74077 | AR81: 57818 | AS81: 10760 | AT81: 47058 | AU81: 739.28 | AV81: 739.89 | AW81: 906.79 | AX81: 701.73 | AY81: 74070 | AZ81: 57629 | BA81: 10051 | BB81: 47579 | BC81: 774.05 | BD81: 772.96 | BE81: 972.47 | BF81: 730.82 | BG81: 73959 | BH81: 57295 | BI81: 9822 | BJ81: 47472 | BK81: 795.3 | BL81: 789.49 | BM81: 978.78 | BN81: 750.33 | BO81: 72134 | BP81: 55582 | BQ81: 8724 | BR81: 46857 | BS81: 810.16 | BT81: 788.36 | BU81: 966.04 | BV81: 755.28 | BW81: 71882 | BX81: 55306 | BY81: 8662 | BZ81: 46645 | CA81: 821.15 | CB81: 806.64 | CC81: 998.67 | CD81: 770.98 | CE81: 72140 | CF81: 55913 | CG81: 9059 | CH81: 46854 | CI81: 835.3 | CJ81: 821.63 | CK81: 1012.78 | CL81: 784.67 | CM81: 72901 | CN81: 56946 | CO81: 9282 | CP81: 47664 | CQ81: 850.4 | CR81: 842.26 | CS81: 1036.72 | CT81: 804.39 | CU81: 73510 | CV81: 57805 | CW81: 9457 | CX81: 48348 | CY81: 866.04 | CZ81: 857.51 | DA81: 1050.87 | DB81: 819.69 | DC81: 74884 | DD81: 58800 | DE81: 9698 | DF81: 49103 | DG81: 892.44 | DH81: 882.46 | DI81: 1086.78 | DJ81: 842.11 | DK81: 75670 | DL81: 59563 | DM81: 9801 | DN81: 49762 | DO81: 929.04 | DP81: 918.53 | DQ81: 1114.06 | DR81: 880.02 | DS81: 76413 | DT81: 60219 | DU81: 9936 | DV81: 50283 | DW81: 946.35 | DX81: 937.29 | DY81: 1126.38 | DZ81: 899.92 | EA81: 76803 | EB81: 60570 | EC81: 10042 | ED81: 50528 | EE81: 980.03 | EF81: 971.23 | EG81: 1164.72 | EH81: 932.78 | EI81: 77469 | EJ81: 61326 | EK81: 10142 | EL81: 51184 | EM81: 1012.33 | EN81: 1004.39 | EO81: 1186.12 | EP81: 968.39 | EQ81: 77816 | ER81: 61536 | ES81: 16281 | ET81: 10313 | EU81: 51222 | EV81: 1038.63 | EW81: 1030.98 | EX81: 1067.56 | EY81: 1209.32 | EZ81: 995.07 | FA81: 1022 | FC81: 7
A82: New Hampshire | B82: 1026 | C82: 610446 | D82: 531225 | E82: 127190 | F82: 404035 | G82: 682.38 | H82: 691.51 | I82: 842.11 | J82: 644.1 | K82: 603100 | L82: 521320 | M82: 115244 | N82: 406076 | O82: 695.8 | P82: 703.84 | Q82: 868.13 | R82: 657.22 | S82: 604198 | T82: 520362 | U82: 111472 | V82: 408890 | W82: 717.94 | X82: 724.91 | Y82: 888.81 | Z82: 680.22 | AA82: 613327 | AB82: 529515 | AC82: 111893 | AD82: 417622 | AE82: 753.7 | AF82: 760.58 | AG82: 928.63 | AH82: 715.56 | AI82: 620909 | AJ82: 536173 | AK82: 112033 | AL82: 424140 | AM82: 779.84 | AN82: 788.93 | AO82: 958.48 | AP82: 744.15 | AQ82: 627301 | AR82: 541435 | AS82: 110189 | AT82: 431246 | AU82: 816.3 | AV82: 827.48 | AW82: 1013.11 | AX82: 780.04 | AY82: 630171 | AZ82: 543800 | BA82: 107673 | BB82: 436127 | BC82: 843.46 | BD82: 852.45 | BE82: 1054.16 | BF82: 802.65 | BG82: 628819 | BH82: 541768 | BI82: 104441 | BJ82: 437326 | BK82: 863.66 | BL82: 870.64 | BM82: 1074.6 | BN82: 821.93 | BO82: 604915 | BP82: 517658 | BQ82: 92952 | BR82: 424706 | BS82: 864.05 | BT82: 867.37 | BU82: 1066.42 | BV82: 823.81 | BW82: 600540 | BX82: 513386 | BY82: 89428 | BZ82: 423957 | CA82: 883.88 | CB82: 890.13 | CC82: 1119.47 | CD82: 841.75 | CE82: 605864 | CF82: 520338 | CG82: 90996 | CH82: 429342 | CI82: 909.31 | CJ82: 916.27 | CK82: 1140.95 | CL82: 868.65 | CM82: 612432 | CN82: 527263 | CO82: 90404 | CP82: 436858 | CQ82: 928.33 | CR82: 938.02 | CS82: 1152.07 | CT82: 893.72 | CU82: 618756 | CV82: 534106 | CW82: 90890 | CX82: 443216 | CY82: 941.75 | CZ82: 950.79 | DA82: 1173.11 | DB82: 905.2 | DC82: 626567 | DD82: 541441 | DE82: 92176 | DF82: 449265 | DG82: 983.96 | DH82: 996.35 | DI82: 1200.71 | DJ82: 954.42 | DK82: 636798 | DL82: 552276 | DM82: 93968 | DN82: 458308 | DO82: 1010.64 | DP82: 1021.89 | DQ82: 1224.55 | DR82: 980.34 | DS82: 647375 | DT82: 562836 | DU82: 96138 | DV82: 466699 | DW82: 1030.04 | DX82: 1042.63 | DY82: 1251.03 | DZ82: 999.7 | EA82: 653496 | EB82: 569023 | EC82: 97995 | ED82: 471029 | EE82: 1060.34 | EF82: 1073.99 | EG82: 1294.46 | EH82: 1028.12 | EI82: 658816 | EJ82: 574044 | EK82: 100089 | EL82: 473955 | EM82: 1091.97 | EN82: 1106.44 | EO82: 1317.59 | EP82: 1061.85 | EQ82: 665374 | ER82: 580394 | ES82: 84980 | ET82: 101907 | EU82: 478487 | EV82: 1128.27 | EW82: 1145.04 | EX82: 1013.77 | EY82: 1346.98 | EZ82: 1102.03 | FA82: 1026
A83: Rockingham County | B83: 8 | C83: 130960 | D83: 117604 | E83: 24384 | F83: 93220 | G83: 704.6 | H83: 714.62 | I83: 913.02 | J83: 662.73 | K83: 130242 | L83: 116589 | M83: 22286 | N83: 94302 | O83: 712.56 | P83: 720.57 | Q83: 945.47 | R83: 667.42 | S83: 130329 | T83: 116466 | U83: 21075 | V83: 95392 | W83: 725.68 | X83: 731.51 | Y83: 920.38 | Z83: 689.79 | AA83: 133803 | AB83: 119786 | AC83: 21944 | AD83: 97841 | AE83: 774.11 | AF83: 781.14 | AG83: 964.22 | AH83: 740.08 | AI83: 136154 | AJ83: 122028 | AK83: 22051 | AL83: 99976 | AM83: 796.86 | AN83: 803.2 | AO83: 996.54 | AP83: 760.55 | AQ83: 138063 | AR83: 123549 | AS83: 22274 | AT83: 101275 | AU83: 842.13 | AV83: 851.8 | AW83: 1013.05 | AX83: 816.33 | AY83: 138382 | AZ83: 123679 | BA83: 22407 | BB83: 101273 | BC83: 849.04 | BD83: 856.27 | BE83: 1052.77 | BF83: 812.8 | BG83: 137191 | BH83: 122378 | BI83: 22407 | BJ83: 99970 | BK83: 839.01 | BL83: 841.86 | BM83: 1081.82 | BN83: 788.07 | BO83: 131375 | BP83: 116492 | BQ83: 19644 | BR83: 96848 | BS83: 839.06 | BT83: 840.45 | BU83: 1104.36 | BV83: 786.93 | BW83: 131892 | BX83: 117079 | BY83: 18689 | BZ83: 98391 | CA83: 862.17 | CB83: 865.32 | CC83: 1199.72 | CD83: 801.8 | CE83: 133444 | CF83: 119079 | CG83: 18941 | CH83: 100138 | CI83: 880.6 | CJ83: 883.65 | CK83: 1146.49 | CL83: 833.93 | CM83: 135396 | CN83: 121125 | CO83: 18942 | CP83: 102183 | CQ83: 907.06 | CR83: 912.95 | CS83: 1200.98 | CT83: 859.56 | CU83: 137505 | CV83: 123255 | CW83: 19558 | CX83: 103698 | CY83: 919.22 | CZ83: 924.42 | DA83: 1204.87 | DB83: 871.53 | DC83: 139972 | DD83: 125705 | DE83: 20107 | DF83: 105598 | DG83: 967.99 | DH83: 976.63 | DI83: 1214.6 | DJ83: 931.32 | DK83: 143650 | DL83: 129571 | DM83: 20954 | DN83: 108617 | DO83: 999.45 | DP83: 1007.52 | DQ83: 1260.88 | DR83: 958.65 | DS83: 146926 | DT83: 132843 | DU83: 21711 | DV83: 111132 | DW83: 1008.63 | DX83: 1016.49 | DY83: 1289.12 | DZ83: 963.24 | EA83: 149059 | EB83: 134948 | EC83: 22384 | ED83: 112564 | EE83: 1040.6 | EF83: 1049.82 | EG83: 1335.62 | EH83: 992.99 | EI83: 149817 | EJ83: 135525 | EK83: 22957 | EL83: 112568 | EM83: 1068.69 | EN83: 1079.16 | EO83: 1345.67 | EP83: 1024.8 | EQ83: 151694 | ER83: 137342 | ES83: 14352 | ET83: 23611 | EU83: 113731 | EV83: 1110.28 | EW83: 1122.81 | EX83: 990.42 | EY83: 1388.53 | EZ83: 1067.64 | FA83: 1023 | FC83: 8
A84: Strafford County | B84: 9 | C84: 43645 | D84: 34821 | E84: 9068 | F84: 25753 | G84: 655.37 | H84: 655.92 | I84: 770.85 | J84: 615.45 | K84: 42874 | L84: 33684 | M84: 7630 | N84: 26054 | O84: 655.35 | P84: 652.99 | Q84: 800.21 | R84: 609.88 | S84: 43046 | T84: 33530 | U84: 7366 | V84: 26164 | W84: 668.52 | X84: 656.47 | Y84: 806.84 | Z84: 614.13 | AA84: 43436 | AB84: 33873 | AC84: 7230 | AD84: 26643 | AE84: 693.72 | AF84: 673.65 | AG84: 820.17 | AH84: 633.9 | AI84: 43773 | AJ84: 34267 | AK84: 7211 | AL84: 27056 | AM84: 709.03 | AN84: 692.76 | AO84: 828.02 | AP84: 656.71 | AQ84: 44557 | AR84: 35064 | AS84: 7140 | AT84: 27925 | AU84: 723.22 | AV84: 705.71 | AW84: 858.22 | AX84: 666.71 | AY84: 45570 | AZ84: 35960 | BA84: 6960 | BB84: 29000 | BC84: 746.96 | BD84: 729.16 | BE84: 880.17 | BF84: 692.91 | BG84: 46580 | BH84: 36991 | BI84: 6754 | BJ84: 30237 | BK84: 803.35 | BL84: 784.14 | BM84: 900.05 | BN84: 758.25 | BO84: 44375 | BP84: 35115 | BQ84: 5981 | BR84: 29133 | BS84: 822.2 | BT84: 798.7 | BU84: 916.04 | BV84: 774.61 | BW84: 44144 | BX84: 34793 | BY84: 5960 | BZ84: 28833 | CA84: 843.68 | CB84: 824.98 | CC84: 964.85 | CD84: 796.07 | CE84: 44154 | CF84: 34870 | CG84: 6008 | CH84: 28863 | CI84: 879.87 | CJ84: 868.02 | CK84: 1098.93 | CL84: 819.95 | CM84: 45017 | CN84: 35667 | CO84: 6036 | CP84: 29631 | CQ84: 875.8 | CR84: 864.35 | CS84: 1039.17 | CT84: 828.73 | CU84: 45379 | CV84: 36187 | CW84: 6365 | CX84: 29822 | CY84: 896.63 | CZ84: 880.93 | DA84: 1050.44 | DB84: 844.76 | DC84: 46249 | DD84: 36899 | DE84: 6431 | DF84: 30469 | DG84: 915.86 | DH84: 906.58 | DI84: 1082.2 | DJ84: 869.52 | DK84: 46826 | DL84: 37517 | DM84: 6657 | DN84: 30860 | DO84: 954.37 | DP84: 941.53 | DQ84: 1121.8 | DR84: 902.65 | DS84: 47632 | DT84: 38313 | DU84: 6879 | DV84: 31434 | DW84: 967.61 | DX84: 953.88 | DY84: 1119.03 | DZ84: 917.74 | EA84: 48165 | EB84: 38780 | EC84: 6935 | ED84: 31845 | EE84: 990.95 | EF84: 980.7 | EG84: 1148.01 | EH84: 944.26 | EI84: 48371 | EJ84: 39036 | EK84: 6997 | EL84: 32039 | EM84: 1004.47 | EN84: 991.1 | EO84: 1131.83 | EP84: 960.36 | EQ84: 48714 | ER84: 39366 | ES84: 9348 | ET84: 7127 | EU84: 32239 | EV84: 1034.79 | EW84: 1028.6 | EX84: 1060.86 | EY84: 1146.21 | EZ84: 1002.6 | FA84: 1024 | FC84: 9
A85: Sullivan County | B85: 10 | C85: 14086 | D85: 11544 | E85: n | F85: n | G85: 536.78 | H85: 549.33 | I85: n | J85: n | K85: 13793 | L85: 11231 | M85: 4452 | N85: 6779 | O85: 561.15 | P85: 569.74 | Q85: 685.65 | R85: 493.64 | S85: 13370 | T85: 10809 | U85: 4059 | V85: 6750 | W85: 577.41 | X85: 588.45 | Y85: 688.92 | Z85: 528.03 | AA85: 13551 | AB85: 11127 | AC85: 4066 | AD85: 7061 | AE85: 602.7 | AF85: 607.34 | AG85: 721.67 | AH85: 541.5 | AI85: 13862 | AJ85: 11386 | AK85: 4086 | AL85: 7300 | AM85: 615.79 | AN85: 621.85 | AO85: 741.34 | AP85: 554.98 | AQ85: 13826 | AR85: 11306 | AS85: 3928 | AT85: 7377 | AU85: 642.61 | AV85: 650.96 | AW85: 800.27 | AX85: 571.45 | AY85: 13873 | AZ85: 11351 | BA85: 3958 | BB85: 7393 | BC85: 676.8 | BD85: 687.32 | BE85: 843.22 | BF85: 603.85 | BG85: 13799 | BH85: 11227 | BI85: 3909 | BJ85: 7318 | BK85: 687.34 | BL85: 698.53 | BM85: 866.24 | BN85: 608.95 | BO85: 13185 | BP85: 10586 | BQ85: 3466 | BR85: 7121 | BS85: 698.02 | BT85: 705.82 | BU85: 887.35 | BV85: 617.47 | BW85: 13076 | BX85: 10479 | BY85: 3303 | BZ85: 7176 | CA85: 714.38 | CB85: 723.66 | CC85: 917.55 | CD85: 634.43 | CE85: 13190 | CF85: 10617 | CG85: 3204 | CH85: 7413 | CI85: 723.57 | CJ85: 732.12 | CK85: 955.94 | CL85: 635.39 | CM85: 13597 | CN85: 11070 | CO85: 3448 | CP85: 7622 | CQ85: 757.15 | CR85: 771.77 | CS85: 1038.84 | CT85: 650.94 | CU85: 13793 | CV85: 11373 | CW85: 3704 | CX85: 7670 | CY85: 768.35 | CZ85: 784.88 | DA85: 1012.65 | DB85: 674.88 | DC85: 13873 | DD85: 11439 | DE85: 3932 | DF85: 7507 | DG85: 795.94 | DH85: 816.28 | DI85: 1039.17 | DJ85: 699.53 | DK85: 14090 | DL85: 11709 | DM85: 3948 | DN85: 7761 | DO85: 803.2 | DP85: 815.31 | DQ85: 1021.57 | DR85: 710.37 | DS85: 14204 | DT85: 11783 | DU85: 4061 | DV85: 7722 | DW85: 810.76 | DX85: 830.28 | DY85: 1066.2 | DZ85: 706.22 | EA85: 13997 | EB85: 11636 | EC85: 4031 | ED85: 7605 | EE85: 821.95 | EF85: 836.22 | EG85: 1048.48 | EH85: 723.72 | EI85: 13966 | EJ85: 11628 | EK85: 3919 | EL85: 7708 | EM85: 836.09 | EN85: 849.04 | EO85: 1063.62 | EP85: 739.94 | EQ85: 13735 | ER85: 11390 | ES85: 2344 | ET85: 3818 | EU85: 7573 | EV85: 854.16 | EW85: 864.16 | EX85: 805.53 | EY85: 1081.23 | EZ85: 754.74 | FA85: 1025 | FC85: 10
A92: Labor Force and Unemployment Rate | B92: Query Name: DPQryUnempByCnty & DPQryUnempByState | F92: 2020-07-10
A94: PlaceName | B94: LaborForce1990 | C94: LaborForce1991 | D94: LaborForce1992 | E94: LaborForce1993 | F94: LaborForce1994 | G94: LaborForce1995 | H94: LaborForce1996 | I94: LaborForce1997 | J94: LaborForce1998 | K94: LaborForce1999 | L94: LaborForce2000 | M94: LaborForce2001 | N94: LaborForce2002 | O94: LaborForce2003 | P94: NumberEmployed1990 | Q94: NumberEmployed1991 | R94: NumberEmployed1992 | S94: NumberEmployed1993 | T94: NumberEmployed1994 | U94: NumberEmployed1995 | V94: NumberEmployed1996 | W94: NumberEmployed1997 | X94: NumberEmployed1998 | Y94: NumberEmployed1999 | Z94: NumberEmployed2000 | AA94: NumberEmployed2001 | AB94: NumberEmployed2002 | AC94: NumberEmployed2003 | AD94: UnempRate1990 | AE94: UnempRate1991 | AF94: UnempRate1992 | AG94: UnempRate1993 | AH94: UnempRate1994 | AI94: UnempRate1995 | AJ94: UnempRate1996 | AK94: UnempRate1997 | AL94: UnempRate1998 | AM94: UnempRate1999 | AN94: UnempRate2000 | AO94: UnempRate2001 | AP94: UnempRate2002 | AQ94: UnempRate2003 | AR94: NumbUnEmployed1990 | AS94: NumbUnEmployed1991 | AT94: NumbUnEmployed1992 | AU94: NumbUnEmployed1993 | AV94: NumbUnEmployed1994 | AW94: NumbUnEmployed1995 | AX94: NumbUnEmployed1996 | AY94: NumbUnEmployed1997 | AZ94: NumbUnEmployed1998 | BA94: NumbUnEmployed1999 | BB94: NumbUnEmployed2000 | BC94: NumbUnEmployed2001 | BD94: NumbUnEmployed2002 | BE94: NumbUnEmployed2003 | BF94: LaborForce2004 | BG94: NumberEmployed2004 | BH94: UnempRate2004 | BI94: NumbUnEmployed2004 | BJ94: LaborForce2005 | BK94: NumberEmployed2005 | BL94: NumbUnEmp2005 | BM94: UnempRate2005 | BN94: LaborForce2006 | BO94: NumberEmployed2006 | BP94: NumbUnEmp2006 | BQ94: UnempRate2006 | BR94: LaborForce2007 | BS94: NumberEmployed2007 | BT94: NumbUnEmp2007 | BU94: UnempRate2007 | BV94: LaborForce2008 | BW94: NumberEmployed2008 | BX94: NumbUnEmp2008 | BY94: UnempRate2008 | BZ94: LaborForce2009 | CA94: NumberEmployed2009 | CB94: NumbUnEmp2009 | CC94: UnempRate2009 | CD94: LaborForce2010 | CE94: NumbEmployed2010 | CF94: NumbUnEmp2010 | CG94: UnempRate2010 | CH94: LaborForce2011 | CI94: NumbEmployed2011 | CJ94: NumbUnEmp2011 | CK94: UnempRate2011 | CL94: LaborForce2012 | CM94: NumbEmployed2012 | CN94: NumbUnEmp2012 | CO94: UnempRate2012 | CP94: LaborForce2013 | CQ94: NumbEmployed2013 | CR94: NumbUnEmp2013 | CS94: UnempRate2013 | CT94: LaborForce2014 | CU94: NumbEmployed2014 | CV94: NumbUnEmp2014 | CW94: UnempRate2014 | CX94: LaborForce2015 | CY94: NumbEmployed2015 | CZ94: NumbUnEmp2015 | DA94: UnempRate2015 | DB94: LaborForce2016 | DC94: NumbEmployed2016 | DD94: NumbUnEmp2016 | DE94: UnempRate2016 | DF94: LaborForce2017 | DG94: NumbEmployed2017 | DH94: NumbUnEmp2017 | DI94: UnempRate2017 | DJ94: LaborForce2018 | DK94: NumbEmployed2018 | DL94: NumbUnEmp2018 | DM94: UnempRate2018 | DN94: LaborForce2019 | DO94: NumbEmployed2019 | DP94: NumbUnEmp2019 | DQ94: UnempRate2019
A95: Belknap County | B95: 26619 | C95: 26520 | D95: 26408 | E95: 26623 | F95: 27572 | G95: 27616 | H95: 28480 | I95: 29594 | J95: 30760 | K95: 30439 | L95: 30960 | M95: 31390 | N95: 31670 | O95: 31540 | P95: 25000 | Q95: 24372 | R95: 24252 | S95: 24846 | T95: 26311 | U95: 26592 | V95: 27445 | W95: 28730 | X95: 29987 | Y95: 29698 | Z95: 30200 | AA95: 30450 | AB95: 30440 | AC95: 30320 | AD95: 6.1 | AE95: 8.1 | AF95: 8.2 | AG95: 6.7 | AH95: 4.6 | AI95: 3.7 | AJ95: 3.6 | AK95: 2.9 | AL95: 2.5 | AM95: 2.4 | AN95: 2.4 | AO95: 3 | AP95: 3.9 | AQ95: 3.9 | AR95: 1619 | AS95: 2148 | AT95: 2156 | AU95: 1777 | AV95: 1261 | AW95: 1024 | AX95: 1035 | AY95: 864 | AZ95: 773 | BA95: 741 | BB95: 760 | BC95: 940 | BD95: 1230 | BE95: 1220 | BF95: 31680 | BG95: 30570 | BH95: 3.5 | BI95: 1110 | BJ95: 31920 | BK95: 30860 | BL95: 1060 | BM95: 3.3 | BN95: 32520 | BO95: 31440 | BP95: 1080 | BQ95: 3.3 | BR95: 32410 | BS95: 31250 | BT95: 1160 | BU95: 3.6 | BV95: 32650 | BW95: 31310 | BX95: 1340 | BY95: 4.1 | BZ95: 32540 | CA95: 30370 | CB95: 2170 | CC95: 6.7 | CD95: 32270 | CE95: 30210 | CF95: 2060 | CG95: 6.4 | CH95: 32050 | CI95: 30290 | CJ95: 1760 | CK95: 5.5 | CL95: 32060 | CM95: 30320 | CN95: 1740 | CO95: 5.4 | CP95: 31990 | CQ95: 30390 | CR95: 1600 | CS95: 5 | CT95: 31670 | CU95: 30350 | CV95: 1320 | CW95: 4.2 | CX95: 31620 | CY95: 30570 | CZ95: 1050 | DA95: 3.3 | DB95: 31390 | DC95: 30500 | DD95: 890 | DE95: 2.8 | DF95: 31130 | DG95: 30300 | DH95: 830 | DI95: 2.7 | DJ95: 31260 | DK95: 30460 | DL95: 800 | DM95: 2.5 | DN95: 31590 | DO95: 30790 | DP95: 800 | DQ95: 2.5
A96: Carroll County | B96: 19324 | C96: 18897 | D96: 18852 | E96: 18996 | F96: 19567 | G96: 19855 | H96: 20981 | I96: 21505 | J96: 22123 | K96: 21678 | L96: 23640 | M96: 23920 | N96: 24250 | O96: 24400 | P96: 18361 | Q96: 17657 | R96: 17635 | S96: 17968 | T96: 18767 | U96: 19122 | V96: 20149 | W96: 20819 | X96: 21552 | Y96: 21119 | Z96: 23010 | AA96: 23180 | AB96: 23380 | AC96: 23540 | AD96: 5 | AE96: 6.6 | AF96: 6.5 | AG96: 5.4 | AH96: 4.1 | AI96: 3.7 | AJ96: 4 | AK96: 3.2 | AL96: 2.6 | AM96: 2.6 | AN96: 2.7 | AO96: 3.1 | AP96: 3.6 | AQ96: 3.5 | AR96: 963 | AS96: 1240 | AT96: 1217 | AU96: 1028 | AV96: 800 | AW96: 733 | AX96: 832 | AY96: 686 | AZ96: 571 | BA96: 559 | BB96: 630 | BC96: 740 | BD96: 870 | BE96: 860 | BF96: 24790 | BG96: 24000 | BH96: 3.2 | BI96: 790 | BJ96: 24950 | BK96: 24110 | BL96: 840 | BM96: 3.4 | BN96: 25330 | BO96: 24510 | BP96: 820 | BQ96: 3.2 | BR96: 25500 | BS96: 24620 | BT96: 880 | BU96: 3.4 | BV96: 25910 | BW96: 24980 | BX96: 930 | BY96: 3.6 | BZ96: 25870 | CA96: 24420 | CB96: 1450 | CC96: 5.6 | CD96: 24940 | CE96: 23530 | CF96: 1410 | CG96: 5.7 | CH96: 24770 | CI96: 23420 | CJ96: 1350 | CK96: 5.4 | CL96: 24670 | CM96: 23370 | CN96: 1300 | CO96: 5.3 | CP96: 24430 | CQ96: 23230 | CR96: 1200 | CS96: 4.9 | CT96: 24220 | CU96: 23200 | CV96: 1020 | CW96: 4.2 | CX96: 23810 | CY96: 22990 | CZ96: 820 | DA96: 3.5 | DB96: 23670 | DC96: 22970 | DD96: 700 | DE96: 2.9 | DF96: 23570 | DG96: 22940 | DH96: 630 | DI96: 2.7 | DJ96: 23700 | DK96: 23090 | DL96: 610 | DM96: 2.6 | DN96: 23980 | DO96: 23370 | DP96: 610 | DQ96: 2.6
A97: Cheshire County | B97: 38410 | C97: 38311 | D97: 38329 | E97: 38523 | F97: 38955 | G97: 38976 | H97: 38787 | I97: 38174 | J97: 39489 | K97: 39308 | L97: 39900 | M97: 40180 | N97: 40340 | O97: 40090 | P97: 36711 | Q97: 36037 | R97: 35991 | S97: 36592 | T97: 37381 | U97: 37634 | V97: 37535 | W97: 36858 | X97: 38288 | Y97: 38226 | Z97: 38860 | AA97: 38970 | AB97: 38920 | AC97: 38670 | AD97: 4.4 | AE97: 5.9 | AF97: 6.1 | AG97: 5 | AH97: 4 | AI97: 3.4 | AJ97: 3.2 | AK97: 3.4 | AL97: 3 | AM97: 2.8 | AN97: 2.6 | AO97: 3 | AP97: 3.5 | AQ97: 3.5 | AR97: 1699 | AS97: 2274 | AT97: 2338 | AU97: 1931 | AV97: 1574 | AW97: 1342 | AX97: 1252 | AY97: 1316 | AZ97: 1201 | BA97: 1082 | BB97: 1040 | BC97: 1210 | BD97: 1420 | BE97: 1420 | BF97: 40910 | BG97: 39540 | BH97: 3.3 | BI97: 1370 | BJ97: 41900 | BK97: 40570 | BL97: 1330 | BM97: 3.2 | BN97: 42480 | BO97: 41110 | BP97: 1370 | BQ97: 3.2 | BR97: 42090 | BS97: 40600 | BT97: 1490 | BU97: 3.5 | BV97: 42150 | BW97: 40610 | BX97: 1540 | BY97: 3.7 | BZ97: 42040 | CA97: 39630 | CB97: 2410 | CC97: 5.7 | CD97: 42620 | CE97: 40260 | CF97: 2360 | CG97: 5.5 | CH97: 42550 | CI97: 40410 | CJ97: 2140 | CK97: 5 | CL97: 42620 | CM97: 40450 | CN97: 2170 | CO97: 5.1 | CP97: 41950 | CQ97: 39960 | CR97: 1990 | CS97: 4.7 | CT97: 42100 | CU97: 40400 | CV97: 1700 | CW97: 4 | CX97: 41570 | CY97: 40260 | CZ97: 1310 | DA97: 3.2 | DB97: 41400 | DC97: 40270 | DD97: 1130 | DE97: 2.7 | DF97: 40990 | DG97: 39920 | DH97: 1070 | DI97: 2.6 | DJ97: 40730 | DK97: 39680 | DL97: 1050 | DM97: 2.6 | DN97: 40930 | DO97: 39860 | DP97: 1070 | DQ97: 2.6
A98: Coos County | B98: 17316 | C98: 17562 | D98: 17691 | E98: 17474 | F98: 17190 | G98: 16840 | H98: 16932 | I98: 16758 | J98: 17345 | K98: 16954 | L98: 17130 | M98: 17070 | N98: 16780 | O98: 16520 | P98: 16173 | Q98: 16077 | R98: 15763 | S98: 15823 | T98: 15986 | U98: 15760 | V98: 15851 | W98: 15916 | X98: 16647 | Y98: 16238 | Z98: 16510 | AA98: 16170 | AB98: 15670 | AC98: 15660 | AD98: 6.6 | AE98: 8.5 | AF98: 10.9 | AG98: 9.4 | AH98: 7 | AI98: 6.4 | AJ98: 6.4 | AK98: 5 | AL98: 4 | AM98: 4.2 | AN98: 3.6 | AO98: 5.3 | AP98: 6.6 | AQ98: 5.2 | AR98: 1143 | AS98: 1485 | AT98: 1928 | AU98: 1651 | AV98: 1204 | AW98: 1080 | AX98: 1081 | AY98: 842 | AZ98: 698 | BA98: 716 | BB98: 620 | BC98: 900 | BD98: 1110 | BE98: 860 | BF98: 16510 | BG98: 15760 | BH98: 4.5 | BI98: 750 | BJ98: 16660 | BK98: 15980 | BL98: 680 | BM98: 4.1 | BN98: 16820 | BO98: 16120 | BP98: 700 | BQ98: 4.1 | BR98: 16700 | BS98: 15930 | BT98: 770 | BU98: 4.6 | BV98: 16500 | BW98: 15650 | BX98: 850 | BY98: 5.2 | BZ98: 16390 | CA98: 15090 | CB98: 1300 | CC98: 7.9 | CD98: 16590 | CE98: 15370 | CF98: 1220 | CG98: 7.4 | CH98: 16350 | CI98: 15160 | CJ98: 1190 | CK98: 7.3 | CL98: 16090 | CM98: 14900 | CN98: 1190 | CO98: 7.4 | CP98: 15930 | CQ98: 14960 | CR98: 970 | CS98: 6.1 | CT98: 15180 | CU98: 14320 | CV98: 860 | CW98: 5.7 | CX98: 14820 | CY98: 14180 | CZ98: 640 | DA98: 4.3 | DB98: 14640 | DC98: 14090 | DD98: 550 | DE98: 3.8 | DF98: 14470 | DG98: 13970 | DH98: 500 | DI98: 3.5 | DJ98: 14590 | DK98: 14120 | DL98: 470 | DM98: 3.1 | DN98: 14740 | DO98: 14270 | DP98: 470 | DQ98: 3.1
A99: Grafton County | B99: 40114 | C99: 40615 | D99: 40202 | E99: 40214 | F99: 41480 | G99: 42160 | H99: 41465 | I99: 42872 | J99: 43915 | K99: 44610 | L99: 44860 | M99: 45010 | N99: 45440 | O99: 45680 | P99: 37935 | Q99: 37753 | R99: 37788 | S99: 38153 | T99: 40169 | U99: 40853 | V99: 40117 | W99: 41781 | X99: 42942 | Y99: 43752 | Z99: 43800 | AA99: 43800 | AB99: 44110 | AC99: 44300 | AD99: 5.4 | AE99: 7 | AF99: 6 | AG99: 5.1 | AH99: 3.2 | AI99: 3.1 | AJ99: 3.3 | AK99: 2.5 | AL99: 2.2 | AM99: 1.9 | AN99: 2.4 | AO99: 2.7 | AP99: 2.9 | AQ99: 3 | AR99: 2179 | AS99: 2862 | AT99: 2414 | AU99: 2061 | AV99: 1311 | AW99: 1307 | AX99: 1348 | AY99: 1091 | AZ99: 973 | BA99: 858 | BB99: 1060 | BC99: 1210 | BD99: 1330 | BE99: 1380 | BF99: 46400 | BG99: 45110 | BH99: 2.8 | BI99: 1290 | BJ99: 46770 | BK99: 45450 | BL99: 1320 | BM99: 2.8 | BN99: 47850 | BO99: 46480 | BP99: 1370 | BQ99: 2.9 | BR99: 48290 | BS99: 46860 | BT99: 1430 | BU99: 3 | BV99: 48800 | BW99: 47260 | BX99: 1540 | BY99: 3.1 | BZ99: 48890 | CA99: 46380 | CB99: 2510 | CC99: 5.1 | CD99: 48330 | CE99: 46010 | CF99: 2320 | CG99: 4.8 | CH99: 48730 | CI99: 46560 | CJ99: 2170 | CK99: 4.5 | CL99: 48730 | CM99: 46560 | CN99: 2170 | CO99: 4.4 | CP99: 48360 | CQ99: 46320 | CR99: 2040 | CS99: 4.2 | CT99: 48550 | CU99: 46880 | CV99: 1670 | CW99: 3.4 | CX99: 48690 | CY99: 47360 | CZ99: 1330 | DA99: 2.7 | DB99: 48750 | DC99: 47600 | DD99: 1150 | DE99: 2.4 | DF99: 49320 | DG99: 48230 | DH99: 1090 | DI99: 2.2 | DJ99: 49370 | DK99: 48320 | DL99: 1050 | DM99: 2.3 | DN99: 49880 | DO99: 48780 | DP99: 1100 | DQ99: 2.3
A100: Hillsborough County | B100: 198164 | C100: 189890 | D100: 190456 | E100: 190604 | F100: 188801 | G100: 191601 | H100: 195500 | I100: 201780 | J100: 205929 | K100: 209122 | L100: 212570 | M100: 216250 | N100: 216670 | O100: 219660 | P100: 187400 | Q100: 176384 | R100: 175915 | S100: 178170 | T100: 179148 | U100: 183552 | V100: 188683 | W100: 196133 | X100: 200444 | Y100: 203336 | Z100: 207150 | AA100: 208620 | AB100: 206320 | AC100: 209650 | AD100: 5.4 | AE100: 7.1 | AF100: 7.6 | AG100: 6.5 | AH100: 5.1 | AI100: 4.2 | AJ100: 3.5 | AK100: 2.8 | AL100: 2.7 | AM100: 2.8 | AN100: 2.5 | AO100: 3.5 | AP100: 4.8 | AQ100: 4.6 | AR100: 10764 | AS100: 13506 | AT100: 14541 | AU100: 12434 | AV100: 9653 | AW100: 8049 | AX100: 6817 | AY100: 5647 | AZ100: 5485 | BA100: 5786 | BB100: 5420 | BC100: 7630 | BD100: 10350 | BE100: 10010 | BF100: 223190 | BG100: 214540 | BH100: 3.9 | BI100: 8650 | BJ100: 226190 | BK100: 217990 | BL100: 8200 | BM100: 3.6 | BN100: 226540 | BO100: 218490 | BP100: 8050 | BQ100: 3.6 | BR100: 228220 | BS100: 220130 | BT100: 8090 | BU100: 3.5 | BV100: 229000 | BW100: 220160 | BX100: 8840 | BY100: 3.9 | BZ100: 229680 | CA100: 214830 | CB100: 14850 | CC100: 6.5 | CD100: 226150 | CE100: 212240 | CF100: 13910 | CG100: 6.2 | CH100: 225080 | CI100: 212340 | CJ100: 12740 | CK100: 5.7 | CL100: 226900 | CM100: 213780 | CN100: 13120 | CO100: 5.8 | CP100: 227770 | CQ100: 215530 | CR100: 12240 | CS100: 5.4 | CT100: 229070 | CU100: 218780 | CV100: 10290 | CW100: 4.5 | CX100: 229930 | CY100: 221740 | CZ100: 8190 | DA100: 3.6 | DB100: 232000 | DC100: 224980 | DD100: 7020 | DE100: 3 | DF100: 234130 | DG100: 227400 | DH100: 6730 | DI100: 2.9 | DJ100: 238080 | DK100: 231740 | DL100: 6340 | DM100: 2.8 | DN100: 242580 | DO100: 236220 | DP100: 6360 | DQ100: 2.8
A101: Merrimack County | B101: 60263 | C101: 65585 | D101: 66290 | E101: 66666 | F101: 69983 | G101: 71079 | H101: 71419 | I101: 72912 | J101: 75415 | K101: 75893 | L101: 74790 | M101: 76070 | N101: 77020 | O101: 77330 | P101: 57132 | Q101: 61167 | R101: 62035 | S101: 63545 | T101: 67602 | U101: 69099 | V101: 69490 | W101: 71047 | X101: 73647 | Y101: 74264 | Z101: 73010 | AA101: 73900 | AB101: 74390 | AC101: 74600 | AD101: 5.2 | AE101: 6.7 | AF101: 6.4 | AG101: 4.7 | AH101: 3.4 | AI101: 2.8 | AJ101: 2.7 | AK101: 2.6 | AL101: 2.3 | AM101: 2.1 | AN101: 2.4 | AO101: 2.8 | AP101: 3.4 | AQ101: 3.5 | AR101: 3131 | AS101: 4418 | AT101: 4255 | AU101: 3121 | AV101: 2381 | AW101: 1980 | AX101: 1929 | AY101: 1865 | AZ101: 1768 | BA101: 1629 | BB101: 1780 | BC101: 2170 | BD101: 2630 | BE101: 2730 | BF101: 77130 | BG101: 74700 | BH101: 3.2 | BI101: 2430 | BJ101: 78130 | BK101: 75670 | BL101: 2460 | BM101: 3.1 | BN101: 79560 | BO101: 77070 | BP101: 2490 | BQ101: 3.1 | BR101: 80320 | BS101: 77660 | BT101: 2660 | BU101: 3.3 | BV101: 81100 | BW101: 78140 | BX101: 2960 | BY101: 3.6 | BZ101: 81730 | CA101: 77120 | CB101: 4610 | CC101: 5.6 | CD101: 81400 | CE101: 77050 | CF101: 4350 | CG101: 5.3 | CH101: 81100 | CI101: 77110 | CJ101: 3990 | CK101: 4.9 | CL101: 81160 | CM101: 77140 | CN101: 4020 | CO101: 4.9 | CP101: 80880 | CQ101: 77140 | CR101: 3740 | CS101: 4.6 | CT101: 81050 | CU101: 77950 | CV101: 3100 | CW101: 3.8 | CX101: 81370 | CY101: 78870 | CZ101: 2500 | DA101: 3.1 | DB101: 81930 | DC101: 79840 | DD101: 2090 | DE101: 2.6 | DF101: 82090 | DG101: 80130 | DH101: 1960 | DI101: 2.4 | DJ101: 82970 | DK101: 81100 | DL101: 1870 | DM101: 2.3 | DN101: 83850 | DO101: 81960 | DP101: 1890 | DQ101: 2.3
A102: New Hampshire | B102: 620037 | C102: 614452 | D102: 615648 | E102: 619307 | F102: 624566 | G102: 631050 | H102: 641246 | I102: 656094 | J102: 670560 | K102: 684904 | L102: 687910 | M102: 697760 | N102: 702280 | O102: 707520 | P102: 585032 | Q102: 569621 | R102: 568909 | S102: 580137 | T102: 594935 | U102: 605929 | V102: 617629 | W102: 635469 | X102: 651292 | Y102: 666066 | Z102: 669620 | AA102: 673780 | AB102: 670880 | AC102: 677030 | AD102: 5.6 | AE102: 7.3 | AF102: 7.6 | AG102: 6.3 | AH102: 4.7 | AI102: 4 | AJ102: 3.7 | AK102: 3.1 | AL102: 2.9 | AM102: 2.8 | AN102: 2.7 | AO102: 3.4 | AP102: 4.5 | AQ102: 4.3 | AR102: 35005 | AS102: 44831 | AT102: 46739 | AU102: 39170 | AV102: 29631 | AW102: 25121 | AX102: 23617 | AY102: 20625 | AZ102: 19268 | BA102: 18838 | BB102: 18290 | BC102: 23980 | BD102: 31400 | BE102: 30490 | BF102: 716190 | BG102: 689150 | BH102: 3.8 | BI102: 27040 | BJ102: 725850 | BK102: 700030 | BL102: 25820 | BM102: 3.6 | BN102: 731860 | BO102: 706780 | BP102: 25080 | BQ102: 3.4 | BR102: 737940 | BS102: 712010 | BT102: 25930 | BU102: 3.5 | BV102: 742780 | BW102: 714100 | BX102: 28680 | BY102: 3.9 | BZ102: 744230 | CA102: 697800 | CB102: 46430 | CC102: 6.2 | CD102: 738260 | CE102: 695140 | CF102: 43120 | CG102: 5.8 | CH102: 736300 | CI102: 696530 | CJ102: 39770 | CK102: 5.4 | CL102: 741100 | CM102: 700370 | CN102: 40730 | CO102: 5.5 | CP102: 741280 | CQ102: 703530 | CR102: 37750 | CS102: 5.1 | CT102: 743320 | CU102: 711550 | CV102: 31770 | CW102: 4.3 | CX102: 745700 | CY102: 720580 | CZ102: 25120 | DA102: 3.4 | DB102: 751500 | DC102: 730070 | DD102: 21430 | DE102: 2.9 | DF102: 754690 | DG102: 734210 | DH102: 20480 | DI102: 2.7 | DJ102: 762760 | DK102: 743180 | DL102: 19580 | DM102: 2.6 | DN102: 773740 | DO102: 754050 | DP102: 19690 | DQ102: 2.6
A103: Rockingham County | B103: 142104 | C103: 139032 | D103: 141005 | E103: 142966 | F103: 143631 | G103: 145349 | H103: 149229 | I103: 152776 | J103: 155665 | K103: 166617 | L103: 160550 | M103: 163720 | N103: 165150 | O103: 166410 | P103: 133279 | Q103: 128005 | R103: 128734 | S103: 132204 | T103: 135218 | U103: 138531 | V103: 142657 | W103: 146942 | X103: 150092 | Y103: 161203 | Z103: 155770 | AA103: 157160 | AB103: 156130 | AC103: 157690 | AD103: 6.2 | AE103: 7.9 | AF103: 8.7 | AG103: 7.5 | AH103: 5.9 | AI103: 4.7 | AJ103: 4.4 | AK103: 3.8 | AL103: 3.6 | AM103: 3.2 | AN103: 3 | AO103: 4 | AP103: 5.5 | AQ103: 5.2 | AR103: 8825 | AS103: 11027 | AT103: 12271 | AU103: 10762 | AV103: 8413 | AW103: 6818 | AX103: 6572 | AY103: 5834 | AZ103: 5573 | BA103: 5414 | BB103: 4780 | BC103: 6560 | BD103: 9020 | BE103: 8720 | BF103: 168380 | BG103: 160630 | BH103: 4.6 | BI103: 7750 | BJ103: 170880 | BK103: 163840 | BL103: 7040 | BM103: 4.1 | BN103: 171540 | BO103: 165100 | BP103: 6440 | BQ103: 3.8 | BR103: 173680 | BS103: 167110 | BT103: 6570 | BU103: 3.8 | BV103: 174270 | BW103: 166880 | BX103: 7390 | BY103: 4.2 | BZ103: 174580 | CA103: 163080 | CB103: 11500 | CC103: 6.6 | CD103: 172360 | CE103: 162060 | CF103: 10300 | CG103: 6 | CH103: 172120 | CI103: 162480 | CJ103: 9640 | CK103: 5.6 | CL103: 174770 | CM103: 164610 | CN103: 10160 | CO103: 5.8 | CP103: 175740 | CQ103: 166180 | CR103: 9560 | CS103: 5.4 | CT103: 176960 | CU103: 168800 | CV103: 8160 | CW103: 4.6 | CX103: 178900 | CY103: 172490 | CZ103: 6410 | DA103: 3.6 | DB103: 181710 | DC103: 176210 | DD103: 5500 | DE103: 3 | DF103: 183200 | DG103: 177810 | DH103: 5390 | DI103: 2.9 | DJ103: 185340 | DK103: 180160 | DL103: 5180 | DM103: 2.7 | DN103: 188440 | DO103: 183330 | DP103: 5110 | DQ103: 2.7
A104: Strafford County | B104: 57148 | C104: 58093 | D104: 56919 | E104: 57516 | F104: 56837 | G104: 56813 | H104: 57427 | I104: 58489 | J104: 58418 | K104: 58546 | L104: 61810 | M104: 62520 | N104: 63500 | O104: 64900 | P104: 53769 | Q104: 53786 | R104: 52695 | S104: 54172 | T104: 54547 | U104: 54625 | V104: 55244 | W104: 56626 | X104: 56777 | Y104: 57105 | Z104: 60150 | AA104: 60480 | AB104: 60740 | AC104: 62330 | AD104: 5.9 | AE104: 7.4 | AF104: 7.4 | AG104: 5.8 | AH104: 4 | AI104: 3.9 | AJ104: 3.8 | AK104: 3.2 | AL104: 2.8 | AM104: 2.5 | AN104: 2.7 | AO104: 3.3 | AP104: 4.3 | AQ104: 4 | AR104: 3379 | AS104: 4307 | AT104: 4224 | AU104: 3344 | AV104: 2290 | AW104: 2188 | AX104: 2183 | AY104: 1863 | AZ104: 1641 | BA104: 1441 | BB104: 1660 | BC104: 2040 | BD104: 2760 | BE104: 2570 | BF104: 65950 | BG104: 63730 | BH104: 3.4 | BI104: 2220 | BJ104: 66510 | BK104: 64270 | BL104: 2240 | BM104: 3.4 | BN104: 66850 | BO104: 64740 | BP104: 2110 | BQ104: 3.2 | BR104: 68210 | BS104: 65980 | BT104: 2230 | BU104: 3.3 | BV104: 69670 | BW104: 67150 | BX104: 2520 | BY104: 3.6 | BZ104: 69750 | CA104: 65430 | CB104: 4320 | CC104: 6.2 | CD104: 69570 | CE104: 65630 | CF104: 3940 | CG104: 5.7 | CH104: 69620 | CI104: 65930 | CJ104: 3690 | CK104: 5.3 | CL104: 70050 | CM104: 66260 | CN104: 3790 | CO104: 5.4 | CP104: 70150 | CQ104: 66730 | CR104: 3420 | CS104: 4.9 | CT104: 70750 | CU104: 67920 | CV104: 2830 | CW104: 4 | CX104: 71300 | CY104: 69080 | CZ104: 2220 | DA104: 3.1 | DB104: 72420 | DC104: 70570 | DD104: 1850 | DE104: 2.5 | DF104: 72550 | DG104: 70790 | DH104: 1760 | DI104: 2.4 | DJ104: 73560 | DK104: 71850 | DL104: 1710 | DM104: 2.4 | DN104: 74630 | DO104: 72880 | DP104: 1750 | DQ104: 2.4
A105: Sullivan County | B105: 20576 | C105: 19947 | D105: 19495 | E105: 19727 | F105: 20552 | G105: 20761 | H105: 21028 | I105: 21231 | J105: 21496 | K105: 21735 | L105: 21700 | M105: 21660 | N105: 21460 | O105: 21000 | P105: 19273 | Q105: 18384 | R105: 18102 | S105: 18664 | T105: 19808 | U105: 20161 | V105: 20459 | W105: 20618 | X105: 20914 | Y105: 21126 | Z105: 21160 | AA105: 21070 | AB105: 20780 | AC105: 20270 | AD105: 6.3 | AE105: 7.8 | AF105: 7.1 | AG105: 5.4 | AH105: 3.6 | AI105: 2.9 | AJ105: 2.7 | AK105: 2.9 | AL105: 2.7 | AM105: 2.8 | AN105: 2.5 | AO105: 2.7 | AP105: 3.2 | AQ105: 3.5 | AR105: 1303 | AS105: 1563 | AT105: 1393 | AU105: 1063 | AV105: 744 | AW105: 600 | AX105: 569 | AY105: 613 | AZ105: 582 | BA105: 609 | BB105: 540 | BC105: 590 | BD105: 680 | BE105: 730 | BF105: 21270 | BG105: 20590 | BH105: 3.2 | BI105: 680 | BJ105: 21950 | BK105: 21300 | BL105: 650 | BM105: 2.9 | BN105: 22370 | BO105: 21720 | BP105: 650 | BQ105: 2.9 | BR105: 22550 | BS105: 21880 | BT105: 670 | BU105: 3 | BV105: 22750 | BW105: 21980 | BX105: 770 | BY105: 3.4 | BZ105: 22800 | CA105: 21490 | CB105: 1310 | CC105: 5.8 | CD105: 24040 | CE105: 22790 | CF105: 1250 | CG105: 5.2 | CH105: 23960 | CI105: 22860 | CJ105: 1100 | CK105: 4.6 | CL105: 24040 | CM105: 22960 | CN105: 1080 | CO105: 4.5 | CP105: 24090 | CQ105: 23100 | CR105: 990 | CS105: 4.1 | CT105: 23780 | CU105: 22940 | CV105: 840 | CW105: 3.5 | CX105: 23700 | CY105: 23050 | CZ105: 650 | DA105: 2.7 | DB105: 23590 | DC105: 23040 | DD105: 550 | DE105: 2.3 | DF105: 23250 | DG105: 22730 | DH105: 520 | DI105: 2.2 | DJ105: 23160 | DK105: 22660 | DL105: 500 | DM105: 2.3 | DN105: 23150 | DO105: 22620 | DP105: 530 | DQ105: 2.3
A108: Census 1990 Data - Query Name: CountySTF3Qry2Poverty
A109: NAME | B109: FIPS | C109: COUSUBFP | D109: HousingUnits90Cen | E109: P01Persons90Cen | F109: P02Families90Cen | G109: P03Households90cen | H109: P1Persons | I109: P2UnweightedSample | J109: P3Count100pct | K109: P3APctPersons | L109: P4TotFamilies | M109: P5TotHouseholds | N109: P117AbvPovertyPop<5 | O109: P117AbvPovertyPop5yrs | P109: P117AbvPovertyPop6to11yrs | Q109: P117AbvPovertyPop12to17yrs | R109: P117AbvPovertyPop18to24yrs | S109: P117AbvPovertyPop25to34yrs | T109: P117AbvPovertyPop35to44yrs | U109: P117AbvPovertyPop45to54yrs | V109: P117AbvPovertyPop55to59yrs | W109: P117AbvPovertyPop60to64yrs | X109: P117AbvPovertyPop65to74yrs | Y109: P117AbvPovertyPop75yrsPlus | Z109: P117BlwPovertyPop<5 | AA109: P117BlwPovertyPop5yrs | AB109: P117BlwPovertyPop6to11yrs | AC109: P117BlwPovertyPop12to17yrs | AD109: P117BlwPovertyPop18to24yrs | AE109: P117BlwPovertyPop25to34yrs | AF109: P117BlwPovertyPop35to44yrs | AG109: P117BlwPovertyPop45to54yrs | AH109: P117BlwPovertyPop55to59yrs | AI109: P117BlwPovertyPop60to64yrs | AJ109: P117BlwPovertyPop65to74yrs | AK109: P117BlwPovertyPop75yrsPlus | AL109: P1230001 | AM109: P1230002 | AN109: P1230003 | AO109: P1230004 | AP109: P1230005 | AQ109: P1230006 | AR109: P1230007 | AS109: P1230008 | AT109: P1230009 | AU109: P1230010 | AV109: P1230011 | AW109: P1230012 | AX109: P1230013 | AY109: P1230014 | AZ109: P1230015 | BA109: P1230016 | BB109: P1230017 | BC109: P1230018 | BD109: P1230019 | BE109: P1230020 | BF109: P1230021 | BG109: P1230022 | BH109: P1230023 | BI109: P1230024 | BJ109: P1270001 | BK109: P1270002 | BL109: P1270003 | BM109: P1270004 | BN109: P1270005 | BO109: P1270006 | BP109: P1270007 | BQ109: P1270008 | BR109: P1270009 | BS109: P1270010 | BT109: P1270011 | BU109: P1270012 | BV109: P1270013 | BW109: P1270014 | BX109: P1270015 | BY109: P1270016 | BZ109: P1270017 | CA109: P1270018 | CB109: P1270019 | CC109: P1270020 | CD109: P1270021 | CE109: P1270022 | CF109: P1270023 | CG109: P1270024 | CH109: P1270025 | CI109: P1270026 | CJ109: P1270027 | CK109: P1270028 | CL109: P1270029 | CM109: P1270030
A110: Belknap County | B110: 1000 | C110: 00001 | D110: 30306 | E110: 49216 | F110: 13334 | G110: 18839 | H110: 49216 | I110: 8099 | J110: 49216 | K110: 16.5 | L110: 13448 | M110: 18890 | N110: 3012 | O110: 701 | P110: 4110 | Q110: 3700 | R110: 3330 | S110: 7628 | T110: 8076 | U110: 4824 | V110: 1772 | W110: 2444 | X110: 3613 | Y110: 2113 | Z110: 405 | AA110: 120 | AB110: 266 | AC110: 189 | AD110: 365 | AE110: 543 | AF110: 257 | AG110: 176 | AH110: 92 | AI110: 159 | AJ110: 292 | AK110: 285 | AL110: 1236 | AM110: 3082 | AN110: 944 | AO110: 5756 | AP110: 71 | AQ110: 194 | AR110: 34 | AS110: 228 | AT110: 100 | AU110: 516 | AV110: 121 | AW110: 589 | AX110: 69 | AY110: 65 | AZ110: 76 | BA110: 125 | BB110: 0 | BC110: 14 | BD110: 8 | BE110: 6 | BF110: 86 | BG110: 66 | BH110: 55 | BI110: 7 | BJ110: 9071 | BK110: 452 | BL110: 1094 | BM110: 2287 | BN110: 977 | BO110: 1408 | BP110: 27 | BQ110: 134 | BR110: 582 | BS110: 75 | BT110: 539 | BU110: 48 | BV110: 98 | BW110: 730 | BX110: 36 | BY110: 289 | BZ110: 28 | CA110: 208 | CB110: 275 | CC110: 74 | CD110: 15 | CE110: 0 | CF110: 0 | CG110: 172 | CH110: 20 | CI110: 31 | CJ110: 0 | CK110: 6 | CL110: 214 | CM110: 0
A111: Carroll County | B111: 3000 | C111: 00002 | D111: 32146 | E111: 35410 | F111: 9866 | G111: 14253 | H111: 35410 | I111: 9351 | J111: 35410 | K111: 26.4 | L111: 9889 | M111: 14283 | N111: 2041 | O111: 392 | P111: 2689 | Q111: 2177 | R111: 2083 | S111: 5195 | T111: 5631 | U111: 3338 | V111: 1668 | W111: 1684 | X111: 3083 | Y111: 1786 | Z111: 328 | AA111: 68 | AB111: 380 | AC111: 237 | AD111: 221 | AE111: 525 | AF111: 432 | AG111: 169 | AH111: 98 | AI111: 140 | AJ111: 274 | AK111: 265 | AL111: 711 | AM111: 2051 | AN111: 686 | AO111: 4611 | AP111: 26 | AQ111: 65 | AR111: 37 | AS111: 158 | AT111: 47 | AU111: 423 | AV111: 85 | AW111: 374 | AX111: 28 | AY111: 89 | AZ111: 107 | BA111: 182 | BB111: 13 | BC111: 13 | BD111: 2 | BE111: 3 | BF111: 35 | BG111: 101 | BH111: 33 | BI111: 9 | BJ111: 6279 | BK111: 236 | BL111: 739 | BM111: 1788 | BN111: 755 | BO111: 1272 | BP111: 15 | BQ111: 139 | BR111: 588 | BS111: 38 | BT111: 508 | BU111: 35 | BV111: 51 | BW111: 523 | BX111: 21 | BY111: 326 | BZ111: 31 | CA111: 173 | CB111: 264 | CC111: 92 | CD111: 67 | CE111: 0 | CF111: 3 | CG111: 112 | CH111: 2 | CI111: 13 | CJ111: 0 | CK111: 2 | CL111: 209 | CM111: 2
A112: Cheshire County | B112: 5000 | C112: 00003 | D112: 30350 | E112: 70121 | F112: 18155 | G112: 25856 | H112: 70121 | I112: 14214 | J112: 70121 | K112: 20.3 | L112: 18282 | M112: 25879 | N112: 4427 | O112: 859 | P112: 5448 | Q112: 4725 | R112: 5128 | S112: 10212 | T112: 10558 | U112: 6670 | V112: 2675 | W112: 2979 | X112: 4775 | Y112: 3143 | Z112: 431 | AA112: 76 | AB112: 572 | AC112: 377 | AD112: 713 | AE112: 725 | AF112: 427 | AG112: 323 | AH112: 91 | AI112: 204 | AJ112: 329 | AK112: 404 | AL112: 1633 | AM112: 3978 | AN112: 1601 | AO112: 7654 | AP112: 102 | AQ112: 187 | AR112: 46 | AS112: 265 | AT112: 195 | AU112: 675 | AV112: 129 | AW112: 867 | AX112: 35 | AY112: 109 | AZ112: 72 | BA112: 191 | BB112: 13 | BC112: 24 | BD112: 28 | BE112: 15 | BF112: 113 | BG112: 241 | BH112: 83 | BI112: 26 | BJ112: 12287 | BK112: 529 | BL112: 1498 | BM112: 2924 | BN112: 1392 | BO112: 1775 | BP112: 34 | BQ112: 131 | BR112: 936 | BS112: 68 | BT112: 804 | BU112: 37 | BV112: 237 | BW112: 1189 | BX112: 50 | BY112: 321 | BZ112: 80 | CA112: 454 | CB112: 343 | CC112: 191 | CD112: 36 | CE112: 0 | CF112: 4 | CG112: 219 | CH112: 14 | CI112: 50 | CJ112: 0 | CK112: 5 | CL112: 254 | CM112: 17
A113: Coos County | B113: 7000 | C113: 00004 | D113: 18712 | E113: 34828 | F113: 9608 | G113: 13799 | H113: 34828 | I113: 9787 | J113: 34828 | K113: 28.1 | L113: 9693 | M113: 13820 | N113: 1866 | O113: 442 | P113: 2600 | Q113: 2525 | R113: 2437 | S113: 4845 | T113: 4794 | U113: 3389 | V113: 1778 | W113: 1559 | X113: 2792 | Y113: 1721 | Z113: 344 | AA113: 87 | AB113: 298 | AC113: 290 | AD113: 364 | AE113: 440 | AF113: 290 | AG113: 218 | AH113: 145 | AI113: 175 | AJ113: 415 | AK113: 395 | AL113: 686 | AM113: 2243 | AN113: 719 | AO113: 4200 | AP113: 45 | AQ113: 101 | AR113: 13 | AS113: 188 | AT113: 47 | AU113: 376 | AV113: 63 | AW113: 298 | AX113: 33 | AY113: 83 | AZ113: 49 | BA113: 214 | BB113: 9 | BC113: 12 | BD113: 2 | BE113: 8 | BF113: 84 | BG113: 129 | BH113: 73 | BI113: 18 | BJ113: 6378 | BK113: 280 | BL113: 642 | BM113: 1362 | BN113: 512 | BO113: 979 | BP113: 42 | BQ113: 66 | BR113: 683 | BS113: 27 | BT113: 491 | BU113: 25 | BV113: 76 | BW113: 577 | BX113: 15 | BY113: 245 | BZ113: 29 | CA113: 298 | CB113: 368 | CC113: 66 | CD113: 98 | CE113: 2 | CF113: 6 | CG113: 192 | CH113: 7 | CI113: 36 | CJ113: 0 | CK113: 0 | CL113: 314 | CM113: 4
A114: Grafton County | B114: 9000 | C114: 00005 | D114: 42206 | E114: 74929 | F114: 18544 | G114: 27542 | H114: 74929 | I114: 18754 | J114: 74929 | K114: 25 | L114: 18600 | M114: 27527 | N114: 4384 | O114: 889 | P114: 5301 | Q114: 4651 | R114: 5210 | S114: 10796 | T114: 11103 | U114: 6732 | V114: 2860 | W114: 2852 | X114: 4650 | Y114: 2930 | Z114: 527 | AA114: 109 | AB114: 442 | AC114: 499 | AD114: 1747 | AE114: 929 | AF114: 513 | AG114: 308 | AH114: 142 | AI114: 260 | AJ114: 520 | AK114: 641 | AL114: 1584 | AM114: 4146 | AN114: 1409 | AO114: 7909 | AP114: 138 | AQ114: 289 | AR114: 58 | AS114: 330 | AT114: 131 | AU114: 799 | AV114: 79 | AW114: 674 | AX114: 61 | AY114: 137 | AZ114: 139 | BA114: 274 | BB114: 12 | BC114: 41 | BD114: 6 | BE114: 21 | BF114: 95 | BG114: 163 | BH114: 72 | BI114: 33 | BJ114: 12562 | BK114: 724 | BL114: 1359 | BM114: 3351 | BN114: 1593 | BO114: 1798 | BP114: 70 | BQ114: 181 | BR114: 925 | BS114: 50 | BT114: 688 | BU114: 21 | BV114: 143 | BW114: 1184 | BX114: 49 | BY114: 450 | BZ114: 72 | CA114: 347 | CB114: 485 | CC114: 504 | CD114: 106 | CE114: 2 | CF114: 6 | CG114: 292 | CH114: 17 | CI114: 55 | CJ114: 6 | CK114: 10 | CL114: 460 | CM114: 17
A115: Hillsborough County | B115: 11000 | C115: 00006 | D115: 135622 | E115: 336073 | F115: 88473 | G115: 124567 | H115: 336073 | I115: 49460 | J115: 336073 | K115: 14.7 | L115: 89281 | M115: 124692 | N115: 24313 | O115: 4535 | P115: 26066 | Q115: 23326 | R115: 29027 | S115: 63237 | T115: 53419 | U115: 33022 | V115: 11939 | W115: 11922 | X115: 18142 | Y115: 10787 | Z115: 2328 | AA115: 465 | AB115: 2057 | AC115: 1458 | AD115: 2403 | AE115: 3078 | AF115: 1816 | AG115: 1117 | AH115: 560 | AI115: 741 | AJ115: 1539 | AK115: 1699 | AL115: 10093 | AM115: 20108 | AN115: 7762 | AO115: 35695 | AP115: 542 | AQ115: 963 | AR115: 156 | AS115: 1896 | AT115: 673 | AU115: 3653 | AV115: 421 | AW115: 3738 | AX115: 166 | AY115: 341 | AZ115: 365 | BA115: 627 | BB115: 75 | BC115: 46 | BD115: 69 | BE115: 45 | BF115: 562 | BG115: 617 | BH115: 489 | BI115: 179 | BJ115: 64698 | BK115: 3145 | BL115: 7052 | BM115: 15752 | BN115: 7161 | BO115: 6505 | BP115: 234 | BQ115: 804 | BR115: 3669 | BS115: 156 | BT115: 2455 | BU115: 178 | BV115: 629 | BW115: 4049 | BX115: 128 | BY115: 1200 | BZ115: 220 | CA115: 1723 | CB115: 1865 | CC115: 491 | CD115: 213 | CE115: 0 | CF115: 34 | CG115: 898 | CH115: 55 | CI115: 86 | CJ115: 15 | CK115: 90 | CL115: 1180 | CM115: 7
A116: Merrimack County | B116: 13000 | C116: 00007 | D116: 50870 | E116: 120005 | F116: 31801 | G116: 44595 | H116: 120005 | I116: 21504 | J116: 120005 | K116: 17.9 | L116: 31951 | M116: 44471 | N116: 8204 | O116: 1598 | P116: 9651 | Q116: 8730 | R116: 8524 | S116: 20497 | T116: 19447 | U116: 11357 | V116: 4558 | W116: 4480 | X116: 7008 | Y116: 5131 | Z116: 650 | AA116: 64 | AB116: 698 | AC116: 448 | AD116: 925 | AE116: 1006 | AF116: 586 | AG116: 402 | AH116: 167 | AI116: 246 | AJ116: 510 | AK116: 697 | AL116: 3187 | AM116: 7665 | AN116: 2511 | AO116: 13255 | AP116: 197 | AQ116: 415 | AR116: 79 | AS116: 459 | AT116: 236 | AU116: 1440 | AV116: 173 | AW116: 1175 | AX116: 57 | AY116: 164 | AZ116: 72 | BA116: 283 | BB116: 36 | BC116: 31 | BD116: 34 | BE116: 0 | BF116: 128 | BG116: 196 | BH116: 129 | BI116: 29 | BJ116: 22802 | BK116: 1035 | BL116: 2529 | BM116: 5246 | BN116: 2108 | BO116: 2510 | BP116: 54 | BQ116: 252 | BR116: 1603 | BS116: 115 | BT116: 1306 | BU116: 61 | BV116: 243 | BW116: 1792 | BX116: 80 | BY116: 435 | BZ116: 101 | CA116: 446 | CB116: 575 | CC116: 184 | CD116: 83 | CE116: 0 | CF116: 24 | CG116: 272 | CH116: 31 | CI116: 58 | CJ116: 0 | CK116: 12 | CL116: 498 | CM116: 16
A117: New Hampshire | B117: 0 | C117: 00000 | D117: 503904 | E117: 1109252 | F117: 292601 | G117: 411186 | H117: 1109252 | I117: 193338 | J117: 1109252 | K117: 17.4 | L117: 294538 | M117: 411387 | N117: 76254 | O117: 14546 | P117: 86505 | Q117: 76957 | R117: 87257 | S117: 193590 | T117: 176568 | U117: 106933 | V117: 41710 | W117: 41012 | X117: 65269 | Y117: 39998 | Z117: 7106 | AA117: 1384 | AB117: 6834 | AC117: 5116 | AD117: 10945 | AE117: 10415 | AF117: 6494 | AG117: 4091 | AH117: 1867 | AI117: 2952 | AJ117: 5428 | AK117: 6472 | AL117: 30533 | AM117: 67299 | AN117: 24220 | AO117: 121213 | AP117: 1651 | AQ117: 3235 | AR117: 669 | AS117: 5519 | AT117: 2188 | AU117: 11855 | AV117: 1572 | AW117: 11742 | AX117: 633 | AY117: 1364 | AZ117: 1283 | BA117: 2855 | BB117: 235 | BC117: 308 | BD117: 169 | BE117: 135 | BF117: 1627 | BG117: 2290 | BH117: 1390 | BI117: 553 | BJ117: 209630 | BK117: 9732 | BL117: 22701 | BM117: 49354 | BN117: 22449 | BO117: 23893 | BP117: 781 | BQ117: 2504 | BR117: 13263 | BS117: 746 | BT117: 9742 | BU117: 561 | BV117: 2152 | BW117: 14150 | BX117: 561 | BY117: 4697 | BZ117: 808 | CA117: 5556 | CB117: 5851 | CC117: 2734 | CD117: 855 | CE117: 18 | CF117: 114 | CG117: 3005 | CH117: 174 | CI117: 583 | CJ117: 21 | CK117: 190 | CL117: 4478 | CM117: 84
A118: Rockingham County | B118: 15000 | C118: 00008 | D118: 101773 | E118: 245845 | F118: 65939 | G118: 89118 | H118: 245845 | I118: 38116 | J118: 245845 | K118: 15.5 | L118: 66399 | M118: 89259 | N118: 18845 | O118: 3613 | P118: 20053 | Q118: 18039 | R118: 19816 | S118: 47393 | T118: 43182 | U118: 25034 | V118: 9006 | W118: 7643 | X118: 12158 | Y118: 7284 | Z118: 942 | AA118: 153 | AB118: 1024 | AC118: 829 | AD118: 1370 | AE118: 1691 | AF118: 1078 | AG118: 742 | AH118: 310 | AI118: 622 | AJ118: 818 | AK118: 1114 | AL118: 7929 | AM118: 15922 | AN118: 5915 | AO118: 26479 | AP118: 325 | AQ118: 584 | AR118: 151 | AS118: 1352 | AT118: 390 | AU118: 2429 | AV118: 272 | AW118: 2537 | AX118: 90 | AY118: 202 | AZ118: 240 | BA118: 504 | BB118: 5 | BC118: 91 | BD118: 2 | BE118: 28 | BF118: 292 | BG118: 363 | BH118: 163 | BI118: 134 | BJ118: 50302 | BK118: 2129 | BL118: 4758 | BM118: 10344 | BN118: 4986 | BO118: 4207 | BP118: 193 | BQ118: 497 | BR118: 2532 | BS118: 111 | BT118: 1736 | BU118: 90 | BV118: 373 | BW118: 2368 | BX118: 86 | BY118: 748 | BZ118: 112 | CA118: 897 | CB118: 906 | CC118: 353 | CD118: 122 | CE118: 14 | CF118: 22 | CG118: 441 | CH118: 6 | CI118: 166 | CJ118: 0 | CK118: 33 | CL118: 706 | CM118: 21
A119: Strafford County | B119: 17000 | C119: 00009 | D119: 42387 | E119: 104233 | F119: 26231 | G119: 37744 | H119: 104233 | I119: 15727 | J119: 104233 | K119: 15.1 | L119: 26325 | M119: 37688 | N119: 6824 | O119: 1131 | P119: 7718 | Q119: 6208 | R119: 9028 | S119: 18230 | T119: 14222 | U119: 9154 | V119: 3818 | W119: 3755 | X119: 6029 | Y119: 3379 | Z119: 744 | AA119: 159 | AB119: 707 | AC119: 435 | AD119: 2404 | AE119: 1026 | AF119: 707 | AG119: 362 | AH119: 179 | AI119: 237 | AJ119: 437 | AK119: 583 | AL119: 2575 | AM119: 5550 | AN119: 2097 | AO119: 11105 | AP119: 128 | AQ119: 287 | AR119: 41 | AS119: 458 | AT119: 264 | AU119: 1195 | AV119: 165 | AW119: 1125 | AX119: 37 | AY119: 72 | AZ119: 119 | BA119: 297 | BB119: 52 | BC119: 6 | BD119: 0 | BE119: 7 | BF119: 172 | BG119: 285 | BH119: 210 | BI119: 78 | BJ119: 18328 | BK119: 808 | BL119: 2326 | BM119: 4671 | BN119: 2288 | BO119: 2242 | BP119: 73 | BQ119: 212 | BR119: 1170 | BS119: 73 | BT119: 757 | BU119: 33 | BV119: 211 | BW119: 1217 | BX119: 57 | BY119: 409 | BZ119: 65 | CA119: 706 | CB119: 512 | CC119: 709 | CD119: 71 | CE119: 0 | CF119: 12 | CG119: 218 | CH119: 17 | CI119: 45 | CJ119: 0 | CK119: 27 | CL119: 431 | CM119: 0
A120: Sullivan County | B120: 19000 | C120: 00010 | D120: 19532 | E120: 38592 | F120: 10650 | G120: 14873 | H120: 38592 | I120: 8326 | J120: 38592 | K120: 21.6 | L120: 10670 | M120: 14878 | N120: 2338 | O120: 386 | P120: 2869 | Q120: 2876 | R120: 2674 | S120: 5557 | T120: 6136 | U120: 3413 | V120: 1636 | W120: 1694 | X120: 3019 | Y120: 1724 | Z120: 407 | AA120: 83 | AB120: 390 | AC120: 354 | AD120: 433 | AE120: 452 | AF120: 388 | AG120: 274 | AH120: 83 | AI120: 168 | AJ120: 294 | AK120: 389 | AL120: 899 | AM120: 2554 | AN120: 576 | AO120: 4549 | AP120: 77 | AQ120: 150 | AR120: 54 | AS120: 185 | AT120: 105 | AU120: 349 | AV120: 64 | AW120: 365 | AX120: 57 | AY120: 102 | AZ120: 44 | BA120: 158 | BB120: 20 | BC120: 30 | BD120: 18 | BE120: 2 | BF120: 60 | BG120: 129 | BH120: 83 | BI120: 40 | BJ120: 6923 | BK120: 394 | BL120: 704 | BM120: 1629 | BN120: 677 | BO120: 1197 | BP120: 39 | BQ120: 88 | BR120: 575 | BS120: 33 | BT120: 458 | BU120: 33 | BV120: 91 | BW120: 521 | BX120: 39 | BY120: 274 | BZ120: 70 | CA120: 304 | CB120: 258 | CC120: 70 | CD120: 44 | CE120: 0 | CF120: 3 | CG120: 189 | CH120: 5 | CI120: 43 | CJ120: 0 | CK120: 5 | CL120: 212 | CM120: 0
A124: Census 1990 Data - Query Name: CountySTF3QryTableP42_P43
A125: NAME | B125: FIPS | C125: COUSUBFP | D125: HousingUnits90Cen | E125: Persons90Cen | F125: Families90Cen | G125: Households90cen | H125: P01Persons | I125: P02SampleCount | J125: P03_100PctCount | K125: P03APctPersonsInCount | L125: P0420001 | M125: P0420002 | N125: P0420003 | O125: P0420004 | P125: P0420005 | Q125: P0420006 | R125: P0420007 | S125: P0420008 | T125: P0420009 | U125: P0430001 | V125: P0430002 | W125: P0430003 | X125: P0430004 | Y125: P0430005 | Z125: P0430006 | AA125: P0430007 | AB125: P0430008 | AC125: P0430009 | AD125: P0430010
A126: Belknap County | B126: 1000 | C126: 00001 | D126: 30306 | E126: 49216 | F126: 13334 | G126: 18839 | H126: 49216 | I126: 8099 | J126: 49216 | K126: 16.5 | L126: 27389 | M126: 16696 | N126: 1531 | O126: 1355 | P126: 785 | Q126: 9 | R126: 2 | S126: 284 | T126: 1165 | U126: 23257 | V126: 11411 | W126: 5334 | X126: 4162 | Y126: 238 | Z126: 755 | AA126: 450 | AB126: 0 | AC126: 0 | AD126: 141
A127: Carroll County | B127: 3000 | C127: 00002 | D127: 32146 | E127: 35410 | F127: 9866 | G127: 14253 | H127: 35410 | I127: 9351 | J127: 35410 | K127: 26.4 | L127: 14271 | M127: 17004 | N127: 1036 | O127: 1320 | P127: 732 | Q127: 2 | R127: 6 | S127: 220 | T127: 819 | U127: 16444 | V127: 7355 | W127: 2461 | X127: 5074 | Y127: 294 | Z127: 704 | AA127: 467 | AB127: 0 | AC127: 7 | AD127: 178
A128: Cheshire County | B128: 5000 | C128: 00003 | D128: 30350 | E128: 70121 | F128: 18155 | G128: 25856 | H128: 70121 | I128: 14214 | J128: 70121 | K128: 20.3 | L128: 31002 | M128: 30834 | N128: 2641 | O128: 2208 | P128: 1254 | Q128: 33 | R128: 2 | S128: 527 | T128: 1620 | U128: 33307 | V128: 16129 | W128: 3273 | X128: 8618 | Y128: 589 | Z128: 1742 | AA128: 963 | AB128: 10 | AC128: 0 | AD128: 546
A129: Coos County | B129: 7000 | C129: 00004 | D129: 18712 | E129: 34828 | F129: 9608 | G129: 13799 | H129: 34828 | I129: 9787 | J129: 34828 | K129: 28.1 | L129: 23627 | M129: 7623 | N129: 484 | O129: 700 | P129: 385 | Q129: 1 | R129: 2 | S129: 224 | T129: 1782 | U129: 19857 | V129: 7402 | W129: 1993 | X129: 2264 | Y129: 136 | Z129: 515 | AA129: 272 | AB129: 1 | AC129: 0 | AD129: 144
A130: Grafton County | B130: 9000 | C130: 00005 | D130: 42206 | E130: 74929 | F130: 18544 | G130: 27542 | H130: 74929 | I130: 18754 | J130: 74929 | K130: 25 | L130: 35079 | M130: 28365 | N130: 3280 | O130: 2835 | P130: 2311 | Q130: 20 | R130: 10 | S130: 672 | T130: 2357 | U130: 32257 | V130: 15473 | W130: 5224 | X130: 11321 | Y130: 1081 | Z130: 1839 | AA130: 2074 | AB130: 0 | AC130: 7 | AD130: 707
A131: Hillsborough County | B131: 11000 | C131: 00006 | D131: 135622 | E131: 336073 | F131: 88473 | G131: 124567 | H131: 336073 | I131: 49460 | J131: 336073 | K131: 14.7 | L131: 152227 | M131: 129035 | N131: 13541 | O131: 12948 | P131: 6728 | Q131: 947 | R131: 116 | S131: 2730 | T131: 17801 | U131: 158162 | V131: 76971 | W131: 13696 | X131: 38886 | Y131: 4269 | Z131: 7691 | AA131: 4578 | AB131: 434 | AC131: 56 | AD131: 4208
A132: Merrimack County | B132: 13000 | C132: 00007 | D132: 50870 | E132: 120005 | F132: 31801 | G132: 44595 | H132: 120005 | I132: 21504 | J132: 120005 | K132: 17.9 | L132: 66971 | M132: 38707 | N132: 3914 | O132: 3967 | P132: 2444 | Q132: 89 | R132: 22 | S132: 884 | T132: 3007 | U132: 56486 | V132: 24886 | W132: 14525 | X132: 9536 | Y132: 997 | Z132: 2327 | AA132: 1620 | AB132: 13 | AC132: 15 | AD132: 643
A133: New Hampshire | B133: 0 | C133: 00000 | D133: 503904 | E133: 1109252 | F133: 292601 | G133: 411186 | H133: 1109252 | I133: 193338 | J133: 1109252 | K133: 17.4 | L133: 488894 | M133: 463621 | N133: 41623 | O133: 39984 | P133: 22831 | Q133: 1440 | R133: 373 | S133: 9293 | T133: 41193 | U133: 519551 | V133: 232452 | W133: 69950 | X133: 138516 | Y133: 12426 | Z133: 24513 | AA133: 15675 | AB133: 613 | AC133: 229 | AD133: 10696
A134: Rockingham County | B134: 15000 | C134: 00008 | D134: 101773 | E134: 245845 | F134: 65939 | G134: 89118 | H134: 245845 | I134: 38116 | J134: 245845 | K134: 15.5 | L134: 65120 | M134: 145394 | N134: 9950 | O134: 9371 | P134: 5000 | Q134: 296 | R134: 121 | S134: 2292 | T134: 8301 | U134: 117247 | V134: 40750 | W134: 10431 | X134: 42573 | Y134: 3148 | Z134: 5571 | AA134: 3408 | AB134: 149 | AC134: 105 | AD134: 2467
A135: Strafford County | B135: 17000 | C135: 00009 | D135: 42387 | E135: 104233 | F135: 26231 | G135: 37744 | H135: 104233 | I135: 15727 | J135: 104233 | K135: 15.1 | L135: 52612 | M135: 35872 | N135: 4396 | O135: 4209 | P135: 2650 | Q135: 41 | R135: 82 | S135: 1191 | T135: 3180 | U135: 44702 | V135: 22054 | W135: 10494 | X135: 12442 | Y135: 1346 | Z135: 2598 | AA135: 1435 | AB135: 6 | AC135: 27 | AD135: 1440
A136: Sullivan County | B136: 19000 | C136: 00010 | D136: 19532 | E136: 38592 | F136: 10650 | G136: 14873 | H136: 38592 | I136: 8326 | J136: 38592 | K136: 21.6 | L136: 20596 | M136: 14091 | N136: 850 | O136: 1071 | P136: 542 | Q136: 2 | R136: 10 | S136: 269 | T136: 1161 | U136: 17832 | V136: 10021 | W136: 2519 | X136: 3640 | Y136: 328 | Z136: 771 | AA136: 408 | AB136: 0 | AC136: 12 | AD136: 222
A140: OSP PopProjections2006
A141: NAME | B141: FIPS | C141: CNTY_CODE | D141: COUSUB | E141: Pop2010Age<15 | F141: Pop2010Age15to24 | G141: Pop2010Age35to64 | H141: Pop2010Age65+ | I141: Pop2015Age<15 | J141: Pop2015Age15to24 | K141: Pop2015Age35to64 | L141: Pop2015Age65+ | M141: Pop2020Age<15 | N141: Pop2020Age15to24 | O141: Pop2020Age35to64 | P141: Pop2020Age65+ | Q141: Pop2025Age<15 | R141: Pop2025Age15to24 | S141: Pop2025Age35to64 | T141: Pop2025Age65+ | U141: Pop2030Age<15 | V141: Pop2030Age15to24 | W141: Pop2030Age35to64 | X141: Pop2030Age65+
A142: Belknap County | B142: 1000 | C142: 1 | D142: 00001 | E142: 7194 | F142: 6446 | G142: 36872 | H142: 11242 | I142: 7193 | J142: 5944 | K142: 36145 | L142: 14993 | M142: 7421 | N142: 5690 | O142: 34124 | P142: 19526 | Q142: 7596 | R142: 5919 | S142: 31796 | T142: 24132 | U142: 7586 | V142: 6312 | W142: 30414 | X142: 27081
A143: Carroll County | B143: 3000 | C143: 2 | D143: 00002 | E143: 4853 | F143: 4589 | G143: 28286 | H143: 10648 | I143: 4798 | J143: 4142 | K143: 27894 | L143: 14701 | M143: 4967 | N143: 3971 | O143: 26389 | P143: 19631 | Q143: 5203 | R143: 4077 | S143: 24073 | T143: 24426 | U143: 5341 | V143: 4359 | W143: 23087 | X143: 26957
A144: Cheshire County | B144: 5000 | C144: 3 | D144: 00003 | E144: 7970 | F144: 12766 | G144: 42019 | H144: 12190 | I144: 7883 | J144: 11622 | K144: 43061 | L144: 15101 | M144: 8461 | N144: 10760 | O144: 42810 | P144: 18614 | Q144: 8877 | R144: 10788 | S144: 41520 | T144: 22253 | U144: 8908 | V144: 11546 | W144: 41176 | X144: 24610
A145: Coos County | B145: 7000 | C145: 4 | D145: 00004 | E145: 3694 | F145: 3136 | G145: 18055 | H145: 6685 | I145: 3605 | J145: 2862 | K145: 17819 | L145: 7531 | M145: 3477 | N145: 2736 | O145: 16773 | P145: 9010 | Q145: 3378 | R145: 2850 | S145: 15672 | T145: 11484 | U145: 3223 | V145: 2912 | W145: 15151 | X145: 13321
A146: Grafton County | B146: 9000 | C146: 5 | D146: 00005 | E146: 8610 | F146: 14553 | G146: 47683 | H146: 14069 | I146: 8383 | J146: 13668 | K146: 47881 | L146: 18355 | M146: 8705 | N146: 13008 | O146: 45689 | P146: 23555 | Q146: 9032 | R146: 12889 | S146: 43208 | T146: 28667 | U146: 9075 | V146: 13475 | W146: 42675 | X146: 31609
A147: Hillsborough County | B147: 11000 | C147: 6 | D147: 00006 | E147: 60229 | F147: 55229 | G147: 228403 | H147: 49539 | I147: 57642 | J147: 57240 | K147: 231345 | L147: 61783 | M147: 57749 | N147: 55500 | O147: 232006 | P147: 74996 | Q147: 60649 | R147: 53163 | S147: 230163 | T147: 89186 | U147: 64077 | V147: 53939 | W147: 227502 | X147: 101143
A148: Merrimack County | B148: 13000 | C148: 7 | D148: 00007 | E148: 18958 | F148: 19797 | G148: 85944 | H148: 21429 | I148: 18475 | J148: 19188 | K148: 87838 | L148: 27586 | M148: 19371 | N148: 18293 | O148: 86716 | P148: 35945 | Q148: 20473 | R148: 18202 | S148: 82962 | T148: 46045 | U148: 20867 | V148: 19221 | W148: 80172 | X148: 53087
A149: New Hampshire | B149: 0 | C149: 0 | D149: 00000 | E149: =SUM(E142:E148)+E150+E152+E151 -> 173685 | F149: 178722 | G149: 751538 | H149: 191403 | I149: 165788 | J149: 176843 | K149: 759294 | L149: 245952 | M149: 166365 | N149: 169023 | O149: 748822 | P149: 311144 | Q149: 173111 | R149: 163524 | S149: 724970 | T149: 383087 | U149: 179308 | V149: 167319 | W149: 706558 | X149: 437194
A150: Rockingham County | B150: 15000 | C150: 8 | D150: 00008 | E150: 42840 | F150: 36713 | G150: 171467 | H150: 42004 | I150: 39114 | J150: 37392 | K150: 171357 | L150: 57217 | M150: 37296 | N150: 35290 | O150: 167552 | P150: 74761 | Q150: 38733 | R150: 32365 | S150: 160050 | T150: 93882 | U150: 41045 | V150: 31825 | W150: 152240 | X150: 109869
A151: Strafford County | B151: 17000 | C151: 9 | D151: 00009 | E151: 14231 | F151: 21085 | G151: 67664 | H151: 15243 | I151: 13701 | J151: 20645 | K151: 70767 | L151: 18045 | M151: 13946 | N151: 19830 | O151: 72363 | P151: 21705 | Q151: 14218 | R151: 19329 | S151: 72183 | T151: 26864 | U151: 14288 | V151: 19681 | W151: 71156 | X151: 31515
A152: Sullivan County | B152: 19000 | C152: 10 | D152: 00010 | E152: 5106 | F152: 4408 | G152: 25145 | H152: 8354 | I152: 4994 | J152: 4140 | K152: 25187 | L152: 10640 | M152: 4972 | N152: 3945 | O152: 24400 | P152: 13401 | Q152: 4952 | R152: 3942 | S152: 23343 | T152: 16148 | U152: 4898 | V152: 4049 | W152: 22985 | X152: 18002
A155: OSP Occupied HouseHoldEstimates (QryHouseHoldEstimatesCounty and QryHouseHoldEstimatesState) OtherDemoData.mdb
A156: TOWN | B156: FIPS | C156: COUNTYCODE | D156: COUSUBFP | E156: NumHH95 | F156: NumHH00 | G156: NumHH01 | H156: NumHH02 | I156: NumHH03 | J156: NumHH04 | K156: NumHH05 | L156: NumHH06
A157: Belknap County | B157: 1000 | C157: 1 | D157: 00001 | E157: 19451 | F157: 22459 | G157: 22812 | H157: 23156 | I157: 23595 | J157: 24018 | K157: 24441 | L157: 24806
A158: Carroll County | B158: 3000 | C158: 2 | D158: 00002 | E158: 14846 | F158: 18322 | G158: 18573 | H158: 18858 | I158: 19199 | J158: 19570 | K158: 19950 | L158: 20307
A159: Cheshire County | B159: 5000 | C159: 3 | D159: 00003 | E159: 26479 | F159: 28299 | G159: 28549 | H159: 28772 | I159: 29081 | J159: 29406 | K159: 29858 | L159: 30148
A160: Coos County | B160: 7000 | C160: 4 | D160: 00004 | E160: 13987 | F160: 13902 | G160: 13951 | H160: 14029 | I160: 14142 | J160: 14244 | K160: 14374 | L160: 14483
A161: Grafton County | B161: 9000 | C161: 5 | D161: 00005 | E161: 28458 | F161: 31597 | G161: 31975 | H161: 32389 | I161: 32935 | J161: 33532 | K161: 33974 | L161: 34531
A162: Hillsborough County | B162: 11000 | C162: 6 | D162: 00006 | E162: 129535 | F162: 144455 | G162: 146259 | H162: 147956 | I162: 150287 | J162: 152407 | K162: 154453 | L162: 156161
A163: Merrimack County | B163: 13000 | C163: 7 | D163: 00007 | E163: 46017 | F163: 51843 | G163: 52576 | H163: 53373 | I163: 54379 | J163: 55347 | K163: 56210 | L163: 56908
A164: New Hampshire | B164: -1 | C164: -1 | D164: 00000 | E164: 425766 | F164: 474517 | G164: 481043 | H164: 487134 | I164: 494730 | J164: 502672 | K164: 510311 | L164: 516743
A165: Rockingham County | B165: 15000 | C165: 8 | D165: 00008 | E165: 92387 | F165: 104529 | G165: 106456 | H165: 107933 | I165: 109391 | J165: 111320 | K165: 113188 | L165: 114653
A166: Strafford County | B166: 17000 | C166: 9 | D166: 00009 | E166: 39406 | F166: 42581 | G166: 43226 | H166: 43881 | I166: 44769 | J166: 45696 | K166: 46507 | L166: 47214
A167: Sullivan County | B167: 19000 | C167: 10 | D167: 00010 | E167: 15203 | F167: 16530 | G167: 16663 | H167: 16781 | I167: 16947 | J167: 17128 | K167: 17357 | L167: 17532

Sheet CntyDataLink (hidden)
A1: 1 | B1: =A1+1 -> 2 | C1: =B1+1 -> 3 | D1: 4 | E1: 5 | F1: 6 | G1: 7 | H1: 8 | I1: 9 | J1: 10 | K1: 11 | L1: 12 | M1: 13 | N1: 14 | O1: 15 | P1: =O1+1 -> 16 | Q1: 17 | R1: 18 | S1: 19 | T1: 20 | U1: 21 | V1: 22 | W1: 23 | X1: 24 | Y1: 25 | Z1: 26 | AA1: 27 | AB1: 28 | AC1: 29 | AD1: 30 | AE1: 31 | AF1: 32 | AG1: 33 | AH1: 34 | AI1: 35 | AJ1: 36 | AK1: 37 | AL1: 38 | AM1: 39 | AN1: 40 | AO1: 41 | AP1: 42 | AQ1: 43 | AR1: 44 | AS1: 45 | AT1: 46 | AU1: 47 | AV1: 48 | AW1: 49 | AX1: 50 | AY1: 51 | AZ1: 52 | BA1: 53 | BB1: 54 | BC1: 55 | BD1: 56 | BE1: 57 | BF1: 58 | BG1: 59 | BH1: 60 | BI1: 61 | BJ1: 62 | BK1: 63 | BL1: 64 | BM1: 65 | BN1: 66 | BO1: =BN1+1 -> 67 | BP1: 68 | BQ1: 69 | BR1: 70 | BS1: 71 | BT1: 72 | BU1: 73 | BV1: 74 | BW1: 75 | BX1: 76 | BY1: 77 | BZ1: 78 | CA1: 79 | CB1: 80 | CC1: 81 | CD1: 82 | CE1: 83 | CF1: 84 | CG1: 85 | CH1: 86 | CI1: 87 | CJ1: 88 | CK1: 89 | CL1: 90 | CM1: 91 | CN1: 92 | CO1: 93 | CP1: 94 | CQ1: 95 | CR1: 96 | CS1: 97 | CT1: 98 | CU1: 99 | CV1: 100 | CW1: 101 | CX1: 102 | CY1: 103 | CZ1: 104 | DA1: 105 | DB1: 106 | DC1: 107 | DD1: 108 | DE1: 109 | DF1: 110 | DG1: 111 | DH1: 112 | DI1: 113 | DJ1: 114 | DK1: 115 | DL1: 116 | DM1: 117 | DN1: 118 | DO1: 119 | DP1: 120 | DQ1: 121 | DR1: 122 | DS1: 123 | DT1: 124 | DU1: 125 | DV1: 126 | DW1: 127 | DX1: 128 | DY1: 129 | DZ1: 130 | EA1: =DZ1+1 -> 131 | EB1: 132 | EC1: 133 | ED1: 134 | EE1: 135 | EF1: 136 | EG1: 137 | EH1: 138 | EI1: 139 | EJ1: 140 | EK1: 141 | EL1: 142 | EM1: 143 | EN1: 144 | EO1: 145 | EP1: 146 | EQ1: 147 | ER1: 148 | ES1: 149 | ET1: 150 | EU1: 151 | EV1: 152 | EW1: 153 | EX1: 154 | EY1: 155 | EZ1: 156 | FA1: 157 | FB1: 158 | FC1: 159 | FD1: 160 | FE1: 161 | FF1: 162 | FG1: 163 | FH1: 164 | FI1: 165 | FJ1: 166 | FK1: 167 | FL1: 168 | FM1: 169 | FN1: 170 | FO1: 171 | FP1: 172 | FQ1: 173 | FR1: 174 | FS1: 175 | FT1: 176 | FU1: 177 | FV1: 178 | FW1: 179 | FX1: 180 | FY1: 181 | FZ1: 182 | GA1: 183 | GB1: 184 | GC1: 185 | GD1: 186 | GE1: 187 | GF1: 188 | GG1: 189 | GH1: 190 | GI1: 191 | GJ1: 192 | GK1: 193 | GL1: 194 | GM1: =GL1+1 -> 195 | GN1: 196 | GO1: 197 | GP1: 198 | GQ1: 199 | GR1: 200 | GS1: 201 | GT1: 202 | GU1: 203 | GV1: 204 | GW1: 205 | GX1: 206 | GY1: 207 | GZ1: 208 | HA1: 209 | HB1: 210 | HC1: 211 | HD1: 212 | HE1: 213 | HF1: 214 | HG1: 215 | HH1: 216 | HI1: 217 | HJ1: 218 | HK1: 219 | HL1: 220 | HM1: 221 | HN1: 222 | HO1: 223 | HP1: 224 | HQ1: 225 | HR1: 226 | HS1: 227 | HT1: 228 | HU1: 229 | HV1: 230 | HW1: 231 | HX1: 232 | HY1: 233 | HZ1: 234 | IA1: 235 | IB1: 236 | IC1: 237 | ID1: 238 | IE1: 239 | IF1: 240 | IG1: 241 | IH1: 242 | II1: 243
A3: Census 1990 Data - Query Name: DPCnty90Census
A4: CountyName | B4: Cnty_Code | C4: Census_Cnty_Code | D4: LandAcres | E4: WaterAcres | F4: HousingUnits90Cen | G4: Persons90Cen | H4: Families90Cen | I4: Households90cen | J4: MalePop90cen | K4: FemalePop90cen | L4: WhitePop | M4: BlackPop | N4: AmerIndianPop | O4: AsianPIPop | P4: OtherRacePop | Q4: HispanicOrPop | R4: AgeUnder15_90cen | S4: Age15to24_90cen | T4: Age25to34_90cen | U4: Age35to44_90cen | V4: Age45to54_90cen | W4: Age55to64_90cen | X4: Age65to74_90cen | Y4: Age75andOver_90cen | Z4: PersonsInHH90cen | AA4: PersonsInFamHH90cen | AB4: PersonsInGC | AC4: PersonsPerHH90cen | AD4: PersonsPerFam90Cen | AE4: SinglePersonHH90cen | AF4: MarriedCoupleHH90cen | AG4: SingleParentHH90cen | AH4: NonFamilyHH90cen | AI4: TotalHousingUnits | AJ4: OccupiedHousingUnits | AK4: VacantHousingUnits | AL4: OwnerOccHU | AM4: RenterOccHU | AN4: VacantForRent90 | AO4: VacantForSale90 | AP4: VacantSeasonalRec | AQ4: SingFamHU90cen | AR4: MultiFamHU90cen | AS4: MobileHom90cen | AT4: SingFamOwnHU90cen | AU4: MultiFamOwnHU90cen | AV4: MobileHomOwnHU90cen | AW4: SingFamRntrHU90cen | AX4: MultiFamRntrHU90cen | AY4: MobileHomRntrHU90cen | AZ4: HU<5yrs90cen | BA4: HU5to20yrs90cen | BB4: HU20to50yrs90cen | BC4: HU>50yrs90cen | BD4: Units0Bedroom90cen | BE4: Units1Bedroom90cen | BF4: Units2Bedroom90cen | BG4: Units3Bedroom90cen | BH4: Units4+Bedroom90cen | BI4: HI<5K | BJ4: HI5Kto10K | BK4: HI10Kto15K | BL4: HI15Kto25K | BM4: HI25Kto35K | BN4: HI35Kto50K | BO4: HI50Kto75K | BP4: HI75Kto100K | BQ4: HI>100K | BR4: MedHI | BS4: HH<25HI<5K | BT4: HH<25HI5Kto10K | BU4: HH<25HI10Kto15K | BV4: HH<25HI15Kto25K | BW4: HH<25HI25Kto35K | BX4: HH<25HI35Kto50K | BY4: HH<25HI50Kto75K | BZ4: HH<25HI75Kto100K | CA4: HH<25HI>100K | CB4: HH25to34HI<5K | CC4: HH25to34HI5Kto10K | CD4: HH25to34HI10Kto15K | CE4: HH25to34HI15Kto25K | CF4: HH25to34HI25Kto35K | CG4: HH25to34HI35Kto50K | CH4: HH25to34HI50Kto75K | CI4: HH25to34HI75Kto100K | CJ4: HH25to34HI>100K | CK4: HH35to44HI<5K | CL4: HH35to44HI5Kto10K | CM4: HH35to44HI10Kto15K | CN4: HH35to44HI15Kto25K | CO4: HH35to44HI25Kto35K | CP4: HH35to44HI35Kto50K | CQ4: HH35to44HI50Kto75K | CR4: HH35to44HI75Kto100K | CS4: HH35to44HI>100K | CT4: HH45to54HI<5K | CU4: HH45to54HI5Kto10K | CV4: HH45to54HI10Kto15K | CW4: HH45to54HI15Kto25K | CX4: HH45to54HI25Kto35K | CY4: HH45to54HI35Kto50K | CZ4: HH45to54HI50Kto75K | DA4: HH45to54HI75Kto100K | DB4: HH45to54HI>100K | DC4: HH55to64HI<5K | DD4: HH55to64HI5Kto10K | DE4: HH55to64HI10Kto15K | DF4: HH55to64HI15Kto25K | DG4: HH55to64HI25Kto35K | DH4: HH55to64HI35Kto50K | DI4: HH55to64HI50Kto75K | DJ4: HH55to64HI75Kto100K | DK4: HH55to64HI>100K | DL4: HH65to74HI<5K | DM4: HH65to74HI5Kto10K | DN4: HH65to74HI10Kto15K | DO4: HH65to74HI15Kto25K | DP4: HH65to74HI25Kto35K | DQ4: HH65to74HI35Kto50K | DR4: HH65to74HI50Kto75K | DS4: HH65to74HI75Kto100K | DT4: HH65to74HI>100K | DU4: HH>75HI<5K | DV4: HH>75HI5Kto10K | DW4: HH>75HI10Kto15K | DX4: HH>75HI15Kto25K | DY4: HH>75HI25Kto35K | DZ4: HH>75HI35Kto50K | EA4: HH>75HI50Kto75K | EB4: HH>75HI75Kto100K | EC4: HH>75HI>100K | ED4: SchoolEnrollment1thru12 | EE4: Pop25andOver | EF4: HSGradorHigher | EG4: CollGradorHigher | EH4: NativePop | EI4: ForeignBornPop | EJ4: BornStateOfRes | EK4: NativePop2 | EL4: ForeignBornPop2 | EM4: DroveAlone | EN4: CarPooled | EO4: PublicTranspt | EP4: Walked | EQ4: OtherMeans | ER4: WorkedAtHome | ES4: HHInc<10K | ET4: HHInc10to15K | EU4: HHInc15to25K | EV4: HHInc25to35K | EW4: HHInc35to50K | EX4: HHInc50to75K | EY4: HHInc75to100K | EZ4: HHInc100to150K | FA4: HHInc>150K
